Workbook

Sheet Sum
B1: Greenfield Solar PV Asset
B7: Levelised Cost of Energy | D7: ¢ / kWh | E7: =LCoE!L29 -> 3.91110465
B9: Sources & Uses | I9: Operational Data | P9: Equity | V9: Senior Debt | AC9: Audit
C11: Uses | J11: Project | Q11: Key Metrics | W11: Sizing Parameters | AD11: =InpC!C46 -> Model Balanced | AH11: =InpC!K46 -> TRUE
C12: =Fund!C21 -> CAPEX | D12: $m | E12: =Fund!P21 -> 311.5016879 | F12: =E12/$E$15 -> 0.9597039269 | J12: Loaded Scenario | L12: switch | M12: =InpC!K3 -> Base Case | Q12: WACC | R12: % | S12: =Val!L90 -> 0.03642605017 | W12: Max Gearing | Y12: % | Z12: =InpC!K147 -> 0.75 | AD12: =InpC!C47 -> Sources = Uses | AH12: =InpC!K47 -> TRUE
C13: =Fund!C22 -> Interest During Construction | D13: $m | E13: =Fund!P22 -> 8.060819707 | F13: =E13/$E$15 -> 0.02483453743 | J13: Selected Generation | L13: switch | M13: =InpTech!F32 -> P90 | Q13: Equity Hurdle Rate | R13: % | S13: =InpC!K165 -> 0.07 | W13: Min DSCR | Y13: % | Z13: =InpC!K148 -> 1.3 | AD13: =InpC!C48 -> Fully Depreciated | AH13: =InpC!K48 -> TRUE
C14: =Fund!C23 -> Fees | D14: $m | E14: =Fund!P23 -> 5.018521139 | F14: 0.01546153563 | J14: Generation | L14: MWh p.a. | M14: =IF(M13=InpTech!C35,InpTech!F35,InpTech!F36) -> 937682 | Q14: Equity Bridge Loan Active | R14: switch | S14: =InpC!K183 -> TRUE | W14: Debt Quantum | Y14: $m | Z14: =Fund!L46 -> 243.4357715 | AD14: =InpC!C49 -> S Curve Fully Allocated | AH14: =InpC!K49 -> TRUE
D15: $m | E15: =SUM(E12:E14) -> 324.5810287 | F15: =SUM(F12:F14) -> 1 | J15: Avg Degradation | L15: % p.a. | M15: =AVERAGE(InpTech!D42:D66) -> 0.003422810266 | AD15: =InpC!C50 -> Tariff Optimised | AH15: =InpC!K50 -> TRUE
J16: Levelised Cost of Energy | L16: ¢ / kWh | M16: =LCoE!L29 -> 3.91110465 | Q16: Contribution | W16: Repayment | AD16: =InpC!C51 -> Macro | AH16: =InpC!K51 -> TRUE
J17: MRA Active | L17: switch | M17: =InpC!K257 -> TRUE | Q17: Share Capital | R17: % | S17: =Val!P34/SUM(Val!$P$34:$P$35) -> 0.5 | W17: Tenor | Y17: years | Z17: =InpC!K192 -> 22 | AD17: Aggergate | AH17: =AND(AH11:AH16) -> TRUE
C18: Sources | J18: Corporate Tax Rate | L18: % | M18: =InpC!K267 -> 0.2 | Q18: Shareholder Loan | R18: % | S18: =Val!P35/SUM(Val!$P$34:$P$35) -> 0.5 | W18: Maturity | Y18: date | Z18: =InpC!K193 -> 2045-01-01
C19: =Fund!C28 -> Mandated Minimum Share Capital | D19: $m | E19: =Fund!P28 -> 2 | F19: =E19/$E$25 -> 0.006161789578 | W19: Weighted Cost of Debt | Y19: % | Z19: =Val!L81 -> 0.02523473356 | AC19: Covenants
C20: =Fund!C29 -> Equity Bridge Loan | D20: $m | E20: =Fund!P29 -> 79.14525718 | F20: 0.2438382104 | Q20: Returns | W20: Debt Free Tail | Y20: years | Z20: =InpC!K195 -> 2.997260274
C21: =Fund!C30 -> Share Capital | D21: $m | E21: =Fund!P30 -> 0 | F21: 0 | J21: Dates | Q21: Project | R21: % | S21: =Val!L28 -> 0.05523416102 | W21: Weighted Avg Life | Y21: years | Z21: =Val!L65 -> 11.23101451 | AD21: MRA Funded | AH21: =Equity!L20 -> TRUE
C22: =Fund!C31 -> Shareholder Loan | D22: $m | E22: =Fund!P31 -> 0 | F22: 0 | J22: Construction - Start Date | L22: date | M22: =InpC!K15 -> 2021-03-01 | Q22: Equity | R22: % | S22: =Val!L44 -> 0.1401058733 | AD22: DSCR | AH22: =Equity!L21 -> TRUE
C23: =Fund!C32 -> Senior Debt | D23: $m | E23: =Fund!P32 -> 243.4357715 | F23: 0.75 | J23: Operation - Start Date | L23: date | M23: =InpC!K39 -> 2023-01-01 | W23: Ratios | AD23: LLCR | AH23: =Equity!L22 -> TRUE
C24: =Fund!C33 -> Standby Equity | D24: $m | E24: =Fund!P33 -> 1.030286967e-13 | F24: 3.174205747e-16 | J24: PPA Tenor | L24: years | M24: =InpC!K40 -> 25 | Q24: Valuation | W24: Min DSCR | Y24: x | Z24: =Ratio!J28 -> 1.747630682 | AD24: PLCR | AH24: =Equity!L23 -> TRUE
D25: $m | E25: =SUM(E19:E24) -> 324.5810287 | F25: =SUM(F19:F24) -> 1 | J25: Decommissioning | L25: date | M25: =InpC!K41 -> 2047-12-31 | Q25: Project | R25: $m | S25: =Val!L99 -> 67.10880544 | W25: Min LLCR | Y25: x | Z25: =Ratio!J79 -> 1.767954028 | AD25: Aggregate | AH25: =AND(AH21:AH24) -> TRUE
Q26: Equity | R26: $m | S26: =Val!L112 -> 41.91559154 | W26: Min PLCR | Y26: x | Z26: =Ratio!J113 -> 1.894979131
B29: Sources & Uses | I29: Project Cashflows | V29: Senior Debt
C60: ADDITIONAL GRAPHS

Sheet Results (hidden)
B1: Merkur Offshore
B2: RESULTS
B4: Master Check | E4: TRUE | M4: MACRO BUTTONS
B6: Active sizing scenario | H6: Bank Case
B7: Active sensitivity | H7: Base Case
B10: MAIN RESULTS
B12: Key Data | H12: Sources & Uses | V12: Senior Debt
B14: Project | H14: Uses | O14: Sources | V14: Sizing
B15: Number of turbines | E15: 66 | H15: Construction costs | K15: 1399091.842 | L15: 0.8904737436 | O15: Base Equity at COD | R15: 409240.9638 | S15: 0.2604677707 | V15: Gearing at COD | X15: [%] | Y15: 0.85
B16: Project's nameplate capacity | D16: [MW] | E16: 396 | H16: Actual Costs | K16: 845190.9872 | L16: 0.5379349374 | O16: PCRs | R16: 96592.98818 | S16: 0.0614781083 | V16: Sculpting DSCR | X16: [Ratio] | Y16: 1.278563342
B17: Gross Generation - P90 | D17: [GWh p.a.] | E17: 1845956.943 | H17: Forecasts | K17: 553900.8548 | L17: 0.3525388062 | O17: Gross PCRs (excl. MtM) | R17: 87704.86972 | S17: 0.05582112719
H18: Trade Creditors for Construction | K18: 48561.03126 | L18: 0.03090742294 | O18: Opex and taxes | R18: -9952.481536 | S18: -0.006334411527 | V18: Ratios
B19: Dates | H19: Development costs | K19: 17946.87 | L19: 0.01142256429 | O19: Mark-to-Market | R19: 18840.6 | S19: 0.01199139264 | V19: Minimum Historic ADSCR | X19: [Ratio] | Y19: 1.278563342
B20: Construction - Start date | D20: [Date] | E20: 2016-08-01 | H20: Tax | K20: 0 | L20: 0 | O20: Debt drawdown | R20: 1335500.428 | S20: 0.85 | V20: Average Historic ADSCR | X20: [Ratio] | Y20: 1.303104784
B21: Operation - Start date | D21: [Date] | E21: 2019-04-01 | H21: DSRA Prefunding | K21: 0 | L21: 0 | O21: Senior Debt amount drawn until COD | R21: 1065343.022 | S21: 0.678054121 | V21: LLCR at COD | X21: [Ratio] | Y21: 1.394608423
B22: First Turbine online | D22: [Date] | E22: 2018-09-14 | H22: SHL upfront fee | K22: 9887.038856 | L22: 0.006292759516 | O22: Senior Debt True-up at COD | R22: 270157.4059 | S22: 0.171945879 | V22: WAL from COD | X22: [Years] | Y22: 7.303307747
B23: Last Turbine online | D23: [Date] | E23: 2019-01-31 | H23: Interests during construction | K23: 36074.15409 | L23: 0.02295995593 | O23: Contingent Equity | R23: 0 | S23: 0
B24: Average end of CfD | D24: [Date] | E24: 2033-01-08T14:32:43.636 | H24: Financing fees | K24: 46611.11399 | L24: 0.0296663678 | O24: Contingent Facilities drawdown | R24: 0 | S24: 0 | V24: Dates
H25: Refinancing costs | K25: 2000 | L25: 0.001272931078 | O25: True-Up | R25: -270157.4059 | S25: -0.171945879 | V25: Senior Debt Maturity Date | X25: [Date] | Y25: 2035-12-31
B26: Financing | H26: LCs | K26: 9411.510257 | L26: 0.00599010195 | V26: Contractual Tenor from COD | X26: [Years] | Y26: 16.75
B27: Financial Close - Initial financing | D27: [Date] | E27: 2016-08-11 | H27: Others | K27: 1593.413679 | L27: 0.001014152896 | V27: Senior Debt Repayment Date | X27: [Date] | Y27: 2032-12-31
B28: Financial Close - Refinancing | D28: [Date] | E28: 2018-07-01 | H28: Total Uses | K28: 1571176.974 | L28: 1 | O28: Total Sources | R28: 1571176.974 | S28: 1 | V28: Contingent Debt Repayment Date | X28: [Date] | Y28: n/a
B59: ADDITIONAL GRAPHS

Sheet LCoE
P3: Period Start: | R3: =Time!R50 -> 2023-01-01 | S3: =Time!S50 -> 2023-07-01 | T3: =Time!T50 -> 2024-01-01 | U3: =Time!U50 -> 2024-07-01 | V3: =Time!V50 -> 2025-01-01 | W3: =Time!W50 -> 2025-07-01 | X3: =Time!X50 -> 2026-01-01 | Y3: =Time!Y50 -> 2026-07-01 | Z3: =Time!Z50 -> 2027-01-01 | AA3: =Time!AA50 -> 2027-07-01 | AB3: =Time!AB50 -> 2028-01-01 | AC3: =Time!AC50 -> 2028-07-01 | AD3: =Time!AD50 -> 2029-01-01 | AE3: =Time!AE50 -> 2029-07-01 | AF3: =Time!AF50 -> 2030-01-01 | AG3: =Time!AG50 -> 2030-07-01 | AH3: =Time!AH50 -> 2031-01-01 | AI3: =Time!AI50 -> 2031-07-01 | AJ3: =Time!AJ50 -> 2032-01-01 | AK3: =Time!AK50 -> 2032-07-01 | AL3: =Time!AL50 -> 2033-01-01 | AM3: =Time!AM50 -> 2033-07-01 | AN3: =Time!AN50 -> 2034-01-01 | AO3: =Time!AO50 -> 2034-07-01 | AP3: =Time!AP50 -> 2035-01-01 | AQ3: =Time!AQ50 -> 2035-07-01 | AR3: =Time!AR50 -> 2036-01-01 | AS3: =Time!AS50 -> 2036-07-01 | AT3: =Time!AT50 -> 2037-01-01 | AU3: =Time!AU50 -> 2037-07-01 | AV3: =Time!AV50 -> 2038-01-01 | AW3: =Time!AW50 -> 2038-07-01 | AX3: =Time!AX50 -> 2039-01-01 | AY3: =Time!AY50 -> 2039-07-01 | AZ3: =Time!AZ50 -> 2040-01-01 | BA3: =Time!BA50 -> 2040-07-01 | BB3: =Time!BB50 -> 2041-01-01 | BC3: =Time!BC50 -> 2041-07-01 | BD3: =Time!BD50 -> 2042-01-01 | BE3: =Time!BE50 -> 2042-07-01 | BF3: =Time!BF50 -> 2043-01-01 | BG3: =Time!BG50 -> 2043-07-01 | BH3: =Time!BH50 -> 2044-01-01 | BI3: =Time!BI50 -> 2044-07-01 | BJ3: =Time!BJ50 -> 2045-01-01 | BK3: =Time!BK50 -> 2045-07-01 | BL3: =Time!BL50 -> 2046-01-01 | BM3: =Time!BM50 -> 2046-07-01 | BN3: =Time!BN50 -> 2047-01-01 | BO3: =Time!BO50 -> 2047-07-01 | BP3: =Time!BP50 -> 2048-01-01 | BQ3: =Time!BQ50 -> 2048-07-01 | BR3: =Time!BR50 -> 2049-01-01 | BS3: =Time!BS50 -> 2049-07-01 | BT3: =Time!BT50 -> 2050-01-01 | BU3: =Time!BU50 -> 2050-07-01 | BV3: =Time!BV50 -> 2051-01-01 | BW3: =Time!BW50 -> 2051-07-01 | BX3: =Time!BX50 -> 2052-01-01 | BY3: =Time!BY50 -> 2052-07-01 | BZ3: =Time!BZ50 -> 2053-01-01 | CA3: =Time!CA50 -> 2053-07-01 | CB3: =Time!CB50 -> 2054-01-01 | CC3: =Time!CC50 -> 2054-07-01 | CD3: =Time!CD50 -> 2055-01-01 | CE3: =Time!CE50 -> 2055-07-01 | CF3: =Time!CF50 -> 2056-01-01 | CG3: =Time!CG50 -> 2056-07-01 | CH3: =Time!CH50 -> 2057-01-01 | CI3: =Time!CI50 -> 2057-07-01 | CJ3: =Time!CJ50 -> 2058-01-01 | CK3: =Time!CK50 -> 2058-07-01 | CL3: =Time!CL50 -> 2059-01-01 | CM3: =Time!CM50 -> 2059-07-01 | CN3: =Time!CN50 -> 2060-01-01 | CO3: =Time!CO50 -> 2060-07-01 | CP3: =Time!CP50 -> 2061-01-01 | CQ3: =Time!CQ50 -> 2061-07-01 | CR3: =Time!CR50 -> 2062-01-01 | CS3: =Time!CS50 -> 2062-07-01 | CT3: =Time!CT50 -> 2063-01-01 | CU3: =Time!CU50 -> 2063-07-01 | CV3: =Time!CV50 -> 2064-01-01 | CW3: =Time!CW50 -> 2064-07-01 | CX3: =Time!CX50 -> 2065-01-01 | CY3: =Time!CY50 -> 2065-07-01 | CZ3: =Time!CZ50 -> 2066-01-01 | DA3: =Time!DA50 -> 2066-07-01 | DB3: =Time!DB50 -> 2067-01-01 | DC3: =Time!DC50 -> 2067-07-01 | DD3: =Time!DD50 -> 2068-01-01 | DE3: =Time!DE50 -> 2068-07-01 | DF3: =Time!DF50 -> 2069-01-01 | DG3: =Time!DG50 -> 2069-07-01 | DH3: =Time!DH50 -> 2070-01-01 | DI3: =Time!DI50 -> 2070-07-01 | DJ3: =Time!DJ50 -> 2071-01-01 | DK3: =Time!DK50 -> 2071-07-01 | DL3: =Time!DL50 -> 2072-01-01 | DM3: =Time!DM50 -> 2072-07-01 | DN3: =Time!DN50 -> 2073-01-01 | DO3: =Time!DO50 -> 2073-07-01 | DP3: =Time!DP50 -> 2074-01-01 | DQ3: =Time!DQ50 -> 2074-07-01 | DR3: =Time!DR50 -> 2075-01-01 | DS3: =Time!DS50 -> 2075-07-01 | DT3: =Time!DT50 -> 2076-01-01 | DU3: =Time!DU50 -> 2076-07-01 | DV3: =Time!DV50 -> 2077-01-01 | DW3: =Time!DW50 -> 2077-07-01 | DX3: =Time!DX50 -> 2078-01-01 | DY3: =Time!DY50 -> 2078-07-01 | DZ3: =Time!DZ50 -> 2079-01-01 | EA3: =Time!EA50 -> 2079-07-01 | EB3: =Time!EB50 -> 2080-01-01 | EC3: =Time!EC50 -> 2080-07-01 | ED3: =Time!ED50 -> 2081-01-01 | EE3: =Time!EE50 -> 2081-07-01 | EF3: =Time!EF50 -> 2082-01-01 | EG3: =Time!EG50 -> 2082-07-01 | EH3: =Time!EH50 -> 2083-01-01 | EI3: =Time!EI50 -> 2083-07-01 | EJ3: =Time!EJ50 -> 2084-01-01 | EK3: =Time!EK50 -> 2084-07-01 | EL3: =Time!EL50 -> 2085-01-01 | EM3: =Time!EM50 -> 2085-07-01 | EN3: =Time!EN50 -> 2086-01-01 | EO3: =Time!EO50 -> 2086-07-01 | EP3: =Time!EP50 -> 2087-01-01 | EQ3: =Time!EQ50 -> 2087-07-01 | ER3: =Time!ER50 -> 2088-01-01 | ES3: =Time!ES50 -> 2088-07-01 | ET3: =Time!ET50 -> 2089-01-01 | EU3: =Time!EU50 -> 2089-07-01 | EV3: =Time!EV50 -> 2090-01-01 | EW3: =Time!EW50 -> 2090-07-01 | EX3: =Time!EX50 -> 2091-01-01 | EY3: =Time!EY50 -> 2091-07-01 | EZ3: =Time!EZ50 -> 2092-01-01 | FA3: =Time!FA50 -> 2092-07-01 | FB3: =Time!FB50 -> 2093-01-01 | FC3: =Time!FC50 -> 2093-07-01 | FD3: =Time!FD50 -> 2094-01-01 | FE3: =Time!FE50 -> 2094-07-01 | FF3: =Time!FF50 -> 2095-01-01 | FG3: =Time!FG50 -> 2095-07-01 | FH3: =Time!FH50 -> 2096-01-01 | FI3: =Time!FI50 -> 2096-07-01 | FJ3: =Time!FJ50 -> 2097-01-01 | FK3: =Time!FK50 -> 2097-07-01 | FL3: =Time!FL50 -> 2098-01-01 | FM3: =Time!FM50 -> 2098-07-01 | FN3: =Time!FN50 -> 2099-01-01 | FO3: =Time!FO50 -> 2099-07-01 | FP3: =Time!FP50 -> 2100-01-01 | FQ3: =Time!FQ50 -> 2100-07-01 | FR3: =Time!FR50 -> 2101-01-01 | FS3: =Time!FS50 -> 2101-07-01 | FT3: =Time!FT50 -> 2102-01-01 | FU3: =Time!FU50 -> 2102-07-01 | FV3: =Time!FV50 -> 2103-01-01 | FW3: =Time!FW50 -> 2103-07-01 | FX3: =Time!FX50 -> 2104-01-01 | FY3: =Time!FY50 -> 2104-07-01 | FZ3: =Time!FZ50 -> 2105-01-01 | GA3: =Time!GA50 -> 2105-07-01 | GB3: =Time!GB50 -> 2106-01-01 | GC3: =Time!GC50 -> 2106-07-01 | GD3: =Time!GD50 -> 2107-01-01 | GE3: =Time!GE50 -> 2107-07-01 | GF3: =Time!GF50 -> 2108-01-01 | GG3: =Time!GG50 -> 2108-07-01 | GH3: =Time!GH50 -> 2109-01-01 | GI3: =Time!GI50 -> 2109-07-01 | GJ3: =Time!GJ50 -> 2110-01-01 | GK3: =Time!GK50 -> 2110-07-01 | GL3: =Time!GL50 -> 2111-01-01 | GM3: =Time!GM50 -> 2111-07-01 | GN3: =Time!GN50 -> 2112-01-01 | GO3: =Time!GO50 -> 2112-07-01 | GP3: =Time!GP50 -> 2113-01-01 | GQ3: =Time!GQ50 -> 2113-07-01 | GR3: =Time!GR50 -> 2114-01-01 | GS3: =Time!GS50 -> 2114-07-01 | GT3: =Time!GT50 -> 2115-01-01 | GU3: =Time!GU50 -> 2115-07-01 | GV3: =Time!GV50 -> 2116-01-01 | GW3: =Time!GW50 -> 2116-07-01 | GX3: =Time!GX50 -> 2117-01-01 | GY3: =Time!GY50 -> 2117-07-01 | GZ3: =Time!GZ50 -> 2118-01-01 | HA3: =Time!HA50 -> 2118-07-01 | HB3: =Time!HB50 -> 2119-01-01 | HC3: =Time!HC50 -> 2119-07-01 | HD3: =Time!HD50 -> 2120-01-01 | HE3: =Time!HE50 -> 2120-07-01 | HF3: =Time!HF50 -> 2121-01-01 | HG3: =Time!HG50 -> 2121-07-01 | HH3: =Time!HH50 -> 2122-01-01 | HI3: =Time!HI50 -> 2122-07-01 | HJ3: =Time!HJ50 -> 2123-01-01 | HK3: =Time!HK50 -> 2123-07-01 | HL3: =Time!HL50 -> 2124-01-01 | HM3: =Time!HM50 -> 2124-07-01 | HN3: =Time!HN50 -> 2125-01-01 | HO3: =Time!HO50 -> 2125-07-01 | HP3: =Time!HP50 -> 2126-01-01 | HQ3: =Time!HQ50 -> 2126-07-01 | HR3: =Time!HR50 -> 2127-01-01 | HS3: =Time!HS50 -> 2127-07-01 | HT3: =Time!HT50 -> 2128-01-01 | HU3: =Time!HU50 -> 2128-07-01 | HV3: =Time!HV50 -> 2129-01-01 | HW3: =Time!HW50 -> 2129-07-01 | HX3: =Time!HX50 -> 2130-01-01 | HY3: =Time!HY50 -> 2130-07-01 | HZ3: =Time!HZ50 -> 2131-01-01 | IA3: =Time!IA50 -> 2131-07-01 | IB3: =Time!IB50 -> 2132-01-01 | IC3: =Time!IC50 -> 2132-07-01 | ID3: =Time!ID50 -> 2133-01-01 | IE3: =Time!IE50 -> 2133-07-01
P4: Period End: | R4: =Time!R51 -> 2023-06-30 | S4: =Time!S51 -> 2023-12-31 | T4: =Time!T51 -> 2024-06-30 | U4: =Time!U51 -> 2024-12-31 | V4: =Time!V51 -> 2025-06-30 | W4: =Time!W51 -> 2025-12-31 | X4: =Time!X51 -> 2026-06-30 | Y4: =Time!Y51 -> 2026-12-31 | Z4: =Time!Z51 -> 2027-06-30 | AA4: =Time!AA51 -> 2027-12-31 | AB4: =Time!AB51 -> 2028-06-30 | AC4: =Time!AC51 -> 2028-12-31 | AD4: =Time!AD51 -> 2029-06-30 | AE4: =Time!AE51 -> 2029-12-31 | AF4: =Time!AF51 -> 2030-06-30 | AG4: =Time!AG51 -> 2030-12-31 | AH4: =Time!AH51 -> 2031-06-30 | AI4: =Time!AI51 -> 2031-12-31 | AJ4: =Time!AJ51 -> 2032-06-30 | AK4: =Time!AK51 -> 2032-12-31 | AL4: =Time!AL51 -> 2033-06-30 | AM4: =Time!AM51 -> 2033-12-31 | AN4: =Time!AN51 -> 2034-06-30 | AO4: =Time!AO51 -> 2034-12-31 | AP4: =Time!AP51 -> 2035-06-30 | AQ4: =Time!AQ51 -> 2035-12-31 | AR4: =Time!AR51 -> 2036-06-30 | AS4: =Time!AS51 -> 2036-12-31 | AT4: =Time!AT51 -> 2037-06-30 | AU4: =Time!AU51 -> 2037-12-31 | AV4: =Time!AV51 -> 2038-06-30 | AW4: =Time!AW51 -> 2038-12-31 | AX4: =Time!AX51 -> 2039-06-30 | AY4: =Time!AY51 -> 2039-12-31 | AZ4: =Time!AZ51 -> 2040-06-30 | BA4: =Time!BA51 -> 2040-12-31 | BB4: =Time!BB51 -> 2041-06-30 | BC4: =Time!BC51 -> 2041-12-31 | BD4: =Time!BD51 -> 2042-06-30 | BE4: =Time!BE51 -> 2042-12-31 | BF4: =Time!BF51 -> 2043-06-30 | BG4: =Time!BG51 -> 2043-12-31 | BH4: =Time!BH51 -> 2044-06-30 | BI4: =Time!BI51 -> 2044-12-31 | BJ4: =Time!BJ51 -> 2045-06-30 | BK4: =Time!BK51 -> 2045-12-31 | BL4: =Time!BL51 -> 2046-06-30 | BM4: =Time!BM51 -> 2046-12-31 | BN4: =Time!BN51 -> 2047-06-30 | BO4: =Time!BO51 -> 2047-12-31 | BP4: =Time!BP51 -> 2048-06-30 | BQ4: =Time!BQ51 -> 2048-12-31 | BR4: =Time!BR51 -> 2049-06-30 | BS4: =Time!BS51 -> 2049-12-31 | BT4: =Time!BT51 -> 2050-06-30 | BU4: =Time!BU51 -> 2050-12-31 | BV4: =Time!BV51 -> 2051-06-30 | BW4: =Time!BW51 -> 2051-12-31 | BX4: =Time!BX51 -> 2052-06-30 | BY4: =Time!BY51 -> 2052-12-31 | BZ4: =Time!BZ51 -> 2053-06-30 | CA4: =Time!CA51 -> 2053-12-31 | CB4: =Time!CB51 -> 2054-06-30 | CC4: =Time!CC51 -> 2054-12-31 | CD4: =Time!CD51 -> 2055-06-30 | CE4: =Time!CE51 -> 2055-12-31 | CF4: =Time!CF51 -> 2056-06-30 | CG4: =Time!CG51 -> 2056-12-31 | CH4: =Time!CH51 -> 2057-06-30 | CI4: =Time!CI51 -> 2057-12-31 | CJ4: =Time!CJ51 -> 2058-06-30 | CK4: =Time!CK51 -> 2058-12-31 | CL4: =Time!CL51 -> 2059-06-30 | CM4: =Time!CM51 -> 2059-12-31 | CN4: =Time!CN51 -> 2060-06-30 | CO4: =Time!CO51 -> 2060-12-31 | CP4: =Time!CP51 -> 2061-06-30 | CQ4: =Time!CQ51 -> 2061-12-31 | CR4: =Time!CR51 -> 2062-06-30 | CS4: =Time!CS51 -> 2062-12-31 | CT4: =Time!CT51 -> 2063-06-30 | CU4: =Time!CU51 -> 2063-12-31 | CV4: =Time!CV51 -> 2064-06-30 | CW4: =Time!CW51 -> 2064-12-31 | CX4: =Time!CX51 -> 2065-06-30 | CY4: =Time!CY51 -> 2065-12-31 | CZ4: =Time!CZ51 -> 2066-06-30 | DA4: =Time!DA51 -> 2066-12-31 | DB4: =Time!DB51 -> 2067-06-30 | DC4: =Time!DC51 -> 2067-12-31 | DD4: =Time!DD51 -> 2068-06-30 | DE4: =Time!DE51 -> 2068-12-31 | DF4: =Time!DF51 -> 2069-06-30 | DG4: =Time!DG51 -> 2069-12-31 | DH4: =Time!DH51 -> 2070-06-30 | DI4: =Time!DI51 -> 2070-12-31 | DJ4: =Time!DJ51 -> 2071-06-30 | DK4: =Time!DK51 -> 2071-12-31 | DL4: =Time!DL51 -> 2072-06-30 | DM4: =Time!DM51 -> 2072-12-31 | DN4: =Time!DN51 -> 2073-06-30 | DO4: =Time!DO51 -> 2073-12-31 | DP4: =Time!DP51 -> 2074-06-30 | DQ4: =Time!DQ51 -> 2074-12-31 | DR4: =Time!DR51 -> 2075-06-30 | DS4: =Time!DS51 -> 2075-12-31 | DT4: =Time!DT51 -> 2076-06-30 | DU4: =Time!DU51 -> 2076-12-31 | DV4: =Time!DV51 -> 2077-06-30 | DW4: =Time!DW51 -> 2077-12-31 | DX4: =Time!DX51 -> 2078-06-30 | DY4: =Time!DY51 -> 2078-12-31 | DZ4: =Time!DZ51 -> 2079-06-30 | EA4: =Time!EA51 -> 2079-12-31 | EB4: =Time!EB51 -> 2080-06-30 | EC4: =Time!EC51 -> 2080-12-31 | ED4: =Time!ED51 -> 2081-06-30 | EE4: =Time!EE51 -> 2081-12-31 | EF4: =Time!EF51 -> 2082-06-30 | EG4: =Time!EG51 -> 2082-12-31 | EH4: =Time!EH51 -> 2083-06-30 | EI4: =Time!EI51 -> 2083-12-31 | EJ4: =Time!EJ51 -> 2084-06-30 | EK4: =Time!EK51 -> 2084-12-31 | EL4: =Time!EL51 -> 2085-06-30 | EM4: =Time!EM51 -> 2085-12-31 | EN4: =Time!EN51 -> 2086-06-30 | EO4: =Time!EO51 -> 2086-12-31 | EP4: =Time!EP51 -> 2087-06-30 | EQ4: =Time!EQ51 -> 2087-12-31 | ER4: =Time!ER51 -> 2088-06-30 | ES4: =Time!ES51 -> 2088-12-31 | ET4: =Time!ET51 -> 2089-06-30 | EU4: =Time!EU51 -> 2089-12-31 | EV4: =Time!EV51 -> 2090-06-30 | EW4: =Time!EW51 -> 2090-12-31 | EX4: =Time!EX51 -> 2091-06-30 | EY4: =Time!EY51 -> 2091-12-31 | EZ4: =Time!EZ51 -> 2092-06-30 | FA4: =Time!FA51 -> 2092-12-31 | FB4: =Time!FB51 -> 2093-06-30 | FC4: =Time!FC51 -> 2093-12-31 | FD4: =Time!FD51 -> 2094-06-30 | FE4: =Time!FE51 -> 2094-12-31 | FF4: =Time!FF51 -> 2095-06-30 | FG4: =Time!FG51 -> 2095-12-31 | FH4: =Time!FH51 -> 2096-06-30 | FI4: =Time!FI51 -> 2096-12-31 | FJ4: =Time!FJ51 -> 2097-06-30 | FK4: =Time!FK51 -> 2097-12-31 | FL4: =Time!FL51 -> 2098-06-30 | FM4: =Time!FM51 -> 2098-12-31 | FN4: =Time!FN51 -> 2099-06-30 | FO4: =Time!FO51 -> 2099-12-31 | FP4: =Time!FP51 -> 2100-06-30 | FQ4: =Time!FQ51 -> 2100-12-31 | FR4: =Time!FR51 -> 2101-06-30 | FS4: =Time!FS51 -> 2101-12-31 | FT4: =Time!FT51 -> 2102-06-30 | FU4: =Time!FU51 -> 2102-12-31 | FV4: =Time!FV51 -> 2103-06-30 | FW4: =Time!FW51 -> 2103-12-31 | FX4: =Time!FX51 -> 2104-06-30 | FY4: =Time!FY51 -> 2104-12-31 | FZ4: =Time!FZ51 -> 2105-06-30 | GA4: =Time!GA51 -> 2105-12-31 | GB4: =Time!GB51 -> 2106-06-30 | GC4: =Time!GC51 -> 2106-12-31 | GD4: =Time!GD51 -> 2107-06-30 | GE4: =Time!GE51 -> 2107-12-31 | GF4: =Time!GF51 -> 2108-06-30 | GG4: =Time!GG51 -> 2108-12-31 | GH4: =Time!GH51 -> 2109-06-30 | GI4: =Time!GI51 -> 2109-12-31 | GJ4: =Time!GJ51 -> 2110-06-30 | GK4: =Time!GK51 -> 2110-12-31 | GL4: =Time!GL51 -> 2111-06-30 | GM4: =Time!GM51 -> 2111-12-31 | GN4: =Time!GN51 -> 2112-06-30 | GO4: =Time!GO51 -> 2112-12-31 | GP4: =Time!GP51 -> 2113-06-30 | GQ4: =Time!GQ51 -> 2113-12-31 | GR4: =Time!GR51 -> 2114-06-30 | GS4: =Time!GS51 -> 2114-12-31 | GT4: =Time!GT51 -> 2115-06-30 | GU4: =Time!GU51 -> 2115-12-31 | GV4: =Time!GV51 -> 2116-06-30 | GW4: =Time!GW51 -> 2116-12-31 | GX4: =Time!GX51 -> 2117-06-30 | GY4: =Time!GY51 -> 2117-12-31 | GZ4: =Time!GZ51 -> 2118-06-30 | HA4: =Time!HA51 -> 2118-12-31 | HB4: =Time!HB51 -> 2119-06-30 | HC4: =Time!HC51 -> 2119-12-31 | HD4: =Time!HD51 -> 2120-06-30 | HE4: =Time!HE51 -> 2120-12-31 | HF4: =Time!HF51 -> 2121-06-30 | HG4: =Time!HG51 -> 2121-12-31 | HH4: =Time!HH51 -> 2122-06-30 | HI4: =Time!HI51 -> 2122-12-31 | HJ4: =Time!HJ51 -> 2123-06-30 | HK4: =Time!HK51 -> 2123-12-31 | HL4: =Time!HL51 -> 2124-06-30 | HM4: =Time!HM51 -> 2124-12-31 | HN4: =Time!HN51 -> 2125-06-30 | HO4: =Time!HO51 -> 2125-12-31 | HP4: =Time!HP51 -> 2126-06-30 | HQ4: =Time!HQ51 -> 2126-12-31 | HR4: =Time!HR51 -> 2127-06-30 | HS4: =Time!HS51 -> 2127-12-31 | HT4: =Time!HT51 -> 2128-06-30 | HU4: =Time!HU51 -> 2128-12-31 | HV4: =Time!HV51 -> 2129-06-30 | HW4: =Time!HW51 -> 2129-12-31 | HX4: =Time!HX51 -> 2130-06-30 | HY4: =Time!HY51 -> 2130-12-31 | HZ4: =Time!HZ51 -> 2131-06-30 | IA4: =Time!IA51 -> 2131-12-31 | IB4: =Time!IB51 -> 2132-06-30 | IC4: =Time!IC51 -> 2132-12-31 | ID4: =Time!ID51 -> 2133-06-30 | IE4: =Time!IE51 -> 2133-12-31
P5: Year: | R5: =Time!R52 -> 2023 | S5: =Time!S19 -> 2021 | T5: =Time!T19 -> 2021 | U5: =Time!U19 -> 2021 | V5: =Time!V19 -> 2021 | W5: =Time!W19 -> 2021 | X5: =Time!X19 -> 2021 | Y5: =Time!Y19 -> 2021 | Z5: =Time!Z19 -> 2021 | AA5: =Time!AA19 -> 2021 | AB5: =Time!AB19 -> 2022 | AC5: =Time!AC19 -> 2022 | AD5: =Time!AD19 -> 2022 | AE5: =Time!AE19 -> 2022 | AF5: =Time!AF19 -> 2022 | AG5: =Time!AG19 -> 2022 | AH5: =Time!AH19 -> 2022 | AI5: =Time!AI19 -> 2022 | AJ5: =Time!AJ19 -> 2022 | AK5: =Time!AK19 -> 2022 | AL5: =Time!AL19 -> 2022 | AM5: =Time!AM19 -> 2022 | AN5: =Time!AN19 -> 2023 | AO5: =Time!AO19 -> 2023 | AP5: =Time!AP19 -> 2024 | AQ5: =Time!AQ19 -> 2024 | AR5: =Time!AR19 -> 2025 | AS5: =Time!AS19 -> 2025 | AT5: =Time!AT19 -> 2026 | AU5: =Time!AU19 -> 2026 | AV5: =Time!AV19 -> 2027 | AW5: =Time!AW19 -> 2027 | AX5: =Time!AX19 -> 2028 | AY5: =Time!AY19 -> 2028 | AZ5: =Time!AZ19 -> 2029 | BA5: =Time!BA19 -> 2029 | BB5: =Time!BB19 -> 2030 | BC5: =Time!BC19 -> 2030 | BD5: =Time!BD19 -> 2031 | BE5: =Time!BE19 -> 2031 | BF5: =Time!BF19 -> 2032 | BG5: =Time!BG19 -> 2032 | BH5: =Time!BH19 -> 2033 | BI5: =Time!BI19 -> 2033 | BJ5: =Time!BJ19 -> 2034 | BK5: =Time!BK19 -> 2034 | BL5: =Time!BL19 -> 2035 | BM5: =Time!BM19 -> 2035 | BN5: =Time!BN19 -> 2036 | BO5: =Time!BO19 -> 2036 | BP5: =Time!BP19 -> 2037 | BQ5: =Time!BQ19 -> 2037 | BR5: =Time!BR19 -> 2038 | BS5: =Time!BS19 -> 2038 | BT5: =Time!BT19 -> 2039 | BU5: =Time!BU19 -> 2039 | BV5: =Time!BV19 -> 2040 | BW5: =Time!BW19 -> 2040 | BX5: =Time!BX19 -> 2041 | BY5: =Time!BY19 -> 2041 | BZ5: =Time!BZ19 -> 2042 | CA5: =Time!CA19 -> 2042 | CB5: =Time!CB19 -> 2043 | CC5: =Time!CC19 -> 2043 | CD5: =Time!CD19 -> 2044 | CE5: =Time!CE19 -> 2044 | CF5: =Time!CF19 -> 2045 | CG5: =Time!CG19 -> 2045 | CH5: =Time!CH19 -> 2046 | CI5: =Time!CI19 -> 2046 | CJ5: =Time!CJ19 -> 2047 | CK5: =Time!CK19 -> 2047 | CL5: =Time!CL19 -> 2048 | CM5: =Time!CM19 -> 2048 | CN5: =Time!CN19 -> 2049 | CO5: =Time!CO19 -> 2049 | CP5: =Time!CP19 -> 2050 | CQ5: =Time!CQ19 -> 2050 | CR5: =Time!CR19 -> 2051 | CS5: =Time!CS19 -> 2051 | CT5: =Time!CT19 -> 2052 | CU5: =Time!CU19 -> 2052 | CV5: =Time!CV19 -> 2053 | CW5: =Time!CW19 -> 2053 | CX5: =Time!CX19 -> 2054 | CY5: =Time!CY19 -> 2054 | CZ5: =Time!CZ19 -> 2055 | DA5: =Time!DA19 -> 2055 | DB5: =Time!DB19 -> 2056 | DC5: =Time!DC19 -> 2056 | DD5: =Time!DD19 -> 2057 | DE5: =Time!DE19 -> 2057 | DF5: =Time!DF19 -> 2058 | DG5: =Time!DG19 -> 2058 | DH5: =Time!DH19 -> 2059 | DI5: =Time!DI19 -> 2059 | DJ5: =Time!DJ19 -> 2060 | DK5: =Time!DK19 -> 2060 | DL5: =Time!DL19 -> 2061 | DM5: =Time!DM19 -> 2061 | DN5: =Time!DN19 -> 2062 | DO5: =Time!DO19 -> 2062 | DP5: =Time!DP19 -> 2063 | DQ5: =Time!DQ19 -> 2063 | DR5: =Time!DR19 -> 2064 | DS5: =Time!DS19 -> 2064 | DT5: =Time!DT19 -> 2065 | DU5: =Time!DU19 -> 2065 | DV5: =Time!DV19 -> 2066 | DW5: =Time!DW19 -> 2066 | DX5: =Time!DX19 -> 2067 | DY5: =Time!DY19 -> 2067 | DZ5: =Time!DZ19 -> 2068 | EA5: =Time!EA19 -> 2068 | EB5: =Time!EB19 -> 2069 | EC5: =Time!EC19 -> 2069 | ED5: =Time!ED19 -> 2070 | EE5: =Time!EE19 -> 2070 | EF5: =Time!EF19 -> 2071 | EG5: =Time!EG19 -> 2071 | EH5: =Time!EH19 -> 2072 | EI5: =Time!EI19 -> 2072 | EJ5: =Time!EJ19 -> 2073 | EK5: =Time!EK19 -> 2073 | EL5: =Time!EL19 -> 2074 | EM5: =Time!EM19 -> 2074 | EN5: =Time!EN19 -> 2075 | EO5: =Time!EO19 -> 2075 | EP5: =Time!EP19 -> 2076 | EQ5: =Time!EQ19 -> 2076 | ER5: =Time!ER19 -> 2077 | ES5: =Time!ES19 -> 2077 | ET5: =Time!ET19 -> 2078 | EU5: =Time!EU19 -> 2078 | EV5: =Time!EV19 -> 2079 | EW5: =Time!EW19 -> 2079 | EX5: =Time!EX19 -> 2080 | EY5: =Time!EY19 -> 2080 | EZ5: =Time!EZ19 -> 2081 | FA5: =Time!FA19 -> 2081 | FB5: =Time!FB19 -> 2082 | FC5: =Time!FC19 -> 2082 | FD5: =Time!FD19 -> 2083 | FE5: =Time!FE19 -> 2083 | FF5: =Time!FF19 -> 2084 | FG5: =Time!FG19 -> 2084 | FH5: =Time!FH19 -> 2085 | FI5: =Time!FI19 -> 2085 | FJ5: =Time!FJ19 -> 2086 | FK5: =Time!FK19 -> 2086 | FL5: =Time!FL19 -> 2087 | FM5: =Time!FM19 -> 2087 | FN5: =Time!FN19 -> 2088 | FO5: =Time!FO19 -> 2088 | FP5: =Time!FP19 -> 2089 | FQ5: =Time!FQ19 -> 2089 | FR5: =Time!FR19 -> 2090 | FS5: =Time!FS19 -> 2090 | FT5: =Time!FT19 -> 2091 | FU5: =Time!FU19 -> 2091 | FV5: =Time!FV19 -> 2092 | FW5: =Time!FW19 -> 2092 | FX5: =Time!FX19 -> 2093 | FY5: =Time!FY19 -> 2093 | FZ5: =Time!FZ19 -> 2094 | GA5: =Time!GA19 -> 2094 | GB5: =Time!GB19 -> 2095 | GC5: =Time!GC19 -> 2095 | GD5: =Time!GD19 -> 2096 | GE5: =Time!GE19 -> 2096 | GF5: =Time!GF19 -> 2097 | GG5: =Time!GG19 -> 2097 | GH5: =Time!GH19 -> 2098 | GI5: =Time!GI19 -> 2098 | GJ5: =Time!GJ19 -> 2099 | GK5: =Time!GK19 -> 2099 | GL5: =Time!GL19 -> 2100 | GM5: =Time!GM19 -> 2100 | GN5: =Time!GN19 -> 2101 | GO5: =Time!GO19 -> 2101 | GP5: =Time!GP19 -> 2102 | GQ5: =Time!GQ19 -> 2102 | GR5: =Time!GR19 -> 2103 | GS5: =Time!GS19 -> 2103 | GT5: =Time!GT19 -> 2104 | GU5: =Time!GU19 -> 2104 | GV5: =Time!GV19 -> 2105 | GW5: =Time!GW19 -> 2105 | GX5: =Time!GX19 -> 2106 | GY5: =Time!GY19 -> 2106 | GZ5: =Time!GZ19 -> 2107 | HA5: =Time!HA19 -> 2107 | HB5: =Time!HB19 -> 2108 | HC5: =Time!HC19 -> 2108 | HD5: =Time!HD19 -> 2109 | HE5: =Time!HE19 -> 2109 | HF5: =Time!HF19 -> 2110 | HG5: =Time!HG19 -> 2110 | HH5: =Time!HH19 -> 2111 | HI5: =Time!HI19 -> 2111 | HJ5: =Time!HJ19 -> 2112 | HK5: =Time!HK19 -> 2112 | HL5: =Time!HL19 -> 2113 | HM5: =Time!HM19 -> 2113 | HN5: =Time!HN19 -> 2114 | HO5: =Time!HO19 -> 2114 | HP5: =Time!HP19 -> 2115 | HQ5: =Time!HQ19 -> 2115 | HR5: =Time!HR19 -> 2116 | HS5: =Time!HS19 -> 2116 | HT5: =Time!HT19 -> 2117 | HU5: =Time!HU19 -> 2117 | HV5: =Time!HV19 -> 2118 | HW5: =Time!HW19 -> 2118 | HX5: =Time!HX19 -> 2119 | HY5: =Time!HY19 -> 2119 | HZ5: =Time!HZ19 -> 2120 | IA5: =Time!IA19 -> 2120 | IB5: =Time!IB19 -> 2121 | IC5: =Time!IC19 -> 2121 | ID5: =Time!ID19 -> 2122 | IE5: =Time!IE19 -> 2122
P6: Year #: | R6: =Time!R58 -> 1 | S6: =Time!S58 -> 1 | T6: =Time!T58 -> 2 | U6: =Time!U58 -> 2 | V6: =Time!V58 -> 3 | W6: =Time!W58 -> 3 | X6: =Time!X58 -> 4 | Y6: =Time!Y58 -> 4 | Z6: =Time!Z58 -> 5 | AA6: =Time!AA58 -> 5 | AB6: =Time!AB58 -> 6 | AC6: =Time!AC58 -> 6 | AD6: =Time!AD58 -> 7 | AE6: =Time!AE58 -> 7 | AF6: =Time!AF58 -> 8 | AG6: =Time!AG58 -> 8 | AH6: =Time!AH58 -> 9 | AI6: =Time!AI58 -> 9 | AJ6: =Time!AJ58 -> 10 | AK6: =Time!AK58 -> 10 | AL6: =Time!AL58 -> 11 | AM6: =Time!AM58 -> 11 | AN6: =Time!AN58 -> 12 | AO6: =Time!AO58 -> 12 | AP6: =Time!AP58 -> 13 | AQ6: =Time!AQ58 -> 13 | AR6: =Time!AR58 -> 14 | AS6: =Time!AS58 -> 14 | AT6: =Time!AT58 -> 15 | AU6: =Time!AU58 -> 15 | AV6: =Time!AV58 -> 16 | AW6: =Time!AW58 -> 16 | AX6: =Time!AX58 -> 17 | AY6: =Time!AY58 -> 17 | AZ6: =Time!AZ58 -> 18 | BA6: =Time!BA58 -> 18 | BB6: =Time!BB58 -> 19 | BC6: =Time!BC58 -> 19 | BD6: =Time!BD58 -> 20 | BE6: =Time!BE58 -> 20 | BF6: =Time!BF58 -> 21 | BG6: =Time!BG58 -> 21 | BH6: =Time!BH58 -> 22 | BI6: =Time!BI58 -> 22 | BJ6: =Time!BJ58 -> 23 | BK6: =Time!BK58 -> 23 | BL6: =Time!BL58 -> 24 | BM6: =Time!BM58 -> 24 | BN6: =Time!BN58 -> 25 | BO6: =Time!BO58 -> 25 | BP6: =Time!BP58 -> 26 | BQ6: =Time!BQ58 -> 26 | BR6: =Time!BR58 -> 27 | BS6: =Time!BS58 -> 27 | BT6: =Time!BT58 -> 28 | BU6: =Time!BU58 -> 28 | BV6: =Time!BV58 -> 29 | BW6: =Time!BW58 -> 29 | BX6: =Time!BX58 -> 30 | BY6: =Time!BY58 -> 30 | BZ6: =Time!BZ58 -> 31 | CA6: =Time!CA58 -> 31 | CB6: =Time!CB58 -> 32 | CC6: =Time!CC58 -> 32 | CD6: =Time!CD58 -> 33 | CE6: =Time!CE58 -> 33 | CF6: =Time!CF58 -> 34 | CG6: =Time!CG58 -> 34 | CH6: =Time!CH58 -> 35 | CI6: =Time!CI58 -> 35 | CJ6: =Time!CJ58 -> 36 | CK6: =Time!CK58 -> 36 | CL6: =Time!CL58 -> 37 | CM6: =Time!CM58 -> 37 | CN6: =Time!CN58 -> 38 | CO6: =Time!CO58 -> 38 | CP6: =Time!CP58 -> 39 | CQ6: =Time!CQ58 -> 39 | CR6: =Time!CR58 -> 40 | CS6: =Time!CS58 -> 40 | CT6: =Time!CT58 -> 41 | CU6: =Time!CU58 -> 41 | CV6: =Time!CV58 -> 42 | CW6: =Time!CW58 -> 42 | CX6: =Time!CX58 -> 43 | CY6: =Time!CY58 -> 43 | CZ6: =Time!CZ58 -> 44 | DA6: =Time!DA58 -> 44 | DB6: =Time!DB58 -> 45 | DC6: =Time!DC58 -> 45 | DD6: =Time!DD58 -> 46 | DE6: =Time!DE58 -> 46 | DF6: =Time!DF58 -> 47 | DG6: =Time!DG58 -> 47 | DH6: =Time!DH58 -> 48 | DI6: =Time!DI58 -> 48 | DJ6: =Time!DJ58 -> 49 | DK6: =Time!DK58 -> 49 | DL6: =Time!DL58 -> 50 | DM6: =Time!DM58 -> 50 | DN6: =Time!DN58 -> 51 | DO6: =Time!DO58 -> 51 | DP6: =Time!DP58 -> 52 | DQ6: =Time!DQ58 -> 52 | DR6: =Time!DR58 -> 53 | DS6: =Time!DS58 -> 53 | DT6: =Time!DT58 -> 54 | DU6: =Time!DU58 -> 54 | DV6: =Time!DV58 -> 55 | DW6: =Time!DW58 -> 55 | DX6: =Time!DX58 -> 56 | DY6: =Time!DY58 -> 56 | DZ6: =Time!DZ58 -> 57 | EA6: =Time!EA58 -> 57 | EB6: =Time!EB58 -> 58 | EC6: =Time!EC58 -> 58 | ED6: =Time!ED58 -> 59 | EE6: =Time!EE58 -> 59 | EF6: =Time!EF58 -> 60 | EG6: =Time!EG58 -> 60 | EH6: =Time!EH58 -> 61 | EI6: =Time!EI58 -> 61 | EJ6: =Time!EJ58 -> 62 | EK6: =Time!EK58 -> 62 | EL6: =Time!EL58 -> 63 | EM6: =Time!EM58 -> 63 | EN6: =Time!EN58 -> 64 | EO6: =Time!EO58 -> 64 | EP6: =Time!EP58 -> 65 | EQ6: =Time!EQ58 -> 65 | ER6: =Time!ER58 -> 66 | ES6: =Time!ES58 -> 66 | ET6: =Time!ET58 -> 67 | EU6: =Time!EU58 -> 67 | EV6: =Time!EV58 -> 68 | EW6: =Time!EW58 -> 68 | EX6: =Time!EX58 -> 69 | EY6: =Time!EY58 -> 69 | EZ6: =Time!EZ58 -> 70 | FA6: =Time!FA58 -> 70 | FB6: =Time!FB58 -> 71 | FC6: =Time!FC58 -> 71 | FD6: =Time!FD58 -> 72 | FE6: =Time!FE58 -> 72 | FF6: =Time!FF58 -> 73 | FG6: =Time!FG58 -> 73 | FH6: =Time!FH58 -> 74 | FI6: =Time!FI58 -> 74 | FJ6: =Time!FJ58 -> 75 | FK6: =Time!FK58 -> 75 | FL6: =Time!FL58 -> 76 | FM6: =Time!FM58 -> 76 | FN6: =Time!FN58 -> 77 | FO6: =Time!FO58 -> 77 | FP6: =Time!FP58 -> 78 | FQ6: =Time!FQ58 -> 78 | FR6: =Time!FR58 -> 79 | FS6: =Time!FS58 -> 79 | FT6: =Time!FT58 -> 80 | FU6: =Time!FU58 -> 80 | FV6: =Time!FV58 -> 81 | FW6: =Time!FW58 -> 81 | FX6: =Time!FX58 -> 82 | FY6: =Time!FY58 -> 82 | FZ6: =Time!FZ58 -> 83 | GA6: =Time!GA58 -> 83 | GB6: =Time!GB58 -> 84 | GC6: =Time!GC58 -> 84 | GD6: =Time!GD58 -> 85 | GE6: =Time!GE58 -> 85 | GF6: =Time!GF58 -> 86 | GG6: =Time!GG58 -> 86 | GH6: =Time!GH58 -> 87 | GI6: =Time!GI58 -> 87 | GJ6: =Time!GJ58 -> 88 | GK6: =Time!GK58 -> 88 | GL6: =Time!GL58 -> 89 | GM6: =Time!GM58 -> 89 | GN6: =Time!GN58 -> 90 | GO6: =Time!GO58 -> 90 | GP6: =Time!GP58 -> 91 | GQ6: =Time!GQ58 -> 91 | GR6: =Time!GR58 -> 92 | GS6: =Time!GS58 -> 92 | GT6: =Time!GT58 -> 93 | GU6: =Time!GU58 -> 93 | GV6: =Time!GV58 -> 94 | GW6: =Time!GW58 -> 94 | GX6: =Time!GX58 -> 95 | GY6: =Time!GY58 -> 95 | GZ6: =Time!GZ58 -> 96 | HA6: =Time!HA58 -> 96 | HB6: =Time!HB58 -> 97 | HC6: =Time!HC58 -> 97 | HD6: =Time!HD58 -> 98 | HE6: =Time!HE58 -> 98 | HF6: =Time!HF58 -> 99 | HG6: =Time!HG58 -> 99 | HH6: =Time!HH58 -> 100 | HI6: =Time!HI58 -> 100 | HJ6: =Time!HJ58 -> 101 | HK6: =Time!HK58 -> 101 | HL6: =Time!HL58 -> 102 | HM6: =Time!HM58 -> 102 | HN6: =Time!HN58 -> 103 | HO6: =Time!HO58 -> 103 | HP6: =Time!HP58 -> 104 | HQ6: =Time!HQ58 -> 104 | HR6: =Time!HR58 -> 105 | HS6: =Time!HS58 -> 105 | HT6: =Time!HT58 -> 106 | HU6: =Time!HU58 -> 106 | HV6: =Time!HV58 -> 107 | HW6: =Time!HW58 -> 107 | HX6: =Time!HX58 -> 108 | HY6: =Time!HY58 -> 108 | HZ6: =Time!HZ58 -> 109 | IA6: =Time!IA58 -> 109 | IB6: =Time!IB58 -> 110 | IC6: =Time!IC58 -> 110 | ID6: =Time!ID58 -> 111 | IE6: =Time!IE58 -> 111
P7: Phase: | R7: =Time!R56 -> Ops | S7: =Time!S56 -> Ops | T7: =Time!T56 -> Ops | U7: =Time!U56 -> Ops | V7: =Time!V56 -> Ops | W7: =Time!W56 -> Ops | X7: =Time!X56 -> Ops | Y7: =Time!Y56 -> Ops | Z7: =Time!Z56 -> Ops | AA7: =Time!AA56 -> Ops | AB7: =Time!AB56 -> Ops | AC7: =Time!AC56 -> Ops | AD7: =Time!AD56 -> Ops | AE7: =Time!AE56 -> Ops | AF7: =Time!AF56 -> Ops | AG7: =Time!AG56 -> Ops | AH7: =Time!AH56 -> Ops | AI7: =Time!AI56 -> Ops | AJ7: =Time!AJ56 -> Ops | AK7: =Time!AK56 -> Ops | AL7: =Time!AL56 -> Ops | AM7: =Time!AM56 -> Ops | AN7: =Time!AN56 -> Ops | AO7: =Time!AO56 -> Ops | AP7: =Time!AP56 -> Ops | AQ7: =Time!AQ56 -> Ops | AR7: =Time!AR56 -> Ops | AS7: =Time!AS56 -> Ops | AT7: =Time!AT56 -> Ops | AU7: =Time!AU56 -> Ops | AV7: =Time!AV56 -> Ops | AW7: =Time!AW56 -> Ops | AX7: =Time!AX56 -> Ops | AY7: =Time!AY56 -> Ops | AZ7: =Time!AZ56 -> Ops | BA7: =Time!BA56 -> Ops | BB7: =Time!BB56 -> Ops | BC7: =Time!BC56 -> Ops | BD7: =Time!BD56 -> Ops | BE7: =Time!BE56 -> Ops | BF7: =Time!BF56 -> Ops | BG7: =Time!BG56 -> Ops | BH7: =Time!BH56 -> Ops | BI7: =Time!BI56 -> Ops | BJ7: =Time!BJ56 -> Ops | BK7: =Time!BK56 -> Ops | BL7: =Time!BL56 -> Ops | BM7: =Time!BM56 -> Ops | BN7: =Time!BN56 -> Ops | BO7: =Time!BO56 -> Ops | BP7: =Time!BP56 ->  | BQ7: =Time!BQ56 ->  | BR7: =Time!BR56 ->  | BS7: =Time!BS56 ->  | BT7: =Time!BT56 ->  | BU7: =Time!BU56 ->  | BV7: =Time!BV56 ->  | BW7: =Time!BW56 ->  | BX7: =Time!BX56 ->  | BY7: =Time!BY56 ->  | BZ7: =Time!BZ56 ->  | CA7: =Time!CA56 ->  | CB7: =Time!CB56 ->  | CC7: =Time!CC56 ->  | CD7: =Time!CD56 ->  | CE7: =Time!CE56 ->  | CF7: =Time!CF56 ->  | CG7: =Time!CG56 ->  | CH7: =Time!CH56 ->  | CI7: =Time!CI56 ->  | CJ7: =Time!CJ56 ->  | CK7: =Time!CK56 ->  | CL7: =Time!CL56 ->  | CM7: =Time!CM56 ->  | CN7: =Time!CN56 ->  | CO7: =Time!CO56 ->  | CP7: =Time!CP56 ->  | CQ7: =Time!CQ56 ->  | CR7: =Time!CR56 ->  | CS7: =Time!CS56 ->  | CT7: =Time!CT56 ->  | CU7: =Time!CU56 ->  | CV7: =Time!CV56 ->  | CW7: =Time!CW56 ->  | CX7: =Time!CX56 ->  | CY7: =Time!CY56 ->  | CZ7: =Time!CZ56 ->  | DA7: =Time!DA56 ->  | DB7: =Time!DB56 ->  | DC7: =Time!DC56 ->  | DD7: =Time!DD56 ->  | DE7: =Time!DE56 ->  | DF7: =Time!DF56 ->  | DG7: =Time!DG56 ->  | DH7: =Time!DH56 ->  | DI7: =Time!DI56 ->  | DJ7: =Time!DJ56 ->  | DK7: =Time!DK56 ->  | DL7: =Time!DL56 ->  | DM7: =Time!DM56 ->  | DN7: =Time!DN56 ->  | DO7: =Time!DO56 ->  | DP7: =Time!DP56 ->  | DQ7: =Time!DQ56 ->  | DR7: =Time!DR56 ->  | DS7: =Time!DS56 ->  | DT7: =Time!DT56 ->  | DU7: =Time!DU56 ->  | DV7: =Time!DV56 ->  | DW7: =Time!DW56 ->  | DX7: =Time!DX56 ->  | DY7: =Time!DY56 ->  | DZ7: =Time!DZ56 ->  | EA7: =Time!EA56 ->  | EB7: =Time!EB56 ->  | EC7: =Time!EC56 ->  | ED7: =Time!ED56 ->  | EE7: =Time!EE56 ->  | EF7: =Time!EF56 ->  | EG7: =Time!EG56 ->  | EH7: =Time!EH56 ->  | EI7: =Time!EI56 ->  | EJ7: =Time!EJ56 ->  | EK7: =Time!EK56 ->  | EL7: =Time!EL56 ->  | EM7: =Time!EM56 ->  | EN7: =Time!EN56 ->  | EO7: =Time!EO56 ->  | EP7: =Time!EP56 ->  | EQ7: =Time!EQ56 ->  | ER7: =Time!ER56 ->  | ES7: =Time!ES56 ->  | ET7: =Time!ET56 ->  | EU7: =Time!EU56 ->  | EV7: =Time!EV56 ->  | EW7: =Time!EW56 ->  | EX7: =Time!EX56 ->  | EY7: =Time!EY56 ->  | EZ7: =Time!EZ56 ->  | FA7: =Time!FA56 ->  | FB7: =Time!FB56 ->  | FC7: =Time!FC56 ->  | FD7: =Time!FD56 ->  | FE7: =Time!FE56 ->  | FF7: =Time!FF56 ->  | FG7: =Time!FG56 ->  | FH7: =Time!FH56 ->  | FI7: =Time!FI56 ->  | FJ7: =Time!FJ56 ->  | FK7: =Time!FK56 ->  | FL7: =Time!FL56 ->  | FM7: =Time!FM56 ->  | FN7: =Time!FN56 ->  | FO7: =Time!FO56 ->  | FP7: =Time!FP56 ->  | FQ7: =Time!FQ56 ->  | FR7: =Time!FR56 ->  | FS7: =Time!FS56 ->  | FT7: =Time!FT56 ->  | FU7: =Time!FU56 ->  | FV7: =Time!FV56 ->  | FW7: =Time!FW56 ->  | FX7: =Time!FX56 ->  | FY7: =Time!FY56 ->  | FZ7: =Time!FZ56 ->  | GA7: =Time!GA56 ->  | GB7: =Time!GB56 ->  | GC7: =Time!GC56 ->  | GD7: =Time!GD56 ->  | GE7: =Time!GE56 ->  | GF7: =Time!GF56 ->  | GG7: =Time!GG56 ->  | GH7: =Time!GH56 ->  | GI7: =Time!GI56 ->  | GJ7: =Time!GJ56 ->  | GK7: =Time!GK56 ->  | GL7: =Time!GL56 ->  | GM7: =Time!GM56 ->  | GN7: =Time!GN56 ->  | GO7: =Time!GO56 ->  | GP7: =Time!GP56 ->  | GQ7: =Time!GQ56 ->  | GR7: =Time!GR56 ->  | GS7: =Time!GS56 ->  | GT7: =Time!GT56 ->  | GU7: =Time!GU56 ->  | GV7: =Time!GV56 ->  | GW7: =Time!GW56 ->  | GX7: =Time!GX56 ->  | GY7: =Time!GY56 ->  | GZ7: =Time!GZ56 ->  | HA7: =Time!HA56 ->  | HB7: =Time!HB56 ->  | HC7: =Time!HC56 ->  | HD7: =Time!HD56 ->  | HE7: =Time!HE56 ->  | HF7: =Time!HF56 ->  | HG7: =Time!HG56 ->  | HH7: =Time!HH56 ->  | HI7: =Time!HI56 ->  | HJ7: =Time!HJ56 ->  | HK7: =Time!HK56 ->  | HL7: =Time!HL56 ->  | HM7: =Time!HM56 ->  | HN7: =Time!HN56 ->  | HO7: =Time!HO56 ->  | HP7: =Time!HP56 ->  | HQ7: =Time!HQ56 ->  | HR7: =Time!HR56 ->  | HS7: =Time!HS56 ->  | HT7: =Time!HT56 ->  | HU7: =Time!HU56 ->  | HV7: =Time!HV56 ->  | HW7: =Time!HW56 ->  | HX7: =Time!HX56 ->  | HY7: =Time!HY56 ->  | HZ7: =Time!HZ56 ->  | IA7: =Time!IA56 ->  | IB7: =Time!IB56 ->  | IC7: =Time!IC56 ->  | ID7: =Time!ID56 ->  | IE7: =Time!IE56 -> 
A9: Levelised Cost of Energy
B11: Days in Period | J11: # | R11: =Time!R60 -> 181 | S11: =Time!S60 -> 184 | T11: =Time!T60 -> 182 | U11: =Time!U60 -> 184 | V11: =Time!V60 -> 181 | W11: =Time!W60 -> 184 | X11: =Time!X60 -> 181 | Y11: =Time!Y60 -> 184 | Z11: =Time!Z60 -> 181 | AA11: =Time!AA60 -> 184 | AB11: =Time!AB60 -> 182 | AC11: =Time!AC60 -> 184 | AD11: =Time!AD60 -> 181 | AE11: =Time!AE60 -> 184 | AF11: =Time!AF60 -> 181 | AG11: =Time!AG60 -> 184 | AH11: =Time!AH60 -> 181 | AI11: =Time!AI60 -> 184 | AJ11: =Time!AJ60 -> 182 | AK11: =Time!AK60 -> 184 | AL11: =Time!AL60 -> 181 | AM11: =Time!AM60 -> 184 | AN11: =Time!AN60 -> 181 | AO11: =Time!AO60 -> 184 | AP11: =Time!AP60 -> 181 | AQ11: =Time!AQ60 -> 184 | AR11: =Time!AR60 -> 182 | AS11: =Time!AS60 -> 184 | AT11: =Time!AT60 -> 181 | AU11: =Time!AU60 -> 184 | AV11: =Time!AV60 -> 181 | AW11: =Time!AW60 -> 184 | AX11: =Time!AX60 -> 181 | AY11: =Time!AY60 -> 184 | AZ11: =Time!AZ60 -> 182 | BA11: =Time!BA60 -> 184 | BB11: =Time!BB60 -> 181 | BC11: =Time!BC60 -> 184 | BD11: =Time!BD60 -> 181 | BE11: =Time!BE60 -> 184 | BF11: =Time!BF60 -> 181 | BG11: =Time!BG60 -> 184 | BH11: =Time!BH60 -> 182 | BI11: =Time!BI60 -> 184 | BJ11: =Time!BJ60 -> 181 | BK11: =Time!BK60 -> 184 | BL11: =Time!BL60 -> 181 | BM11: =Time!BM60 -> 184 | BN11: =Time!BN60 -> 181 | BO11: =Time!BO60 -> 184 | BP11: =Time!BP60 -> 182 | BQ11: =Time!BQ60 -> 184 | BR11: =Time!BR60 -> 181 | BS11: =Time!BS60 -> 184 | BT11: =Time!BT60 -> 181 | BU11: =Time!BU60 -> 184 | BV11: =Time!BV60 -> 181 | BW11: =Time!BW60 -> 184 | BX11: =Time!BX60 -> 182 | BY11: =Time!BY60 -> 184 | BZ11: =Time!BZ60 -> 181 | CA11: =Time!CA60 -> 184 | CB11: =Time!CB60 -> 181 | CC11: =Time!CC60 -> 184 | CD11: =Time!CD60 -> 181 | CE11: =Time!CE60 -> 184 | CF11: =Time!CF60 -> 182 | CG11: =Time!CG60 -> 184 | CH11: =Time!CH60 -> 181 | CI11: =Time!CI60 -> 184 | CJ11: =Time!CJ60 -> 181 | CK11: =Time!CK60 -> 184 | CL11: =Time!CL60 -> 181 | CM11: =Time!CM60 -> 184 | CN11: =Time!CN60 -> 182 | CO11: =Time!CO60 -> 184 | CP11: =Time!CP60 -> 181 | CQ11: =Time!CQ60 -> 184 | CR11: =Time!CR60 -> 181 | CS11: =Time!CS60 -> 184 | CT11: =Time!CT60 -> 181 | CU11: =Time!CU60 -> 184 | CV11: =Time!CV60 -> 182 | CW11: =Time!CW60 -> 184 | CX11: =Time!CX60 -> 181 | CY11: =Time!CY60 -> 184 | CZ11: =Time!CZ60 -> 181 | DA11: =Time!DA60 -> 184 | DB11: =Time!DB60 -> 181 | DC11: =Time!DC60 -> 184 | DD11: =Time!DD60 -> 182 | DE11: =Time!DE60 -> 184 | DF11: =Time!DF60 -> 181 | DG11: =Time!DG60 -> 184 | DH11: =Time!DH60 -> 181 | DI11: =Time!DI60 -> 184 | DJ11: =Time!DJ60 -> 181 | DK11: =Time!DK60 -> 184 | DL11: =Time!DL60 -> 182 | DM11: =Time!DM60 -> 184 | DN11: =Time!DN60 -> 181 | DO11: =Time!DO60 -> 184 | DP11: =Time!DP60 -> 181 | DQ11: =Time!DQ60 -> 184 | DR11: =Time!DR60 -> 181 | DS11: =Time!DS60 -> 184 | DT11: =Time!DT60 -> 182 | DU11: =Time!DU60 -> 184 | DV11: =Time!DV60 -> 181 | DW11: =Time!DW60 -> 184 | DX11: =Time!DX60 -> 181 | DY11: =Time!DY60 -> 184 | DZ11: =Time!DZ60 -> 181 | EA11: =Time!EA60 -> 184 | EB11: =Time!EB60 -> 182 | EC11: =Time!EC60 -> 184 | ED11: =Time!ED60 -> 181 | EE11: =Time!EE60 -> 184 | EF11: =Time!EF60 -> 181 | EG11: =Time!EG60 -> 184 | EH11: =Time!EH60 -> 181 | EI11: =Time!EI60 -> 184 | EJ11: =Time!EJ60 -> 182 | EK11: =Time!EK60 -> 184 | EL11: =Time!EL60 -> 181 | EM11: =Time!EM60 -> 184 | EN11: =Time!EN60 -> 181 | EO11: =Time!EO60 -> 184 | EP11: =Time!EP60 -> 181 | EQ11: =Time!EQ60 -> 184 | ER11: =Time!ER60 -> 182 | ES11: =Time!ES60 -> 184 | ET11: =Time!ET60 -> 181 | EU11: =Time!EU60 -> 184 | EV11: =Time!EV60 -> 181 | EW11: =Time!EW60 -> 184 | EX11: =Time!EX60 -> 181 | EY11: =Time!EY60 -> 184 | EZ11: =Time!EZ60 -> 182 | FA11: =Time!FA60 -> 184 | FB11: =Time!FB60 -> 181 | FC11: =Time!FC60 -> 184 | FD11: =Time!FD60 -> 181 | FE11: =Time!FE60 -> 184 | FF11: =Time!FF60 -> 181 | FG11: =Time!FG60 -> 184 | FH11: =Time!FH60 -> 182 | FI11: =Time!FI60 -> 184 | FJ11: =Time!FJ60 -> 181 | FK11: =Time!FK60 -> 184 | FL11: =Time!FL60 -> 181 | FM11: =Time!FM60 -> 184 | FN11: =Time!FN60 -> 181 | FO11: =Time!FO60 -> 184 | FP11: =Time!FP60 -> 181 | FQ11: =Time!FQ60 -> 184 | FR11: =Time!FR60 -> 181 | FS11: =Time!FS60 -> 184 | FT11: =Time!FT60 -> 181 | FU11: =Time!FU60 -> 184 | FV11: =Time!FV60 -> 181 | FW11: =Time!FW60 -> 184 | FX11: =Time!FX60 -> 182 | FY11: =Time!FY60 -> 184 | FZ11: =Time!FZ60 -> 181 | GA11: =Time!GA60 -> 184 | GB11: =Time!GB60 -> 181 | GC11: =Time!GC60 -> 184 | GD11: =Time!GD60 -> 181 | GE11: =Time!GE60 -> 184 | GF11: =Time!GF60 -> 182 | GG11: =Time!GG60 -> 184 | GH11: =Time!GH60 -> 181 | GI11: =Time!GI60 -> 184 | GJ11: =Time!GJ60 -> 181 | GK11: =Time!GK60 -> 184 | GL11: =Time!GL60 -> 181 | GM11: =Time!GM60 -> 184 | GN11: =Time!GN60 -> 182 | GO11: =Time!GO60 -> 184 | GP11: =Time!GP60 -> 181 | GQ11: =Time!GQ60 -> 184 | GR11: =Time!GR60 -> 181 | GS11: =Time!GS60 -> 184 | GT11: =Time!GT60 -> 181 | GU11: =Time!GU60 -> 184 | GV11: =Time!GV60 -> 182 | GW11: =Time!GW60 -> 184 | GX11: =Time!GX60 -> 181 | GY11: =Time!GY60 -> 184 | GZ11: =Time!GZ60 -> 181 | HA11: =Time!HA60 -> 184 | HB11: =Time!HB60 -> 181 | HC11: =Time!HC60 -> 184 | HD11: =Time!HD60 -> 182 | HE11: =Time!HE60 -> 184 | HF11: =Time!HF60 -> 181 | HG11: =Time!HG60 -> 184 | HH11: =Time!HH60 -> 181 | HI11: =Time!HI60 -> 184 | HJ11: =Time!HJ60 -> 181 | HK11: =Time!HK60 -> 184 | HL11: =Time!HL60 -> 182 | HM11: =Time!HM60 -> 184 | HN11: =Time!HN60 -> 181 | HO11: =Time!HO60 -> 184 | HP11: =Time!HP60 -> 181 | HQ11: =Time!HQ60 -> 184 | HR11: =Time!HR60 -> 181 | HS11: =Time!HS60 -> 184 | HT11: =Time!HT60 -> 182 | HU11: =Time!HU60 -> 184 | HV11: =Time!HV60 -> 181 | HW11: =Time!HW60 -> 184 | HX11: =Time!HX60 -> 181 | HY11: =Time!HY60 -> 184 | HZ11: =Time!HZ60 -> 181 | IA11: =Time!IA60 -> 184 | IB11: =Time!IB60 -> 182 | IC11: =Time!IC60 -> 184 | ID11: =Time!ID60 -> 181 | IE11: =Time!IE60 -> 184
B12: Cumulative Days | J12: # | L12: Discount Rate | R12: =SUM($R$11:R11) -> 181 | S12: =SUM($R$11:S11) -> 365 | T12: =SUM($R$11:T11) -> 547 | U12: =SUM($R$11:U11) -> 731 | V12: =SUM($R$11:V11) -> 912 | W12: =SUM($R$11:W11) -> 1096 | X12: =SUM($R$11:X11) -> 1277 | Y12: =SUM($R$11:Y11) -> 1461 | Z12: =SUM($R$11:Z11) -> 1642 | AA12: =SUM($R$11:AA11) -> 1826 | AB12: =SUM($R$11:AB11) -> 2008 | AC12: =SUM($R$11:AC11) -> 2192 | AD12: =SUM($R$11:AD11) -> 2373 | AE12: =SUM($R$11:AE11) -> 2557 | AF12: =SUM($R$11:AF11) -> 2738 | AG12: =SUM($R$11:AG11) -> 2922 | AH12: =SUM($R$11:AH11) -> 3103 | AI12: =SUM($R$11:AI11) -> 3287 | AJ12: =SUM($R$11:AJ11) -> 3469 | AK12: =SUM($R$11:AK11) -> 3653 | AL12: =SUM($R$11:AL11) -> 3834 | AM12: =SUM($R$11:AM11) -> 4018 | AN12: =SUM($R$11:AN11) -> 4199 | AO12: =SUM($R$11:AO11) -> 4383 | AP12: =SUM($R$11:AP11) -> 4564 | AQ12: =SUM($R$11:AQ11) -> 4748 | AR12: =SUM($R$11:AR11) -> 4930 | AS12: =SUM($R$11:AS11) -> 5114 | AT12: =SUM($R$11:AT11) -> 5295 | AU12: =SUM($R$11:AU11) -> 5479 | AV12: =SUM($R$11:AV11) -> 5660 | AW12: =SUM($R$11:AW11) -> 5844 | AX12: =SUM($R$11:AX11) -> 6025 | AY12: =SUM($R$11:AY11) -> 6209 | AZ12: =SUM($R$11:AZ11) -> 6391 | BA12: =SUM($R$11:BA11) -> 6575 | BB12: =SUM($R$11:BB11) -> 6756 | BC12: =SUM($R$11:BC11) -> 6940 | BD12: =SUM($R$11:BD11) -> 7121 | BE12: =SUM($R$11:BE11) -> 7305 | BF12: =SUM($R$11:BF11) -> 7486 | BG12: =SUM($R$11:BG11) -> 7670 | BH12: =SUM($R$11:BH11) -> 7852 | BI12: =SUM($R$11:BI11) -> 8036 | BJ12: =SUM($R$11:BJ11) -> 8217 | BK12: =SUM($R$11:BK11) -> 8401 | BL12: =SUM($R$11:BL11) -> 8582 | BM12: =SUM($R$11:BM11) -> 8766 | BN12: =SUM($R$11:BN11) -> 8947 | BO12: =SUM($R$11:BO11) -> 9131 | BP12: =SUM($R$11:BP11) -> 9313 | BQ12: =SUM($R$11:BQ11) -> 9497 | BR12: =SUM($R$11:BR11) -> 9678 | BS12: =SUM($R$11:BS11) -> 9862 | BT12: =SUM($R$11:BT11) -> 10043 | BU12: =SUM($R$11:BU11) -> 10227 | BV12: =SUM($R$11:BV11) -> 10408 | BW12: =SUM($R$11:BW11) -> 10592 | BX12: =SUM($R$11:BX11) -> 10774 | BY12: =SUM($R$11:BY11) -> 10958 | BZ12: =SUM($R$11:BZ11) -> 11139 | CA12: =SUM($R$11:CA11) -> 11323 | CB12: =SUM($R$11:CB11) -> 11504 | CC12: =SUM($R$11:CC11) -> 11688 | CD12: =SUM($R$11:CD11) -> 11869 | CE12: =SUM($R$11:CE11) -> 12053 | CF12: =SUM($R$11:CF11) -> 12235 | CG12: =SUM($R$11:CG11) -> 12419 | CH12: =SUM($R$11:CH11) -> 12600 | CI12: =SUM($R$11:CI11) -> 12784 | CJ12: =SUM($R$11:CJ11) -> 12965 | CK12: =SUM($R$11:CK11) -> 13149 | CL12: =SUM($R$11:CL11) -> 13330 | CM12: =SUM($R$11:CM11) -> 13514 | CN12: =SUM($R$11:CN11) -> 13696 | CO12: =SUM($R$11:CO11) -> 13880 | CP12: =SUM($R$11:CP11) -> 14061 | CQ12: =SUM($R$11:CQ11) -> 14245 | CR12: =SUM($R$11:CR11) -> 14426 | CS12: =SUM($R$11:CS11) -> 14610 | CT12: =SUM($R$11:CT11) -> 14791 | CU12: =SUM($R$11:CU11) -> 14975 | CV12: =SUM($R$11:CV11) -> 15157 | CW12: =SUM($R$11:CW11) -> 15341 | CX12: =SUM($R$11:CX11) -> 15522 | CY12: =SUM($R$11:CY11) -> 15706 | CZ12: =SUM($R$11:CZ11) -> 15887 | DA12: =SUM($R$11:DA11) -> 16071 | DB12: =SUM($R$11:DB11) -> 16252 | DC12: =SUM($R$11:DC11) -> 16436 | DD12: =SUM($R$11:DD11) -> 16618 | DE12: =SUM($R$11:DE11) -> 16802 | DF12: =SUM($R$11:DF11) -> 16983 | DG12: =SUM($R$11:DG11) -> 17167 | DH12: =SUM($R$11:DH11) -> 17348 | DI12: =SUM($R$11:DI11) -> 17532 | DJ12: =SUM($R$11:DJ11) -> 17713 | DK12: =SUM($R$11:DK11) -> 17897 | DL12: =SUM($R$11:DL11) -> 18079 | DM12: =SUM($R$11:DM11) -> 18263 | DN12: =SUM($R$11:DN11) -> 18444 | DO12: =SUM($R$11:DO11) -> 18628 | DP12: =SUM($R$11:DP11) -> 18809 | DQ12: =SUM($R$11:DQ11) -> 18993 | DR12: =SUM($R$11:DR11) -> 19174 | DS12: =SUM($R$11:DS11) -> 19358 | DT12: =SUM($R$11:DT11) -> 19540 | DU12: =SUM($R$11:DU11) -> 19724 | DV12: =SUM($R$11:DV11) -> 19905 | DW12: =SUM($R$11:DW11) -> 20089 | DX12: =SUM($R$11:DX11) -> 20270 | DY12: =SUM($R$11:DY11) -> 20454 | DZ12: =SUM($R$11:DZ11) -> 20635 | EA12: =SUM($R$11:EA11) -> 20819 | EB12: =SUM($R$11:EB11) -> 21001 | EC12: =SUM($R$11:EC11) -> 21185 | ED12: =SUM($R$11:ED11) -> 21366 | EE12: =SUM($R$11:EE11) -> 21550 | EF12: =SUM($R$11:EF11) -> 21731 | EG12: =SUM($R$11:EG11) -> 21915 | EH12: =SUM($R$11:EH11) -> 22096 | EI12: =SUM($R$11:EI11) -> 22280 | EJ12: =SUM($R$11:EJ11) -> 22462 | EK12: =SUM($R$11:EK11) -> 22646 | EL12: =SUM($R$11:EL11) -> 22827 | EM12: =SUM($R$11:EM11) -> 23011 | EN12: =SUM($R$11:EN11) -> 23192 | EO12: =SUM($R$11:EO11) -> 23376 | EP12: =SUM($R$11:EP11) -> 23557 | EQ12: =SUM($R$11:EQ11) -> 23741 | ER12: =SUM($R$11:ER11) -> 23923 | ES12: =SUM($R$11:ES11) -> 24107 | ET12: =SUM($R$11:ET11) -> 24288 | EU12: =SUM($R$11:EU11) -> 24472 | EV12: =SUM($R$11:EV11) -> 24653 | EW12: =SUM($R$11:EW11) -> 24837 | EX12: =SUM($R$11:EX11) -> 25018 | EY12: =SUM($R$11:EY11) -> 25202 | EZ12: =SUM($R$11:EZ11) -> 25384 | FA12: =SUM($R$11:FA11) -> 25568 | FB12: =SUM($R$11:FB11) -> 25749 | FC12: =SUM($R$11:FC11) -> 25933 | FD12: =SUM($R$11:FD11) -> 26114 | FE12: =SUM($R$11:FE11) -> 26298 | FF12: =SUM($R$11:FF11) -> 26479 | FG12: =SUM($R$11:FG11) -> 26663 | FH12: =SUM($R$11:FH11) -> 26845 | FI12: =SUM($R$11:FI11) -> 27029 | FJ12: =SUM($R$11:FJ11) -> 27210 | FK12: =SUM($R$11:FK11) -> 27394 | FL12: =SUM($R$11:FL11) -> 27575 | FM12: =SUM($R$11:FM11) -> 27759 | FN12: =SUM($R$11:FN11) -> 27940 | FO12: =SUM($R$11:FO11) -> 28124 | FP12: =SUM($R$11:FP11) -> 28305 | FQ12: =SUM($R$11:FQ11) -> 28489 | FR12: =SUM($R$11:FR11) -> 28670 | FS12: =SUM($R$11:FS11) -> 28854 | FT12: =SUM($R$11:FT11) -> 29035 | FU12: =SUM($R$11:FU11) -> 29219 | FV12: =SUM($R$11:FV11) -> 29400 | FW12: =SUM($R$11:FW11) -> 29584 | FX12: =SUM($R$11:FX11) -> 29766 | FY12: =SUM($R$11:FY11) -> 29950 | FZ12: =SUM($R$11:FZ11) -> 30131 | GA12: =SUM($R$11:GA11) -> 30315 | GB12: =SUM($R$11:GB11) -> 30496 | GC12: =SUM($R$11:GC11) -> 30680 | GD12: =SUM($R$11:GD11) -> 30861 | GE12: =SUM($R$11:GE11) -> 31045 | GF12: =SUM($R$11:GF11) -> 31227 | GG12: =SUM($R$11:GG11) -> 31411 | GH12: =SUM($R$11:GH11) -> 31592 | GI12: =SUM($R$11:GI11) -> 31776 | GJ12: =SUM($R$11:GJ11) -> 31957 | GK12: =SUM($R$11:GK11) -> 32141 | GL12: =SUM($R$11:GL11) -> 32322 | GM12: =SUM($R$11:GM11) -> 32506 | GN12: =SUM($R$11:GN11) -> 32688 | GO12: =SUM($R$11:GO11) -> 32872 | GP12: =SUM($R$11:GP11) -> 33053 | GQ12: =SUM($R$11:GQ11) -> 33237 | GR12: =SUM($R$11:GR11) -> 33418 | GS12: =SUM($R$11:GS11) -> 33602 | GT12: =SUM($R$11:GT11) -> 33783 | GU12: =SUM($R$11:GU11) -> 33967 | GV12: =SUM($R$11:GV11) -> 34149 | GW12: =SUM($R$11:GW11) -> 34333 | GX12: =SUM($R$11:GX11) -> 34514 | GY12: =SUM($R$11:GY11) -> 34698 | GZ12: =SUM($R$11:GZ11) -> 34879 | HA12: =SUM($R$11:HA11) -> 35063 | HB12: =SUM($R$11:HB11) -> 35244 | HC12: =SUM($R$11:HC11) -> 35428 | HD12: =SUM($R$11:HD11) -> 35610 | HE12: =SUM($R$11:HE11) -> 35794 | HF12: =SUM($R$11:HF11) -> 35975 | HG12: =SUM($R$11:HG11) -> 36159 | HH12: =SUM($R$11:HH11) -> 36340 | HI12: =SUM($R$11:HI11) -> 36524 | HJ12: =SUM($R$11:HJ11) -> 36705 | HK12: =SUM($R$11:HK11) -> 36889 | HL12: =SUM($R$11:HL11) -> 37071 | HM12: =SUM($R$11:HM11) -> 37255 | HN12: =SUM($R$11:HN11) -> 37436 | HO12: =SUM($R$11:HO11) -> 37620 | HP12: =SUM($R$11:HP11) -> 37801 | HQ12: =SUM($R$11:HQ11) -> 37985 | HR12: =SUM($R$11:HR11) -> 38166 | HS12: =SUM($R$11:HS11) -> 38350 | HT12: =SUM($R$11:HT11) -> 38532 | HU12: =SUM($R$11:HU11) -> 38716 | HV12: =SUM($R$11:HV11) -> 38897 | HW12: =SUM($R$11:HW11) -> 39081 | HX12: =SUM($R$11:HX11) -> 39262 | HY12: =SUM($R$11:HY11) -> 39446 | HZ12: =SUM($R$11:HZ11) -> 39627 | IA12: =SUM($R$11:IA11) -> 39811 | IB12: =SUM($R$11:IB11) -> 39993 | IC12: =SUM($R$11:IC11) -> 40177 | ID12: =SUM($R$11:ID11) -> 40358 | IE12: =SUM($R$11:IE11) -> 40542
B13: Discount Factor | J13: x | L13: =InpC!K108 -> 0.075 | R13: =(1+$L$13)^(-R12/365) -> 0.96477234 | S13: =(1+$L$13)^(-S12/365) -> 0.9302325581 | T13: 0.8972848373 | U13: 0.8651611732 | V13: 0.8346835696 | W13: 0.8048010914 | X13: 0.7764498322 | Y13: 0.748652178 | Z13: 0.7222789136 | AA13: 0.6964206307 | AB13: 0.6717542478 | AC13: 0.6477047967 | AD13: 0.6248876723 | AE13: 0.60251609 | AF13: 0.581290858 | AG13: 0.5604800837 | AH13: 0.5407356818 | AI13: 0.521376822 | AJ13: 0.5029102807 | AK13: 0.4849056068 | AL13: 0.4678235169 | AM13: 0.451074983 | AN13: 0.4351846669 | AO13: 0.4196046354 | AP13: 0.404822946 | AQ13: 0.3903298934 | AR13: 0.376504877 | AS13: 0.3630256387 | AT13: 0.3502370949 | AU13: 0.3376982685 | AV13: 0.3258019487 | AW13: 0.3141379242 | AX13: 0.3030715802 | AY13: 0.2922213248 | AZ13: 0.2818711962 | BA13: 0.2717799351 | BB13: 0.2622057639 | BC13: 0.2528185442 | BD13: 0.2439123385 | BE13: 0.2351800412 | BF13: 0.2268951986 | BG13: 0.2187721313 | BH13: 0.211023485 | BI13: 0.2034686403 | BJ13: 0.1963009162 | BK13: 0.1892731538 | BL13: 0.1826055035 | BM13: 0.17606805 | BN13: 0.1698655846 | BO13: 0.1637842326 | BP13: 0.1579831916 | BQ13: 0.1523272407 | BR13: 0.1469611085 | BS13: 0.1416997588 | BT13: 0.1367080079 | BU13: 0.1318137291 | BV13: 0.1271702399 | BW13: 0.1226174225 | BX13: 0.1182744605 | BY13: 0.1140401206 | BZ13: 0.110022754 | CA13: 0.1060838331 | CB13: 0.1023467479 | CC13: 0.09868263542 | CD13: 0.09520627709 | CE13: =(1+$L$13)^(-CE12/365) -> 0.09179780039 | CF13: 0.08854643247 | CG13: 0.08537638464 | CH13: 0.08236877439 | CI13: 0.07941989269 | CJ13: 0.07662211571 | CK13: 0.07387896994 | CL13: 0.07127638671 | CM13: 0.0687246232 | CN13: 0.06629047952 | CO13: 0.06391721631 | CP13: 0.06166556235 | CQ13: 0.05945787564 | CR13: 0.05736331381 | CS13: 0.05530965176 | CT13: 0.05336122215 | CU13: 0.05145083885 | CV13: 0.04962851188 | CW13: 0.04785176321 | CX13: 0.04616605756 | CY13: 0.0445132681 | CZ13: 0.04294516982 | DA13: 0.04140769126 | DB13: 0.03994899519 | DC13: 0.03851878256 | DD13: 0.03715449351 | DE13: 0.03582432675 | DF13: 0.03456231954 | DG13: 0.03332495511 | DH13: 0.03215099493 | DI13: 0.03099995825 | DJ13: 0.02990790226 | DK13: 0.02883717046 | DL13: 0.02781579249 | DM13: 0.02681996025 | DN13: 0.02587515581 | DO13: 0.02494880023 | DP13: 0.02406991238 | DQ13: 0.02320818626 | DR13: 0.02239061616 | DS13: 0.02158901047 | DT13: 0.02082435363 | DU13: 0.02007882165 | DV13: 0.01937149175 | DW13: 0.01867797363 | DX13: 0.01801999233 | DY13: 0.01737485919 | DZ13: 0.01676278356 | EA13: 0.01616265971 | EB13: 0.0155901977 | EC13: 0.01503205356 | ED13: 0.01450250949 | EE13: 0.01398330564 | EF13: 0.0134907065 | EG13: 0.01300772618 | EH13: 0.01254949442 | EI13: 0.0121002104 | EJ13: 0.01167163547 | EK13: 0.01125377964 | EL13: 0.01085733532 | EM13: 0.01046863222 | EN13: 0.01009984681 | EO13: 0.009738262534 | EP13: 0.009395206332 | EQ13: =(1+$L$13)^(-EQ12/365) -> 0.009058848868 | ER13: 0.008737995313 | ES13: 0.008425166639 | ET13: 0.008128367733 | EU13: 0.007837364315 | EV13: 0.00756127231 | EW13: 0.007290571456 | EX13: 0.007033741684 | EY13: 0.006781926936 | EZ13: 0.006541719223 | FA13: 0.006307519355 | FB13: 0.006085320207 | FC13: 0.005867459865 | FD13: 0.005660762983 | FE13: 0.0054581022 | FF13: 0.005265826031 | FG13: 0.005077304372 | FH13: 0.004897472344 | FI13: 0.004722138103 | FJ13: 0.004555788227 | FK13: 0.004392686607 | FL13: 0.004237942537 | FM13: 0.0040862201 | FN13: 0.003942272127 | FO13: 0.003801134977 | FP13: 0.003667229886 | FQ13: 0.003535939513 | FR13: 0.003411376638 | FS13: 0.003289246059 | FT13: 0.003173373617 | FU13: 0.003059763775 | FV13: 0.002951975457 | FW13: 0.002846291884 | FX13: 0.002745479641 | FY13: 0.002647188818 | FZ13: 0.00255393455 | GA13: 0.002462501226 | GB13: 0.00237575307 | GC13: 0.002290698815 | GD13: 0.002210002856 | GE13: 0.002130882618 | GF13: 0.002055409313 | GG13: 0.001981823674 | GH13: 0.001912008664 | GI13: 0.001843556906 | GJ13: 0.00177861271 | GK13: 0.001714936657 | GL13: 0.001654523451 | GM13: 0.001595289913 | GN13: 0.001538786659 | GO13: 0.00148369661 | GP13: 0.00143142945 | GQ13: 0.001380182893 | GR13: 0.001331562279 | GS13: 0.001283891063 | GT13: 0.001238662586 | GU13: 0.001194317268 | GV13: 0.001152015984 | GW13: 0.001110772699 | GX13: 0.001071642776 | GY13: 0.001033276929 | GZ13: 0.0009968770007 | HA13: 0.000961187841 | HB13: 0.0009273274425 | HC13: =(1+$L$13)^(-HC12/365) -> 0.0008941282242 | HD13: 0.0008624592755 | HE13: 0.0008315824002 | HF13: 0.0008022876981 | HG13: 0.0007735650234 | HH13: 0.0007463141378 | HI13: 0.0007195953707 | HJ13: 0.0006942457096 | HK13: 0.0006693910425 | HL13: 0.0006456820151 | HM13: 0.0006225659751 | HN13: 0.0006006344326 | HO13: 0.0005791311397 | HP13: 0.0005587297048 | HQ13: 0.0005387266415 | HR13: 0.0005197485626 | HS13: 0.0005011410619 | HT13: 0.0004833912469 | HU13: 0.0004660853733 | HV13: 0.0004496662762 | HW13: 0.0004335677891 | HX13: 0.0004182942104 | HY13: 0.0004033188736 | HZ13: 0.0003891108934 | IA13: 0.0003751803475 | IB13: 0.0003618919098 | IC13: 0.0003489358298 | ID13: 0.0003366436371 | IE13: 0.0003245914696
B15: Total Payments
B16: =Ops!C61 -> Capital Cost Recovery Payment | J16: $ | P16: =SUM(R16:IE16) -> 667275900.9 | R16: =LOOKUP(R$4,Ops!$R$4:$IE$4,Ops!$R61:$IE61)*1000000 -> 15870189.27 | S16: =LOOKUP(S$4,Ops!$R$4:$IE$4,Ops!$R61:$IE61)*1000000 -> 15041972.13 | T16: =LOOKUP(T$4,Ops!$R$4:$IE$4,Ops!$R61:$IE61)*1000000 -> 15746490.22 | U16: =LOOKUP(U$4,Ops!$R$4:$IE$4,Ops!$R61:$IE61)*1000000 -> 14847947.21 | V16: =LOOKUP(V$4,Ops!$R$4:$IE$4,Ops!$R61:$IE61)*1000000 -> 15566200.03 | W16: =LOOKUP(W$4,Ops!$R$4:$IE$4,Ops!$R61:$IE61)*1000000 -> 14699496.46 | X16: =LOOKUP(X$4,Ops!$R$4:$IE$4,Ops!$R61:$IE61)*1000000 -> 15407806.94 | Y16: =LOOKUP(Y$4,Ops!$R$4:$IE$4,Ops!$R61:$IE61)*1000000 -> 14547315.47 | Z16: =LOOKUP(Z$4,Ops!$R$4:$IE$4,Ops!$R61:$IE61)*1000000 -> 15242186.62 | AA16: =LOOKUP(AA$4,Ops!$R$4:$IE$4,Ops!$R61:$IE61)*1000000 -> 14385181.66 | AB16: =LOOKUP(AB$4,Ops!$R$4:$IE$4,Ops!$R61:$IE61)*1000000 -> 15203604.7 | AC16: =LOOKUP(AC$4,Ops!$R$4:$IE$4,Ops!$R61:$IE61)*1000000 -> 14328663.18 | AD16: =LOOKUP(AD$4,Ops!$R$4:$IE$4,Ops!$R61:$IE61)*1000000 -> 14992053.39 | AE16: =LOOKUP(AE$4,Ops!$R$4:$IE$4,Ops!$R61:$IE61)*1000000 -> 14129286.29 | AF16: =LOOKUP(AF$4,Ops!$R$4:$IE$4,Ops!$R61:$IE61)*1000000 -> 14783445.72 | AG16: =LOOKUP(AG$4,Ops!$R$4:$IE$4,Ops!$R61:$IE61)*1000000 -> 13932683.64 | AH16: =LOOKUP(AH$4,Ops!$R$4:$IE$4,Ops!$R61:$IE61)*1000000 -> 14577740.73 | AI16: =LOOKUP(AI$4,Ops!$R$4:$IE$4,Ops!$R61:$IE61)*1000000 -> 13738816.62 | AJ16: =LOOKUP(AJ$4,Ops!$R$4:$IE$4,Ops!$R61:$IE61)*1000000 -> 14374898.04 | AK16: =LOOKUP(AK$4,Ops!$R$4:$IE$4,Ops!$R61:$IE61)*1000000 -> 13547647.18 | AL16: =LOOKUP(AL$4,Ops!$R$4:$IE$4,Ops!$R61:$IE61)*1000000 -> 14167779.28 | AM16: =LOOKUP(AM$4,Ops!$R$4:$IE$4,Ops!$R61:$IE61)*1000000 -> 13345761.08 | AN16: =LOOKUP(AN$4,Ops!$R$4:$IE$4,Ops!$R61:$IE61)*1000000 -> 13956652.01 | AO16: =LOOKUP(AO$4,Ops!$R$4:$IE$4,Ops!$R61:$IE61)*1000000 -> 13146883.47 | AP16: =LOOKUP(AP$4,Ops!$R$4:$IE$4,Ops!$R61:$IE61)*1000000 -> 13748670.95 | AQ16: =LOOKUP(AQ$4,Ops!$R$4:$IE$4,Ops!$R61:$IE61)*1000000 -> 12950969.52 | AR16: =LOOKUP(AR$4,Ops!$R$4:$IE$4,Ops!$R61:$IE61)*1000000 -> 13543789.21 | AS16: =LOOKUP(AS$4,Ops!$R$4:$IE$4,Ops!$R61:$IE61)*1000000 -> 12757975.07 | AT16: =LOOKUP(AT$4,Ops!$R$4:$IE$4,Ops!$R61:$IE61)*1000000 -> 13341960.6 | AU16: =LOOKUP(AU$4,Ops!$R$4:$IE$4,Ops!$R61:$IE61)*1000000 -> 12567856.61 | AV16: =LOOKUP(AV$4,Ops!$R$4:$IE$4,Ops!$R61:$IE61)*1000000 -> 13143139.63 | AW16: =LOOKUP(AW$4,Ops!$R$4:$IE$4,Ops!$R61:$IE61)*1000000 -> 12380571.28 | AX16: =LOOKUP(AX$4,Ops!$R$4:$IE$4,Ops!$R61:$IE61)*1000000 -> 12947281.47 | AY16: =LOOKUP(AY$4,Ops!$R$4:$IE$4,Ops!$R61:$IE61)*1000000 -> 12196076.86 | AZ16: =LOOKUP(AZ$4,Ops!$R$4:$IE$4,Ops!$R61:$IE61)*1000000 -> 12754341.98 | BA16: =LOOKUP(BA$4,Ops!$R$4:$IE$4,Ops!$R61:$IE61)*1000000 -> 12014331.77 | BB16: =LOOKUP(BB$4,Ops!$R$4:$IE$4,Ops!$R61:$IE61)*1000000 -> 12564277.66 | BC16: =LOOKUP(BC$4,Ops!$R$4:$IE$4,Ops!$R61:$IE61)*1000000 -> 11835295.03 | BD16: =LOOKUP(BD$4,Ops!$R$4:$IE$4,Ops!$R61:$IE61)*1000000 -> 12377045.66 | BE16: =LOOKUP(BE$4,Ops!$R$4:$IE$4,Ops!$R61:$IE61)*1000000 -> 11658926.28 | BF16: =LOOKUP(BF$4,Ops!$R$4:$IE$4,Ops!$R61:$IE61)*1000000 -> 12192603.78 | BG16: =LOOKUP(BG$4,Ops!$R$4:$IE$4,Ops!$R61:$IE61)*1000000 -> 11485185.77 | BH16: =LOOKUP(BH$4,Ops!$R$4:$IE$4,Ops!$R61:$IE61)*1000000 -> 12010910.44 | BI16: =LOOKUP(BI$4,Ops!$R$4:$IE$4,Ops!$R61:$IE61)*1000000 -> 11314034.33 | BJ16: =LOOKUP(BJ$4,Ops!$R$4:$IE$4,Ops!$R61:$IE61)*1000000 -> 11831924.69 | BK16: =LOOKUP(BK$4,Ops!$R$4:$IE$4,Ops!$R61:$IE61)*1000000 -> 11145433.37 | BL16: =LOOKUP(BL$4,Ops!$R$4:$IE$4,Ops!$R61:$IE61)*1000000 -> 11655606.17 | BM16: =LOOKUP(BM$4,Ops!$R$4:$IE$4,Ops!$R61:$IE61)*1000000 -> 10979344.89 | BN16: =LOOKUP(BN$4,Ops!$R$4:$IE$4,Ops!$R61:$IE61)*1000000 -> 11481915.13 | BO16: =LOOKUP(BO$4,Ops!$R$4:$IE$4,Ops!$R61:$IE61)*1000000 -> 10815731.46 | BP16: =LOOKUP(BP$4,Ops!$R$4:$IE$4,Ops!$R61:$IE61)*1000000 -> 0 | BQ16: =LOOKUP(BQ$4,Ops!$R$4:$IE$4,Ops!$R61:$IE61)*1000000 -> 0 | BR16: =LOOKUP(BR$4,Ops!$R$4:$IE$4,Ops!$R61:$IE61)*1000000 -> 0 | BS16: =LOOKUP(BS$4,Ops!$R$4:$IE$4,Ops!$R61:$IE61)*1000000 -> 0 | BT16: =LOOKUP(BT$4,Ops!$R$4:$IE$4,Ops!$R61:$IE61)*1000000 -> 0 | BU16: =LOOKUP(BU$4,Ops!$R$4:$IE$4,Ops!$R61:$IE61)*1000000 -> 0 | BV16: =LOOKUP(BV$4,Ops!$R$4:$IE$4,Ops!$R61:$IE61)*1000000 -> 0 | BW16: =LOOKUP(BW$4,Ops!$R$4:$IE$4,Ops!$R61:$IE61)*1000000 -> 0 | BX16: =LOOKUP(BX$4,Ops!$R$4:$IE$4,Ops!$R61:$IE61)*1000000 -> 0 | BY16: =LOOKUP(BY$4,Ops!$R$4:$IE$4,Ops!$R61:$IE61)*1000000 -> 0 | BZ16: =LOOKUP(BZ$4,Ops!$R$4:$IE$4,Ops!$R61:$IE61)*1000000 -> 0 | CA16: =LOOKUP(CA$4,Ops!$R$4:$IE$4,Ops!$R61:$IE61)*1000000 -> 0 | CB16: =LOOKUP(CB$4,Ops!$R$4:$IE$4,Ops!$R61:$IE61)*1000000 -> 0 | CC16: =LOOKUP(CC$4,Ops!$R$4:$IE$4,Ops!$R61:$IE61)*1000000 -> 0 | CD16: =LOOKUP(CD$4,Ops!$R$4:$IE$4,Ops!$R61:$IE61)*1000000 -> 0 | CE16: =LOOKUP(CE$4,Ops!$R$4:$IE$4,Ops!$R61:$IE61)*1000000 -> 0 | CF16: =LOOKUP(CF$4,Ops!$R$4:$IE$4,Ops!$R61:$IE61)*1000000 -> 0 | CG16: =LOOKUP(CG$4,Ops!$R$4:$IE$4,Ops!$R61:$IE61)*1000000 -> 0 | CH16: =LOOKUP(CH$4,Ops!$R$4:$IE$4,Ops!$R61:$IE61)*1000000 -> 0 | CI16: =LOOKUP(CI$4,Ops!$R$4:$IE$4,Ops!$R61:$IE61)*1000000 -> 0 | CJ16: =LOOKUP(CJ$4,Ops!$R$4:$IE$4,Ops!$R61:$IE61)*1000000 -> 0 | CK16: =LOOKUP(CK$4,Ops!$R$4:$IE$4,Ops!$R61:$IE61)*1000000 -> 0 | CL16: =LOOKUP(CL$4,Ops!$R$4:$IE$4,Ops!$R61:$IE61)*1000000 -> 0 | CM16: =LOOKUP(CM$4,Ops!$R$4:$IE$4,Ops!$R61:$IE61)*1000000 -> 0 | CN16: =LOOKUP(CN$4,Ops!$R$4:$IE$4,Ops!$R61:$IE61)*1000000 -> 0 | CO16: =LOOKUP(CO$4,Ops!$R$4:$IE$4,Ops!$R61:$IE61)*1000000 -> 0 | CP16: =LOOKUP(CP$4,Ops!$R$4:$IE$4,Ops!$R61:$IE61)*1000000 -> 0 | CQ16: =LOOKUP(CQ$4,Ops!$R$4:$IE$4,Ops!$R61:$IE61)*1000000 -> 0 | CR16: =LOOKUP(CR$4,Ops!$R$4:$IE$4,Ops!$R61:$IE61)*1000000 -> 0 | CS16: =LOOKUP(CS$4,Ops!$R$4:$IE$4,Ops!$R61:$IE61)*1000000 -> 0 | CT16: =LOOKUP(CT$4,Ops!$R$4:$IE$4,Ops!$R61:$IE61)*1000000 -> 0 | CU16: =LOOKUP(CU$4,Ops!$R$4:$IE$4,Ops!$R61:$IE61)*1000000 -> 0 | CV16: =LOOKUP(CV$4,Ops!$R$4:$IE$4,Ops!$R61:$IE61)*1000000 -> 0 | CW16: =LOOKUP(CW$4,Ops!$R$4:$IE$4,Ops!$R61:$IE61)*1000000 -> 0 | CX16: =LOOKUP(CX$4,Ops!$R$4:$IE$4,Ops!$R61:$IE61)*1000000 -> 0 | CY16: =LOOKUP(CY$4,Ops!$R$4:$IE$4,Ops!$R61:$IE61)*1000000 -> 0 | CZ16: =LOOKUP(CZ$4,Ops!$R$4:$IE$4,Ops!$R61:$IE61)*1000000 -> 0 | DA16: =LOOKUP(DA$4,Ops!$R$4:$IE$4,Ops!$R61:$IE61)*1000000 -> 0 | DB16: =LOOKUP(DB$4,Ops!$R$4:$IE$4,Ops!$R61:$IE61)*1000000 -> 0 | DC16: =LOOKUP(DC$4,Ops!$R$4:$IE$4,Ops!$R61:$IE61)*1000000 -> 0 | DD16: =LOOKUP(DD$4,Ops!$R$4:$IE$4,Ops!$R61:$IE61)*1000000 -> 0 | DE16: =LOOKUP(DE$4,Ops!$R$4:$IE$4,Ops!$R61:$IE61)*1000000 -> 0 | DF16: =LOOKUP(DF$4,Ops!$R$4:$IE$4,Ops!$R61:$IE61)*1000000 -> 0 | DG16: =LOOKUP(DG$4,Ops!$R$4:$IE$4,Ops!$R61:$IE61)*1000000 -> 0 | DH16: =LOOKUP(DH$4,Ops!$R$4:$IE$4,Ops!$R61:$IE61)*1000000 -> 0 | DI16: =LOOKUP(DI$4,Ops!$R$4:$IE$4,Ops!$R61:$IE61)*1000000 -> 0 | DJ16: =LOOKUP(DJ$4,Ops!$R$4:$IE$4,Ops!$R61:$IE61)*1000000 -> 0 | DK16: =LOOKUP(DK$4,Ops!$R$4:$IE$4,Ops!$R61:$IE61)*1000000 -> 0 | DL16: =LOOKUP(DL$4,Ops!$R$4:$IE$4,Ops!$R61:$IE61)*1000000 -> 0 | DM16: =LOOKUP(DM$4,Ops!$R$4:$IE$4,Ops!$R61:$IE61)*1000000 -> 0 | DN16: =LOOKUP(DN$4,Ops!$R$4:$IE$4,Ops!$R61:$IE61)*1000000 -> 0 | DO16: =LOOKUP(DO$4,Ops!$R$4:$IE$4,Ops!$R61:$IE61)*1000000 -> 0 | DP16: =LOOKUP(DP$4,Ops!$R$4:$IE$4,Ops!$R61:$IE61)*1000000 -> 0 | DQ16: =LOOKUP(DQ$4,Ops!$R$4:$IE$4,Ops!$R61:$IE61)*1000000 -> 0 | DR16: =LOOKUP(DR$4,Ops!$R$4:$IE$4,Ops!$R61:$IE61)*1000000 -> 0 | DS16: =LOOKUP(DS$4,Ops!$R$4:$IE$4,Ops!$R61:$IE61)*1000000 -> 0 | DT16: =LOOKUP(DT$4,Ops!$R$4:$IE$4,Ops!$R61:$IE61)*1000000 -> 0 | DU16: =LOOKUP(DU$4,Ops!$R$4:$IE$4,Ops!$R61:$IE61)*1000000 -> 0 | DV16: =LOOKUP(DV$4,Ops!$R$4:$IE$4,Ops!$R61:$IE61)*1000000 -> 0 | DW16: =LOOKUP(DW$4,Ops!$R$4:$IE$4,Ops!$R61:$IE61)*1000000 -> 0 | DX16: =LOOKUP(DX$4,Ops!$R$4:$IE$4,Ops!$R61:$IE61)*1000000 -> 0 | DY16: =LOOKUP(DY$4,Ops!$R$4:$IE$4,Ops!$R61:$IE61)*1000000 -> 0 | DZ16: =LOOKUP(DZ$4,Ops!$R$4:$IE$4,Ops!$R61:$IE61)*1000000 -> 0 | EA16: =LOOKUP(EA$4,Ops!$R$4:$IE$4,Ops!$R61:$IE61)*1000000 -> 0 | EB16: =LOOKUP(EB$4,Ops!$R$4:$IE$4,Ops!$R61:$IE61)*1000000 -> 0 | EC16: =LOOKUP(EC$4,Ops!$R$4:$IE$4,Ops!$R61:$IE61)*1000000 -> 0 | ED16: =LOOKUP(ED$4,Ops!$R$4:$IE$4,Ops!$R61:$IE61)*1000000 -> 0 | EE16: =LOOKUP(EE$4,Ops!$R$4:$IE$4,Ops!$R61:$IE61)*1000000 -> 0 | EF16: =LOOKUP(EF$4,Ops!$R$4:$IE$4,Ops!$R61:$IE61)*1000000 -> 0 | EG16: =LOOKUP(EG$4,Ops!$R$4:$IE$4,Ops!$R61:$IE61)*1000000 -> 0 | EH16: =LOOKUP(EH$4,Ops!$R$4:$IE$4,Ops!$R61:$IE61)*1000000 -> 0 | EI16: =LOOKUP(EI$4,Ops!$R$4:$IE$4,Ops!$R61:$IE61)*1000000 -> 0 | EJ16: =LOOKUP(EJ$4,Ops!$R$4:$IE$4,Ops!$R61:$IE61)*1000000 -> 0 | EK16: =LOOKUP(EK$4,Ops!$R$4:$IE$4,Ops!$R61:$IE61)*1000000 -> 0 | EL16: =LOOKUP(EL$4,Ops!$R$4:$IE$4,Ops!$R61:$IE61)*1000000 -> 0 | EM16: =LOOKUP(EM$4,Ops!$R$4:$IE$4,Ops!$R61:$IE61)*1000000 -> 0 | EN16: =LOOKUP(EN$4,Ops!$R$4:$IE$4,Ops!$R61:$IE61)*1000000 -> 0 | EO16: =LOOKUP(EO$4,Ops!$R$4:$IE$4,Ops!$R61:$IE61)*1000000 -> 0 | EP16: =LOOKUP(EP$4,Ops!$R$4:$IE$4,Ops!$R61:$IE61)*1000000 -> 0 | EQ16: =LOOKUP(EQ$4,Ops!$R$4:$IE$4,Ops!$R61:$IE61)*1000000 -> 0 | ER16: =LOOKUP(ER$4,Ops!$R$4:$IE$4,Ops!$R61:$IE61)*1000000 -> 0 | ES16: =LOOKUP(ES$4,Ops!$R$4:$IE$4,Ops!$R61:$IE61)*1000000 -> 0 | ET16: =LOOKUP(ET$4,Ops!$R$4:$IE$4,Ops!$R61:$IE61)*1000000 -> 0 | EU16: =LOOKUP(EU$4,Ops!$R$4:$IE$4,Ops!$R61:$IE61)*1000000 -> 0 | EV16: =LOOKUP(EV$4,Ops!$R$4:$IE$4,Ops!$R61:$IE61)*1000000 -> 0 | EW16: =LOOKUP(EW$4,Ops!$R$4:$IE$4,Ops!$R61:$IE61)*1000000 -> 0 | EX16: =LOOKUP(EX$4,Ops!$R$4:$IE$4,Ops!$R61:$IE61)*1000000 -> 0 | EY16: =LOOKUP(EY$4,Ops!$R$4:$IE$4,Ops!$R61:$IE61)*1000000 -> 0 | EZ16: =LOOKUP(EZ$4,Ops!$R$4:$IE$4,Ops!$R61:$IE61)*1000000 -> 0 | FA16: =LOOKUP(FA$4,Ops!$R$4:$IE$4,Ops!$R61:$IE61)*1000000 -> 0 | FB16: =LOOKUP(FB$4,Ops!$R$4:$IE$4,Ops!$R61:$IE61)*1000000 -> 0 | FC16: =LOOKUP(FC$4,Ops!$R$4:$IE$4,Ops!$R61:$IE61)*1000000 -> 0 | FD16: =LOOKUP(FD$4,Ops!$R$4:$IE$4,Ops!$R61:$IE61)*1000000 -> 0 | FE16: =LOOKUP(FE$4,Ops!$R$4:$IE$4,Ops!$R61:$IE61)*1000000 -> 0 | FF16: =LOOKUP(FF$4,Ops!$R$4:$IE$4,Ops!$R61:$IE61)*1000000 -> 0 | FG16: =LOOKUP(FG$4,Ops!$R$4:$IE$4,Ops!$R61:$IE61)*1000000 -> 0 | FH16: =LOOKUP(FH$4,Ops!$R$4:$IE$4,Ops!$R61:$IE61)*1000000 -> 0 | FI16: =LOOKUP(FI$4,Ops!$R$4:$IE$4,Ops!$R61:$IE61)*1000000 -> 0 | FJ16: =LOOKUP(FJ$4,Ops!$R$4:$IE$4,Ops!$R61:$IE61)*1000000 -> 0 | FK16: =LOOKUP(FK$4,Ops!$R$4:$IE$4,Ops!$R61:$IE61)*1000000 -> 0 | FL16: =LOOKUP(FL$4,Ops!$R$4:$IE$4,Ops!$R61:$IE61)*1000000 -> 0 | FM16: =LOOKUP(FM$4,Ops!$R$4:$IE$4,Ops!$R61:$IE61)*1000000 -> 0 | FN16: =LOOKUP(FN$4,Ops!$R$4:$IE$4,Ops!$R61:$IE61)*1000000 -> 0 | FO16: =LOOKUP(FO$4,Ops!$R$4:$IE$4,Ops!$R61:$IE61)*1000000 -> 0 | FP16: =LOOKUP(FP$4,Ops!$R$4:$IE$4,Ops!$R61:$IE61)*1000000 -> 0 | FQ16: =LOOKUP(FQ$4,Ops!$R$4:$IE$4,Ops!$R61:$IE61)*1000000 -> 0 | FR16: =LOOKUP(FR$4,Ops!$R$4:$IE$4,Ops!$R61:$IE61)*1000000 -> 0 | FS16: =LOOKUP(FS$4,Ops!$R$4:$IE$4,Ops!$R61:$IE61)*1000000 -> 0 | FT16: =LOOKUP(FT$4,Ops!$R$4:$IE$4,Ops!$R61:$IE61)*1000000 -> 0 | FU16: =LOOKUP(FU$4,Ops!$R$4:$IE$4,Ops!$R61:$IE61)*1000000 -> 0 | FV16: =LOOKUP(FV$4,Ops!$R$4:$IE$4,Ops!$R61:$IE61)*1000000 -> 0 | FW16: =LOOKUP(FW$4,Ops!$R$4:$IE$4,Ops!$R61:$IE61)*1000000 -> 0 | FX16: =LOOKUP(FX$4,Ops!$R$4:$IE$4,Ops!$R61:$IE61)*1000000 -> 0 | FY16: =LOOKUP(FY$4,Ops!$R$4:$IE$4,Ops!$R61:$IE61)*1000000 -> 0 | FZ16: =LOOKUP(FZ$4,Ops!$R$4:$IE$4,Ops!$R61:$IE61)*1000000 -> 0 | GA16: =LOOKUP(GA$4,Ops!$R$4:$IE$4,Ops!$R61:$IE61)*1000000 -> 0 | GB16: =LOOKUP(GB$4,Ops!$R$4:$IE$4,Ops!$R61:$IE61)*1000000 -> 0 | GC16: =LOOKUP(GC$4,Ops!$R$4:$IE$4,Ops!$R61:$IE61)*1000000 -> 0 | GD16: =LOOKUP(GD$4,Ops!$R$4:$IE$4,Ops!$R61:$IE61)*1000000 -> 0 | GE16: =LOOKUP(GE$4,Ops!$R$4:$IE$4,Ops!$R61:$IE61)*1000000 -> 0 | GF16: =LOOKUP(GF$4,Ops!$R$4:$IE$4,Ops!$R61:$IE61)*1000000 -> 0 | GG16: =LOOKUP(GG$4,Ops!$R$4:$IE$4,Ops!$R61:$IE61)*1000000 -> 0 | GH16: =LOOKUP(GH$4,Ops!$R$4:$IE$4,Ops!$R61:$IE61)*1000000 -> 0 | GI16: =LOOKUP(GI$4,Ops!$R$4:$IE$4,Ops!$R61:$IE61)*1000000 -> 0 | GJ16: =LOOKUP(GJ$4,Ops!$R$4:$IE$4,Ops!$R61:$IE61)*1000000 -> 0 | GK16: =LOOKUP(GK$4,Ops!$R$4:$IE$4,Ops!$R61:$IE61)*1000000 -> 0 | GL16: =LOOKUP(GL$4,Ops!$R$4:$IE$4,Ops!$R61:$IE61)*1000000 -> 0 | GM16: =LOOKUP(GM$4,Ops!$R$4:$IE$4,Ops!$R61:$IE61)*1000000 -> 0 | GN16: =LOOKUP(GN$4,Ops!$R$4:$IE$4,Ops!$R61:$IE61)*1000000 -> 0 | GO16: =LOOKUP(GO$4,Ops!$R$4:$IE$4,Ops!$R61:$IE61)*1000000 -> 0 | GP16: =LOOKUP(GP$4,Ops!$R$4:$IE$4,Ops!$R61:$IE61)*1000000 -> 0 | GQ16: =LOOKUP(GQ$4,Ops!$R$4:$IE$4,Ops!$R61:$IE61)*1000000 -> 0 | GR16: =LOOKUP(GR$4,Ops!$R$4:$IE$4,Ops!$R61:$IE61)*1000000 -> 0 | GS16: =LOOKUP(GS$4,Ops!$R$4:$IE$4,Ops!$R61:$IE61)*1000000 -> 0 | GT16: =LOOKUP(GT$4,Ops!$R$4:$IE$4,Ops!$R61:$IE61)*1000000 -> 0 | GU16: =LOOKUP(GU$4,Ops!$R$4:$IE$4,Ops!$R61:$IE61)*1000000 -> 0 | GV16: =LOOKUP(GV$4,Ops!$R$4:$IE$4,Ops!$R61:$IE61)*1000000 -> 0 | GW16: =LOOKUP(GW$4,Ops!$R$4:$IE$4,Ops!$R61:$IE61)*1000000 -> 0 | GX16: =LOOKUP(GX$4,Ops!$R$4:$IE$4,Ops!$R61:$IE61)*1000000 -> 0 | GY16: =LOOKUP(GY$4,Ops!$R$4:$IE$4,Ops!$R61:$IE61)*1000000 -> 0 | GZ16: =LOOKUP(GZ$4,Ops!$R$4:$IE$4,Ops!$R61:$IE61)*1000000 -> 0 | HA16: =LOOKUP(HA$4,Ops!$R$4:$IE$4,Ops!$R61:$IE61)*1000000 -> 0 | HB16: =LOOKUP(HB$4,Ops!$R$4:$IE$4,Ops!$R61:$IE61)*1000000 -> 0 | HC16: =LOOKUP(HC$4,Ops!$R$4:$IE$4,Ops!$R61:$IE61)*1000000 -> 0 | HD16: =LOOKUP(HD$4,Ops!$R$4:$IE$4,Ops!$R61:$IE61)*1000000 -> 0 | HE16: =LOOKUP(HE$4,Ops!$R$4:$IE$4,Ops!$R61:$IE61)*1000000 -> 0 | HF16: =LOOKUP(HF$4,Ops!$R$4:$IE$4,Ops!$R61:$IE61)*1000000 -> 0 | HG16: =LOOKUP(HG$4,Ops!$R$4:$IE$4,Ops!$R61:$IE61)*1000000 -> 0 | HH16: =LOOKUP(HH$4,Ops!$R$4:$IE$4,Ops!$R61:$IE61)*1000000 -> 0 | HI16: =LOOKUP(HI$4,Ops!$R$4:$IE$4,Ops!$R61:$IE61)*1000000 -> 0 | HJ16: =LOOKUP(HJ$4,Ops!$R$4:$IE$4,Ops!$R61:$IE61)*1000000 -> 0 | HK16: =LOOKUP(HK$4,Ops!$R$4:$IE$4,Ops!$R61:$IE61)*1000000 -> 0 | HL16: =LOOKUP(HL$4,Ops!$R$4:$IE$4,Ops!$R61:$IE61)*1000000 -> 0 | HM16: =LOOKUP(HM$4,Ops!$R$4:$IE$4,Ops!$R61:$IE61)*1000000 -> 0 | HN16: =LOOKUP(HN$4,Ops!$R$4:$IE$4,Ops!$R61:$IE61)*1000000 -> 0 | HO16: =LOOKUP(HO$4,Ops!$R$4:$IE$4,Ops!$R61:$IE61)*1000000 -> 0 | HP16: =LOOKUP(HP$4,Ops!$R$4:$IE$4,Ops!$R61:$IE61)*1000000 -> 0 | HQ16: =LOOKUP(HQ$4,Ops!$R$4:$IE$4,Ops!$R61:$IE61)*1000000 -> 0 | HR16: =LOOKUP(HR$4,Ops!$R$4:$IE$4,Ops!$R61:$IE61)*1000000 -> 0 | HS16: =LOOKUP(HS$4,Ops!$R$4:$IE$4,Ops!$R61:$IE61)*1000000 -> 0 | HT16: =LOOKUP(HT$4,Ops!$R$4:$IE$4,Ops!$R61:$IE61)*1000000 -> 0 | HU16: =LOOKUP(HU$4,Ops!$R$4:$IE$4,Ops!$R61:$IE61)*1000000 -> 0 | HV16: =LOOKUP(HV$4,Ops!$R$4:$IE$4,Ops!$R61:$IE61)*1000000 -> 0 | HW16: =LOOKUP(HW$4,Ops!$R$4:$IE$4,Ops!$R61:$IE61)*1000000 -> 0 | HX16: =LOOKUP(HX$4,Ops!$R$4:$IE$4,Ops!$R61:$IE61)*1000000 -> 0 | HY16: =LOOKUP(HY$4,Ops!$R$4:$IE$4,Ops!$R61:$IE61)*1000000 -> 0 | HZ16: =LOOKUP(HZ$4,Ops!$R$4:$IE$4,Ops!$R61:$IE61)*1000000 -> 0 | IA16: =LOOKUP(IA$4,Ops!$R$4:$IE$4,Ops!$R61:$IE61)*1000000 -> 0 | IB16: =LOOKUP(IB$4,Ops!$R$4:$IE$4,Ops!$R61:$IE61)*1000000 -> 0 | IC16: =LOOKUP(IC$4,Ops!$R$4:$IE$4,Ops!$R61:$IE61)*1000000 -> 0 | ID16: =LOOKUP(ID$4,Ops!$R$4:$IE$4,Ops!$R61:$IE61)*1000000 -> 0 | IE16: =LOOKUP(IE$4,Ops!$R$4:$IE$4,Ops!$R61:$IE61)*1000000 -> 0
B17: =Ops!C62 -> Fixed O&M Cost Recovery Payment | J17: $ | P17: 63822791.9 | R17: =LOOKUP(R$4,Ops!$R$4:$IE$4,Ops!$R62:$IE62)*1000000 -> 1089062.991 | S17: =LOOKUP(S$4,Ops!$R$4:$IE$4,Ops!$R62:$IE62)*1000000 -> 1070867.431 | T17: =LOOKUP(T$4,Ops!$R$4:$IE$4,Ops!$R62:$IE62)*1000000 -> 1106615.065 | U17: =LOOKUP(U$4,Ops!$R$4:$IE$4,Ops!$R62:$IE62)*1000000 -> 1085323.672 | V17: =LOOKUP(V$4,Ops!$R$4:$IE$4,Ops!$R62:$IE62)*1000000 -> 1122376.966 | W17: =LOOKUP(W$4,Ops!$R$4:$IE$4,Ops!$R62:$IE62)*1000000 -> 1101590.152 | X17: =LOOKUP(X$4,Ops!$R$4:$IE$4,Ops!$R62:$IE62)*1000000 -> 1139096.726 | Y17: =LOOKUP(Y$4,Ops!$R$4:$IE$4,Ops!$R62:$IE62)*1000000 -> 1117900.092 | Z17: =LOOKUP(Z$4,Ops!$R$4:$IE$4,Ops!$R62:$IE62)*1000000 -> 1155730.499 | AA17: =LOOKUP(AA$4,Ops!$R$4:$IE$4,Ops!$R62:$IE62)*1000000 -> 1133997.21 | AB17: =LOOKUP(AB$4,Ops!$R$4:$IE$4,Ops!$R62:$IE62)*1000000 -> 1177467.61 | AC17: =LOOKUP(AC$4,Ops!$R$4:$IE$4,Ops!$R62:$IE62)*1000000 -> 1154515.839 | AD17: =LOOKUP(AD$4,Ops!$R$4:$IE$4,Ops!$R62:$IE62)*1000000 -> 1192748.811 | AE17: =LOOKUP(AE$4,Ops!$R$4:$IE$4,Ops!$R62:$IE62)*1000000 -> 1169499.171 | AF17: =LOOKUP(AF$4,Ops!$R$4:$IE$4,Ops!$R62:$IE62)*1000000 -> 1208228.332 | AG17: =LOOKUP(AG$4,Ops!$R$4:$IE$4,Ops!$R62:$IE62)*1000000 -> 1184676.958 | AH17: =LOOKUP(AH$4,Ops!$R$4:$IE$4,Ops!$R62:$IE62)*1000000 -> 1223908.746 | AI17: =LOOKUP(AI$4,Ops!$R$4:$IE$4,Ops!$R62:$IE62)*1000000 -> 1200051.722 | AJ17: =LOOKUP(AJ$4,Ops!$R$4:$IE$4,Ops!$R62:$IE62)*1000000 -> 1239792.661 | AK17: =LOOKUP(AK$4,Ops!$R$4:$IE$4,Ops!$R62:$IE62)*1000000 -> 1215626.02 | AL17: =LOOKUP(AL$4,Ops!$R$4:$IE$4,Ops!$R62:$IE62)*1000000 -> 1255568.217 | AM17: =LOOKUP(AM$4,Ops!$R$4:$IE$4,Ops!$R62:$IE62)*1000000 -> 1230785.777 | AN17: =LOOKUP(AN$4,Ops!$R$4:$IE$4,Ops!$R62:$IE62)*1000000 -> 1271226.083 | AO17: =LOOKUP(AO$4,Ops!$R$4:$IE$4,Ops!$R62:$IE62)*1000000 -> 1246134.588 | AP17: =LOOKUP(AP$4,Ops!$R$4:$IE$4,Ops!$R62:$IE62)*1000000 -> 1287079.214 | AQ17: =LOOKUP(AQ$4,Ops!$R$4:$IE$4,Ops!$R62:$IE62)*1000000 -> 1261674.809 | AR17: =LOOKUP(AR$4,Ops!$R$4:$IE$4,Ops!$R62:$IE62)*1000000 -> 1303130.045 | AS17: =LOOKUP(AS$4,Ops!$R$4:$IE$4,Ops!$R62:$IE62)*1000000 -> 1277408.829 | AT17: =LOOKUP(AT$4,Ops!$R$4:$IE$4,Ops!$R62:$IE62)*1000000 -> 1319381.042 | AU17: =LOOKUP(AU$4,Ops!$R$4:$IE$4,Ops!$R62:$IE62)*1000000 -> 1293339.063 | AV17: =LOOKUP(AV$4,Ops!$R$4:$IE$4,Ops!$R62:$IE62)*1000000 -> 1335834.701 | AW17: =LOOKUP(AW$4,Ops!$R$4:$IE$4,Ops!$R62:$IE62)*1000000 -> 1309467.959 | AX17: =LOOKUP(AX$4,Ops!$R$4:$IE$4,Ops!$R62:$IE62)*1000000 -> 1352493.55 | AY17: =LOOKUP(AY$4,Ops!$R$4:$IE$4,Ops!$R62:$IE62)*1000000 -> 1325797.995 | AZ17: =LOOKUP(AZ$4,Ops!$R$4:$IE$4,Ops!$R62:$IE62)*1000000 -> 1369360.146 | BA17: =LOOKUP(BA$4,Ops!$R$4:$IE$4,Ops!$R62:$IE62)*1000000 -> 1342331.678 | BB17: =LOOKUP(BB$4,Ops!$R$4:$IE$4,Ops!$R62:$IE62)*1000000 -> 1386437.082 | BC17: =LOOKUP(BC$4,Ops!$R$4:$IE$4,Ops!$R62:$IE62)*1000000 -> 1359071.549 | BD17: =LOOKUP(BD$4,Ops!$R$4:$IE$4,Ops!$R62:$IE62)*1000000 -> 1403726.979 | BE17: =LOOKUP(BE$4,Ops!$R$4:$IE$4,Ops!$R62:$IE62)*1000000 -> 1376020.178 | BF17: =LOOKUP(BF$4,Ops!$R$4:$IE$4,Ops!$R62:$IE62)*1000000 -> 1421232.495 | BG17: =LOOKUP(BG$4,Ops!$R$4:$IE$4,Ops!$R62:$IE62)*1000000 -> 1393180.169 | BH17: =LOOKUP(BH$4,Ops!$R$4:$IE$4,Ops!$R62:$IE62)*1000000 -> 1438956.317 | BI17: =LOOKUP(BI$4,Ops!$R$4:$IE$4,Ops!$R62:$IE62)*1000000 -> 1410554.158 | BJ17: =LOOKUP(BJ$4,Ops!$R$4:$IE$4,Ops!$R62:$IE62)*1000000 -> 1456901.168 | BK17: =LOOKUP(BK$4,Ops!$R$4:$IE$4,Ops!$R62:$IE62)*1000000 -> 1428144.813 | BL17: =LOOKUP(BL$4,Ops!$R$4:$IE$4,Ops!$R62:$IE62)*1000000 -> 1475069.805 | BM17: =LOOKUP(BM$4,Ops!$R$4:$IE$4,Ops!$R62:$IE62)*1000000 -> 1445954.837 | BN17: =LOOKUP(BN$4,Ops!$R$4:$IE$4,Ops!$R62:$IE62)*1000000 -> 1493465.018 | BO17: =LOOKUP(BO$4,Ops!$R$4:$IE$4,Ops!$R62:$IE62)*1000000 -> 1463986.965 | BP17: =LOOKUP(BP$4,Ops!$R$4:$IE$4,Ops!$R62:$IE62)*1000000 -> 0 | BQ17: =LOOKUP(BQ$4,Ops!$R$4:$IE$4,Ops!$R62:$IE62)*1000000 -> 0 | BR17: =LOOKUP(BR$4,Ops!$R$4:$IE$4,Ops!$R62:$IE62)*1000000 -> 0 | BS17: =LOOKUP(BS$4,Ops!$R$4:$IE$4,Ops!$R62:$IE62)*1000000 -> 0 | BT17: =LOOKUP(BT$4,Ops!$R$4:$IE$4,Ops!$R62:$IE62)*1000000 -> 0 | BU17: =LOOKUP(BU$4,Ops!$R$4:$IE$4,Ops!$R62:$IE62)*1000000 -> 0 | BV17: =LOOKUP(BV$4,Ops!$R$4:$IE$4,Ops!$R62:$IE62)*1000000 -> 0 | BW17: =LOOKUP(BW$4,Ops!$R$4:$IE$4,Ops!$R62:$IE62)*1000000 -> 0 | BX17: =LOOKUP(BX$4,Ops!$R$4:$IE$4,Ops!$R62:$IE62)*1000000 -> 0 | BY17: =LOOKUP(BY$4,Ops!$R$4:$IE$4,Ops!$R62:$IE62)*1000000 -> 0 | BZ17: =LOOKUP(BZ$4,Ops!$R$4:$IE$4,Ops!$R62:$IE62)*1000000 -> 0 | CA17: =LOOKUP(CA$4,Ops!$R$4:$IE$4,Ops!$R62:$IE62)*1000000 -> 0 | CB17: =LOOKUP(CB$4,Ops!$R$4:$IE$4,Ops!$R62:$IE62)*1000000 -> 0 | CC17: =LOOKUP(CC$4,Ops!$R$4:$IE$4,Ops!$R62:$IE62)*1000000 -> 0 | CD17: =LOOKUP(CD$4,Ops!$R$4:$IE$4,Ops!$R62:$IE62)*1000000 -> 0 | CE17: =LOOKUP(CE$4,Ops!$R$4:$IE$4,Ops!$R62:$IE62)*1000000 -> 0 | CF17: =LOOKUP(CF$4,Ops!$R$4:$IE$4,Ops!$R62:$IE62)*1000000 -> 0 | CG17: =LOOKUP(CG$4,Ops!$R$4:$IE$4,Ops!$R62:$IE62)*1000000 -> 0 | CH17: =LOOKUP(CH$4,Ops!$R$4:$IE$4,Ops!$R62:$IE62)*1000000 -> 0 | CI17: =LOOKUP(CI$4,Ops!$R$4:$IE$4,Ops!$R62:$IE62)*1000000 -> 0 | CJ17: =LOOKUP(CJ$4,Ops!$R$4:$IE$4,Ops!$R62:$IE62)*1000000 -> 0 | CK17: =LOOKUP(CK$4,Ops!$R$4:$IE$4,Ops!$R62:$IE62)*1000000 -> 0 | CL17: =LOOKUP(CL$4,Ops!$R$4:$IE$4,Ops!$R62:$IE62)*1000000 -> 0 | CM17: =LOOKUP(CM$4,Ops!$R$4:$IE$4,Ops!$R62:$IE62)*1000000 -> 0 | CN17: =LOOKUP(CN$4,Ops!$R$4:$IE$4,Ops!$R62:$IE62)*1000000 -> 0 | CO17: =LOOKUP(CO$4,Ops!$R$4:$IE$4,Ops!$R62:$IE62)*1000000 -> 0 | CP17: =LOOKUP(CP$4,Ops!$R$4:$IE$4,Ops!$R62:$IE62)*1000000 -> 0 | CQ17: =LOOKUP(CQ$4,Ops!$R$4:$IE$4,Ops!$R62:$IE62)*1000000 -> 0 | CR17: =LOOKUP(CR$4,Ops!$R$4:$IE$4,Ops!$R62:$IE62)*1000000 -> 0 | CS17: =LOOKUP(CS$4,Ops!$R$4:$IE$4,Ops!$R62:$IE62)*1000000 -> 0 | CT17: =LOOKUP(CT$4,Ops!$R$4:$IE$4,Ops!$R62:$IE62)*1000000 -> 0 | CU17: =LOOKUP(CU$4,Ops!$R$4:$IE$4,Ops!$R62:$IE62)*1000000 -> 0 | CV17: =LOOKUP(CV$4,Ops!$R$4:$IE$4,Ops!$R62:$IE62)*1000000 -> 0 | CW17: =LOOKUP(CW$4,Ops!$R$4:$IE$4,Ops!$R62:$IE62)*1000000 -> 0 | CX17: =LOOKUP(CX$4,Ops!$R$4:$IE$4,Ops!$R62:$IE62)*1000000 -> 0 | CY17: =LOOKUP(CY$4,Ops!$R$4:$IE$4,Ops!$R62:$IE62)*1000000 -> 0 | CZ17: =LOOKUP(CZ$4,Ops!$R$4:$IE$4,Ops!$R62:$IE62)*1000000 -> 0 | DA17: =LOOKUP(DA$4,Ops!$R$4:$IE$4,Ops!$R62:$IE62)*1000000 -> 0 | DB17: =LOOKUP(DB$4,Ops!$R$4:$IE$4,Ops!$R62:$IE62)*1000000 -> 0 | DC17: =LOOKUP(DC$4,Ops!$R$4:$IE$4,Ops!$R62:$IE62)*1000000 -> 0 | DD17: =LOOKUP(DD$4,Ops!$R$4:$IE$4,Ops!$R62:$IE62)*1000000 -> 0 | DE17: =LOOKUP(DE$4,Ops!$R$4:$IE$4,Ops!$R62:$IE62)*1000000 -> 0 | DF17: =LOOKUP(DF$4,Ops!$R$4:$IE$4,Ops!$R62:$IE62)*1000000 -> 0 | DG17: =LOOKUP(DG$4,Ops!$R$4:$IE$4,Ops!$R62:$IE62)*1000000 -> 0 | DH17: =LOOKUP(DH$4,Ops!$R$4:$IE$4,Ops!$R62:$IE62)*1000000 -> 0 | DI17: =LOOKUP(DI$4,Ops!$R$4:$IE$4,Ops!$R62:$IE62)*1000000 -> 0 | DJ17: =LOOKUP(DJ$4,Ops!$R$4:$IE$4,Ops!$R62:$IE62)*1000000 -> 0 | DK17: =LOOKUP(DK$4,Ops!$R$4:$IE$4,Ops!$R62:$IE62)*1000000 -> 0 | DL17: =LOOKUP(DL$4,Ops!$R$4:$IE$4,Ops!$R62:$IE62)*1000000 -> 0 | DM17: =LOOKUP(DM$4,Ops!$R$4:$IE$4,Ops!$R62:$IE62)*1000000 -> 0 | DN17: =LOOKUP(DN$4,Ops!$R$4:$IE$4,Ops!$R62:$IE62)*1000000 -> 0 | DO17: =LOOKUP(DO$4,Ops!$R$4:$IE$4,Ops!$R62:$IE62)*1000000 -> 0 | DP17: =LOOKUP(DP$4,Ops!$R$4:$IE$4,Ops!$R62:$IE62)*1000000 -> 0 | DQ17: =LOOKUP(DQ$4,Ops!$R$4:$IE$4,Ops!$R62:$IE62)*1000000 -> 0 | DR17: =LOOKUP(DR$4,Ops!$R$4:$IE$4,Ops!$R62:$IE62)*1000000 -> 0 | DS17: =LOOKUP(DS$4,Ops!$R$4:$IE$4,Ops!$R62:$IE62)*1000000 -> 0 | DT17: =LOOKUP(DT$4,Ops!$R$4:$IE$4,Ops!$R62:$IE62)*1000000 -> 0 | DU17: =LOOKUP(DU$4,Ops!$R$4:$IE$4,Ops!$R62:$IE62)*1000000 -> 0 | DV17: =LOOKUP(DV$4,Ops!$R$4:$IE$4,Ops!$R62:$IE62)*1000000 -> 0 | DW17: =LOOKUP(DW$4,Ops!$R$4:$IE$4,Ops!$R62:$IE62)*1000000 -> 0 | DX17: =LOOKUP(DX$4,Ops!$R$4:$IE$4,Ops!$R62:$IE62)*1000000 -> 0 | DY17: =LOOKUP(DY$4,Ops!$R$4:$IE$4,Ops!$R62:$IE62)*1000000 -> 0 | DZ17: =LOOKUP(DZ$4,Ops!$R$4:$IE$4,Ops!$R62:$IE62)*1000000 -> 0 | EA17: =LOOKUP(EA$4,Ops!$R$4:$IE$4,Ops!$R62:$IE62)*1000000 -> 0 | EB17: =LOOKUP(EB$4,Ops!$R$4:$IE$4,Ops!$R62:$IE62)*1000000 -> 0 | EC17: =LOOKUP(EC$4,Ops!$R$4:$IE$4,Ops!$R62:$IE62)*1000000 -> 0 | ED17: =LOOKUP(ED$4,Ops!$R$4:$IE$4,Ops!$R62:$IE62)*1000000 -> 0 | EE17: =LOOKUP(EE$4,Ops!$R$4:$IE$4,Ops!$R62:$IE62)*1000000 -> 0 | EF17: =LOOKUP(EF$4,Ops!$R$4:$IE$4,Ops!$R62:$IE62)*1000000 -> 0 | EG17: =LOOKUP(EG$4,Ops!$R$4:$IE$4,Ops!$R62:$IE62)*1000000 -> 0 | EH17: =LOOKUP(EH$4,Ops!$R$4:$IE$4,Ops!$R62:$IE62)*1000000 -> 0 | EI17: =LOOKUP(EI$4,Ops!$R$4:$IE$4,Ops!$R62:$IE62)*1000000 -> 0 | EJ17: =LOOKUP(EJ$4,Ops!$R$4:$IE$4,Ops!$R62:$IE62)*1000000 -> 0 | EK17: =LOOKUP(EK$4,Ops!$R$4:$IE$4,Ops!$R62:$IE62)*1000000 -> 0 | EL17: =LOOKUP(EL$4,Ops!$R$4:$IE$4,Ops!$R62:$IE62)*1000000 -> 0 | EM17: =LOOKUP(EM$4,Ops!$R$4:$IE$4,Ops!$R62:$IE62)*1000000 -> 0 | EN17: =LOOKUP(EN$4,Ops!$R$4:$IE$4,Ops!$R62:$IE62)*1000000 -> 0 | EO17: =LOOKUP(EO$4,Ops!$R$4:$IE$4,Ops!$R62:$IE62)*1000000 -> 0 | EP17: =LOOKUP(EP$4,Ops!$R$4:$IE$4,Ops!$R62:$IE62)*1000000 -> 0 | EQ17: =LOOKUP(EQ$4,Ops!$R$4:$IE$4,Ops!$R62:$IE62)*1000000 -> 0 | ER17: =LOOKUP(ER$4,Ops!$R$4:$IE$4,Ops!$R62:$IE62)*1000000 -> 0 | ES17: =LOOKUP(ES$4,Ops!$R$4:$IE$4,Ops!$R62:$IE62)*1000000 -> 0 | ET17: =LOOKUP(ET$4,Ops!$R$4:$IE$4,Ops!$R62:$IE62)*1000000 -> 0 | EU17: =LOOKUP(EU$4,Ops!$R$4:$IE$4,Ops!$R62:$IE62)*1000000 -> 0 | EV17: =LOOKUP(EV$4,Ops!$R$4:$IE$4,Ops!$R62:$IE62)*1000000 -> 0 | EW17: =LOOKUP(EW$4,Ops!$R$4:$IE$4,Ops!$R62:$IE62)*1000000 -> 0 | EX17: =LOOKUP(EX$4,Ops!$R$4:$IE$4,Ops!$R62:$IE62)*1000000 -> 0 | EY17: =LOOKUP(EY$4,Ops!$R$4:$IE$4,Ops!$R62:$IE62)*1000000 -> 0 | EZ17: =LOOKUP(EZ$4,Ops!$R$4:$IE$4,Ops!$R62:$IE62)*1000000 -> 0 | FA17: =LOOKUP(FA$4,Ops!$R$4:$IE$4,Ops!$R62:$IE62)*1000000 -> 0 | FB17: =LOOKUP(FB$4,Ops!$R$4:$IE$4,Ops!$R62:$IE62)*1000000 -> 0 | FC17: =LOOKUP(FC$4,Ops!$R$4:$IE$4,Ops!$R62:$IE62)*1000000 -> 0 | FD17: =LOOKUP(FD$4,Ops!$R$4:$IE$4,Ops!$R62:$IE62)*1000000 -> 0 | FE17: =LOOKUP(FE$4,Ops!$R$4:$IE$4,Ops!$R62:$IE62)*1000000 -> 0 | FF17: =LOOKUP(FF$4,Ops!$R$4:$IE$4,Ops!$R62:$IE62)*1000000 -> 0 | FG17: =LOOKUP(FG$4,Ops!$R$4:$IE$4,Ops!$R62:$IE62)*1000000 -> 0 | FH17: =LOOKUP(FH$4,Ops!$R$4:$IE$4,Ops!$R62:$IE62)*1000000 -> 0 | FI17: =LOOKUP(FI$4,Ops!$R$4:$IE$4,Ops!$R62:$IE62)*1000000 -> 0 | FJ17: =LOOKUP(FJ$4,Ops!$R$4:$IE$4,Ops!$R62:$IE62)*1000000 -> 0 | FK17: =LOOKUP(FK$4,Ops!$R$4:$IE$4,Ops!$R62:$IE62)*1000000 -> 0 | FL17: =LOOKUP(FL$4,Ops!$R$4:$IE$4,Ops!$R62:$IE62)*1000000 -> 0 | FM17: =LOOKUP(FM$4,Ops!$R$4:$IE$4,Ops!$R62:$IE62)*1000000 -> 0 | FN17: =LOOKUP(FN$4,Ops!$R$4:$IE$4,Ops!$R62:$IE62)*1000000 -> 0 | FO17: =LOOKUP(FO$4,Ops!$R$4:$IE$4,Ops!$R62:$IE62)*1000000 -> 0 | FP17: =LOOKUP(FP$4,Ops!$R$4:$IE$4,Ops!$R62:$IE62)*1000000 -> 0 | FQ17: =LOOKUP(FQ$4,Ops!$R$4:$IE$4,Ops!$R62:$IE62)*1000000 -> 0 | FR17: =LOOKUP(FR$4,Ops!$R$4:$IE$4,Ops!$R62:$IE62)*1000000 -> 0 | FS17: =LOOKUP(FS$4,Ops!$R$4:$IE$4,Ops!$R62:$IE62)*1000000 -> 0 | FT17: =LOOKUP(FT$4,Ops!$R$4:$IE$4,Ops!$R62:$IE62)*1000000 -> 0 | FU17: =LOOKUP(FU$4,Ops!$R$4:$IE$4,Ops!$R62:$IE62)*1000000 -> 0 | FV17: =LOOKUP(FV$4,Ops!$R$4:$IE$4,Ops!$R62:$IE62)*1000000 -> 0 | FW17: =LOOKUP(FW$4,Ops!$R$4:$IE$4,Ops!$R62:$IE62)*1000000 -> 0 | FX17: =LOOKUP(FX$4,Ops!$R$4:$IE$4,Ops!$R62:$IE62)*1000000 -> 0 | FY17: =LOOKUP(FY$4,Ops!$R$4:$IE$4,Ops!$R62:$IE62)*1000000 -> 0 | FZ17: =LOOKUP(FZ$4,Ops!$R$4:$IE$4,Ops!$R62:$IE62)*1000000 -> 0 | GA17: =LOOKUP(GA$4,Ops!$R$4:$IE$4,Ops!$R62:$IE62)*1000000 -> 0 | GB17: =LOOKUP(GB$4,Ops!$R$4:$IE$4,Ops!$R62:$IE62)*1000000 -> 0 | GC17: =LOOKUP(GC$4,Ops!$R$4:$IE$4,Ops!$R62:$IE62)*1000000 -> 0 | GD17: =LOOKUP(GD$4,Ops!$R$4:$IE$4,Ops!$R62:$IE62)*1000000 -> 0 | GE17: =LOOKUP(GE$4,Ops!$R$4:$IE$4,Ops!$R62:$IE62)*1000000 -> 0 | GF17: =LOOKUP(GF$4,Ops!$R$4:$IE$4,Ops!$R62:$IE62)*1000000 -> 0 | GG17: =LOOKUP(GG$4,Ops!$R$4:$IE$4,Ops!$R62:$IE62)*1000000 -> 0 | GH17: =LOOKUP(GH$4,Ops!$R$4:$IE$4,Ops!$R62:$IE62)*1000000 -> 0 | GI17: =LOOKUP(GI$4,Ops!$R$4:$IE$4,Ops!$R62:$IE62)*1000000 -> 0 | GJ17: =LOOKUP(GJ$4,Ops!$R$4:$IE$4,Ops!$R62:$IE62)*1000000 -> 0 | GK17: =LOOKUP(GK$4,Ops!$R$4:$IE$4,Ops!$R62:$IE62)*1000000 -> 0 | GL17: =LOOKUP(GL$4,Ops!$R$4:$IE$4,Ops!$R62:$IE62)*1000000 -> 0 | GM17: =LOOKUP(GM$4,Ops!$R$4:$IE$4,Ops!$R62:$IE62)*1000000 -> 0 | GN17: =LOOKUP(GN$4,Ops!$R$4:$IE$4,Ops!$R62:$IE62)*1000000 -> 0 | GO17: =LOOKUP(GO$4,Ops!$R$4:$IE$4,Ops!$R62:$IE62)*1000000 -> 0 | GP17: =LOOKUP(GP$4,Ops!$R$4:$IE$4,Ops!$R62:$IE62)*1000000 -> 0 | GQ17: =LOOKUP(GQ$4,Ops!$R$4:$IE$4,Ops!$R62:$IE62)*1000000 -> 0 | GR17: =LOOKUP(GR$4,Ops!$R$4:$IE$4,Ops!$R62:$IE62)*1000000 -> 0 | GS17: =LOOKUP(GS$4,Ops!$R$4:$IE$4,Ops!$R62:$IE62)*1000000 -> 0 | GT17: =LOOKUP(GT$4,Ops!$R$4:$IE$4,Ops!$R62:$IE62)*1000000 -> 0 | GU17: =LOOKUP(GU$4,Ops!$R$4:$IE$4,Ops!$R62:$IE62)*1000000 -> 0 | GV17: =LOOKUP(GV$4,Ops!$R$4:$IE$4,Ops!$R62:$IE62)*1000000 -> 0 | GW17: =LOOKUP(GW$4,Ops!$R$4:$IE$4,Ops!$R62:$IE62)*1000000 -> 0 | GX17: =LOOKUP(GX$4,Ops!$R$4:$IE$4,Ops!$R62:$IE62)*1000000 -> 0 | GY17: =LOOKUP(GY$4,Ops!$R$4:$IE$4,Ops!$R62:$IE62)*1000000 -> 0 | GZ17: =LOOKUP(GZ$4,Ops!$R$4:$IE$4,Ops!$R62:$IE62)*1000000 -> 0 | HA17: =LOOKUP(HA$4,Ops!$R$4:$IE$4,Ops!$R62:$IE62)*1000000 -> 0 | HB17: =LOOKUP(HB$4,Ops!$R$4:$IE$4,Ops!$R62:$IE62)*1000000 -> 0 | HC17: =LOOKUP(HC$4,Ops!$R$4:$IE$4,Ops!$R62:$IE62)*1000000 -> 0 | HD17: =LOOKUP(HD$4,Ops!$R$4:$IE$4,Ops!$R62:$IE62)*1000000 -> 0 | HE17: =LOOKUP(HE$4,Ops!$R$4:$IE$4,Ops!$R62:$IE62)*1000000 -> 0 | HF17: =LOOKUP(HF$4,Ops!$R$4:$IE$4,Ops!$R62:$IE62)*1000000 -> 0 | HG17: =LOOKUP(HG$4,Ops!$R$4:$IE$4,Ops!$R62:$IE62)*1000000 -> 0 | HH17: =LOOKUP(HH$4,Ops!$R$4:$IE$4,Ops!$R62:$IE62)*1000000 -> 0 | HI17: =LOOKUP(HI$4,Ops!$R$4:$IE$4,Ops!$R62:$IE62)*1000000 -> 0 | HJ17: =LOOKUP(HJ$4,Ops!$R$4:$IE$4,Ops!$R62:$IE62)*1000000 -> 0 | HK17: =LOOKUP(HK$4,Ops!$R$4:$IE$4,Ops!$R62:$IE62)*1000000 -> 0 | HL17: =LOOKUP(HL$4,Ops!$R$4:$IE$4,Ops!$R62:$IE62)*1000000 -> 0 | HM17: =LOOKUP(HM$4,Ops!$R$4:$IE$4,Ops!$R62:$IE62)*1000000 -> 0 | HN17: =LOOKUP(HN$4,Ops!$R$4:$IE$4,Ops!$R62:$IE62)*1000000 -> 0 | HO17: =LOOKUP(HO$4,Ops!$R$4:$IE$4,Ops!$R62:$IE62)*1000000 -> 0 | HP17: =LOOKUP(HP$4,Ops!$R$4:$IE$4,Ops!$R62:$IE62)*1000000 -> 0 | HQ17: =LOOKUP(HQ$4,Ops!$R$4:$IE$4,Ops!$R62:$IE62)*1000000 -> 0 | HR17: =LOOKUP(HR$4,Ops!$R$4:$IE$4,Ops!$R62:$IE62)*1000000 -> 0 | HS17: =LOOKUP(HS$4,Ops!$R$4:$IE$4,Ops!$R62:$IE62)*1000000 -> 0 | HT17: =LOOKUP(HT$4,Ops!$R$4:$IE$4,Ops!$R62:$IE62)*1000000 -> 0 | HU17: =LOOKUP(HU$4,Ops!$R$4:$IE$4,Ops!$R62:$IE62)*1000000 -> 0 | HV17: =LOOKUP(HV$4,Ops!$R$4:$IE$4,Ops!$R62:$IE62)*1000000 -> 0 | HW17: =LOOKUP(HW$4,Ops!$R$4:$IE$4,Ops!$R62:$IE62)*1000000 -> 0 | HX17: =LOOKUP(HX$4,Ops!$R$4:$IE$4,Ops!$R62:$IE62)*1000000 -> 0 | HY17: =LOOKUP(HY$4,Ops!$R$4:$IE$4,Ops!$R62:$IE62)*1000000 -> 0 | HZ17: =LOOKUP(HZ$4,Ops!$R$4:$IE$4,Ops!$R62:$IE62)*1000000 -> 0 | IA17: =LOOKUP(IA$4,Ops!$R$4:$IE$4,Ops!$R62:$IE62)*1000000 -> 0 | IB17: =LOOKUP(IB$4,Ops!$R$4:$IE$4,Ops!$R62:$IE62)*1000000 -> 0 | IC17: =LOOKUP(IC$4,Ops!$R$4:$IE$4,Ops!$R62:$IE62)*1000000 -> 0 | ID17: =LOOKUP(ID$4,Ops!$R$4:$IE$4,Ops!$R62:$IE62)*1000000 -> 0 | IE17: =LOOKUP(IE$4,Ops!$R$4:$IE$4,Ops!$R62:$IE62)*1000000 -> 0
B18: =Ops!C63 -> Variable O&M Cost Recovery Payment | J18: $ | P18: 80514680.12 | R18: =LOOKUP(R$4,Ops!$R$4:$IE$4,Ops!$R63:$IE63)*1000000 -> 1373890.984 | S18: =LOOKUP(S$4,Ops!$R$4:$IE$4,Ops!$R63:$IE63)*1000000 -> 1350936.65 | T18: =LOOKUP(T$4,Ops!$R$4:$IE$4,Ops!$R63:$IE63)*1000000 -> 1396033.538 | U18: =LOOKUP(U$4,Ops!$R$4:$IE$4,Ops!$R63:$IE63)*1000000 -> 1369173.702 | V18: =LOOKUP(V$4,Ops!$R$4:$IE$4,Ops!$R63:$IE63)*1000000 -> 1415917.727 | W18: =LOOKUP(W$4,Ops!$R$4:$IE$4,Ops!$R63:$IE63)*1000000 -> 1389694.434 | X18: =LOOKUP(X$4,Ops!$R$4:$IE$4,Ops!$R63:$IE63)*1000000 -> 1437010.287 | Y18: =LOOKUP(Y$4,Ops!$R$4:$IE$4,Ops!$R63:$IE63)*1000000 -> 1410269.993 | Z18: =LOOKUP(Z$4,Ops!$R$4:$IE$4,Ops!$R63:$IE63)*1000000 -> 1457994.373 | AA18: =LOOKUP(AA$4,Ops!$R$4:$IE$4,Ops!$R63:$IE63)*1000000 -> 1430577.07 | AB18: =LOOKUP(AB$4,Ops!$R$4:$IE$4,Ops!$R63:$IE63)*1000000 -> 1485416.496 | AC18: =LOOKUP(AC$4,Ops!$R$4:$IE$4,Ops!$R63:$IE63)*1000000 -> 1456462.036 | AD18: =LOOKUP(AD$4,Ops!$R$4:$IE$4,Ops!$R63:$IE63)*1000000 -> 1504694.265 | AE18: =LOOKUP(AE$4,Ops!$R$4:$IE$4,Ops!$R63:$IE63)*1000000 -> 1475364.033 | AF18: =LOOKUP(AF$4,Ops!$R$4:$IE$4,Ops!$R63:$IE63)*1000000 -> 1524222.221 | AG18: =LOOKUP(AG$4,Ops!$R$4:$IE$4,Ops!$R63:$IE63)*1000000 -> 1494511.341 | AH18: =LOOKUP(AH$4,Ops!$R$4:$IE$4,Ops!$R63:$IE63)*1000000 -> 1544003.611 | AI18: =LOOKUP(AI$4,Ops!$R$4:$IE$4,Ops!$R63:$IE63)*1000000 -> 1513907.143 | AJ18: =LOOKUP(AJ$4,Ops!$R$4:$IE$4,Ops!$R63:$IE63)*1000000 -> 1564041.725 | AK18: =LOOKUP(AK$4,Ops!$R$4:$IE$4,Ops!$R63:$IE63)*1000000 -> 1533554.664 | AL18: =LOOKUP(AL$4,Ops!$R$4:$IE$4,Ops!$R63:$IE63)*1000000 -> 1583943.139 | AM18: =LOOKUP(AM$4,Ops!$R$4:$IE$4,Ops!$R63:$IE63)*1000000 -> 1552679.226 | AN18: =LOOKUP(AN$4,Ops!$R$4:$IE$4,Ops!$R63:$IE63)*1000000 -> 1603696.084 | AO18: =LOOKUP(AO$4,Ops!$R$4:$IE$4,Ops!$R63:$IE63)*1000000 -> 1572042.287 | AP18: =LOOKUP(AP$4,Ops!$R$4:$IE$4,Ops!$R63:$IE63)*1000000 -> 1623695.362 | AQ18: =LOOKUP(AQ$4,Ops!$R$4:$IE$4,Ops!$R63:$IE63)*1000000 -> 1591646.819 | AR18: =LOOKUP(AR$4,Ops!$R$4:$IE$4,Ops!$R63:$IE63)*1000000 -> 1643944.046 | AS18: =LOOKUP(AS$4,Ops!$R$4:$IE$4,Ops!$R63:$IE63)*1000000 -> 1611495.834 | AT18: =LOOKUP(AT$4,Ops!$R$4:$IE$4,Ops!$R63:$IE63)*1000000 -> 1664445.246 | AU18: =LOOKUP(AU$4,Ops!$R$4:$IE$4,Ops!$R63:$IE63)*1000000 -> 1631592.38 | AV18: =LOOKUP(AV$4,Ops!$R$4:$IE$4,Ops!$R63:$IE63)*1000000 -> 1685202.111 | AW18: =LOOKUP(AW$4,Ops!$R$4:$IE$4,Ops!$R63:$IE63)*1000000 -> 1651939.546 | AX18: =LOOKUP(AX$4,Ops!$R$4:$IE$4,Ops!$R63:$IE63)*1000000 -> 1706217.83 | AY18: =LOOKUP(AY$4,Ops!$R$4:$IE$4,Ops!$R63:$IE63)*1000000 -> 1672540.456 | AZ18: =LOOKUP(AZ$4,Ops!$R$4:$IE$4,Ops!$R63:$IE63)*1000000 -> 1727495.631 | BA18: =LOOKUP(BA$4,Ops!$R$4:$IE$4,Ops!$R63:$IE63)*1000000 -> 1693398.275 | BB18: =LOOKUP(BB$4,Ops!$R$4:$IE$4,Ops!$R63:$IE63)*1000000 -> 1749038.781 | BC18: =LOOKUP(BC$4,Ops!$R$4:$IE$4,Ops!$R63:$IE63)*1000000 -> 1714516.206 | BD18: =LOOKUP(BD$4,Ops!$R$4:$IE$4,Ops!$R63:$IE63)*1000000 -> 1770850.59 | BE18: =LOOKUP(BE$4,Ops!$R$4:$IE$4,Ops!$R63:$IE63)*1000000 -> 1735897.493 | BF18: =LOOKUP(BF$4,Ops!$R$4:$IE$4,Ops!$R63:$IE63)*1000000 -> 1792934.409 | BG18: =LOOKUP(BG$4,Ops!$R$4:$IE$4,Ops!$R63:$IE63)*1000000 -> 1757545.421 | BH18: =LOOKUP(BH$4,Ops!$R$4:$IE$4,Ops!$R63:$IE63)*1000000 -> 1815293.629 | BI18: =LOOKUP(BI$4,Ops!$R$4:$IE$4,Ops!$R63:$IE63)*1000000 -> 1779463.314 | BJ18: =LOOKUP(BJ$4,Ops!$R$4:$IE$4,Ops!$R63:$IE63)*1000000 -> 1837931.686 | BK18: =LOOKUP(BK$4,Ops!$R$4:$IE$4,Ops!$R63:$IE63)*1000000 -> 1801654.54 | BL18: =LOOKUP(BL$4,Ops!$R$4:$IE$4,Ops!$R63:$IE63)*1000000 -> 1860852.056 | BM18: =LOOKUP(BM$4,Ops!$R$4:$IE$4,Ops!$R63:$IE63)*1000000 -> 1824122.507 | BN18: =LOOKUP(BN$4,Ops!$R$4:$IE$4,Ops!$R63:$IE63)*1000000 -> 1884058.259 | BO18: =LOOKUP(BO$4,Ops!$R$4:$IE$4,Ops!$R63:$IE63)*1000000 -> 1846870.666 | BP18: =LOOKUP(BP$4,Ops!$R$4:$IE$4,Ops!$R63:$IE63)*1000000 -> 0 | BQ18: =LOOKUP(BQ$4,Ops!$R$4:$IE$4,Ops!$R63:$IE63)*1000000 -> 0 | BR18: =LOOKUP(BR$4,Ops!$R$4:$IE$4,Ops!$R63:$IE63)*1000000 -> 0 | BS18: =LOOKUP(BS$4,Ops!$R$4:$IE$4,Ops!$R63:$IE63)*1000000 -> 0 | BT18: =LOOKUP(BT$4,Ops!$R$4:$IE$4,Ops!$R63:$IE63)*1000000 -> 0 | BU18: =LOOKUP(BU$4,Ops!$R$4:$IE$4,Ops!$R63:$IE63)*1000000 -> 0 | BV18: =LOOKUP(BV$4,Ops!$R$4:$IE$4,Ops!$R63:$IE63)*1000000 -> 0 | BW18: =LOOKUP(BW$4,Ops!$R$4:$IE$4,Ops!$R63:$IE63)*1000000 -> 0 | BX18: =LOOKUP(BX$4,Ops!$R$4:$IE$4,Ops!$R63:$IE63)*1000000 -> 0 | BY18: =LOOKUP(BY$4,Ops!$R$4:$IE$4,Ops!$R63:$IE63)*1000000 -> 0 | BZ18: =LOOKUP(BZ$4,Ops!$R$4:$IE$4,Ops!$R63:$IE63)*1000000 -> 0 | CA18: =LOOKUP(CA$4,Ops!$R$4:$IE$4,Ops!$R63:$IE63)*1000000 -> 0 | CB18: =LOOKUP(CB$4,Ops!$R$4:$IE$4,Ops!$R63:$IE63)*1000000 -> 0 | CC18: =LOOKUP(CC$4,Ops!$R$4:$IE$4,Ops!$R63:$IE63)*1000000 -> 0 | CD18: =LOOKUP(CD$4,Ops!$R$4:$IE$4,Ops!$R63:$IE63)*1000000 -> 0 | CE18: =LOOKUP(CE$4,Ops!$R$4:$IE$4,Ops!$R63:$IE63)*1000000 -> 0 | CF18: =LOOKUP(CF$4,Ops!$R$4:$IE$4,Ops!$R63:$IE63)*1000000 -> 0 | CG18: =LOOKUP(CG$4,Ops!$R$4:$IE$4,Ops!$R63:$IE63)*1000000 -> 0 | CH18: =LOOKUP(CH$4,Ops!$R$4:$IE$4,Ops!$R63:$IE63)*1000000 -> 0 | CI18: =LOOKUP(CI$4,Ops!$R$4:$IE$4,Ops!$R63:$IE63)*1000000 -> 0 | CJ18: =LOOKUP(CJ$4,Ops!$R$4:$IE$4,Ops!$R63:$IE63)*1000000 -> 0 | CK18: =LOOKUP(CK$4,Ops!$R$4:$IE$4,Ops!$R63:$IE63)*1000000 -> 0 | CL18: =LOOKUP(CL$4,Ops!$R$4:$IE$4,Ops!$R63:$IE63)*1000000 -> 0 | CM18: =LOOKUP(CM$4,Ops!$R$4:$IE$4,Ops!$R63:$IE63)*1000000 -> 0 | CN18: =LOOKUP(CN$4,Ops!$R$4:$IE$4,Ops!$R63:$IE63)*1000000 -> 0 | CO18: =LOOKUP(CO$4,Ops!$R$4:$IE$4,Ops!$R63:$IE63)*1000000 -> 0 | CP18: =LOOKUP(CP$4,Ops!$R$4:$IE$4,Ops!$R63:$IE63)*1000000 -> 0 | CQ18: =LOOKUP(CQ$4,Ops!$R$4:$IE$4,Ops!$R63:$IE63)*1000000 -> 0 | CR18: =LOOKUP(CR$4,Ops!$R$4:$IE$4,Ops!$R63:$IE63)*1000000 -> 0 | CS18: =LOOKUP(CS$4,Ops!$R$4:$IE$4,Ops!$R63:$IE63)*1000000 -> 0 | CT18: =LOOKUP(CT$4,Ops!$R$4:$IE$4,Ops!$R63:$IE63)*1000000 -> 0 | CU18: =LOOKUP(CU$4,Ops!$R$4:$IE$4,Ops!$R63:$IE63)*1000000 -> 0 | CV18: =LOOKUP(CV$4,Ops!$R$4:$IE$4,Ops!$R63:$IE63)*1000000 -> 0 | CW18: =LOOKUP(CW$4,Ops!$R$4:$IE$4,Ops!$R63:$IE63)*1000000 -> 0 | CX18: =LOOKUP(CX$4,Ops!$R$4:$IE$4,Ops!$R63:$IE63)*1000000 -> 0 | CY18: =LOOKUP(CY$4,Ops!$R$4:$IE$4,Ops!$R63:$IE63)*1000000 -> 0 | CZ18: =LOOKUP(CZ$4,Ops!$R$4:$IE$4,Ops!$R63:$IE63)*1000000 -> 0 | DA18: =LOOKUP(DA$4,Ops!$R$4:$IE$4,Ops!$R63:$IE63)*1000000 -> 0 | DB18: =LOOKUP(DB$4,Ops!$R$4:$IE$4,Ops!$R63:$IE63)*1000000 -> 0 | DC18: =LOOKUP(DC$4,Ops!$R$4:$IE$4,Ops!$R63:$IE63)*1000000 -> 0 | DD18: =LOOKUP(DD$4,Ops!$R$4:$IE$4,Ops!$R63:$IE63)*1000000 -> 0 | DE18: =LOOKUP(DE$4,Ops!$R$4:$IE$4,Ops!$R63:$IE63)*1000000 -> 0 | DF18: =LOOKUP(DF$4,Ops!$R$4:$IE$4,Ops!$R63:$IE63)*1000000 -> 0 | DG18: =LOOKUP(DG$4,Ops!$R$4:$IE$4,Ops!$R63:$IE63)*1000000 -> 0 | DH18: =LOOKUP(DH$4,Ops!$R$4:$IE$4,Ops!$R63:$IE63)*1000000 -> 0 | DI18: =LOOKUP(DI$4,Ops!$R$4:$IE$4,Ops!$R63:$IE63)*1000000 -> 0 | DJ18: =LOOKUP(DJ$4,Ops!$R$4:$IE$4,Ops!$R63:$IE63)*1000000 -> 0 | DK18: =LOOKUP(DK$4,Ops!$R$4:$IE$4,Ops!$R63:$IE63)*1000000 -> 0 | DL18: =LOOKUP(DL$4,Ops!$R$4:$IE$4,Ops!$R63:$IE63)*1000000 -> 0 | DM18: =LOOKUP(DM$4,Ops!$R$4:$IE$4,Ops!$R63:$IE63)*1000000 -> 0 | DN18: =LOOKUP(DN$4,Ops!$R$4:$IE$4,Ops!$R63:$IE63)*1000000 -> 0 | DO18: =LOOKUP(DO$4,Ops!$R$4:$IE$4,Ops!$R63:$IE63)*1000000 -> 0 | DP18: =LOOKUP(DP$4,Ops!$R$4:$IE$4,Ops!$R63:$IE63)*1000000 -> 0 | DQ18: =LOOKUP(DQ$4,Ops!$R$4:$IE$4,Ops!$R63:$IE63)*1000000 -> 0 | DR18: =LOOKUP(DR$4,Ops!$R$4:$IE$4,Ops!$R63:$IE63)*1000000 -> 0 | DS18: =LOOKUP(DS$4,Ops!$R$4:$IE$4,Ops!$R63:$IE63)*1000000 -> 0 | DT18: =LOOKUP(DT$4,Ops!$R$4:$IE$4,Ops!$R63:$IE63)*1000000 -> 0 | DU18: =LOOKUP(DU$4,Ops!$R$4:$IE$4,Ops!$R63:$IE63)*1000000 -> 0 | DV18: =LOOKUP(DV$4,Ops!$R$4:$IE$4,Ops!$R63:$IE63)*1000000 -> 0 | DW18: =LOOKUP(DW$4,Ops!$R$4:$IE$4,Ops!$R63:$IE63)*1000000 -> 0 | DX18: =LOOKUP(DX$4,Ops!$R$4:$IE$4,Ops!$R63:$IE63)*1000000 -> 0 | DY18: =LOOKUP(DY$4,Ops!$R$4:$IE$4,Ops!$R63:$IE63)*1000000 -> 0 | DZ18: =LOOKUP(DZ$4,Ops!$R$4:$IE$4,Ops!$R63:$IE63)*1000000 -> 0 | EA18: =LOOKUP(EA$4,Ops!$R$4:$IE$4,Ops!$R63:$IE63)*1000000 -> 0 | EB18: =LOOKUP(EB$4,Ops!$R$4:$IE$4,Ops!$R63:$IE63)*1000000 -> 0 | EC18: =LOOKUP(EC$4,Ops!$R$4:$IE$4,Ops!$R63:$IE63)*1000000 -> 0 | ED18: =LOOKUP(ED$4,Ops!$R$4:$IE$4,Ops!$R63:$IE63)*1000000 -> 0 | EE18: =LOOKUP(EE$4,Ops!$R$4:$IE$4,Ops!$R63:$IE63)*1000000 -> 0 | EF18: =LOOKUP(EF$4,Ops!$R$4:$IE$4,Ops!$R63:$IE63)*1000000 -> 0 | EG18: =LOOKUP(EG$4,Ops!$R$4:$IE$4,Ops!$R63:$IE63)*1000000 -> 0 | EH18: =LOOKUP(EH$4,Ops!$R$4:$IE$4,Ops!$R63:$IE63)*1000000 -> 0 | EI18: =LOOKUP(EI$4,Ops!$R$4:$IE$4,Ops!$R63:$IE63)*1000000 -> 0 | EJ18: =LOOKUP(EJ$4,Ops!$R$4:$IE$4,Ops!$R63:$IE63)*1000000 -> 0 | EK18: =LOOKUP(EK$4,Ops!$R$4:$IE$4,Ops!$R63:$IE63)*1000000 -> 0 | EL18: =LOOKUP(EL$4,Ops!$R$4:$IE$4,Ops!$R63:$IE63)*1000000 -> 0 | EM18: =LOOKUP(EM$4,Ops!$R$4:$IE$4,Ops!$R63:$IE63)*1000000 -> 0 | EN18: =LOOKUP(EN$4,Ops!$R$4:$IE$4,Ops!$R63:$IE63)*1000000 -> 0 | EO18: =LOOKUP(EO$4,Ops!$R$4:$IE$4,Ops!$R63:$IE63)*1000000 -> 0 | EP18: =LOOKUP(EP$4,Ops!$R$4:$IE$4,Ops!$R63:$IE63)*1000000 -> 0 | EQ18: =LOOKUP(EQ$4,Ops!$R$4:$IE$4,Ops!$R63:$IE63)*1000000 -> 0 | ER18: =LOOKUP(ER$4,Ops!$R$4:$IE$4,Ops!$R63:$IE63)*1000000 -> 0 | ES18: =LOOKUP(ES$4,Ops!$R$4:$IE$4,Ops!$R63:$IE63)*1000000 -> 0 | ET18: =LOOKUP(ET$4,Ops!$R$4:$IE$4,Ops!$R63:$IE63)*1000000 -> 0 | EU18: =LOOKUP(EU$4,Ops!$R$4:$IE$4,Ops!$R63:$IE63)*1000000 -> 0 | EV18: =LOOKUP(EV$4,Ops!$R$4:$IE$4,Ops!$R63:$IE63)*1000000 -> 0 | EW18: =LOOKUP(EW$4,Ops!$R$4:$IE$4,Ops!$R63:$IE63)*1000000 -> 0 | EX18: =LOOKUP(EX$4,Ops!$R$4:$IE$4,Ops!$R63:$IE63)*1000000 -> 0 | EY18: =LOOKUP(EY$4,Ops!$R$4:$IE$4,Ops!$R63:$IE63)*1000000 -> 0 | EZ18: =LOOKUP(EZ$4,Ops!$R$4:$IE$4,Ops!$R63:$IE63)*1000000 -> 0 | FA18: =LOOKUP(FA$4,Ops!$R$4:$IE$4,Ops!$R63:$IE63)*1000000 -> 0 | FB18: =LOOKUP(FB$4,Ops!$R$4:$IE$4,Ops!$R63:$IE63)*1000000 -> 0 | FC18: =LOOKUP(FC$4,Ops!$R$4:$IE$4,Ops!$R63:$IE63)*1000000 -> 0 | FD18: =LOOKUP(FD$4,Ops!$R$4:$IE$4,Ops!$R63:$IE63)*1000000 -> 0 | FE18: =LOOKUP(FE$4,Ops!$R$4:$IE$4,Ops!$R63:$IE63)*1000000 -> 0 | FF18: =LOOKUP(FF$4,Ops!$R$4:$IE$4,Ops!$R63:$IE63)*1000000 -> 0 | FG18: =LOOKUP(FG$4,Ops!$R$4:$IE$4,Ops!$R63:$IE63)*1000000 -> 0 | FH18: =LOOKUP(FH$4,Ops!$R$4:$IE$4,Ops!$R63:$IE63)*1000000 -> 0 | FI18: =LOOKUP(FI$4,Ops!$R$4:$IE$4,Ops!$R63:$IE63)*1000000 -> 0 | FJ18: =LOOKUP(FJ$4,Ops!$R$4:$IE$4,Ops!$R63:$IE63)*1000000 -> 0 | FK18: =LOOKUP(FK$4,Ops!$R$4:$IE$4,Ops!$R63:$IE63)*1000000 -> 0 | FL18: =LOOKUP(FL$4,Ops!$R$4:$IE$4,Ops!$R63:$IE63)*1000000 -> 0 | FM18: =LOOKUP(FM$4,Ops!$R$4:$IE$4,Ops!$R63:$IE63)*1000000 -> 0 | FN18: =LOOKUP(FN$4,Ops!$R$4:$IE$4,Ops!$R63:$IE63)*1000000 -> 0 | FO18: =LOOKUP(FO$4,Ops!$R$4:$IE$4,Ops!$R63:$IE63)*1000000 -> 0 | FP18: =LOOKUP(FP$4,Ops!$R$4:$IE$4,Ops!$R63:$IE63)*1000000 -> 0 | FQ18: =LOOKUP(FQ$4,Ops!$R$4:$IE$4,Ops!$R63:$IE63)*1000000 -> 0 | FR18: =LOOKUP(FR$4,Ops!$R$4:$IE$4,Ops!$R63:$IE63)*1000000 -> 0 | FS18: =LOOKUP(FS$4,Ops!$R$4:$IE$4,Ops!$R63:$IE63)*1000000 -> 0 | FT18: =LOOKUP(FT$4,Ops!$R$4:$IE$4,Ops!$R63:$IE63)*1000000 -> 0 | FU18: =LOOKUP(FU$4,Ops!$R$4:$IE$4,Ops!$R63:$IE63)*1000000 -> 0 | FV18: =LOOKUP(FV$4,Ops!$R$4:$IE$4,Ops!$R63:$IE63)*1000000 -> 0 | FW18: =LOOKUP(FW$4,Ops!$R$4:$IE$4,Ops!$R63:$IE63)*1000000 -> 0 | FX18: =LOOKUP(FX$4,Ops!$R$4:$IE$4,Ops!$R63:$IE63)*1000000 -> 0 | FY18: =LOOKUP(FY$4,Ops!$R$4:$IE$4,Ops!$R63:$IE63)*1000000 -> 0 | FZ18: =LOOKUP(FZ$4,Ops!$R$4:$IE$4,Ops!$R63:$IE63)*1000000 -> 0 | GA18: =LOOKUP(GA$4,Ops!$R$4:$IE$4,Ops!$R63:$IE63)*1000000 -> 0 | GB18: =LOOKUP(GB$4,Ops!$R$4:$IE$4,Ops!$R63:$IE63)*1000000 -> 0 | GC18: =LOOKUP(GC$4,Ops!$R$4:$IE$4,Ops!$R63:$IE63)*1000000 -> 0 | GD18: =LOOKUP(GD$4,Ops!$R$4:$IE$4,Ops!$R63:$IE63)*1000000 -> 0 | GE18: =LOOKUP(GE$4,Ops!$R$4:$IE$4,Ops!$R63:$IE63)*1000000 -> 0 | GF18: =LOOKUP(GF$4,Ops!$R$4:$IE$4,Ops!$R63:$IE63)*1000000 -> 0 | GG18: =LOOKUP(GG$4,Ops!$R$4:$IE$4,Ops!$R63:$IE63)*1000000 -> 0 | GH18: =LOOKUP(GH$4,Ops!$R$4:$IE$4,Ops!$R63:$IE63)*1000000 -> 0 | GI18: =LOOKUP(GI$4,Ops!$R$4:$IE$4,Ops!$R63:$IE63)*1000000 -> 0 | GJ18: =LOOKUP(GJ$4,Ops!$R$4:$IE$4,Ops!$R63:$IE63)*1000000 -> 0 | GK18: =LOOKUP(GK$4,Ops!$R$4:$IE$4,Ops!$R63:$IE63)*1000000 -> 0 | GL18: =LOOKUP(GL$4,Ops!$R$4:$IE$4,Ops!$R63:$IE63)*1000000 -> 0 | GM18: =LOOKUP(GM$4,Ops!$R$4:$IE$4,Ops!$R63:$IE63)*1000000 -> 0 | GN18: =LOOKUP(GN$4,Ops!$R$4:$IE$4,Ops!$R63:$IE63)*1000000 -> 0 | GO18: =LOOKUP(GO$4,Ops!$R$4:$IE$4,Ops!$R63:$IE63)*1000000 -> 0 | GP18: =LOOKUP(GP$4,Ops!$R$4:$IE$4,Ops!$R63:$IE63)*1000000 -> 0 | GQ18: =LOOKUP(GQ$4,Ops!$R$4:$IE$4,Ops!$R63:$IE63)*1000000 -> 0 | GR18: =LOOKUP(GR$4,Ops!$R$4:$IE$4,Ops!$R63:$IE63)*1000000 -> 0 | GS18: =LOOKUP(GS$4,Ops!$R$4:$IE$4,Ops!$R63:$IE63)*1000000 -> 0 | GT18: =LOOKUP(GT$4,Ops!$R$4:$IE$4,Ops!$R63:$IE63)*1000000 -> 0 | GU18: =LOOKUP(GU$4,Ops!$R$4:$IE$4,Ops!$R63:$IE63)*1000000 -> 0 | GV18: =LOOKUP(GV$4,Ops!$R$4:$IE$4,Ops!$R63:$IE63)*1000000 -> 0 | GW18: =LOOKUP(GW$4,Ops!$R$4:$IE$4,Ops!$R63:$IE63)*1000000 -> 0 | GX18: =LOOKUP(GX$4,Ops!$R$4:$IE$4,Ops!$R63:$IE63)*1000000 -> 0 | GY18: =LOOKUP(GY$4,Ops!$R$4:$IE$4,Ops!$R63:$IE63)*1000000 -> 0 | GZ18: =LOOKUP(GZ$4,Ops!$R$4:$IE$4,Ops!$R63:$IE63)*1000000 -> 0 | HA18: =LOOKUP(HA$4,Ops!$R$4:$IE$4,Ops!$R63:$IE63)*1000000 -> 0 | HB18: =LOOKUP(HB$4,Ops!$R$4:$IE$4,Ops!$R63:$IE63)*1000000 -> 0 | HC18: =LOOKUP(HC$4,Ops!$R$4:$IE$4,Ops!$R63:$IE63)*1000000 -> 0 | HD18: =LOOKUP(HD$4,Ops!$R$4:$IE$4,Ops!$R63:$IE63)*1000000 -> 0 | HE18: =LOOKUP(HE$4,Ops!$R$4:$IE$4,Ops!$R63:$IE63)*1000000 -> 0 | HF18: =LOOKUP(HF$4,Ops!$R$4:$IE$4,Ops!$R63:$IE63)*1000000 -> 0 | HG18: =LOOKUP(HG$4,Ops!$R$4:$IE$4,Ops!$R63:$IE63)*1000000 -> 0 | HH18: =LOOKUP(HH$4,Ops!$R$4:$IE$4,Ops!$R63:$IE63)*1000000 -> 0 | HI18: =LOOKUP(HI$4,Ops!$R$4:$IE$4,Ops!$R63:$IE63)*1000000 -> 0 | HJ18: =LOOKUP(HJ$4,Ops!$R$4:$IE$4,Ops!$R63:$IE63)*1000000 -> 0 | HK18: =LOOKUP(HK$4,Ops!$R$4:$IE$4,Ops!$R63:$IE63)*1000000 -> 0 | HL18: =LOOKUP(HL$4,Ops!$R$4:$IE$4,Ops!$R63:$IE63)*1000000 -> 0 | HM18: =LOOKUP(HM$4,Ops!$R$4:$IE$4,Ops!$R63:$IE63)*1000000 -> 0 | HN18: =LOOKUP(HN$4,Ops!$R$4:$IE$4,Ops!$R63:$IE63)*1000000 -> 0 | HO18: =LOOKUP(HO$4,Ops!$R$4:$IE$4,Ops!$R63:$IE63)*1000000 -> 0 | HP18: =LOOKUP(HP$4,Ops!$R$4:$IE$4,Ops!$R63:$IE63)*1000000 -> 0 | HQ18: =LOOKUP(HQ$4,Ops!$R$4:$IE$4,Ops!$R63:$IE63)*1000000 -> 0 | HR18: =LOOKUP(HR$4,Ops!$R$4:$IE$4,Ops!$R63:$IE63)*1000000 -> 0 | HS18: =LOOKUP(HS$4,Ops!$R$4:$IE$4,Ops!$R63:$IE63)*1000000 -> 0 | HT18: =LOOKUP(HT$4,Ops!$R$4:$IE$4,Ops!$R63:$IE63)*1000000 -> 0 | HU18: =LOOKUP(HU$4,Ops!$R$4:$IE$4,Ops!$R63:$IE63)*1000000 -> 0 | HV18: =LOOKUP(HV$4,Ops!$R$4:$IE$4,Ops!$R63:$IE63)*1000000 -> 0 | HW18: =LOOKUP(HW$4,Ops!$R$4:$IE$4,Ops!$R63:$IE63)*1000000 -> 0 | HX18: =LOOKUP(HX$4,Ops!$R$4:$IE$4,Ops!$R63:$IE63)*1000000 -> 0 | HY18: =LOOKUP(HY$4,Ops!$R$4:$IE$4,Ops!$R63:$IE63)*1000000 -> 0 | HZ18: =LOOKUP(HZ$4,Ops!$R$4:$IE$4,Ops!$R63:$IE63)*1000000 -> 0 | IA18: =LOOKUP(IA$4,Ops!$R$4:$IE$4,Ops!$R63:$IE63)*1000000 -> 0 | IB18: =LOOKUP(IB$4,Ops!$R$4:$IE$4,Ops!$R63:$IE63)*1000000 -> 0 | IC18: =LOOKUP(IC$4,Ops!$R$4:$IE$4,Ops!$R63:$IE63)*1000000 -> 0 | ID18: =LOOKUP(ID$4,Ops!$R$4:$IE$4,Ops!$R63:$IE63)*1000000 -> 0 | IE18: =LOOKUP(IE$4,Ops!$R$4:$IE$4,Ops!$R63:$IE63)*1000000 -> 0
J19: $ | P19: 811613373 | R19: =SUM(R16:R18) -> 18333143.24 | S19: =SUM(S16:S18) -> 17463776.21 | T19: 18249138.83 | U19: 17302444.58 | V19: 18104494.73 | W19: 17190781.05 | X19: 17983913.96 | Y19: 17075485.56 | Z19: 17855911.49 | AA19: 16949755.94 | AB19: 17866488.81 | AC19: 16939641.06 | AD19: 17689496.47 | AE19: 16774149.49 | AF19: 17515896.27 | AG19: 16611871.93 | AH19: 17345653.09 | AI19: 16452775.49 | AJ19: 17178732.43 | AK19: 16296827.86 | AL19: 17007290.64 | AM19: 16129226.08 | AN19: 16831574.18 | AO19: 15965060.34 | AP19: 16659445.53 | AQ19: 15804291.15 | AR19: 16490863.3 | AS19: 15646879.73 | AT19: 16325786.89 | AU19: 15492788.05 | AV19: 16164176.44 | AW19: 15341978.79 | AX19: 16005992.85 | AY19: 15194415.31 | AZ19: 15851197.75 | BA19: 15050061.72 | BB19: 15699753.52 | BC19: 14908882.78 | BD19: 15551623.23 | BE19: 14770843.95 | BF19: 15406770.69 | BG19: 14635911.36 | BH19: 15265160.39 | BI19: 14504051.8 | BJ19: 15126757.54 | BK19: 14375232.72 | BL19: 14991528.03 | BM19: 14249422.24 | BN19: 14859438.41 | BO19: 14126589.09 | BP19: 0 | BQ19: 0 | BR19: 0 | BS19: 0 | BT19: 0 | BU19: 0 | BV19: 0 | BW19: 0 | BX19: 0 | BY19: 0 | BZ19: 0 | CA19: 0 | CB19: 0 | CC19: 0 | CD19: 0 | CE19: =SUM(CE16:CE18) -> 0 | CF19: 0 | CG19: 0 | CH19: 0 | CI19: 0 | CJ19: 0 | CK19: 0 | CL19: 0 | CM19: 0 | CN19: 0 | CO19: 0 | CP19: 0 | CQ19: 0 | CR19: 0 | CS19: 0 | CT19: 0 | CU19: 0 | CV19: 0 | CW19: 0 | CX19: 0 | CY19: 0 | CZ19: 0 | DA19: 0 | DB19: 0 | DC19: 0 | DD19: 0 | DE19: 0 | DF19: 0 | DG19: 0 | DH19: 0 | DI19: 0 | DJ19: 0 | DK19: 0 | DL19: 0 | DM19: 0 | DN19: 0 | DO19: 0 | DP19: 0 | DQ19: 0 | DR19: 0 | DS19: 0 | DT19: 0 | DU19: 0 | DV19: 0 | DW19: 0 | DX19: 0 | DY19: 0 | DZ19: 0 | EA19: 0 | EB19: 0 | EC19: 0 | ED19: 0 | EE19: 0 | EF19: 0 | EG19: 0 | EH19: 0 | EI19: 0 | EJ19: 0 | EK19: 0 | EL19: 0 | EM19: 0 | EN19: 0 | EO19: 0 | EP19: 0 | EQ19: =SUM(EQ16:EQ18) -> 0 | ER19: 0 | ES19: 0 | ET19: 0 | EU19: 0 | EV19: 0 | EW19: 0 | EX19: 0 | EY19: 0 | EZ19: 0 | FA19: 0 | FB19: 0 | FC19: 0 | FD19: 0 | FE19: 0 | FF19: 0 | FG19: 0 | FH19: 0 | FI19: 0 | FJ19: 0 | FK19: 0 | FL19: 0 | FM19: 0 | FN19: 0 | FO19: 0 | FP19: 0 | FQ19: 0 | FR19: 0 | FS19: 0 | FT19: 0 | FU19: 0 | FV19: 0 | FW19: 0 | FX19: 0 | FY19: 0 | FZ19: 0 | GA19: 0 | GB19: 0 | GC19: 0 | GD19: 0 | GE19: 0 | GF19: 0 | GG19: 0 | GH19: 0 | GI19: 0 | GJ19: 0 | GK19: 0 | GL19: 0 | GM19: 0 | GN19: 0 | GO19: 0 | GP19: 0 | GQ19: 0 | GR19: 0 | GS19: 0 | GT19: 0 | GU19: 0 | GV19: 0 | GW19: 0 | GX19: 0 | GY19: 0 | GZ19: 0 | HA19: 0 | HB19: 0 | HC19: =SUM(HC16:HC18) -> 0 | HD19: 0 | HE19: 0 | HF19: 0 | HG19: 0 | HH19: 0 | HI19: 0 | HJ19: 0 | HK19: 0 | HL19: 0 | HM19: 0 | HN19: 0 | HO19: 0 | HP19: 0 | HQ19: 0 | HR19: 0 | HS19: 0 | HT19: 0 | HU19: 0 | HV19: 0 | HW19: 0 | HX19: 0 | HY19: 0 | HZ19: 0 | IA19: 0 | IB19: 0 | IC19: 0 | ID19: 0 | IE19: 0
B21: Generation
B22: Total Energy Generation | J22: MWh | P22: =SUM(R22:IE22) -> 20912903.93 | R22: =LOOKUP(R$4,Ops!$R$4:$IE$4,Ops!$R$56:$IE$56) -> 456734.7157 | S22: =LOOKUP(S$4,Ops!$R$4:$IE$4,Ops!$R$56:$IE$56) -> 444657.2315 | T22: =LOOKUP(T$4,Ops!$R$4:$IE$4,Ops!$R$56:$IE$56) -> 454951.2407 | U22: =LOOKUP(U$4,Ops!$R$4:$IE$4,Ops!$R$56:$IE$56) -> 441780.1285 | V22: =LOOKUP(V$4,Ops!$R$4:$IE$4,Ops!$R$56:$IE$56) -> 452339.2497 | W22: =LOOKUP(W$4,Ops!$R$4:$IE$4,Ops!$R$56:$IE$56) -> 439566.1073 | X22: =LOOKUP(X$4,Ops!$R$4:$IE$4,Ops!$R$56:$IE$56) -> 450031.9876 | Y22: =LOOKUP(Y$4,Ops!$R$4:$IE$4,Ops!$R$56:$IE$56) -> 437284.8169 | Z22: =LOOKUP(Z$4,Ops!$R$4:$IE$4,Ops!$R$56:$IE$56) -> 447606.7293 | AA22: =LOOKUP(AA$4,Ops!$R$4:$IE$4,Ops!$R$56:$IE$56) -> 434841.1596 | AB22: =LOOKUP(AB$4,Ops!$R$4:$IE$4,Ops!$R$56:$IE$56) -> 447039.8662 | AC22: =LOOKUP(AC$4,Ops!$R$4:$IE$4,Ops!$R$56:$IE$56) -> 433986.087 | AD22: =LOOKUP(AD$4,Ops!$R$4:$IE$4,Ops!$R$56:$IE$56) -> 443918.7919 | AE22: =LOOKUP(AE$4,Ops!$R$4:$IE$4,Ops!$R$56:$IE$56) -> 430956.1495 | AF22: =LOOKUP(AF$4,Ops!$R$4:$IE$4,Ops!$R$56:$IE$56) -> 440819.5078 | AG22: =LOOKUP(AG$4,Ops!$R$4:$IE$4,Ops!$R$56:$IE$56) -> 427947.3661 | AH22: =LOOKUP(AH$4,Ops!$R$4:$IE$4,Ops!$R$56:$IE$56) -> 437741.8619 | AI22: =LOOKUP(AI$4,Ops!$R$4:$IE$4,Ops!$R$56:$IE$56) -> 424959.5889 | AJ22: =LOOKUP(AJ$4,Ops!$R$4:$IE$4,Ops!$R$56:$IE$56) -> 434685.703 | AK22: =LOOKUP(AK$4,Ops!$R$4:$IE$4,Ops!$R$56:$IE$56) -> 421992.6713 | AL22: =LOOKUP(AL$4,Ops!$R$4:$IE$4,Ops!$R$56:$IE$56) -> 431542.786 | AM22: =LOOKUP(AM$4,Ops!$R$4:$IE$4,Ops!$R$56:$IE$56) -> 418836.6165 | AN22: =LOOKUP(AN$4,Ops!$R$4:$IE$4,Ops!$R$56:$IE$56) -> 428315.3066 | AO22: =LOOKUP(AO$4,Ops!$R$4:$IE$4,Ops!$R$56:$IE$56) -> 415704.1657 | AP22: =LOOKUP(AP$4,Ops!$R$4:$IE$4,Ops!$R$56:$IE$56) -> 425111.9652 | AQ22: =LOOKUP(AQ$4,Ops!$R$4:$IE$4,Ops!$R$56:$IE$56) -> 412595.1423 | AR22: =LOOKUP(AR$4,Ops!$R$4:$IE$4,Ops!$R$56:$IE$56) -> 421932.5815 | AS22: =LOOKUP(AS$4,Ops!$R$4:$IE$4,Ops!$R$56:$IE$56) -> 409509.371 | AT22: =LOOKUP(AT$4,Ops!$R$4:$IE$4,Ops!$R$56:$IE$56) -> 418776.9762 | AU22: =LOOKUP(AU$4,Ops!$R$4:$IE$4,Ops!$R$56:$IE$56) -> 406446.678 | AV22: =LOOKUP(AV$4,Ops!$R$4:$IE$4,Ops!$R$56:$IE$56) -> 415644.9714 | AW22: =LOOKUP(AW$4,Ops!$R$4:$IE$4,Ops!$R$56:$IE$56) -> 403406.8907 | AX22: =LOOKUP(AX$4,Ops!$R$4:$IE$4,Ops!$R$56:$IE$56) -> 412536.3907 | AY22: =LOOKUP(AY$4,Ops!$R$4:$IE$4,Ops!$R$56:$IE$56) -> 400389.8378 | AZ22: =LOOKUP(AZ$4,Ops!$R$4:$IE$4,Ops!$R$56:$IE$56) -> 409451.0588 | BA22: =LOOKUP(BA$4,Ops!$R$4:$IE$4,Ops!$R$56:$IE$56) -> 397395.3492 | BB22: =LOOKUP(BB$4,Ops!$R$4:$IE$4,Ops!$R$56:$IE$56) -> 406388.8019 | BC22: =LOOKUP(BC$4,Ops!$R$4:$IE$4,Ops!$R$56:$IE$56) -> 394423.2561 | BD22: =LOOKUP(BD$4,Ops!$R$4:$IE$4,Ops!$R$56:$IE$56) -> 403349.4475 | BE22: =LOOKUP(BE$4,Ops!$R$4:$IE$4,Ops!$R$56:$IE$56) -> 391473.3912 | BF22: =LOOKUP(BF$4,Ops!$R$4:$IE$4,Ops!$R$56:$IE$56) -> 400332.8241 | BG22: =LOOKUP(BG$4,Ops!$R$4:$IE$4,Ops!$R$56:$IE$56) -> 388545.5881 | BH22: =LOOKUP(BH$4,Ops!$R$4:$IE$4,Ops!$R$56:$IE$56) -> 397338.7619 | BI22: =LOOKUP(BI$4,Ops!$R$4:$IE$4,Ops!$R$56:$IE$56) -> 385639.6818 | BJ22: =LOOKUP(BJ$4,Ops!$R$4:$IE$4,Ops!$R$56:$IE$56) -> 394367.0921 | BK22: =LOOKUP(BK$4,Ops!$R$4:$IE$4,Ops!$R$56:$IE$56) -> 382755.5086 | BL22: =LOOKUP(BL$4,Ops!$R$4:$IE$4,Ops!$R$56:$IE$56) -> 391417.6472 | BM22: =LOOKUP(BM$4,Ops!$R$4:$IE$4,Ops!$R$56:$IE$56) -> 379892.906 | BN22: =LOOKUP(BN$4,Ops!$R$4:$IE$4,Ops!$R$56:$IE$56) -> 388490.261 | BO22: =LOOKUP(BO$4,Ops!$R$4:$IE$4,Ops!$R$56:$IE$56) -> 377051.7125 | BP22: =LOOKUP(BP$4,Ops!$R$4:$IE$4,Ops!$R$56:$IE$56) -> 0 | BQ22: =LOOKUP(BQ$4,Ops!$R$4:$IE$4,Ops!$R$56:$IE$56) -> 0 | BR22: =LOOKUP(BR$4,Ops!$R$4:$IE$4,Ops!$R$56:$IE$56) -> 0 | BS22: =LOOKUP(BS$4,Ops!$R$4:$IE$4,Ops!$R$56:$IE$56) -> 0 | BT22: =LOOKUP(BT$4,Ops!$R$4:$IE$4,Ops!$R$56:$IE$56) -> 0 | BU22: =LOOKUP(BU$4,Ops!$R$4:$IE$4,Ops!$R$56:$IE$56) -> 0 | BV22: =LOOKUP(BV$4,Ops!$R$4:$IE$4,Ops!$R$56:$IE$56) -> 0 | BW22: =LOOKUP(BW$4,Ops!$R$4:$IE$4,Ops!$R$56:$IE$56) -> 0 | BX22: =LOOKUP(BX$4,Ops!$R$4:$IE$4,Ops!$R$56:$IE$56) -> 0 | BY22: =LOOKUP(BY$4,Ops!$R$4:$IE$4,Ops!$R$56:$IE$56) -> 0 | BZ22: =LOOKUP(BZ$4,Ops!$R$4:$IE$4,Ops!$R$56:$IE$56) -> 0 | CA22: =LOOKUP(CA$4,Ops!$R$4:$IE$4,Ops!$R$56:$IE$56) -> 0 | CB22: =LOOKUP(CB$4,Ops!$R$4:$IE$4,Ops!$R$56:$IE$56) -> 0 | CC22: =LOOKUP(CC$4,Ops!$R$4:$IE$4,Ops!$R$56:$IE$56) -> 0 | CD22: =LOOKUP(CD$4,Ops!$R$4:$IE$4,Ops!$R$56:$IE$56) -> 0 | CE22: =LOOKUP(CE$4,Ops!$R$4:$IE$4,Ops!$R$56:$IE$56) -> 0 | CF22: =LOOKUP(CF$4,Ops!$R$4:$IE$4,Ops!$R$56:$IE$56) -> 0 | CG22: =LOOKUP(CG$4,Ops!$R$4:$IE$4,Ops!$R$56:$IE$56) -> 0 | CH22: =LOOKUP(CH$4,Ops!$R$4:$IE$4,Ops!$R$56:$IE$56) -> 0 | CI22: =LOOKUP(CI$4,Ops!$R$4:$IE$4,Ops!$R$56:$IE$56) -> 0 | CJ22: =LOOKUP(CJ$4,Ops!$R$4:$IE$4,Ops!$R$56:$IE$56) -> 0 | CK22: =LOOKUP(CK$4,Ops!$R$4:$IE$4,Ops!$R$56:$IE$56) -> 0 | CL22: =LOOKUP(CL$4,Ops!$R$4:$IE$4,Ops!$R$56:$IE$56) -> 0 | CM22: =LOOKUP(CM$4,Ops!$R$4:$IE$4,Ops!$R$56:$IE$56) -> 0 | CN22: =LOOKUP(CN$4,Ops!$R$4:$IE$4,Ops!$R$56:$IE$56) -> 0 | CO22: =LOOKUP(CO$4,Ops!$R$4:$IE$4,Ops!$R$56:$IE$56) -> 0 | CP22: =LOOKUP(CP$4,Ops!$R$4:$IE$4,Ops!$R$56:$IE$56) -> 0 | CQ22: =LOOKUP(CQ$4,Ops!$R$4:$IE$4,Ops!$R$56:$IE$56) -> 0 | CR22: =LOOKUP(CR$4,Ops!$R$4:$IE$4,Ops!$R$56:$IE$56) -> 0 | CS22: =LOOKUP(CS$4,Ops!$R$4:$IE$4,Ops!$R$56:$IE$56) -> 0 | CT22: =LOOKUP(CT$4,Ops!$R$4:$IE$4,Ops!$R$56:$IE$56) -> 0 | CU22: =LOOKUP(CU$4,Ops!$R$4:$IE$4,Ops!$R$56:$IE$56) -> 0 | CV22: =LOOKUP(CV$4,Ops!$R$4:$IE$4,Ops!$R$56:$IE$56) -> 0 | CW22: =LOOKUP(CW$4,Ops!$R$4:$IE$4,Ops!$R$56:$IE$56) -> 0 | CX22: =LOOKUP(CX$4,Ops!$R$4:$IE$4,Ops!$R$56:$IE$56) -> 0 | CY22: =LOOKUP(CY$4,Ops!$R$4:$IE$4,Ops!$R$56:$IE$56) -> 0 | CZ22: =LOOKUP(CZ$4,Ops!$R$4:$IE$4,Ops!$R$56:$IE$56) -> 0 | DA22: =LOOKUP(DA$4,Ops!$R$4:$IE$4,Ops!$R$56:$IE$56) -> 0 | DB22: =LOOKUP(DB$4,Ops!$R$4:$IE$4,Ops!$R$56:$IE$56) -> 0 | DC22: =LOOKUP(DC$4,Ops!$R$4:$IE$4,Ops!$R$56:$IE$56) -> 0 | DD22: =LOOKUP(DD$4,Ops!$R$4:$IE$4,Ops!$R$56:$IE$56) -> 0 | DE22: =LOOKUP(DE$4,Ops!$R$4:$IE$4,Ops!$R$56:$IE$56) -> 0 | DF22: =LOOKUP(DF$4,Ops!$R$4:$IE$4,Ops!$R$56:$IE$56) -> 0 | DG22: =LOOKUP(DG$4,Ops!$R$4:$IE$4,Ops!$R$56:$IE$56) -> 0 | DH22: =LOOKUP(DH$4,Ops!$R$4:$IE$4,Ops!$R$56:$IE$56) -> 0 | DI22: =LOOKUP(DI$4,Ops!$R$4:$IE$4,Ops!$R$56:$IE$56) -> 0 | DJ22: =LOOKUP(DJ$4,Ops!$R$4:$IE$4,Ops!$R$56:$IE$56) -> 0 | DK22: =LOOKUP(DK$4,Ops!$R$4:$IE$4,Ops!$R$56:$IE$56) -> 0 | DL22: =LOOKUP(DL$4,Ops!$R$4:$IE$4,Ops!$R$56:$IE$56) -> 0 | DM22: =LOOKUP(DM$4,Ops!$R$4:$IE$4,Ops!$R$56:$IE$56) -> 0 | DN22: =LOOKUP(DN$4,Ops!$R$4:$IE$4,Ops!$R$56:$IE$56) -> 0 | DO22: =LOOKUP(DO$4,Ops!$R$4:$IE$4,Ops!$R$56:$IE$56) -> 0 | DP22: =LOOKUP(DP$4,Ops!$R$4:$IE$4,Ops!$R$56:$IE$56) -> 0 | DQ22: =LOOKUP(DQ$4,Ops!$R$4:$IE$4,Ops!$R$56:$IE$56) -> 0 | DR22: =LOOKUP(DR$4,Ops!$R$4:$IE$4,Ops!$R$56:$IE$56) -> 0 | DS22: =LOOKUP(DS$4,Ops!$R$4:$IE$4,Ops!$R$56:$IE$56) -> 0 | DT22: =LOOKUP(DT$4,Ops!$R$4:$IE$4,Ops!$R$56:$IE$56) -> 0 | DU22: =LOOKUP(DU$4,Ops!$R$4:$IE$4,Ops!$R$56:$IE$56) -> 0 | DV22: =LOOKUP(DV$4,Ops!$R$4:$IE$4,Ops!$R$56:$IE$56) -> 0 | DW22: =LOOKUP(DW$4,Ops!$R$4:$IE$4,Ops!$R$56:$IE$56) -> 0 | DX22: =LOOKUP(DX$4,Ops!$R$4:$IE$4,Ops!$R$56:$IE$56) -> 0 | DY22: =LOOKUP(DY$4,Ops!$R$4:$IE$4,Ops!$R$56:$IE$56) -> 0 | DZ22: =LOOKUP(DZ$4,Ops!$R$4:$IE$4,Ops!$R$56:$IE$56) -> 0 | EA22: =LOOKUP(EA$4,Ops!$R$4:$IE$4,Ops!$R$56:$IE$56) -> 0 | EB22: =LOOKUP(EB$4,Ops!$R$4:$IE$4,Ops!$R$56:$IE$56) -> 0 | EC22: =LOOKUP(EC$4,Ops!$R$4:$IE$4,Ops!$R$56:$IE$56) -> 0 | ED22: =LOOKUP(ED$4,Ops!$R$4:$IE$4,Ops!$R$56:$IE$56) -> 0 | EE22: =LOOKUP(EE$4,Ops!$R$4:$IE$4,Ops!$R$56:$IE$56) -> 0 | EF22: =LOOKUP(EF$4,Ops!$R$4:$IE$4,Ops!$R$56:$IE$56) -> 0 | EG22: =LOOKUP(EG$4,Ops!$R$4:$IE$4,Ops!$R$56:$IE$56) -> 0 | EH22: =LOOKUP(EH$4,Ops!$R$4:$IE$4,Ops!$R$56:$IE$56) -> 0 | EI22: =LOOKUP(EI$4,Ops!$R$4:$IE$4,Ops!$R$56:$IE$56) -> 0 | EJ22: =LOOKUP(EJ$4,Ops!$R$4:$IE$4,Ops!$R$56:$IE$56) -> 0 | EK22: =LOOKUP(EK$4,Ops!$R$4:$IE$4,Ops!$R$56:$IE$56) -> 0 | EL22: =LOOKUP(EL$4,Ops!$R$4:$IE$4,Ops!$R$56:$IE$56) -> 0 | EM22: =LOOKUP(EM$4,Ops!$R$4:$IE$4,Ops!$R$56:$IE$56) -> 0 | EN22: =LOOKUP(EN$4,Ops!$R$4:$IE$4,Ops!$R$56:$IE$56) -> 0 | EO22: =LOOKUP(EO$4,Ops!$R$4:$IE$4,Ops!$R$56:$IE$56) -> 0 | EP22: =LOOKUP(EP$4,Ops!$R$4:$IE$4,Ops!$R$56:$IE$56) -> 0 | EQ22: =LOOKUP(EQ$4,Ops!$R$4:$IE$4,Ops!$R$56:$IE$56) -> 0 | ER22: =LOOKUP(ER$4,Ops!$R$4:$IE$4,Ops!$R$56:$IE$56) -> 0 | ES22: =LOOKUP(ES$4,Ops!$R$4:$IE$4,Ops!$R$56:$IE$56) -> 0 | ET22: =LOOKUP(ET$4,Ops!$R$4:$IE$4,Ops!$R$56:$IE$56) -> 0 | EU22: =LOOKUP(EU$4,Ops!$R$4:$IE$4,Ops!$R$56:$IE$56) -> 0 | EV22: =LOOKUP(EV$4,Ops!$R$4:$IE$4,Ops!$R$56:$IE$56) -> 0 | EW22: =LOOKUP(EW$4,Ops!$R$4:$IE$4,Ops!$R$56:$IE$56) -> 0 | EX22: =LOOKUP(EX$4,Ops!$R$4:$IE$4,Ops!$R$56:$IE$56) -> 0 | EY22: =LOOKUP(EY$4,Ops!$R$4:$IE$4,Ops!$R$56:$IE$56) -> 0 | EZ22: =LOOKUP(EZ$4,Ops!$R$4:$IE$4,Ops!$R$56:$IE$56) -> 0 | FA22: =LOOKUP(FA$4,Ops!$R$4:$IE$4,Ops!$R$56:$IE$56) -> 0 | FB22: =LOOKUP(FB$4,Ops!$R$4:$IE$4,Ops!$R$56:$IE$56) -> 0 | FC22: =LOOKUP(FC$4,Ops!$R$4:$IE$4,Ops!$R$56:$IE$56) -> 0 | FD22: =LOOKUP(FD$4,Ops!$R$4:$IE$4,Ops!$R$56:$IE$56) -> 0 | FE22: =LOOKUP(FE$4,Ops!$R$4:$IE$4,Ops!$R$56:$IE$56) -> 0 | FF22: =LOOKUP(FF$4,Ops!$R$4:$IE$4,Ops!$R$56:$IE$56) -> 0 | FG22: =LOOKUP(FG$4,Ops!$R$4:$IE$4,Ops!$R$56:$IE$56) -> 0 | FH22: =LOOKUP(FH$4,Ops!$R$4:$IE$4,Ops!$R$56:$IE$56) -> 0 | FI22: =LOOKUP(FI$4,Ops!$R$4:$IE$4,Ops!$R$56:$IE$56) -> 0 | FJ22: =LOOKUP(FJ$4,Ops!$R$4:$IE$4,Ops!$R$56:$IE$56) -> 0 | FK22: =LOOKUP(FK$4,Ops!$R$4:$IE$4,Ops!$R$56:$IE$56) -> 0 | FL22: =LOOKUP(FL$4,Ops!$R$4:$IE$4,Ops!$R$56:$IE$56) -> 0 | FM22: =LOOKUP(FM$4,Ops!$R$4:$IE$4,Ops!$R$56:$IE$56) -> 0 | FN22: =LOOKUP(FN$4,Ops!$R$4:$IE$4,Ops!$R$56:$IE$56) -> 0 | FO22: =LOOKUP(FO$4,Ops!$R$4:$IE$4,Ops!$R$56:$IE$56) -> 0 | FP22: =LOOKUP(FP$4,Ops!$R$4:$IE$4,Ops!$R$56:$IE$56) -> 0 | FQ22: =LOOKUP(FQ$4,Ops!$R$4:$IE$4,Ops!$R$56:$IE$56) -> 0 | FR22: =LOOKUP(FR$4,Ops!$R$4:$IE$4,Ops!$R$56:$IE$56) -> 0 | FS22: =LOOKUP(FS$4,Ops!$R$4:$IE$4,Ops!$R$56:$IE$56) -> 0 | FT22: =LOOKUP(FT$4,Ops!$R$4:$IE$4,Ops!$R$56:$IE$56) -> 0 | FU22: =LOOKUP(FU$4,Ops!$R$4:$IE$4,Ops!$R$56:$IE$56) -> 0 | FV22: =LOOKUP(FV$4,Ops!$R$4:$IE$4,Ops!$R$56:$IE$56) -> 0 | FW22: =LOOKUP(FW$4,Ops!$R$4:$IE$4,Ops!$R$56:$IE$56) -> 0 | FX22: =LOOKUP(FX$4,Ops!$R$4:$IE$4,Ops!$R$56:$IE$56) -> 0 | FY22: =LOOKUP(FY$4,Ops!$R$4:$IE$4,Ops!$R$56:$IE$56) -> 0 | FZ22: =LOOKUP(FZ$4,Ops!$R$4:$IE$4,Ops!$R$56:$IE$56) -> 0 | GA22: =LOOKUP(GA$4,Ops!$R$4:$IE$4,Ops!$R$56:$IE$56) -> 0 | GB22: =LOOKUP(GB$4,Ops!$R$4:$IE$4,Ops!$R$56:$IE$56) -> 0 | GC22: =LOOKUP(GC$4,Ops!$R$4:$IE$4,Ops!$R$56:$IE$56) -> 0 | GD22: =LOOKUP(GD$4,Ops!$R$4:$IE$4,Ops!$R$56:$IE$56) -> 0 | GE22: =LOOKUP(GE$4,Ops!$R$4:$IE$4,Ops!$R$56:$IE$56) -> 0 | GF22: =LOOKUP(GF$4,Ops!$R$4:$IE$4,Ops!$R$56:$IE$56) -> 0 | GG22: =LOOKUP(GG$4,Ops!$R$4:$IE$4,Ops!$R$56:$IE$56) -> 0 | GH22: =LOOKUP(GH$4,Ops!$R$4:$IE$4,Ops!$R$56:$IE$56) -> 0 | GI22: =LOOKUP(GI$4,Ops!$R$4:$IE$4,Ops!$R$56:$IE$56) -> 0 | GJ22: =LOOKUP(GJ$4,Ops!$R$4:$IE$4,Ops!$R$56:$IE$56) -> 0 | GK22: =LOOKUP(GK$4,Ops!$R$4:$IE$4,Ops!$R$56:$IE$56) -> 0 | GL22: =LOOKUP(GL$4,Ops!$R$4:$IE$4,Ops!$R$56:$IE$56) -> 0 | GM22: =LOOKUP(GM$4,Ops!$R$4:$IE$4,Ops!$R$56:$IE$56) -> 0 | GN22: =LOOKUP(GN$4,Ops!$R$4:$IE$4,Ops!$R$56:$IE$56) -> 0 | GO22: =LOOKUP(GO$4,Ops!$R$4:$IE$4,Ops!$R$56:$IE$56) -> 0 | GP22: =LOOKUP(GP$4,Ops!$R$4:$IE$4,Ops!$R$56:$IE$56) -> 0 | GQ22: =LOOKUP(GQ$4,Ops!$R$4:$IE$4,Ops!$R$56:$IE$56) -> 0 | GR22: =LOOKUP(GR$4,Ops!$R$4:$IE$4,Ops!$R$56:$IE$56) -> 0 | GS22: =LOOKUP(GS$4,Ops!$R$4:$IE$4,Ops!$R$56:$IE$56) -> 0 | GT22: =LOOKUP(GT$4,Ops!$R$4:$IE$4,Ops!$R$56:$IE$56) -> 0 | GU22: =LOOKUP(GU$4,Ops!$R$4:$IE$4,Ops!$R$56:$IE$56) -> 0 | GV22: =LOOKUP(GV$4,Ops!$R$4:$IE$4,Ops!$R$56:$IE$56) -> 0 | GW22: =LOOKUP(GW$4,Ops!$R$4:$IE$4,Ops!$R$56:$IE$56) -> 0 | GX22: =LOOKUP(GX$4,Ops!$R$4:$IE$4,Ops!$R$56:$IE$56) -> 0 | GY22: =LOOKUP(GY$4,Ops!$R$4:$IE$4,Ops!$R$56:$IE$56) -> 0 | GZ22: =LOOKUP(GZ$4,Ops!$R$4:$IE$4,Ops!$R$56:$IE$56) -> 0 | HA22: =LOOKUP(HA$4,Ops!$R$4:$IE$4,Ops!$R$56:$IE$56) -> 0 | HB22: =LOOKUP(HB$4,Ops!$R$4:$IE$4,Ops!$R$56:$IE$56) -> 0 | HC22: =LOOKUP(HC$4,Ops!$R$4:$IE$4,Ops!$R$56:$IE$56) -> 0 | HD22: =LOOKUP(HD$4,Ops!$R$4:$IE$4,Ops!$R$56:$IE$56) -> 0 | HE22: =LOOKUP(HE$4,Ops!$R$4:$IE$4,Ops!$R$56:$IE$56) -> 0 | HF22: =LOOKUP(HF$4,Ops!$R$4:$IE$4,Ops!$R$56:$IE$56) -> 0 | HG22: =LOOKUP(HG$4,Ops!$R$4:$IE$4,Ops!$R$56:$IE$56) -> 0 | HH22: =LOOKUP(HH$4,Ops!$R$4:$IE$4,Ops!$R$56:$IE$56) -> 0 | HI22: =LOOKUP(HI$4,Ops!$R$4:$IE$4,Ops!$R$56:$IE$56) -> 0 | HJ22: =LOOKUP(HJ$4,Ops!$R$4:$IE$4,Ops!$R$56:$IE$56) -> 0 | HK22: =LOOKUP(HK$4,Ops!$R$4:$IE$4,Ops!$R$56:$IE$56) -> 0 | HL22: =LOOKUP(HL$4,Ops!$R$4:$IE$4,Ops!$R$56:$IE$56) -> 0 | HM22: =LOOKUP(HM$4,Ops!$R$4:$IE$4,Ops!$R$56:$IE$56) -> 0 | HN22: =LOOKUP(HN$4,Ops!$R$4:$IE$4,Ops!$R$56:$IE$56) -> 0 | HO22: =LOOKUP(HO$4,Ops!$R$4:$IE$4,Ops!$R$56:$IE$56) -> 0 | HP22: =LOOKUP(HP$4,Ops!$R$4:$IE$4,Ops!$R$56:$IE$56) -> 0 | HQ22: =LOOKUP(HQ$4,Ops!$R$4:$IE$4,Ops!$R$56:$IE$56) -> 0 | HR22: =LOOKUP(HR$4,Ops!$R$4:$IE$4,Ops!$R$56:$IE$56) -> 0 | HS22: =LOOKUP(HS$4,Ops!$R$4:$IE$4,Ops!$R$56:$IE$56) -> 0 | HT22: =LOOKUP(HT$4,Ops!$R$4:$IE$4,Ops!$R$56:$IE$56) -> 0 | HU22: =LOOKUP(HU$4,Ops!$R$4:$IE$4,Ops!$R$56:$IE$56) -> 0 | HV22: =LOOKUP(HV$4,Ops!$R$4:$IE$4,Ops!$R$56:$IE$56) -> 0 | HW22: =LOOKUP(HW$4,Ops!$R$4:$IE$4,Ops!$R$56:$IE$56) -> 0 | HX22: =LOOKUP(HX$4,Ops!$R$4:$IE$4,Ops!$R$56:$IE$56) -> 0 | HY22: =LOOKUP(HY$4,Ops!$R$4:$IE$4,Ops!$R$56:$IE$56) -> 0 | HZ22: =LOOKUP(HZ$4,Ops!$R$4:$IE$4,Ops!$R$56:$IE$56) -> 0 | IA22: =LOOKUP(IA$4,Ops!$R$4:$IE$4,Ops!$R$56:$IE$56) -> 0 | IB22: =LOOKUP(IB$4,Ops!$R$4:$IE$4,Ops!$R$56:$IE$56) -> 0 | IC22: =LOOKUP(IC$4,Ops!$R$4:$IE$4,Ops!$R$56:$IE$56) -> 0 | ID22: =LOOKUP(ID$4,Ops!$R$4:$IE$4,Ops!$R$56:$IE$56) -> 0 | IE22: =LOOKUP(IE$4,Ops!$R$4:$IE$4,Ops!$R$56:$IE$56) -> 0
B23: Total Energy Generation | J23: KWh | P23: =SUM(R23:IE23) -> 2.091290393e+10 | R23: =R22*1000 -> 456734715.7 | S23: =S22*1000 -> 444657231.5 | T23: 454951240.7 | U23: 441780128.5 | V23: 452339249.7 | W23: 439566107.3 | X23: 450031987.6 | Y23: 437284816.9 | Z23: 447606729.3 | AA23: 434841159.6 | AB23: 447039866.2 | AC23: 433986087 | AD23: 443918791.9 | AE23: 430956149.5 | AF23: 440819507.8 | AG23: 427947366.1 | AH23: 437741861.9 | AI23: 424959588.9 | AJ23: 434685703 | AK23: 421992671.3 | AL23: 431542786 | AM23: 418836616.5 | AN23: 428315306.6 | AO23: 415704165.7 | AP23: 425111965.2 | AQ23: 412595142.3 | AR23: 421932581.5 | AS23: 409509371 | AT23: 418776976.2 | AU23: 406446678 | AV23: 415644971.4 | AW23: 403406890.7 | AX23: 412536390.7 | AY23: 400389837.8 | AZ23: 409451058.8 | BA23: 397395349.2 | BB23: 406388801.9 | BC23: 394423256.1 | BD23: 403349447.5 | BE23: 391473391.2 | BF23: 400332824.1 | BG23: 388545588.1 | BH23: 397338761.9 | BI23: 385639681.8 | BJ23: 394367092.1 | BK23: 382755508.6 | BL23: 391417647.2 | BM23: 379892906 | BN23: 388490261 | BO23: 377051712.5 | BP23: 0 | BQ23: 0 | BR23: 0 | BS23: 0 | BT23: 0 | BU23: 0 | BV23: 0 | BW23: 0 | BX23: 0 | BY23: 0 | BZ23: 0 | CA23: 0 | CB23: 0 | CC23: 0 | CD23: 0 | CE23: =CE22*1000 -> 0 | CF23: 0 | CG23: 0 | CH23: 0 | CI23: 0 | CJ23: 0 | CK23: 0 | CL23: 0 | CM23: 0 | CN23: 0 | CO23: 0 | CP23: 0 | CQ23: 0 | CR23: 0 | CS23: 0 | CT23: 0 | CU23: 0 | CV23: 0 | CW23: 0 | CX23: 0 | CY23: 0 | CZ23: 0 | DA23: 0 | DB23: 0 | DC23: 0 | DD23: 0 | DE23: 0 | DF23: 0 | DG23: 0 | DH23: 0 | DI23: 0 | DJ23: 0 | DK23: 0 | DL23: 0 | DM23: 0 | DN23: 0 | DO23: 0 | DP23: 0 | DQ23: 0 | DR23: 0 | DS23: 0 | DT23: 0 | DU23: 0 | DV23: 0 | DW23: 0 | DX23: 0 | DY23: 0 | DZ23: 0 | EA23: 0 | EB23: 0 | EC23: 0 | ED23: 0 | EE23: 0 | EF23: 0 | EG23: 0 | EH23: 0 | EI23: 0 | EJ23: 0 | EK23: 0 | EL23: 0 | EM23: 0 | EN23: 0 | EO23: 0 | EP23: 0 | EQ23: =EQ22*1000 -> 0 | ER23: 0 | ES23: 0 | ET23: 0 | EU23: 0 | EV23: 0 | EW23: 0 | EX23: 0 | EY23: 0 | EZ23: 0 | FA23: 0 | FB23: 0 | FC23: 0 | FD23: 0 | FE23: 0 | FF23: 0 | FG23: 0 | FH23: 0 | FI23: 0 | FJ23: 0 | FK23: 0 | FL23: 0 | FM23: 0 | FN23: 0 | FO23: 0 | FP23: 0 | FQ23: 0 | FR23: 0 | FS23: 0 | FT23: 0 | FU23: 0 | FV23: 0 | FW23: 0 | FX23: 0 | FY23: 0 | FZ23: 0 | GA23: 0 | GB23: 0 | GC23: 0 | GD23: 0 | GE23: 0 | GF23: 0 | GG23: 0 | GH23: 0 | GI23: 0 | GJ23: 0 | GK23: 0 | GL23: 0 | GM23: 0 | GN23: 0 | GO23: 0 | GP23: 0 | GQ23: 0 | GR23: 0 | GS23: 0 | GT23: 0 | GU23: 0 | GV23: 0 | GW23: 0 | GX23: 0 | GY23: 0 | GZ23: 0 | HA23: 0 | HB23: 0 | HC23: =HC22*1000 -> 0 | HD23: 0 | HE23: 0 | HF23: 0 | HG23: 0 | HH23: 0 | HI23: 0 | HJ23: 0 | HK23: 0 | HL23: 0 | HM23: 0 | HN23: 0 | HO23: 0 | HP23: 0 | HQ23: 0 | HR23: 0 | HS23: 0 | HT23: 0 | HU23: 0 | HV23: 0 | HW23: 0 | HX23: 0 | HY23: 0 | HZ23: 0 | IA23: 0 | IB23: 0 | IC23: 0 | ID23: 0 | IE23: 0
B25: Discounted Value | L25: Total
B26: Total Payments | J26: $m | L26: =SUM(R26:IE26) -> 380538194.7 | P26: =SUM(R26:IE26) -> 380538194.7 | R26: =R$13*R19 -> 17687309.51 | S26: =S$13*S19 -> 16245373.22 | T26: 16374675.56 | U26: 14969403.25 | V26: 15111524.28 | W26: 13835159.35 | X26: 13963606.97 | Y26: 12783599.45 | Z26: 12896948.35 | AA26: 11804159.73 | AB26: 12001889.75 | AC26: 10971886.77 | AD26: 11053948.27 | AE26: 10106694.97 | AF26: 10181830.37 | AG26: 9310623.372 | AH26: 9379413.551 | AI26: 8578095.796 | AJ26: 8639361.146 | AK26: 7902423.202 | AL26: 7956410.518 | AM26: 7275490.381 | AN26: 7324843.003 | AO26: 6699013.324 | AP26: 6744125.816 | AQ26: 6168887.279 | AR26: 6208890.458 | AS26: 5680218.508 | AT26: 5717896.171 | AU26: 5231887.7 | AV26: 5266320.183 | AW26: 4819497.369 | AX26: 4850961.545 | AY26: 4440132.173 | AZ26: 4467996.072 | BA26: 4090304.798 | BB26: 4116565.864 | BC26: 3769242.042 | BD26: 3793232.79 | BE26: 3473807.689 | BF26: 3495722.295 | BG26: 3201929.522 | BH26: 3221307.344 | BI26: 2951119.699 | BJ26: 2969396.365 | BK26: 2720845.634 | BL26: 2737535.523 | BM26: 2508867.988 | BN26: 2524107.192 | BO26: 2313712.553 | BP26: 0 | BQ26: 0 | BR26: 0 | BS26: 0 | BT26: 0 | BU26: 0 | BV26: 0 | BW26: 0 | BX26: 0 | BY26: 0 | BZ26: 0 | CA26: 0 | CB26: 0 | CC26: 0 | CD26: 0 | CE26: =CE$13*CE19 -> 0 | CF26: 0 | CG26: 0 | CH26: 0 | CI26: 0 | CJ26: 0 | CK26: 0 | CL26: 0 | CM26: 0 | CN26: 0 | CO26: 0 | CP26: 0 | CQ26: 0 | CR26: 0 | CS26: 0 | CT26: 0 | CU26: 0 | CV26: 0 | CW26: 0 | CX26: 0 | CY26: 0 | CZ26: 0 | DA26: 0 | DB26: 0 | DC26: 0 | DD26: 0 | DE26: 0 | DF26: 0 | DG26: 0 | DH26: 0 | DI26: 0 | DJ26: 0 | DK26: 0 | DL26: 0 | DM26: 0 | DN26: 0 | DO26: 0 | DP26: 0 | DQ26: 0 | DR26: 0 | DS26: 0 | DT26: 0 | DU26: 0 | DV26: 0 | DW26: 0 | DX26: 0 | DY26: 0 | DZ26: 0 | EA26: 0 | EB26: 0 | EC26: 0 | ED26: 0 | EE26: 0 | EF26: 0 | EG26: 0 | EH26: 0 | EI26: 0 | EJ26: 0 | EK26: 0 | EL26: 0 | EM26: 0 | EN26: 0 | EO26: 0 | EP26: 0 | EQ26: =EQ$13*EQ19 -> 0 | ER26: 0 | ES26: 0 | ET26: 0 | EU26: 0 | EV26: 0 | EW26: 0 | EX26: 0 | EY26: 0 | EZ26: 0 | FA26: 0 | FB26: 0 | FC26: 0 | FD26: 0 | FE26: 0 | FF26: 0 | FG26: 0 | FH26: 0 | FI26: 0 | FJ26: 0 | FK26: 0 | FL26: 0 | FM26: 0 | FN26: 0 | FO26: 0 | FP26: 0 | FQ26: 0 | FR26: 0 | FS26: 0 | FT26: 0 | FU26: 0 | FV26: 0 | FW26: 0 | FX26: 0 | FY26: 0 | FZ26: 0 | GA26: 0 | GB26: 0 | GC26: 0 | GD26: 0 | GE26: 0 | GF26: 0 | GG26: 0 | GH26: 0 | GI26: 0 | GJ26: 0 | GK26: 0 | GL26: 0 | GM26: 0 | GN26: 0 | GO26: 0 | GP26: 0 | GQ26: 0 | GR26: 0 | GS26: 0 | GT26: 0 | GU26: 0 | GV26: 0 | GW26: 0 | GX26: 0 | GY26: 0 | GZ26: 0 | HA26: 0 | HB26: 0 | HC26: =HC$13*HC19 -> 0 | HD26: 0 | HE26: 0 | HF26: 0 | HG26: 0 | HH26: 0 | HI26: 0 | HJ26: 0 | HK26: 0 | HL26: 0 | HM26: 0 | HN26: 0 | HO26: 0 | HP26: 0 | HQ26: 0 | HR26: 0 | HS26: 0 | HT26: 0 | HU26: 0 | HV26: 0 | HW26: 0 | HX26: 0 | HY26: 0 | HZ26: 0 | IA26: 0 | IB26: 0 | IC26: 0 | ID26: 0 | IE26: 0
B27: Energy Generation | J27: KWh | L27: =SUM(R27:IE27) -> 9729685824 | P27: =SUM(R27:IE27) -> 9729685824 | R27: =R$13*R23 -> 440645020.4 | S27: =S$13*S23 -> 413634633.9 | T27: 408220850 | U27: 382211014.3 | V27: 377560139.6 | W27: 353763282.9 | X27: 349427261.3 | Y27: 327374230.6 | Z27: 323296902.2 | AA27: 302832354.6 | AB27: 300300929 | AC27: 281094870.2 | AD27: 277399380.6 | AE27: 259658014.2 | AF27: 256244349.9 | AG27: 239855975.6 | AH27: 236702644.2 | AI27: 221564079.9 | AJ27: 218607908.9 | AK27: 204626612.3 | AL27: 201885863.8 | AM27: 188926719.7 | AN27: 186396254 | AO27: 174431394.9 | AP27: 172095078.1 | AQ27: 161048217.9 | AR27: 158859674.7 | AS27: 148662400.9 | AT27: 146671231.5 | AU27: 137256339.4 | AV27: 135417941.7 | AW27: 126725403.3 | AX27: 125028055.8 | AY27: 117002448.8 | AZ27: 115412459.7 | BA27: 108004082.2 | BB27: 106557486.3 | BC27: 99717513.43 | BD27: 98381906.97 | BE27: 92066728.25 | BF27: 90833595.64 | BG27: 85002946.41 | BH27: 83847810.25 | BI27: 78465581.71 | BJ27: 77414621.51 | BK27: 72445342.25 | BL27: 71475016.54 | BM27: 66887003.18 | BN27: 65991125.31 | BO27: 61755125.38 | BP27: 0 | BQ27: 0 | BR27: 0 | BS27: 0 | BT27: 0 | BU27: 0 | BV27: 0 | BW27: 0 | BX27: 0 | BY27: 0 | BZ27: 0 | CA27: 0 | CB27: 0 | CC27: 0 | CD27: 0 | CE27: =CE$13*CE23 -> 0 | CF27: 0 | CG27: 0 | CH27: 0 | CI27: 0 | CJ27: 0 | CK27: 0 | CL27: 0 | CM27: 0 | CN27: 0 | CO27: 0 | CP27: 0 | CQ27: 0 | CR27: 0 | CS27: 0 | CT27: 0 | CU27: 0 | CV27: 0 | CW27: 0 | CX27: 0 | CY27: 0 | CZ27: 0 | DA27: 0 | DB27: 0 | DC27: 0 | DD27: 0 | DE27: 0 | DF27: 0 | DG27: 0 | DH27: 0 | DI27: 0 | DJ27: 0 | DK27: 0 | DL27: 0 | DM27: 0 | DN27: 0 | DO27: 0 | DP27: 0 | DQ27: 0 | DR27: 0 | DS27: 0 | DT27: 0 | DU27: 0 | DV27: 0 | DW27: 0 | DX27: 0 | DY27: 0 | DZ27: 0 | EA27: 0 | EB27: 0 | EC27: 0 | ED27: 0 | EE27: 0 | EF27: 0 | EG27: 0 | EH27: 0 | EI27: 0 | EJ27: 0 | EK27: 0 | EL27: 0 | EM27: 0 | EN27: 0 | EO27: 0 | EP27: 0 | EQ27: =EQ$13*EQ23 -> 0 | ER27: 0 | ES27: 0 | ET27: 0 | EU27: 0 | EV27: 0 | EW27: 0 | EX27: 0 | EY27: 0 | EZ27: 0 | FA27: 0 | FB27: 0 | FC27: 0 | FD27: 0 | FE27: 0 | FF27: 0 | FG27: 0 | FH27: 0 | FI27: 0 | FJ27: 0 | FK27: 0 | FL27: 0 | FM27: 0 | FN27: 0 | FO27: 0 | FP27: 0 | FQ27: 0 | FR27: 0 | FS27: 0 | FT27: 0 | FU27: 0 | FV27: 0 | FW27: 0 | FX27: 0 | FY27: 0 | FZ27: 0 | GA27: 0 | GB27: 0 | GC27: 0 | GD27: 0 | GE27: 0 | GF27: 0 | GG27: 0 | GH27: 0 | GI27: 0 | GJ27: 0 | GK27: 0 | GL27: 0 | GM27: 0 | GN27: 0 | GO27: 0 | GP27: 0 | GQ27: 0 | GR27: 0 | GS27: 0 | GT27: 0 | GU27: 0 | GV27: 0 | GW27: 0 | GX27: 0 | GY27: 0 | GZ27: 0 | HA27: 0 | HB27: 0 | HC27: =HC$13*HC23 -> 0 | HD27: 0 | HE27: 0 | HF27: 0 | HG27: 0 | HH27: 0 | HI27: 0 | HJ27: 0 | HK27: 0 | HL27: 0 | HM27: 0 | HN27: 0 | HO27: 0 | HP27: 0 | HQ27: 0 | HR27: 0 | HS27: 0 | HT27: 0 | HU27: 0 | HV27: 0 | HW27: 0 | HX27: 0 | HY27: 0 | HZ27: 0 | IA27: 0 | IB27: 0 | IC27: 0 | ID27: 0 | IE27: 0
B29: Levelised Cost of Energy | J29: ¢ / kWh | L29: =L26/L27*100 -> 3.91110465
A31: End Sheet

Sheet InpC
C2: Project IRR | E2: =Val!L28 -> 0.05523416102 | K2: 1 | M2: 1 | N2: =M2+1 -> 2 | O2: 3 | P2: 4 | Q2: 5
C3: Equity IRR | E3: =Val!L44 -> 0.1401058733 | K3: =INDEX(M3:Q7,,K2) -> Base Case | M3: Base Case | N3: Spare | O3: Spare | P3: Spare | Q3: Spare
H4: =K52 -> TRUE
C5: Gearing | E5: =Debt!L5 -> 0.75
C6: Min DSCR | E6: =Debt!L6 -> 1.747643092
C8: LcoE | E8: =LCoE!L29 -> 3.91110465
A10: General
A11: Timing
B13: ="" ->  | C13: General
C15: Financial Model Start Date | H15: date | K15: =IF(INDEX(M15:Q15,0,$K$2)<>"",INDEX(M15:Q15,0,$K$2),M15) -> 2021-03-01 | M15: 2021-03-01 | N15: 2021-03-01 | O15: 2021-03-01 | P15: 2021-03-01 | Q15: 2021-03-01
C16: Monthly Period Length Input | H16: months | K16: =IF(INDEX(M16:Q16,0,$K$2)<>"",INDEX(M16:Q16,0,$K$2),M16) -> 1 | M16: 1 | N16: 1 | O16: 1 | P16: 1 | Q16: 1
C17: Quarterly Period Length Input | H17: months | K17: =IF(INDEX(M17:Q17,0,$K$2)<>"",INDEX(M17:Q17,0,$K$2),M17) -> 3 | M17: 3 | N17: 3 | O17: 3 | P17: 3 | Q17: 3
C18: Annual Period Length Input | H18: months | K18: 12 | M18: 12 | N18: 12 | O18: 12 | P18: 12 | Q18: 12
C19: Number of period per year | H19: # | K19: 4 | M19: 4 | N19: 4 | O19: 4 | P19: 4 | Q19: 4
C20: Days per year for interest calculation | H20: days | K20: 360 | M20: 360 | N20: 360 | O20: 360 | P20: 360 | Q20: 360
C21: Days per year | H21: days | K21: 365 | M21: 365 | N21: 365 | O21: 365 | P21: 365 | Q21: 365
C22: Days per month (for checks) | H22: days | K22: 30.44 | M22: 30.44 | N22: 30.44 | O22: 30.44 | P22: 30.44 | Q22: 30.44
C23: Months in a semester | H23: months | K23: 6 | M23: 6 | N23: 6 | O23: 6 | P23: 6 | Q23: 6
C24: Months in year | H24: months | K24: 12 | M24: 12 | N24: 12 | O24: 12 | P24: 12 | Q24: 12
C25: Thousand | H25: unit | K25: 1000 | M25: 1000 | N25: 1000 | O25: 1000 | P25: 1000 | Q25: 1000
B27: ="" ->  | C27: Development
C29: Construction start date | H29: date | K29: =IF(INDEX(M29:Q29,0,$K$2)<>"",INDEX(M29:Q29,0,$K$2),M29) -> 2021-03-01 | M29: =M15 -> 2021-03-01 | N29: =N15 -> 2021-03-01 | O29: 2021-03-01 | P29: 2021-03-01 | Q29: 2021-03-01
C30: Construction period | H30: months | K30: =IF(INDEX(M30:Q30,0,$K$2)<>"",INDEX(M30:Q30,0,$K$2),M30) -> 22 | M30: 22 | N30: 22 | O30: 22 | P30: 22 | Q30: 22
C31: Scheduled construction end date | H31: date | K31: =IF(INDEX(M31:Q31,0,$K$2)<>"",INDEX(M31:Q31,0,$K$2),M31) -> 2023-01-01 | M31: =EDATE(M29,M30) -> 2023-01-01 | N31: =EDATE(N29,N30) -> 2023-01-01 | O31: 2023-01-01 | P31: 2023-01-01 | Q31: 2023-01-01
C32: Construction delay | H32: months | K32: =IF(INDEX(M32:Q32,0,$K$2)<>"",INDEX(M32:Q32,0,$K$2),M32) -> 0 | M32: 0 | N32: 0 | O32: 0 | P32: 0 | Q32: 0
C33: Actual Construction end date | H33: date | K33: =IF(INDEX(M33:Q33,0,$K$2)<>"",INDEX(M33:Q33,0,$K$2),M33) -> 2022-12-31 | M33: =EDATE(M31,M32)-1 -> 2022-12-31 | N33: =EDATE(N31,N32)-1 -> 2022-12-31 | O33: 2022-12-31 | P33: 2022-12-31 | Q33: 2022-12-31
B35: ="" ->  | C35: Operations
C37: SPCOD | H37: date | K37: =IF(INDEX(M37:Q37,0,$K$2)<>"",INDEX(M37:Q37,0,$K$2),M37) -> 2023-01-01 | M37: =M33+1 -> 2023-01-01 | N37: =N33+1 -> 2023-01-01 | O37: 2023-01-01 | P37: 2023-01-01 | Q37: 2023-01-01
C38: Delay In Operational Start Date | H38: months | K38: 0 | M38: 0 | N38: 0 | O38: 0 | P38: 0 | Q38: 0
C39: COD | H39: date | K39: 2023-01-01 | M39: =EDATE(M37,M38) -> 2023-01-01 | N39: =EDATE(N37,N38) -> 2023-01-01 | O39: 2023-01-01 | P39: 2023-01-01 | Q39: 2023-01-01
C40: PPA Tenor | H40: years | K40: 25 | M40: 25 | N40: 25 | O40: 25 | P40: 25 | Q40: 25
C41: Decommissioning | H41: date | K41: 2047-12-31 | M41: =EDATE(M39,M40*12)-1 -> 2047-12-31 | N41: =EDATE(N39,N40*12)-1 -> 2047-12-31 | O41: 2047-12-31 | P41: 2047-12-31 | Q41: 2047-12-31
C42: Interest Periodicity | H42: months | K42: 6 | M42: 6 | N42: 6 | O42: 6 | P42: 6 | Q42: 6
A44: Audit
C46: Model Balanced | H46: check | K46: =BS!L52 -> TRUE
C47: Sources = Uses | H47: check | K47: =Fund!L36 -> TRUE
C48: Fully Depreciated | H48: check | K48: ='T&D'!L57 -> TRUE
C49: S Curve Fully Allocated | H49: check | K49: =InpT!L64 -> TRUE
C50: Tariff Optimised | H50: check | K50: =Tariff!L32 -> TRUE
C51: Macro | H51: check | K51: =IDC_Fees_Test -> TRUE
K52: =AND(K46:K51) -> TRUE
A54: CAPEX
A55: CAPEX - EPC
B57: ="" ->  | C57: PV Plant
C59: Solar PV Module | H59: $m | K59: =IF(INDEX(M59:Q59,0,$K$2)<>"",INDEX(M59:Q59,0,$K$2),M59) -> 117.9167625 | M59: 117.9167625 | N59: 117.9167625 | O59: 117.9167625 | P59: 117.9167625 | Q59: 117.9167625
C60: Trackers | H60: $m | K60: 40.04564062 | M60: 40.04564062 | N60: 40.04564062 | O60: 40.04564062 | P60: 40.04564062 | Q60: 40.04564062
C61: Inverters | H61: $m | K61: 9.65925 | M61: 9.65925 | N61: 9.65925 | O61: 9.65925 | P61: 9.65925 | Q61: 9.65925
C62: Transformers | H62: $m | K62: 1.609875 | M62: 1.609875 | N62: 1.609875 | O62: 1.609875 | P62: 1.609875 | Q62: 1.609875
C63: Access Road | H63: $m | K63: 2.81728125 | M63: 2.81728125 | N63: 2.81728125 | O63: 2.81728125 | P63: 2.81728125 | Q63: 2.81728125
C64: Civil Works | H64: $m | K64: 85.19023125 | M64: 85.19023125 | N64: 85.19023125 | O64: 85.19023125 | P64: 85.19023125 | Q64: 85.19023125
C65: [Spare] | H65: $m | K65: 0 | M65: 0 | N65: 0 | O65: 0 | P65: 0 | Q65: 0
C66: [Spare] | H66: $m | K66: 0 | M66: 0 | N66: 0 | O66: 0 | P66: 0 | Q66: 0
C67: [Spare] | H67: $m | K67: 0 | M67: 0 | N67: 0 | O67: 0 | P67: 0 | Q67: 0
C68: [Spare] | H68: $m | K68: 0 | M68: 0 | N68: 0 | O68: 0 | P68: 0 | Q68: 0
H69: $m | K69: 257.2390406 | M69: =SUM(M59:M68) -> 257.2390406 | N69: =SUM(N59:N68) -> 257.2390406 | O69: =SUM(O59:O68) -> 257.2390406 | P69: =SUM(P59:P68) -> 257.2390406 | Q69: =SUM(Q59:Q68) -> 257.2390406
B71: ="" ->  | C71: Electrical Special Facilities
C73: Engineeering And Design Price Component | H73: $m | K73: =IF(INDEX(M73:Q73,0,$K$2)<>"",INDEX(M73:Q73,0,$K$2),M73) -> 0.12565341 | M73: 0.12565341 | N73: 0.12565341 | O73: 0.12565341 | P73: 0.12565341 | Q73: 0.12565341
C74: Materials and Equipment | H74: $m | K74: 7.26389289 | M74: 7.26389289 | N74: 7.26389289 | O74: 7.26389289 | P74: 7.26389289 | Q74: 7.26389289
C75: Construction & Installation | H75: $m | K75: 2.53185615 | M75: 2.53185615 | N75: 2.53185615 | O75: 2.53185615 | P75: 2.53185615 | Q75: 2.53185615
C76: Testing & Commissioning | H76: $m | K76: 0.5865534 | M76: 0.5865534 | N76: 0.5865534 | O76: 0.5865534 | P76: 0.5865534 | Q76: 0.5865534
C77: Operational Spare Parts | H77: $m | K77: 1.02013236 | M77: 1.02013236 | N77: 1.02013236 | O77: 1.02013236 | P77: 1.02013236 | Q77: 1.02013236
C78: Special Tools and Test / Maintenance Equipment | H78: $m | K78: 0.11566179 | M78: 0.11566179 | N78: 0.11566179 | O78: 0.11566179 | P78: 0.11566179 | Q78: 0.11566179
C79: [Spare] | H79: $m | K79: 0 | M79: 0 | N79: 0 | O79: 0 | P79: 0 | Q79: 0
C80: [Spare] | H80: $m | K80: 0 | M80: 0 | N80: 0 | O80: 0 | P80: 0 | Q80: 0
C81: [Spare] | H81: $m | K81: 0 | M81: 0 | N81: 0 | O81: 0 | P81: 0 | Q81: 0
C82: [Spare] | H82: $m | K82: 0 | M82: 0 | N82: 0 | O82: 0 | P82: 0 | Q82: 0
H83: $m | K83: 11.64375 | M83: =SUM(M73:M82) -> 11.64375 | N83: =SUM(N73:N82) -> 11.64375 | O83: =SUM(O73:O82) -> 11.64375 | P83: =SUM(P73:P82) -> 11.64375 | Q83: =SUM(Q73:Q82) -> 11.64375
B85: ="" ->  | C85: Project Development Costs
C87: Project Development Cost | H87: $m | K87: =IF(INDEX(M87:Q87,0,$K$2)<>"",INDEX(M87:Q87,0,$K$2),M87) -> 1.853533125 | M87: 1.853533125 | N87: 1.853533125 | O87: 1.853533125 | P87: 1.853533125 | Q87: 1.853533125
C88: Development Fee | H88: $m | K88: 5.0625 | M88: 5.0625 | N88: 5.0625 | O88: 5.0625 | P88: 5.0625 | Q88: 5.0625
C89: Success Fee | H89: $m | K89: 5.0625 | M89: 5.0625 | N89: 5.0625 | O89: 5.0625 | P89: 5.0625 | Q89: 5.0625
C90: Bid Bond Costs | H90: $m | K90: 0.016875 | M90: 0.016875 | N90: 0.016875 | O90: 0.016875 | P90: 0.016875 | Q90: 0.016875
C91: Others | H91: $m | K91: 2.273724372 | M91: 2.273724372 | N91: 2.273724372 | O91: 2.273724372 | P91: 2.273724372 | Q91: 2.273724372
C92: Additional Financing Costs | H92: $m | K92: 0.03142950126 | M92: 0.03142950126 | N92: 0.03142950126 | O92: 0.03142950126 | P92: 0.03142950126 | Q92: 0.03142950126
C93: [Spare] | H93: $m | K93: 0 | M93: 0 | N93: 0 | O93: 0 | P93: 0 | Q93: 0
C94: [Spare] | H94: $m | K94: 0 | M94: 0 | N94: 0 | O94: 0 | P94: 0 | Q94: 0
C95: [Spare] | H95: $m | K95: 0 | M95: 0 | N95: 0 | O95: 0 | P95: 0 | Q95: 0
C96: [Spare] | H96: $m | K96: 0 | M96: 0 | N96: 0 | O96: 0 | P96: 0 | Q96: 0
H97: $m | K97: 14.300562 | M97: =SUM(M87:M96) -> 14.300562 | N97: =SUM(N87:N96) -> 14.300562 | O97: =SUM(O87:O96) -> 14.300562 | P97: =SUM(P87:P96) -> 14.300562 | Q97: =SUM(Q87:Q96) -> 14.300562
B99: ="" ->  | C99: Contingency | H99: $m | K99: 0.1 | M99: 0.1 | N99: 0.1 | O99: 0.1 | P99: 0.1 | Q99: 0.1
A102: Operations
A103: Revenues
B105: ="" ->  | C105: Tariff
C107: Target Levered IRR | H107: % | K107: =IF(INDEX(M107:Q107,0,$K$2)<>"",INDEX(M107:Q107,0,$K$2),M107) -> 0.14 | M107: 0.14 | N107: 0.12 | O107: 0.12 | P107: 0.12 | Q107: 0.12
C108: LCoE Discount Rate | H108: % | K108: =IF(INDEX(M108:Q108,0,$K$2)<>"",INDEX(M108:Q108,0,$K$2),M108) -> 0.075 | M108: 0.075 | N108: 0.075 | O108: 0.075 | P108: 0.075 | Q108: 0.075
A110: OPEX
B112: ="" ->  | C112: Fixed OPEX
C114: Labour | H114: $m p.a. | K114: =IF(INDEX(M114:Q114,0,$K$2)<>"",INDEX(M114:Q114,0,$K$2),M114) -> 0.43 | M114: 0.43 | N114: 0.43 | O114: 0.43 | P114: 0.43 | Q114: 0.43
C115: Routine Maintenance | H115: $m p.a. | K115: 0.31 | M115: 0.31 | N115: 0.31 | O115: 0.31 | P115: 0.31 | Q115: 0.31
C116: Rent | H116: $m p.a. | K116: 0.13 | M116: 0.13 | N116: 0.13 | O116: 0.13 | P116: 0.13 | Q116: 0.13
C117: Other Expenses | H117: $m p.a. | K117: 0.19 | M117: 0.19 | N117: 0.19 | O117: 0.19 | P117: 0.19 | Q117: 0.19
C118: Legal | H118: $m p.a. | K118: 0.13 | M118: 0.13 | N118: 0.13 | O118: 0.13 | P118: 0.13 | Q118: 0.13
C119: Insurance | H119: $m p.a. | K119: 0.13 | M119: 0.13 | N119: 0.13 | O119: 0.13 | P119: 0.13 | Q119: 0.13
C120: Bank Agency Fees | H120: $m p.a. | K120: 0.13 | M120: 0.13 | N120: 0.13 | O120: 0.13 | P120: 0.13 | Q120: 0.13
C121: SPV Fee | H121: $m p.a. | K121: 0.21 | M121: 0.21 | N121: 0.21 | O121: 0.21 | P121: 0.21 | Q121: 0.21
C122: Consultant Fees | H122: $m p.a. | K122: 0.08 | M122: 0.08 | N122: 0.08 | O122: 0.08 | P122: 0.08 | Q122: 0.08
C123: Tax, Audit & Accounting | H123: $m p.a. | K123: 0.15 | M123: 0.15 | N123: 0.15 | O123: 0.15 | P123: 0.15 | Q123: 0.15
H124: $m p.a. | K124: 1.89 | M124: =SUM(M114:M123) -> 1.89 | N124: =SUM(N114:N123) -> 1.89 | O124: =SUM(O114:O123) -> 1.89 | P124: =SUM(P114:P123) -> 1.89 | Q124: =SUM(Q114:Q123) -> 1.89
B126: ="" ->  | C126: Variable OPEX
C128: Variable Costs | H128: $/MWh | K128: =IF(INDEX(M128:Q128,0,$K$2)<>"",INDEX(M128:Q128,0,$K$2),M128) -> 3.85 | M128: 3.85 | N128: 0.43 | O128: 0.43 | P128: 0.43 | Q128: 0.43
C129: [spare] | H129: $/MWh | K129: 0 | M129: 0 | N129: 0 | O129: 0 | P129: 0 | Q129: 0
C130: [spare] | H130: $/MWh | K130: =IF(INDEX(M130:Q130,0,$K$2)<>"",INDEX(M130:Q130,0,$K$2),M130) -> 0 | M130: 0 | N130: 0 | O130: 0 | P130: 0 | Q130: 0
C131: [spare] | H131: $/MWh | K131: 0 | M131: 0 | N131: 0 | O131: 0 | P131: 0 | Q131: 0
C132: [spare] | H132: $/MWh | K132: 0 | M132: 0 | N132: 0 | O132: 0 | P132: 0 | Q132: 0
H133: $/MWh | K133: =IF(INDEX(M133:Q133,0,$K$2)<>"",INDEX(M133:Q133,0,$K$2),M133) -> 3.85 | M133: =SUM(M128:M132) -> 3.85 | N133: =SUM(N128:N132) -> 0.43 | O133: 0.43 | P133: 0.43 | Q133: 0.43
A135: Working Capital
C137: Receivable | H137: days | K137: =IF(INDEX(M137:Q137,0,$K$2)<>"",INDEX(M137:Q137,0,$K$2),M137) -> 20 | M137: 20 | N137: 20 | O137: 20 | P137: 20 | Q137: 20
C138: Payable | H138: days | K138: 20 | M138: 20 | N138: 20 | O138: 20 | P138: 20 | Q138: 20
A140: Financing
A141: Capital Structure
C143: Total Funding Requirement | H143: $m | K143: =Fund!P24 -> 324.5810287
B145: ="" ->  | C145: Debt Sizing
C147: Max Gearing | H147: % | K147: =IF(INDEX(M147:Q147,0,$K$2)<>"",INDEX(M147:Q147,0,$K$2),M147) -> 0.75 | M147: 0.75 | N147: 0.6 | O147: 0.6 | P147: 0.6 | Q147: 0.6
C148: Min DSCR | H148: x | K148: =IF(INDEX(M148:Q148,0,$K$2)<>"",INDEX(M148:Q148,0,$K$2),M148) -> 1.3 | M148: 1.3 | N148: 1.25 | O148: 1.25 | P148: 1.25 | Q148: 1.25
C150: Senior Debt Commitment | H150: $m | K150: =Debt!L62 -> 243.4357715
B152: ="" ->  | C152: Equity
C154: Commitment
C155: Mandated Minimum Equity | H155: $m | K155: =IF(INDEX(M155:Q155,0,$K$2)<>"",INDEX(M155:Q155,0,$K$2),M155) -> 2 | M155: 2 | N155: 2 | O155: 2 | P155: 2 | Q155: 2
C156: =IF(K183,C181,"Equity Contribution") -> Equity Bridge Loan | H156: $m | K156: =K143-K150-K155 -> 79.14525718
H157: $m | K157: =SUM(K155:K156) -> 81.14525718
A159: Equity
B161: ="" ->  | C161: Equity Contribution
C163: Shortfall Cover | H163: % | K163: =IF(INDEX(M163:Q163,0,$K$2)<>"",INDEX(M163:Q163,0,$K$2),M163) -> 0.5 | M163: 0.5 | N163: 0.5 | O163: 0.5 | P163: 0.5 | Q163: 0.5
C165: Hurdle Rate | H165: % | K165: =IF(INDEX(M165:Q165,0,$K$2)<>"",INDEX(M165:Q165,0,$K$2),M165) -> 0.07 | M165: 0.07 | N165: 0.07 | O165: 0.07 | P165: 0.07 | Q165: 0.07
C167: Equity Split
C168: Share Capital | H168: % | K168: =IF(INDEX(M168:Q168,0,$K$2)<>"",INDEX(M168:Q168,0,$K$2),M168) -> 0.5 | M168: 0.5 | N168: 0.5 | O168: 0.5 | P168: 0.5 | Q168: 0.5
C169: Shareholder Loan | H169: % | K169: 0.5 | M169: =1-M168 -> 0.5 | N169: =1-N168 -> 0.5 | O169: 0.5 | P169: 0.5 | Q169: 0.5
M170: =SUM(M168:M169) -> 1 | N170: 1 | O170: 1 | P170: 1 | Q170: 1
C171: Shareholder Structure
C172: Govt of Senegal | H172: % | K172: =IF(INDEX(M172:Q172,0,$K$2)<>"",INDEX(M172:Q172,0,$K$2),M172) -> 0.1 | M172: 0.1 | N172: 0.1 | O172: 0.1 | P172: 0.1 | Q172: 0.1
C173: Meridiam Infrastructure Partners | H173: % | K173: =IF(INDEX(M173:Q173,0,$K$2)<>"",INDEX(M173:Q173,0,$K$2),M173) -> 0.6 | M173: 0.6 | N173: 0.6 | O173: 0.6 | P173: 0.6 | Q173: 0.6
C174: [spare] | H174: % | K174: =IF(INDEX(M174:Q174,0,$K$2)<>"",INDEX(M174:Q174,0,$K$2),M174) -> 0.3 | M174: =1-SUM(M172:M173) -> 0.3 | N174: =1-SUM(N172:N173) -> 0.3 | O174: 0.3 | P174: 0.3 | Q174: 0.3
M175: =SUM(M172:M174) -> 1 | N175: =SUM(N172:N174) -> 1 | O175: 1 | P175: 1 | Q175: 1
C177: Shareholder Loan Interest | H177: % p.a. | K177: =IF(INDEX(M177:Q177,0,$K$2)<>"",INDEX(M177:Q177,0,$K$2),M177) -> 0.06 | M177: 0.06 | N177: 0.06 | O177: 0.06 | P177: 0.06 | Q177: 0.06
C178: Lock Up Interest | H178: % p.a. | K178: =IF(INDEX(M178:Q178,0,$K$2)<>"",INDEX(M178:Q178,0,$K$2),M178) -> 0.03 | M178: 0.03 | N178: 0.03 | O178: 0.03 | P178: 0.03 | Q178: 0.03
C179: Cash Account Interest | H179: % p.a. | K179: =IF(INDEX(M179:Q179,0,$K$2)<>"",INDEX(M179:Q179,0,$K$2),M179) -> 0.03 | M179: 0.03 | N179: 0.03 | O179: 0.03 | P179: 0.03 | Q179: 0.03
B181: ="" ->  | C181: Equity Bridge Loan
C183: Active? | H183: switch | K183: =IF(INDEX(M183:Q183,0,$K$2)<>"",INDEX(M183:Q183,0,$K$2),M183) -> TRUE | M183: TRUE | N183: FALSE | O183: FALSE | P183: FALSE | Q183: FALSE
C184: Refinancing | H184: date | K184: =IF(INDEX(M184:Q184,0,$K$2)<>"",INDEX(M184:Q184,0,$K$2),M184) -> 2022-12-01 | M184: =EDATE(M37,-1) -> 2022-12-01 | N184: =EDATE(N37,-1) -> 2022-12-01 | O184: =EDATE(O37,-1) -> 2022-12-01 | P184: =EDATE(P37,-1) -> 2022-12-01 | Q184: =EDATE(Q37,-1) -> 2022-12-01
C185: Interest | H185: % | K185: =IF(INDEX(M185:Q185,0,$K$2)<>"",INDEX(M185:Q185,0,$K$2),M185) -> 0.03 | M185: 0.03 | N185: 0 | O185: 0 | P185: 0 | Q185: 0
A187: Term Loan
B189: ="" ->  | C189: Timing
C191: 1st Repayment | H191: date | K191: =IF(INDEX(M191:Q191,0,$K$2)<>"",INDEX(M191:Q191,0,$K$2),M191) -> 2023-01-01 | M191: =($M$39) -> 2023-01-01 | N191: =EOMONTH($M$39,0) -> 2023-01-31 | O191: 2023-01-31 | P191: 2023-01-31 | Q191: 2023-01-31
C192: Tenor | H192: years | K192: =IF(INDEX(M192:Q192,0,$K$2)<>"",INDEX(M192:Q192,0,$K$2),M192) -> 22 | M192: 22 | N192: 22 | O192: 22 | P192: 22 | Q192: 22
C193: Maturity | H193: date | K193: =IF(INDEX(M193:Q193,0,$K$2)<>"",INDEX(M193:Q193,0,$K$2),M193) -> 2045-01-01 | M193: =EDATE(M191,M192*12) -> 2045-01-01 | N193: =EDATE(N191,N192*12) -> 2045-01-31 | O193: 2045-01-31 | P193: 2045-01-31 | Q193: 2045-01-31
C195: Debt Free Tail | H195: years | K195: =IF(INDEX(M195:Q195,0,$K$2)<>"",INDEX(M195:Q195,0,$K$2),M195) -> 2.997260274 | M195: =(M41-M193)/365 -> 2.997260274 | N195: =(N41-N193)/365 -> 2.915068493 | O195: =(O41-O193)/365 -> 2.915068493 | P195: =(P41-P193)/365 -> 2.915068493 | Q195: =(Q41-Q193)/365 -> 2.915068493
B197: ="" ->  | C197: Fees
C199: Commitment Fee | H199: % of margin | K199: =IF(INDEX(M199:Q199,0,$K$2)<>"",INDEX(M199:Q199,0,$K$2),M199) -> 0.5 | M199: 0.5 | N199: 0.005 | O199: 0.005 | P199: 0.005 | Q199: 0.005
C200: Upfront Fee | H200: % of commitment | K200: =IF(INDEX(M200:Q200,0,$K$2)<>"",INDEX(M200:Q200,0,$K$2),M200) -> 0.02 | M200: 0.02 | N200: 0.02 | O200: 0.02 | P200: 0.02 | Q200: 0.02
B202: ="" ->  | C202: Cash Sweep
C204: Year Start | H204: year | K204: =IF(INDEX(M204:Q204,0,$K$2)<>"",INDEX(M204:Q204,0,$K$2),M204) -> 3 | M204: 3 | N204: 3 | O204: 3 | P204: 3 | Q204: 3
C205: Start | H205: date | K205: =IF(INDEX(M205:Q205,0,$K$2)<>"",INDEX(M205:Q205,0,$K$2),M205) -> 2026-01-01 | M205: =EDATE($K$39,M204*12) -> 2026-01-01 | N205: =EDATE($K$39,N204*12) -> 2026-01-01 | O205: 2026-01-01 | P205: 2026-01-01 | Q205: 2026-01-01
C206: Duration | H206: years | K206: =IF(INDEX(M206:Q206,0,$K$2)<>"",INDEX(M206:Q206,0,$K$2),M206) -> 5 | M206: 5 | N206: 5 | O206: 5 | P206: 5 | Q206: 5
C207: End | H207: date | K207: =IF(INDEX(M207:Q207,0,$K$2)<>"",INDEX(M207:Q207,0,$K$2),M207) -> 2031-01-01 | M207: =EDATE(M205,M206*12) -> 2031-01-01 | N207: =EDATE(N205,N206*12) -> 2031-01-01 | O207: 2031-01-01 | P207: 2031-01-01 | Q207: 2031-01-01
C208: Swept Amount | H208: % | K208: =IF(INDEX(M208:Q208,0,$K$2)<>"",INDEX(M208:Q208,0,$K$2),M208) -> 1 | M208: 1 | N208: 1 | O208: 1 | P208: 1 | Q208: 1
B210: ="" ->  | C210: Margins
C213: Yr | D213: Date
C214: 1 | D214: =M29 -> 2021-03-01 | H214: % | K214: =IF(INDEX(M214:Q214,0,$K$2)<>"",INDEX(M214:Q214,0,$K$2),M214) -> 0.013 | M214: 0.013 | N214: 0.023 | O214: 0.023 | P214: 0.023 | Q214: 0.023
C215: 5 | D215: =EDATE($D$214,C215*12) -> 2026-03-01 | H215: % | K215: 0.014 | M215: 0.014 | N215: 0.024 | O215: 0.024 | P215: 0.024 | Q215: 0.024
C216: =C215+5 -> 10 | D216: 2031-03-01 | H216: % | K216: 0.015 | M216: 0.015 | N216: 0.025 | O216: 0.025 | P216: 0.025 | Q216: 0.025
C217: 15 | D217: 2036-03-01 | H217: % | K217: 0.016 | M217: 0.016 | N217: 0.026 | O217: 0.026 | P217: 0.026 | Q217: 0.026
C218: 20 | D218: 2041-03-01 | H218: % | K218: 0.017 | M218: 0.017 | N218: 0.027 | O218: 0.027 | P218: 0.027 | Q218: 0.027
C219: 25 | D219: 2046-03-01 | H219: % | K219: 0.018 | M219: 0.018 | N219: 0.028 | O219: 0.028 | P219: 0.028 | Q219: 0.028
C220: 30 | D220: 2051-03-01 | H220: % | K220: 0.019 | M220: 0.019 | N220: 0.029 | O220: 0.029 | P220: 0.029 | Q220: 0.029
C221: 35 | D221: 2056-03-01 | H221: % | K221: 0.02 | M221: 0.02 | N221: 0.03 | O221: 0.03 | P221: 0.03 | Q221: 0.03
C222: 40 | D222: 2061-03-01 | H222: % | K222: 0.021 | M222: 0.021 | N222: 0.031 | O222: 0.031 | P222: 0.031 | Q222: 0.031
C223: 45 | D223: 2066-03-01 | H223: % | K223: 0.022 | M223: 0.022 | N223: 0.032 | O223: 0.032 | P223: 0.032 | Q223: 0.032
C224: 50 | D224: 2071-03-01 | H224: % | K224: 0.023 | M224: 0.023 | N224: 0.033 | O224: 0.033 | P224: 0.033 | Q224: 0.033
C225: 55 | D225: 2076-03-01 | H225: % | K225: 0.024 | M225: 0.024 | N225: 0.034 | O225: 0.034 | P225: 0.034 | Q225: 0.034
A227: Revolving Facilities
B229: ="" ->  | C229: Debt Service Reserve Account
C231: Max Facility Amount | H231: $m | K231: =IF(INDEX(M231:Q231,0,$K$2)<>"",INDEX(M231:Q231,0,$K$2),M231) -> 25 | M231: 25 | N231: 25 | O231: 25 | P231: 25 | Q231: 25
C232: Availability Start | H232: date | K232: 2023-01-01 | M232: =M191 -> 2023-01-01 | N232: =N191 -> 2023-01-31 | O232: =O191 -> 2023-01-31 | P232: =P191 -> 2023-01-31 | Q232: =Q191 -> 2023-01-31
C233: Maturity | H233: date | K233: 1900-01-01 | M233: 1900-01-01 | N233: =N193 -> 2045-01-31 | O233: =O193 -> 2045-01-31 | P233: =P193 -> 2045-01-31 | Q233: =Q193 -> 2045-01-31
C234: Base Rate | H234: % | K234: LIBOR - 6 month | M234: LIBOR - 6 month | N234: LIBOR - 6 month | O234: LIBOR - 6 month | P234: LIBOR - 6 month | Q234: LIBOR - 6 month
C235: Margin | H235: % | K235: 0.02 | M235: 0.02 | N235: 0.02 | O235: 0.02 | P235: 0.02 | Q235: 0.02
C236: Commitment Fee | H236: % of margin | K236: 0.2 | M236: 0.2 | N236: 0.2 | O236: 0.2 | P236: 0.2 | Q236: 0.2
B238: ="" ->  | C238: Working Capital Facility
C240: Max Facility Amount | H240: $m | K240: =IF(INDEX(M240:Q240,0,$K$2)<>"",INDEX(M240:Q240,0,$K$2),M240) -> 100 | M240: 100 | N240: 100 | O240: 100 | P240: 100 | Q240: 100
C241: Availability Start | H241: date | K241: =IF(INDEX(M241:Q241,0,$K$2)<>"",INDEX(M241:Q241,0,$K$2),M241) -> 2023-01-01 | M241: =M39 -> 2023-01-01 | N241: =N39 -> 2023-01-01 | O241: =O39 -> 2023-01-01 | P241: =P39 -> 2023-01-01 | Q241: =Q39 -> 2023-01-01
C242: Maturity | H242: date | K242: =IF(INDEX(M242:Q242,0,$K$2)<>"",INDEX(M242:Q242,0,$K$2),M242) -> 2047-12-31 | M242: =M41 -> 2047-12-31 | N242: =N41 -> 2047-12-31 | O242: =O41 -> 2047-12-31 | P242: =P41 -> 2047-12-31 | Q242: =Q41 -> 2047-12-31
C243: Base Rate | H243: % | K243: =IF(INDEX(M243:Q243,0,$K$2)<>"",INDEX(M243:Q243,0,$K$2),M243) -> LIBOR - 6 month | M243: LIBOR - 6 month | N243: LIBOR - 6 month | O243: LIBOR - 6 month | P243: LIBOR - 6 month | Q243: LIBOR - 6 month
C244: Margin | H244: % | K244: =IF(INDEX(M244:Q244,0,$K$2)<>"",INDEX(M244:Q244,0,$K$2),M244) -> 0.02 | M244: 0.02 | N244: 0.02 | O244: 0.02 | P244: 0.02 | Q244: 0.02
C245: Commitment Fee | H245: % of margin | K245: =IF(INDEX(M245:Q245,0,$K$2)<>"",INDEX(M245:Q245,0,$K$2),M245) -> 0.2 | M245: 0.2 | N245: 0.2 | O245: 0.2 | P245: 0.2 | Q245: 0.2
A247: Covenants
B249: ="" ->  | C249: Ratios
C251: DSCR | H251: x | K251: =IF(INDEX(M251:Q251,0,$K$2)<>"",INDEX(M251:Q251,0,$K$2),M251) -> 1.2 | M251: 1.2 | N251: 1.2 | O251: 1.2 | P251: 1.2 | Q251: 1.2
C252: LLCR | H252: x | K252: =IF(INDEX(M252:Q252,0,$K$2)<>"",INDEX(M252:Q252,0,$K$2),M252) -> 1.2 | M252: 1.2 | N252: 1.2 | O252: 1.2 | P252: 1.2 | Q252: 1.2
C253: PLCR | H253: x | K253: =IF(INDEX(M253:Q253,0,$K$2)<>"",INDEX(M253:Q253,0,$K$2),M253) -> 1.2 | M253: 1.2 | N253: 1.2 | O253: 1.2 | P253: 1.2 | Q253: 1.2
B255: ="" ->  | C255: Maintenance Reserve Account
C257: Active | H257: switch | K257: =IF(INDEX(M257:Q257,0,$K$2)<>"",INDEX(M257:Q257,0,$K$2),M257) -> TRUE | M257: TRUE | N257: FALSE | O257: FALSE | P257: FALSE | Q257: FALSE
C258: Look Ahead | H258: months | K258: =IF(INDEX(M258:Q258,0,$K$2)<>"",INDEX(M258:Q258,0,$K$2),M258) -> 6 | M258: 6 | N258: 6 | O258: 6 | P258: 6 | Q258: 6
C259: Required % of Lifecycle Spend | H259: % | K259: =IF(INDEX(M259:Q259,0,$K$2)<>"",INDEX(M259:Q259,0,$K$2),M259) -> 1 | M259: 1 | N259: 1 | O259: 1 | P259: 1 | Q259: 1
C260: Interest Rate | H260: % | K260: =IF(INDEX(M260:Q260,0,$K$2)<>"",INDEX(M260:Q260,0,$K$2),M260) -> 0.03 | M260: 0.03 | N260: 0.03 | O260: 0.03 | P260: 0.03 | Q260: 0.03
A262: Tax & Accounting
A263: Tax
B265: ="" ->  | C265: Corporate Tax
C267: Corporate Tax Rate | H267: % | K267: =IF(INDEX(M267:Q267,0,$K$2)<>"",INDEX(M267:Q267,0,$K$2),M267) -> 0.2 | M267: 0.2 | N267: 0.2 | O267: 0.2 | P267: 0.2 | Q267: 0.2
A269: Miscellaneous
C271: MRA Look Ahead
... 5 more rows

Sheet InpT
Q3: Period Start: | S3: =Time!R17 -> 2021-03-01 | T3: =Time!S17 -> 2021-04-01 | U3: =Time!T17 -> 2021-05-01 | V3: =Time!U17 -> 2021-06-01 | W3: =Time!V17 -> 2021-07-01 | X3: =Time!W17 -> 2021-08-01 | Y3: =Time!X17 -> 2021-09-01 | Z3: =Time!Y17 -> 2021-10-01 | AA3: =Time!Z17 -> 2021-11-01 | AB3: =Time!AA17 -> 2021-12-01 | AC3: =Time!AB17 -> 2022-01-01 | AD3: =Time!AC17 -> 2022-02-01 | AE3: =Time!AD17 -> 2022-03-01 | AF3: =Time!AE17 -> 2022-04-01 | AG3: =Time!AF17 -> 2022-05-01 | AH3: =Time!AG17 -> 2022-06-01 | AI3: =Time!AH17 -> 2022-07-01 | AJ3: =Time!AI17 -> 2022-08-01 | AK3: =Time!AJ17 -> 2022-09-01 | AL3: =Time!AK17 -> 2022-10-01 | AM3: =Time!AL17 -> 2022-11-01 | AN3: =Time!AM17 -> 2022-12-01 | AO3: =Time!AN17 -> 2023-01-01 | AP3: =Time!AO17 -> 2023-07-01 | AQ3: =Time!AP17 -> 2024-01-01 | AR3: =Time!AQ17 -> 2024-07-01 | AS3: =Time!AR17 -> 2025-01-01 | AT3: =Time!AS17 -> 2025-07-01 | AU3: =Time!AT17 -> 2026-01-01 | AV3: =Time!AU17 -> 2026-07-01 | AW3: =Time!AV17 -> 2027-01-01 | AX3: =Time!AW17 -> 2027-07-01 | AY3: =Time!AX17 -> 2028-01-01 | AZ3: =Time!AY17 -> 2028-07-01 | BA3: =Time!AZ17 -> 2029-01-01 | BB3: =Time!BA17 -> 2029-07-01 | BC3: =Time!BB17 -> 2030-01-01 | BD3: =Time!BC17 -> 2030-07-01 | BE3: =Time!BD17 -> 2031-01-01 | BF3: =Time!BE17 -> 2031-07-01 | BG3: =Time!BF17 -> 2032-01-01 | BH3: =Time!BG17 -> 2032-07-01 | BI3: =Time!BH17 -> 2033-01-01 | BJ3: =Time!BI17 -> 2033-07-01 | BK3: =Time!BJ17 -> 2034-01-01 | BL3: =Time!BK17 -> 2034-07-01 | BM3: =Time!BL17 -> 2035-01-01 | BN3: =Time!BM17 -> 2035-07-01 | BO3: =Time!BN17 -> 2036-01-01 | BP3: =Time!BO17 -> 2036-07-01 | BQ3: =Time!BP17 -> 2037-01-01 | BR3: =Time!BQ17 -> 2037-07-01 | BS3: =Time!BR17 -> 2038-01-01 | BT3: =Time!BS17 -> 2038-07-01 | BU3: =Time!BT17 -> 2039-01-01 | BV3: =Time!BU17 -> 2039-07-01 | BW3: =Time!BV17 -> 2040-01-01 | BX3: =Time!BW17 -> 2040-07-01 | BY3: =Time!BX17 -> 2041-01-01 | BZ3: =Time!BY17 -> 2041-07-01 | CA3: =Time!BZ17 -> 2042-01-01 | CB3: =Time!CA17 -> 2042-07-01 | CC3: =Time!CB17 -> 2043-01-01 | CD3: =Time!CC17 -> 2043-07-01 | CE3: =Time!CD17 -> 2044-01-01 | CF3: =Time!CE17 -> 2044-07-01 | CG3: =Time!CF17 -> 2045-01-01
Q4: Period End: | S4: =Time!R18 -> 2021-03-31 | T4: =Time!S18 -> 2021-04-30 | U4: =Time!T18 -> 2021-05-31 | V4: =Time!U18 -> 2021-06-30 | W4: =Time!V18 -> 2021-07-31 | X4: =Time!W18 -> 2021-08-31 | Y4: =Time!X18 -> 2021-09-30 | Z4: =Time!Y18 -> 2021-10-31 | AA4: =Time!Z18 -> 2021-11-30 | AB4: =Time!AA18 -> 2021-12-31 | AC4: =Time!AB18 -> 2022-01-31 | AD4: =Time!AC18 -> 2022-02-28 | AE4: =Time!AD18 -> 2022-03-31 | AF4: =Time!AE18 -> 2022-04-30 | AG4: =Time!AF18 -> 2022-05-31 | AH4: =Time!AG18 -> 2022-06-30 | AI4: =Time!AH18 -> 2022-07-31 | AJ4: =Time!AI18 -> 2022-08-31 | AK4: =Time!AJ18 -> 2022-09-30 | AL4: =Time!AK18 -> 2022-10-31 | AM4: =Time!AL18 -> 2022-11-30 | AN4: =Time!AM18 -> 2022-12-31 | AO4: =Time!AN18 -> 2023-06-30 | AP4: =Time!AO18 -> 2023-12-31 | AQ4: =Time!AP18 -> 2024-06-30 | AR4: =Time!AQ18 -> 2024-12-31 | AS4: =Time!AR18 -> 2025-06-30 | AT4: =Time!AS18 -> 2025-12-31 | AU4: =Time!AT18 -> 2026-06-30 | AV4: =Time!AU18 -> 2026-12-31 | AW4: =Time!AV18 -> 2027-06-30 | AX4: =Time!AW18 -> 2027-12-31 | AY4: =Time!AX18 -> 2028-06-30 | AZ4: =Time!AY18 -> 2028-12-31 | BA4: =Time!AZ18 -> 2029-06-30 | BB4: =Time!BA18 -> 2029-12-31 | BC4: =Time!BB18 -> 2030-06-30 | BD4: =Time!BC18 -> 2030-12-31 | BE4: =Time!BD18 -> 2031-06-30 | BF4: =Time!BE18 -> 2031-12-31 | BG4: =Time!BF18 -> 2032-06-30 | BH4: =Time!BG18 -> 2032-12-31 | BI4: =Time!BH18 -> 2033-06-30 | BJ4: =Time!BI18 -> 2033-12-31 | BK4: =Time!BJ18 -> 2034-06-30 | BL4: =Time!BK18 -> 2034-12-31 | BM4: =Time!BL18 -> 2035-06-30 | BN4: =Time!BM18 -> 2035-12-31 | BO4: =Time!BN18 -> 2036-06-30 | BP4: =Time!BO18 -> 2036-12-31 | BQ4: =Time!BP18 -> 2037-06-30 | BR4: =Time!BQ18 -> 2037-12-31 | BS4: =Time!BR18 -> 2038-06-30 | BT4: =Time!BS18 -> 2038-12-31 | BU4: =Time!BT18 -> 2039-06-30 | BV4: =Time!BU18 -> 2039-12-31 | BW4: =Time!BV18 -> 2040-06-30 | BX4: =Time!BW18 -> 2040-12-31 | BY4: =Time!BX18 -> 2041-06-30 | BZ4: =Time!BY18 -> 2041-12-31 | CA4: =Time!BZ18 -> 2042-06-30 | CB4: =Time!CA18 -> 2042-12-31 | CC4: =Time!CB18 -> 2043-06-30 | CD4: =Time!CC18 -> 2043-12-31 | CE4: =Time!CD18 -> 2044-06-30 | CF4: =Time!CE18 -> 2044-12-31 | CG4: =Time!CF18 -> 2045-06-30
Q5: Year: | S5: =Time!R19 -> 2021 | T5: =Time!S19 -> 2021 | U5: =Time!T19 -> 2021 | V5: =Time!U19 -> 2021 | W5: =Time!V19 -> 2021 | X5: =Time!W19 -> 2021 | Y5: =Time!X19 -> 2021 | Z5: =Time!Y19 -> 2021 | AA5: =Time!Z19 -> 2021 | AB5: =Time!AA19 -> 2021 | AC5: =Time!AB19 -> 2022 | AD5: =Time!AC19 -> 2022 | AE5: =Time!AD19 -> 2022 | AF5: =Time!AE19 -> 2022 | AG5: =Time!AF19 -> 2022 | AH5: =Time!AG19 -> 2022 | AI5: =Time!AH19 -> 2022 | AJ5: =Time!AI19 -> 2022 | AK5: =Time!AJ19 -> 2022 | AL5: =Time!AK19 -> 2022 | AM5: =Time!AL19 -> 2022 | AN5: =Time!AM19 -> 2022 | AO5: =Time!AN19 -> 2023 | AP5: =Time!AO19 -> 2023 | AQ5: =Time!AP19 -> 2024 | AR5: =Time!AQ19 -> 2024 | AS5: =Time!AR19 -> 2025 | AT5: =Time!AS19 -> 2025 | AU5: =Time!AT19 -> 2026 | AV5: =Time!AU19 -> 2026 | AW5: =Time!AV19 -> 2027 | AX5: =Time!AW19 -> 2027 | AY5: =Time!AX19 -> 2028 | AZ5: =Time!AY19 -> 2028 | BA5: =Time!AZ19 -> 2029 | BB5: =Time!BA19 -> 2029 | BC5: =Time!BB19 -> 2030 | BD5: =Time!BC19 -> 2030 | BE5: =Time!BD19 -> 2031 | BF5: =Time!BE19 -> 2031 | BG5: =Time!BF19 -> 2032 | BH5: =Time!BG19 -> 2032 | BI5: =Time!BH19 -> 2033 | BJ5: =Time!BI19 -> 2033 | BK5: =Time!BJ19 -> 2034 | BL5: =Time!BK19 -> 2034 | BM5: =Time!BL19 -> 2035 | BN5: =Time!BM19 -> 2035 | BO5: =Time!BN19 -> 2036 | BP5: =Time!BO19 -> 2036 | BQ5: =Time!BP19 -> 2037 | BR5: =Time!BQ19 -> 2037 | BS5: =Time!BR19 -> 2038 | BT5: =Time!BS19 -> 2038 | BU5: =Time!BT19 -> 2039 | BV5: =Time!BU19 -> 2039 | BW5: =Time!BV19 -> 2040 | BX5: =Time!BW19 -> 2040 | BY5: =Time!BX19 -> 2041 | BZ5: =Time!BY19 -> 2041 | CA5: =Time!BZ19 -> 2042 | CB5: =Time!CA19 -> 2042 | CC5: =Time!CB19 -> 2043 | CD5: =Time!CC19 -> 2043 | CE5: =Time!CD19 -> 2044 | CF5: =Time!CE19 -> 2044 | CG5: =Time!CF19 -> 2045
Q6: Year #: | S6: =Time!R21 -> 1 | T6: =Time!S21 -> 1 | U6: =Time!T21 -> 1 | V6: =Time!U21 -> 1 | W6: =Time!V21 -> 1 | X6: =Time!W21 -> 1 | Y6: =Time!X21 -> 1 | Z6: =Time!Y21 -> 1 | AA6: =Time!Z21 -> 1 | AB6: =Time!AA21 -> 1 | AC6: =Time!AB21 -> 2 | AD6: =Time!AC21 -> 2 | AE6: =Time!AD21 -> 2 | AF6: =Time!AE21 -> 2 | AG6: =Time!AF21 -> 2 | AH6: =Time!AG21 -> 2 | AI6: =Time!AH21 -> 2 | AJ6: =Time!AI21 -> 2 | AK6: =Time!AJ21 -> 2 | AL6: =Time!AK21 -> 2 | AM6: =Time!AL21 -> 2 | AN6: =Time!AM21 -> 2 | AO6: =Time!AN21 -> 3 | AP6: =Time!AO21 -> 3 | AQ6: =Time!AP21 -> 4 | AR6: =Time!AQ21 -> 4 | AS6: =Time!AR21 -> 5 | AT6: =Time!AS21 -> 5 | AU6: =Time!AT21 -> 6 | AV6: =Time!AU21 -> 6 | AW6: =Time!AV21 -> 7 | AX6: =Time!AW21 -> 7 | AY6: =Time!AX21 -> 8 | AZ6: =Time!AY21 -> 8 | BA6: =Time!AZ21 -> 9 | BB6: =Time!BA21 -> 9 | BC6: =Time!BB21 -> 10 | BD6: =Time!BC21 -> 10 | BE6: =Time!BD21 -> 11 | BF6: =Time!BE21 -> 11 | BG6: =Time!BF21 -> 12 | BH6: =Time!BG21 -> 12 | BI6: =Time!BH21 -> 13 | BJ6: =Time!BI21 -> 13 | BK6: =Time!BJ21 -> 14 | BL6: =Time!BK21 -> 14 | BM6: =Time!BL21 -> 15 | BN6: =Time!BM21 -> 15 | BO6: =Time!BN21 -> 16 | BP6: =Time!BO21 -> 16 | BQ6: =Time!BP21 -> 17 | BR6: =Time!BQ21 -> 17 | BS6: =Time!BR21 -> 18 | BT6: =Time!BS21 -> 18 | BU6: =Time!BT21 -> 19 | BV6: =Time!BU21 -> 19 | BW6: =Time!BV21 -> 20 | BX6: =Time!BW21 -> 20 | BY6: =Time!BX21 -> 21 | BZ6: =Time!BY21 -> 21 | CA6: =Time!BZ21 -> 22 | CB6: =Time!CA21 -> 22 | CC6: =Time!CB21 -> 23 | CD6: =Time!CC21 -> 23 | CE6: =Time!CD21 -> 24 | CF6: =Time!CE21 -> 24 | CG6: =Time!CF21 -> 25
Q7: Phase: | S7: =Time!R26 -> Const | T7: =Time!S26 -> Const | U7: =Time!T26 -> Const | V7: =Time!U26 -> Const | W7: =Time!V26 -> Const | X7: =Time!W26 -> Const | Y7: =Time!X26 -> Const | Z7: =Time!Y26 -> Const | AA7: =Time!Z26 -> Const | AB7: =Time!AA26 -> Const | AC7: =Time!AB26 -> Const | AD7: =Time!AC26 -> Const | AE7: =Time!AD26 -> Const | AF7: =Time!AE26 -> Const | AG7: =Time!AF26 -> Const | AH7: =Time!AG26 -> Const | AI7: =Time!AH26 -> Const | AJ7: =Time!AI26 -> Const | AK7: =Time!AJ26 -> Const | AL7: =Time!AK26 -> Const | AM7: =Time!AL26 -> Const | AN7: =Time!AM26 -> Const | AO7: =Time!AN26 -> Ops | AP7: =Time!AO26 -> Ops | AQ7: =Time!AP26 -> Ops | AR7: =Time!AQ26 -> Ops | AS7: =Time!AR26 -> Ops | AT7: =Time!AS26 -> Ops | AU7: =Time!AT26 -> Ops | AV7: =Time!AU26 -> Ops | AW7: =Time!AV26 -> Ops | AX7: =Time!AW26 -> Ops | AY7: =Time!AX26 -> Ops | AZ7: =Time!AY26 -> Ops | BA7: =Time!AZ26 -> Ops | BB7: =Time!BA26 -> Ops | BC7: =Time!BB26 -> Ops | BD7: =Time!BC26 -> Ops | BE7: =Time!BD26 -> Ops | BF7: =Time!BE26 -> Ops | BG7: =Time!BF26 -> Ops | BH7: =Time!BG26 -> Ops | BI7: =Time!BH26 -> Ops | BJ7: =Time!BI26 -> Ops | BK7: =Time!BJ26 -> Ops | BL7: =Time!BK26 -> Ops | BM7: =Time!BL26 -> Ops | BN7: =Time!BM26 -> Ops | BO7: =Time!BN26 -> Ops | BP7: =Time!BO26 -> Ops | BQ7: =Time!BP26 -> Ops | BR7: =Time!BQ26 -> Ops | BS7: =Time!BR26 -> Ops | BT7: =Time!BS26 -> Ops | BU7: =Time!BT26 -> Ops | BV7: =Time!BU26 -> Ops | BW7: =Time!BV26 -> Ops | BX7: =Time!BW26 -> Ops | BY7: =Time!BX26 -> Ops | BZ7: =Time!BY26 -> Ops | CA7: =Time!BZ26 -> Ops | CB7: =Time!CA26 -> Ops | CC7: =Time!CB26 -> Ops | CD7: =Time!CC26 -> Ops | CE7: =Time!CD26 -> Ops | CF7: =Time!CE26 -> Ops | CG7: =Time!CF26 -> Ops
A9: Macroeconomic
B11: 0 | C11: Inflation
S12: =YEAR(S3) -> 2021 | T12: =S12+1 -> 2022 | U12: =T12+1 -> 2023 | V12: 2024 | W12: 2025 | X12: 2026 | Y12: 2027 | Z12: 2028 | AA12: 2029 | AB12: 2030 | AC12: 2031 | AD12: 2032 | AE12: 2033 | AF12: 2034 | AG12: 2035 | AH12: 2036 | AI12: 2037 | AJ12: 2038 | AK12: 2039 | AL12: 2040 | AM12: 2041 | AN12: 2042 | AO12: 2043 | AP12: 2044 | AQ12: 2045 | AR12: 2046 | AS12: 2047 | AT12: 2048 | AU12: 2049 | AV12: 2050 | AW12: 2051 | AX12: 2052 | AY12: 2053 | AZ12: 2054 | BA12: 2055 | BB12: 2056 | BC12: 2057 | BD12: 2058 | BE12: 2059 | BF12: 2060 | BG12: 2061 | BH12: 2062 | BI12: 2063 | BJ12: 2064 | BK12: 2065 | BL12: 2066 | BM12: 2067 | BN12: 2068 | BO12: 2069 | BP12: 2070 | BQ12: 2071 | BR12: 2072 | BS12: 2073 | BT12: 2074 | BU12: 2075 | BV12: 2076 | BW12: 2077 | BX12: 2078 | BY12: 2079 | BZ12: 2080 | CA12: 2081 | CB12: 2082 | CC12: 2083 | CD12: 2084 | CE12: 2085 | CF12: 2086 | CG12: =CF12+1 -> 2087
C13: Global Inflation Basket | J13: % | S13: 0.02 | T13: 0.02 | U13: 0.02 | V13: 0.02 | W13: 0.02 | X13: 0.02 | Y13: 0.02 | Z13: 0.02 | AA13: 0.02 | AB13: 0.02 | AC13: 0.02 | AD13: 0.02 | AE13: 0.02 | AF13: 0.02 | AG13: 0.02 | AH13: 0.02 | AI13: 0.02 | AJ13: 0.02 | AK13: 0.02 | AL13: 0.02 | AM13: 0.02 | AN13: 0.02 | AO13: 0.02 | AP13: 0.02 | AQ13: 0.02 | AR13: 0.02 | AS13: 0.02 | AT13: 0.02 | AU13: 0.02 | AV13: 0.02 | AW13: 0.02 | AX13: 0.02 | AY13: 0.02 | AZ13: 0.02 | BA13: 0.02 | BB13: 0.02 | BC13: 0.02 | BD13: 0.02 | BE13: 0.02 | BF13: 0.02 | BG13: 0.02 | BH13: 0.02 | BI13: 0.02 | BJ13: 0.02 | BK13: 0.02 | BL13: 0.02 | BM13: 0.02 | BN13: 0.02 | BO13: 0.02 | BP13: 0.02 | BQ13: 0.02 | BR13: 0.02 | BS13: 0.02 | BT13: 0.02 | BU13: 0.02 | BV13: 0.02 | BW13: 0.02 | BX13: 0.02 | BY13: 0.02 | BZ13: 0.02 | CA13: 0.02 | CB13: 0.02 | CC13: 0.02 | CD13: 0.02 | CE13: 0.02 | CF13: 0.02 | CG13: 0.02
B15: 0 | C15: Floating Interest Rates
S16: =S12 -> 2021 | T16: 2022 | U16: 2023 | V16: 2024 | W16: 2025 | X16: 2026 | Y16: 2027 | Z16: 2028 | AA16: 2029 | AB16: 2030 | AC16: 2031 | AD16: 2032 | AE16: 2033 | AF16: 2034 | AG16: 2035 | AH16: 2036 | AI16: 2037 | AJ16: 2038 | AK16: 2039 | AL16: 2040 | AM16: 2041 | AN16: 2042 | AO16: 2043 | AP16: 2044 | AQ16: 2045 | AR16: 2046 | AS16: 2047 | AT16: 2048 | AU16: 2049 | AV16: 2050 | AW16: 2051 | AX16: 2052 | AY16: =AY12 -> 2053 | AZ16: 2054 | BA16: 2055 | BB16: 2056 | BC16: 2057 | BD16: 2058 | BE16: 2059 | BF16: 2060 | BG16: 2061 | BH16: 2062 | BI16: 2063 | BJ16: 2064 | BK16: 2065 | BL16: 2066 | BM16: 2067 | BN16: 2068 | BO16: 2069 | BP16: 2070 | BQ16: 2071 | BR16: 2072 | BS16: 2073 | BT16: 2074 | BU16: 2075 | BV16: 2076 | BW16: 2077 | BX16: 2078 | BY16: 2079 | BZ16: 2080 | CA16: 2081 | CB16: 2082 | CC16: 2083 | CD16: 2084 | CE16: =CE12 -> 2085 | CF16: 2086 | CG16: 2087
C17: LIBOR - 6 month | J17: % | S17: 0.01 | T17: 0.01 | U17: 0.01 | V17: 0.01 | W17: 0.01 | X17: 0.01 | Y17: 0.012 | Z17: 0.012 | AA17: 0.012 | AB17: 0.012 | AC17: 0.012 | AD17: 0.012 | AE17: 0.012 | AF17: 0.012 | AG17: 0.013 | AH17: 0.013 | AI17: 0.013 | AJ17: 0.013 | AK17: 0.013 | AL17: 0.013 | AM17: 0.013 | AN17: 0.013 | AO17: 0.013 | AP17: 0.013 | AQ17: 0.013 | AR17: 0.013 | AS17: 0.013 | AT17: 0.013 | AU17: 0.013 | AV17: 0.013 | AW17: 0.013 | AX17: 0.013 | AY17: 0.013 | AZ17: 0.013 | BA17: 0.013 | BB17: 0.013 | BC17: 0.013 | BD17: 0.013 | BE17: 0.013 | BF17: 0.013 | BG17: 0.013 | BH17: 0.013 | BI17: 0.013 | BJ17: 0.013 | BK17: 0.013 | BL17: 0.013 | BM17: 0.013 | BN17: 0.013 | BO17: 0.013 | BP17: 0.013 | BQ17: 0.013 | BR17: 0.013 | BS17: 0.013 | BT17: 0.013 | BU17: 0.013 | BV17: 0.013 | BW17: 0.013 | BX17: 0.013 | BY17: 0.013 | BZ17: 0.013 | CA17: 0.013 | CB17: 0.013 | CC17: 0.013 | CD17: 0.013 | CE17: 0.013 | CF17: 0.013 | CG17: 0.013
C18: LIBOR - 3 month | J18: % | S18: 0.02184773752 | T18: 0.02184773752 | U18: 0.02184773752 | V18: 0.02184773752 | W18: 0.02184773752 | X18: 0.02184773752 | Y18: 0.02184773752 | Z18: 0.02184773752 | AA18: 0.02184773752 | AB18: 0.02184773752 | AC18: 0.02184773752 | AD18: 0.02184773752 | AE18: 0.02184773752 | AF18: 0.02184773752 | AG18: 0.02184773752 | AH18: 0.02184773752 | AI18: 0.02184773752 | AJ18: 0.02184773752 | AK18: 0.02184773752 | AL18: 0.02184773752 | AM18: 0.02184773752 | AN18: 0.02184773752 | AO18: 0.02184773752 | AP18: 0.02184773752 | AQ18: 0.02184773752 | AR18: 0.02184773752 | AS18: 0.02184773752 | AT18: 0.02184773752 | AU18: 0.02184773752 | AV18: 0.02184773752 | AW18: 0.02184773752 | AX18: 0.02184773752 | AY18: 0.02184773752 | AZ18: 0.02184773752 | BA18: 0.02184773752 | BB18: 0.02184773752 | BC18: 0.02184773752 | BD18: 0.02184773752 | BE18: 0.02184773752 | BF18: 0.02184773752 | BG18: 0.02184773752 | BH18: 0.02184773752 | BI18: 0.02184773752 | BJ18: 0.02184773752 | BK18: 0.02184773752 | BL18: 0.02184773752 | BM18: 0.02184773752 | BN18: 0.02184773752 | BO18: 0.02184773752 | BP18: 0.02184773752 | BQ18: 0.02184773752 | BR18: 0.02184773752 | BS18: 0.02184773752 | BT18: 0.02184773752 | BU18: 0.02184773752 | BV18: 0.02184773752 | BW18: 0.02184773752 | BX18: 0.02184773752 | BY18: 0.02184773752 | BZ18: 0.02184773752 | CA18: 0.02184773752 | CB18: 0.02184773752 | CC18: 0.02184773752 | CD18: 0.02184773752 | CE18: 0.02184773752 | CF18: 0.02184773752 | CG18: 0.02184773752
C19: EURIBOR | J19: % | S19: 0.02370835414 | T19: 0.02370835414 | U19: 0.02370835414 | V19: 0.02370835414 | W19: 0.02370835414 | X19: 0.02370835414 | Y19: 0.02370835414 | Z19: 0.02370835414 | AA19: 0.02370835414 | AB19: 0.02370835414 | AC19: 0.02370835414 | AD19: 0.02370835414 | AE19: 0.02370835414 | AF19: 0.02370835414 | AG19: 0.02370835414 | AH19: 0.02370835414 | AI19: 0.02370835414 | AJ19: 0.02370835414 | AK19: 0.02370835414 | AL19: 0.02370835414 | AM19: 0.02370835414 | AN19: 0.02370835414 | AO19: 0.02370835414 | AP19: 0.02370835414 | AQ19: 0.02370835414 | AR19: 0.02370835414 | AS19: 0.02370835414 | AT19: 0.02370835414 | AU19: 0.02370835414 | AV19: 0.02370835414 | AW19: 0.02370835414 | AX19: 0.02370835414 | AY19: 0.02370835414 | AZ19: 0.02370835414 | BA19: 0.02370835414 | BB19: 0.02370835414 | BC19: 0.02370835414 | BD19: 0.02370835414 | BE19: 0.02370835414 | BF19: 0.02370835414 | BG19: 0.02370835414 | BH19: 0.02370835414 | BI19: 0.02370835414 | BJ19: 0.02370835414 | BK19: 0.02370835414 | BL19: 0.02370835414 | BM19: 0.02370835414 | BN19: 0.02370835414 | BO19: 0.02370835414 | BP19: 0.02370835414 | BQ19: 0.02370835414 | BR19: 0.02370835414 | BS19: 0.02370835414 | BT19: 0.02370835414 | BU19: 0.02370835414 | BV19: 0.02370835414 | BW19: 0.02370835414 | BX19: 0.02370835414 | BY19: 0.02370835414 | BZ19: 0.02370835414 | CA19: 0.02370835414 | CB19: 0.02370835414 | CC19: 0.02370835414 | CD19: 0.02370835414 | CE19: 0.02370835414 | CF19: 0.02370835414 | CG19: 0.02370835414
A21: CAPEX
A22: EPC
B24: 0 | C24: S Curve
C26: =InpC!C57 -> PV Plant | L26: Check
C27: =InpC!C59 -> Solar PV Module | J27: % | L27: =Q27=1 -> TRUE | Q27: =SUM(S27:DC27) -> 1 | S27: 0.01 | T27: 0.01 | U27: 0.01 | V27: 0.03 | W27: 0.03 | X27: 0.06 | Y27: 0.06 | Z27: 0.06 | AA27: 0.06 | AB27: 0.09 | AC27: 0.06 | AD27: 0.09 | AE27: 0.1 | AF27: 0.06 | AG27: 0.09 | AH27: 0.08 | AI27: 0.03 | AJ27: 0.03 | AK27: 0.01 | AL27: 0.01 | AM27: 0.01 | AN27: 0.01
C28: =InpC!C60 -> Trackers | J28: % | L28: TRUE | Q28: 1 | S28: 0.01 | T28: 0.01 | U28: 0.01 | V28: 0.03 | W28: 0.03 | X28: 0.06 | Y28: 0.06 | Z28: 0.06 | AA28: 0.06 | AB28: 0.09 | AC28: 0.06 | AD28: 0.09 | AE28: 0.1 | AF28: 0.06 | AG28: 0.09 | AH28: 0.08 | AI28: 0.03 | AJ28: 0.03 | AK28: 0.01 | AL28: 0.01 | AM28: 0.01 | AN28: 0.01
C29: =InpC!C61 -> Inverters | J29: % | L29: TRUE | Q29: 1 | S29: 0.01 | T29: 0.01 | U29: 0.01 | V29: 0.03 | W29: 0.03 | X29: 0.06 | Y29: 0.06 | Z29: 0.06 | AA29: 0.06 | AB29: 0.09 | AC29: 0.06 | AD29: 0.09 | AE29: 0.1 | AF29: 0.06 | AG29: 0.09 | AH29: 0.08 | AI29: 0.03 | AJ29: 0.03 | AK29: 0.01 | AL29: 0.01 | AM29: 0.01 | AN29: 0.01
C30: =InpC!C62 -> Transformers | J30: % | L30: TRUE | Q30: 1 | S30: 0 | T30: 0.06 | U30: 0 | V30: 0 | W30: 0 | X30: 0 | Y30: 0 | Z30: 0 | AA30: 0 | AB30: 0.09 | AC30: 0.06 | AD30: 0.09 | AE30: 0.1 | AF30: 0.06 | AG30: 0.09 | AH30: 0.08 | AI30: 0.08 | AJ30: 0.11 | AK30: 0.08 | AL30: 0.08 | AM30: 0.01 | AN30: 0.01
C31: =InpC!C63 -> Access Road | J31: % | L31: TRUE | Q31: 1 | S31: 0.25 | T31: 0.25 | U31: 0.25 | V31: 0.25 | W31: 0 | X31: 0 | Y31: 0 | Z31: 0 | AA31: 0 | AB31: 0 | AC31: 0 | AD31: 0 | AE31: 0 | AF31: 0 | AG31: 0 | AH31: 0 | AI31: 0 | AJ31: 0 | AK31: 0 | AL31: 0 | AM31: 0 | AN31: 0
C32: =InpC!C64 -> Civil Works | J32: % | L32: TRUE | Q32: 1 | S32: 0.04 | T32: 0.04 | U32: 0.04 | V32: 0.04 | W32: 0.04 | X32: 0.04 | Y32: 0.04 | Z32: 0.04 | AA32: 0.04 | AB32: 0.04 | AC32: 0.04 | AD32: 0.04 | AE32: 0.04 | AF32: 0.04 | AG32: 0.04 | AH32: 0.08 | AI32: 0.04 | AJ32: 0.04 | AK32: 0.06 | AL32: 0.06 | AM32: 0.06 | AN32: 0.06
C33: =InpC!C65 -> [Spare] | J33: % | Q33: 0 | S33: 0 | T33: 0 | U33: 0 | V33: 0 | W33: 0 | X33: 0 | Y33: 0 | Z33: 0 | AA33: 0 | AB33: 0 | AC33: 0 | AD33: 0 | AE33: 0 | AF33: 0 | AG33: 0 | AH33: 0 | AI33: 0 | AJ33: 0 | AK33: 0 | AL33: 0 | AM33: 0 | AN33: 0
C34: =InpC!C66 -> [Spare] | J34: % | Q34: 0
C35: =InpC!C67 -> [Spare] | J35: % | Q35: 0
C36: =InpC!C68 -> [Spare] | J36: % | Q36: 0
C39: =InpC!C71 -> Electrical Special Facilities | L39: Check
C40: =InpC!C73 -> Engineeering And Design Price Component | J40: % | L40: =Q40=1 -> TRUE | Q40: =SUM(S40:DC40) -> 1 | S40: 0.03 | T40: 0.05 | U40: 0.03 | V40: 0.03 | W40: 0.04 | X40: 0.04 | Y40: 0.03 | Z40: 0.07 | AA40: 0.06 | AB40: 0.06 | AC40: 0.06 | AD40: 0.06 | AE40: 0.08 | AF40: 0.08 | AG40: 0.02 | AH40: 0.05 | AI40: 0.03 | AJ40: 0.05 | AK40: 0.03 | AL40: 0.02 | AM40: 0.04 | AN40: 0.04
C41: =InpC!C74 -> Materials and Equipment | J41: % | L41: TRUE | Q41: 1 | S41: 0.05 | T41: 0.04 | U41: 0.03 | V41: 0.02 | W41: 0.05 | X41: 0.02 | Y41: 0.02 | Z41: 0.07 | AA41: 0.06 | AB41: 0.06 | AC41: 0.06 | AD41: 0.06 | AE41: 0.11 | AF41: 0.08 | AG41: 0.03 | AH41: 0.05 | AI41: 0.03 | AJ41: 0.05 | AK41: 0.02 | AL41: 0.03 | AM41: 0.03 | AN41: 0.03
C42: =InpC!C75 -> Construction & Installation | J42: % | L42: TRUE | Q42: 1 | S42: 0.02 | T42: 0.03 | U42: 0.03 | V42: 0.03 | W42: 0.02 | X42: 0.04 | Y42: 0.02 | Z42: 0.07 | AA42: 0.06 | AB42: 0.06 | AC42: 0.06 | AD42: 0.06 | AE42: 0.08 | AF42: 0.08 | AG42: 0.05 | AH42: 0.1 | AI42: 0.03 | AJ42: 0.05 | AK42: 0.03 | AL42: 0.02 | AM42: 0.02 | AN42: 0.04
C43: =InpC!C76 -> Testing & Commissioning | J43: % | L43: TRUE | Q43: 1 | S43: 0.04 | T43: 0.01 | U43: 0.03 | V43: 0.02 | W43: 0.03 | X43: 0.05 | Y43: 0.04 | Z43: 0.04 | AA43: 0.06 | AB43: 0.06 | AC43: 0.06 | AD43: 0.06 | AE43: 0.08 | AF43: 0.08 | AG43: 0.04 | AH43: 0.04 | AI43: 0.02 | AJ43: 0.05 | AK43: 0.04 | AL43: 0.04 | AM43: 0.04 | AN43: 0.07
C44: =InpC!C77 -> Operational Spare Parts | J44: % | L44: TRUE | Q44: 1 | S44: 0.08 | T44: 0.05 | U44: 0.05 | V44: 0.04 | W44: 0.02 | X44: 0.05 | Y44: 0.03 | Z44: 0.04 | AA44: 0.06 | AB44: 0.06 | AC44: 0.06 | AD44: 0.06 | AE44: 0.08 | AF44: 0.08 | AG44: 0.03 | AH44: 0.04 | AI44: 0.02 | AJ44: 0.05 | AK44: 0.1 | AL44: 0 | AM44: 0 | AN44: 0
C45: =InpC!C78 -> Special Tools and Test / Maintenance Equipment | J45: % | L45: TRUE | Q45: 1 | S45: 0.08 | T45: 0.05 | U45: 0.05 | V45: 0.04 | W45: 0.02 | X45: 0.05 | Y45: 0.03 | Z45: 0.04 | AA45: 0.06 | AB45: 0.06 | AC45: 0.06 | AD45: 0.06 | AE45: 0.08 | AF45: 0.08 | AG45: 0.03 | AH45: 0.04 | AI45: 0.02 | AJ45: 0.05 | AK45: 0.1 | AL45: 0 | AM45: 0 | AN45: 0
C46: =InpC!C79 -> [Spare] | J46: % | Q46: 0 | S46: 0 | T46: 0 | U46: 0 | V46: 0 | W46: 0 | X46: 0 | Y46: 0 | Z46: 0 | AA46: 0 | AB46: 0 | AC46: 0 | AD46: 0 | AE46: 0 | AF46: 0 | AG46: 0 | AH46: 0 | AI46: 0 | AJ46: 0 | AK46: 0 | AL46: 0 | AM46: 0 | AN46: 0
C47: =InpC!C80 -> [Spare] | J47: % | Q47: 0 | S47: 0 | T47: 0 | U47: 0 | V47: 0 | W47: 0 | X47: 0 | Y47: 0 | Z47: 0 | AA47: 0 | AB47: 0 | AC47: 0 | AD47: 0 | AE47: 0 | AF47: 0 | AG47: 0 | AH47: 0 | AI47: 0 | AJ47: 0 | AK47: 0 | AL47: 0 | AM47: 0 | AN47: 0
C48: =InpC!C81 -> [Spare] | J48: % | Q48: 0 | S48: 0 | T48: 0 | U48: 0 | V48: 0 | W48: 0 | X48: 0 | Y48: 0 | Z48: 0 | AA48: 0 | AB48: 0 | AC48: 0 | AD48: 0 | AE48: 0 | AF48: 0 | AG48: 0 | AH48: 0 | AI48: 0 | AJ48: 0 | AK48: 0 | AL48: 0 | AM48: 0 | AN48: 0
C49: =InpC!C82 -> [Spare] | J49: % | Q49: 0 | S49: 0 | T49: 0 | U49: 0 | V49: 0 | W49: 0 | X49: 0 | Y49: 0 | Z49: 0 | AA49: 0 | AB49: 0 | AC49: 0 | AD49: 0 | AE49: 0 | AF49: 0 | AG49: 0 | AH49: 0 | AI49: 0 | AJ49: 0 | AK49: 0 | AL49: 0 | AM49: 0 | AN49: 0
C52: =InpC!C85 -> Project Development Costs | L52: Check
C53: =InpC!C87 -> Project Development Cost | J53: % | L53: =Q53=1 -> TRUE | Q53: =SUM(S53:DC53) -> 1 | S53: 0.5 | T53: 0.5 | U53: 0 | V53: 0 | W53: 0 | X53: 0 | Y53: 0 | Z53: 0 | AA53: 0 | AB53: 0 | AC53: 0 | AD53: 0 | AE53: 0 | AF53: 0 | AG53: 0 | AH53: 0 | AI53: 0 | AJ53: 0 | AK53: 0 | AL53: 0 | AM53: 0 | AN53: 0
C54: =InpC!C88 -> Development Fee | J54: % | L54: TRUE | Q54: 1 | S54: 0.5 | T54: 0.5 | U54: 0 | V54: 0 | W54: 0 | X54: 0 | Y54: 0 | Z54: 0 | AA54: 0 | AB54: 0 | AC54: 0 | AD54: 0 | AE54: 0 | AF54: 0 | AG54: 0 | AH54: 0 | AI54: 0 | AJ54: 0 | AK54: 0 | AL54: 0 | AM54: 0 | AN54: 0
C55: =InpC!C89 -> Success Fee | J55: % | L55: TRUE | Q55: 1 | S55: 0.5 | T55: 0.5 | U55: 0 | V55: 0 | W55: 0 | X55: 0 | Y55: 0 | Z55: 0 | AA55: 0 | AB55: 0 | AC55: 0 | AD55: 0 | AE55: 0 | AF55: 0 | AG55: 0 | AH55: 0 | AI55: 0 | AJ55: 0 | AK55: 0 | AL55: 0 | AM55: 0 | AN55: 0
C56: =InpC!C90 -> Bid Bond Costs | J56: % | L56: TRUE | Q56: 1 | S56: 0.5 | T56: 0.5 | U56: 0 | V56: 0 | W56: 0 | X56: 0 | Y56: 0 | Z56: 0 | AA56: 0 | AB56: 0 | AC56: 0 | AD56: 0 | AE56: 0 | AF56: 0 | AG56: 0 | AH56: 0 | AI56: 0 | AJ56: 0 | AK56: 0 | AL56: 0 | AM56: 0 | AN56: 0
C57: =InpC!C91 -> Others | J57: % | L57: TRUE | Q57: 1 | S57: 0.5 | T57: 0.5 | U57: 0 | V57: 0 | W57: 0 | X57: 0 | Y57: 0 | Z57: 0 | AA57: 0 | AB57: 0 | AC57: 0 | AD57: 0 | AE57: 0 | AF57: 0 | AG57: 0 | AH57: 0 | AI57: 0 | AJ57: 0 | AK57: 0 | AL57: 0 | AM57: 0 | AN57: 0
C58: =InpC!C92 -> Additional Financing Costs | J58: % | L58: TRUE | Q58: 1 | S58: 0.5 | T58: 0.5 | U58: 0 | V58: 0 | W58: 0 | X58: 0 | Y58: 0 | Z58: 0 | AA58: 0 | AB58: 0 | AC58: 0 | AD58: 0 | AE58: 0 | AF58: 0 | AG58: 0 | AH58: 0 | AI58: 0 | AJ58: 0 | AK58: 0 | AL58: 0 | AM58: 0 | AN58: 0
C59: =InpC!C93 -> [Spare] | J59: % | L59: TRUE | Q59: 1 | S59: 0.5 | T59: 0.5 | U59: 0 | V59: 0 | W59: 0 | X59: 0 | Y59: 0 | Z59: 0 | AA59: 0 | AB59: 0 | AC59: 0 | AD59: 0 | AE59: 0 | AF59: 0 | AG59: 0 | AH59: 0 | AI59: 0 | AJ59: 0 | AK59: 0 | AL59: 0 | AM59: 0 | AN59: 0
C60: =InpC!C94 -> [Spare] | J60: % | Q60: 0
C61: =InpC!C95 -> [Spare] | J61: % | Q61: 0
C62: =InpC!C96 -> [Spare] | J62: % | Q62: 0
B64: 0 | C64: Check | J64: check | L64: =AND(L27:L36) -> TRUE
A67: Lifecycle
B69: Operating Year - Start | J69: year | L69: =YEAR(InpC!K39) -> 2023
B70: Operating Year - End | J70: year | L70: =YEAR(InpC!K41) -> 2047
B72: Lifecycle Spend (Real) | S72: =L69 -> 2023 | T72: =IF(S72<$L$70,S72+1,"") -> 2024 | U72: =IF(T72<$L$70,T72+1,"") -> 2025 | V72: 2026 | W72: 2027 | X72: 2028 | Y72: 2029 | Z72: 2030 | AA72: 2031 | AB72: 2032 | AC72: 2033 | AD72: 2034 | AE72: 2035 | AF72: 2036 | AG72: 2037 | AH72: 2038 | AI72: 2039 | AJ72: 2040 | AK72: 2041 | AL72: 2042 | AM72: 2043 | AN72: 2044 | AO72: 2045 | AP72: 2046 | AQ72: 2047 | CG72: =IF(CF72<$L$70,CF72+1,"") -> 
B73: General Maintenance | J73: $m | Q73: =SUM(S73:DC73) -> 9.152637093 | S73: 0 | T73: 0 | U73: 0 | V73: 0 | W73: 0 | X73: 1.900749518 | Y73: 1.500685117 | Z73: 1.529824236 | AA73: 0 | AB73: 0 | AC73: 0 | AD73: 0 | AE73: 0 | AF73: 0 | AG73: 0 | AH73: 1.091855196 | AI73: 1.138013152 | AJ73: 0 | AK73: 0 | AL73: 0 | AM73: 0 | AN73: 0.4805180888 | AO73: 1.510991785 | AP73: 0 | AQ73: 0
B74: [Spare] | J74: $m | Q74: =SUM(S74:DC74) -> 0 | S74: 0 | T74: 0 | U74: 0 | V74: 0 | W74: 0 | X74: 0 | Y74: 0 | Z74: 0 | AA74: 0 | AB74: 0 | AC74: 0 | AD74: 0 | AE74: 0 | AF74: 0 | AG74: 0 | AH74: 0 | AI74: 0 | AJ74: 0 | AK74: 0 | AL74: 0 | AM74: 0 | AN74: 0 | AO74: 0 | AP74: 0 | AQ74: 0
B75: [Spare] | J75: $m | Q75: 0 | S75: 0 | T75: 0 | U75: 0 | V75: 0 | W75: 0 | X75: 0 | Y75: 0 | Z75: 0 | AA75: 0 | AB75: 0 | AC75: 0 | AD75: 0 | AE75: 0 | AF75: 0 | AG75: 0 | AH75: 0 | AI75: 0 | AJ75: 0 | AK75: 0 | AL75: 0 | AM75: 0 | AN75: 0 | AO75: 0 | AP75: 0 | AQ75: 0
B76: [Spare] | J76: $m | Q76: 0 | S76: 0 | T76: 0 | U76: 0 | V76: 0 | W76: 0 | X76: 0 | Y76: 0 | Z76: 0 | AA76: 0 | AB76: 0 | AC76: 0 | AD76: 0 | AE76: 0 | AF76: 0 | AG76: 0 | AH76: 0 | AI76: 0 | AJ76: 0 | AK76: 0 | AL76: 0 | AM76: 0 | AN76: 0 | AO76: 0 | AP76: 0 | AQ76: 0
B77: [Spare] | J77: $m | Q77: 0 | S77: 0 | T77: 0 | U77: 0 | V77: 0 | W77: 0 | X77: 0 | Y77: 0 | Z77: 0 | AA77: 0 | AB77: 0 | AC77: 0 | AD77: 0 | AE77: 0 | AF77: 0 | AG77: 0 | AH77: 0 | AI77: 0 | AJ77: 0 | AK77: 0 | AL77: 0 | AM77: 0 | AN77: 0 | AO77: 0 | AP77: 0 | AQ77: 0
B78: [Spare] | J78: $m | Q78: 0 | S78: 0 | T78: 0 | U78: 0 | V78: 0 | W78: 0 | X78: 0 | Y78: 0 | Z78: 0 | AA78: 0 | AB78: 0 | AC78: 0 | AD78: 0 | AE78: 0 | AF78: 0 | AG78: 0 | AH78: 0 | AI78: 0 | AJ78: 0 | AK78: 0 | AL78: 0 | AM78: 0 | AN78: 0 | AO78: 0 | AP78: 0 | AQ78: 0
B79: [Spare] | J79: $m | Q79: 0 | S79: 0 | T79: 0 | U79: 0 | V79: 0 | W79: 0 | X79: 0 | Y79: 0 | Z79: 0 | AA79: 0 | AB79: 0 | AC79: 0 | AD79: 0 | AE79: 0 | AF79: 0 | AG79: 0 | AH79: 0 | AI79: 0 | AJ79: 0 | AK79: 0 | AL79: 0 | AM79: 0 | AN79: 0 | AO79: 0 | AP79: 0 | AQ79: 0
J80: $m | Q80: =SUM(S80:DC80) -> 9.152637093 | S80: =SUM(S73:S79) -> 0 | T80: =SUM(T73:T79) -> 0 | U80: 0 | V80: 0 | W80: 0 | X80: 1.900749518 | Y80: 1.500685117 | Z80: 1.529824236 | AA80: 0 | AB80: 0 | AC80: 0 | AD80: 0 | AE80: 0 | AF80: 0 | AG80: 0 | AH80: 1.091855196 | AI80: 1.138013152 | AJ80: 0 | AK80: 0 | AL80: 0 | AM80: 0 | AN80: 0.4805180888 | AO80: 1.510991785 | AP80: 0 | AQ80: 0
A83: Operations
A84: Price Deck
B86: Pricing Scenarios | S86: =S16 -> 2021 | T86: 2022 | U86: 2023 | V86: 2024 | W86: 2025 | X86: 2026 | Y86: 2027 | Z86: 2028 | AA86: 2029 | AB86: 2030 | AC86: 2031 | AD86: 2032 | AE86: 2033 | AF86: 2034 | AG86: 2035 | AH86: 2036 | AI86: 2037 | AJ86: 2038 | AK86: 2039 | AL86: 2040 | AM86: 2041 | AN86: 2042 | AO86: 2043 | AP86: 2044 | AQ86: 2045 | AR86: 2046 | AS86: 2047 | AT86: 2048 | AU86: 2049 | AV86: 2050 | AW86: 2051 | AX86: 2052 | AY86: 2053 | AZ86: 2054 | BA86: 2055 | BB86: 2056 | BC86: 2057 | BD86: 2058 | BE86: 2059 | BF86: 2060 | BG86: 2061 | BH86: 2062 | BI86: 2063 | BJ86: 2064 | BK86: 2065 | BL86: 2066 | BM86: 2067 | BN86: 2068
A87: 1 | B87: Poyry Forecast | J87: $/MWh | S87: 29.70543241 | T87: 28.14937255 | U87: 31.26739138 | V87: 33.87881426 | W87: 38.97372082 | X87: 41.92779136 | Y87: 43.77017334 | Z87: 46.56217212 | AA87: 48.13187178 | AB87: 49.27298186 | AC87: 47.54614907 | AD87: 46.70531183 | AE87: 47.12234421 | AF87: 47.78769084 | AG87: 47.86397374 | AH87: 47.43498759 | AI87: 46.65094868 | AJ87: 47.36908284 | AK87: 46.04344169 | AL87: 45.94626958 | AM87: 45.7586528 | AN87: 45.13858656 | AO87: 45.28383097 | AP87: 45.28383097 | AQ87: 45.28383097 | AR87: 45.28383097 | AS87: 45.28383097 | AT87: 45.28383097 | AU87: 45.28383097 | AV87: 45.28383097 | AW87: 45.28383097 | AX87: 45.28383097 | AY87: 45.28383097 | AZ87: 45.28383097 | BA87: 45.28383097 | BB87: 45.28383097 | BC87: 45.28383097 | BD87: 45.28383097 | BE87: 45.28383097 | BF87: 45.28383097 | BG87: 45.28383097 | BH87: 45.28383097 | BI87: 45.28383097 | BJ87: 45.28383097 | BK87: 45.28383097 | BL87: 45.28383097 | BM87: 45.28383097 | BN87: 45.28383097
A88: =A87+1 -> 2 | B88: [spare] | J88: $/MWh
A89: =A88+1 -> 3 | B89: [spare] | J89: $/MWh
A90: 4 | B90: [spare] | J90: $/MWh
A91: 5 | B91: [spare] | J91: $/MWh
A92: 6 | B92: [spare] | J92: $/MWh
A93: 7 | B93: [spare] | J93: $/MWh
A94: 8 | B94: [spare] | J94: $/MWh
A95: 9 | B95: [spare] | J95: $/MWh
B97: Selected | J97: $/MWh | L97: Poyry Forecast | S97: =INDEX(S87:S95,INDEX($A$87:$A$95,MATCH($L$97,$B$87:$B$95,0))) -> 29.70543241 | T97: =INDEX(T87:T95,INDEX($A$87:$A$95,MATCH($L$97,$B$87:$B$95,0))) -> 28.14937255 | U97: =INDEX(U87:U95,INDEX($A$87:$A$95,MATCH($L$97,$B$87:$B$95,0))) -> 31.26739138 | V97: =INDEX(V87:V95,INDEX($A$87:$A$95,MATCH($L$97,$B$87:$B$95,0))) -> 33.87881426 | W97: =INDEX(W87:W95,INDEX($A$87:$A$95,MATCH($L$97,$B$87:$B$95,0))) -> 38.97372082 | X97: =INDEX(X87:X95,INDEX($A$87:$A$95,MATCH($L$97,$B$87:$B$95,0))) -> 41.92779136 | Y97: =INDEX(Y87:Y95,INDEX($A$87:$A$95,MATCH($L$97,$B$87:$B$95,0))) -> 43.77017334 | Z97: =INDEX(Z87:Z95,INDEX($A$87:$A$95,MATCH($L$97,$B$87:$B$95,0))) -> 46.56217212 | AA97: =INDEX(AA87:AA95,INDEX($A$87:$A$95,MATCH($L$97,$B$87:$B$95,0))) -> 48.13187178 | AB97: =INDEX(AB87:AB95,INDEX($A$87:$A$95,MATCH($L$97,$B$87:$B$95,0))) -> 49.27298186 | AC97: =INDEX(AC87:AC95,INDEX($A$87:$A$95,MATCH($L$97,$B$87:$B$95,0))) -> 47.54614907 | AD97: =INDEX(AD87:AD95,INDEX($A$87:$A$95,MATCH($L$97,$B$87:$B$95,0))) -> 46.70531183 | AE97: =INDEX(AE87:AE95,INDEX($A$87:$A$95,MATCH($L$97,$B$87:$B$95,0))) -> 47.12234421 | AF97: =INDEX(AF87:AF95,INDEX($A$87:$A$95,MATCH($L$97,$B$87:$B$95,0))) -> 47.78769084 | AG97: =INDEX(AG87:AG95,INDEX($A$87:$A$95,MATCH($L$97,$B$87:$B$95,0))) -> 47.86397374 | AH97: =INDEX(AH87:AH95,INDEX($A$87:$A$95,MATCH($L$97,$B$87:$B$95,0))) -> 47.43498759 | AI97: =INDEX(AI87:AI95,INDEX($A$87:$A$95,MATCH($L$97,$B$87:$B$95,0))) -> 46.65094868 | AJ97: =INDEX(AJ87:AJ95,INDEX($A$87:$A$95,MATCH($L$97,$B$87:$B$95,0))) -> 47.36908284 | AK97: =INDEX(AK87:AK95,INDEX($A$87:$A$95,MATCH($L$97,$B$87:$B$95,0))) -> 46.04344169 | AL97: =INDEX(AL87:AL95,INDEX($A$87:$A$95,MATCH($L$97,$B$87:$B$95,0))) -> 45.94626958 | AM97: =INDEX(AM87:AM95,INDEX($A$87:$A$95,MATCH($L$97,$B$87:$B$95,0))) -> 45.7586528 | AN97: =INDEX(AN87:AN95,INDEX($A$87:$A$95,MATCH($L$97,$B$87:$B$95,0))) -> 45.13858656 | AO97: =INDEX(AO87:AO95,INDEX($A$87:$A$95,MATCH($L$97,$B$87:$B$95,0))) -> 45.28383097 | AP97: =INDEX(AP87:AP95,INDEX($A$87:$A$95,MATCH($L$97,$B$87:$B$95,0))) -> 45.28383097 | AQ97: =INDEX(AQ87:AQ95,INDEX($A$87:$A$95,MATCH($L$97,$B$87:$B$95,0))) -> 45.28383097 | AR97: =INDEX(AR87:AR95,INDEX($A$87:$A$95,MATCH($L$97,$B$87:$B$95,0))) -> 45.28383097 | AS97: =INDEX(AS87:AS95,INDEX($A$87:$A$95,MATCH($L$97,$B$87:$B$95,0))) -> 45.28383097 | AT97: =INDEX(AT87:AT95,INDEX($A$87:$A$95,MATCH($L$97,$B$87:$B$95,0))) -> 45.28383097 | AU97: =INDEX(AU87:AU95,INDEX($A$87:$A$95,MATCH($L$97,$B$87:$B$95,0))) -> 45.28383097 | AV97: =INDEX(AV87:AV95,INDEX($A$87:$A$95,MATCH($L$97,$B$87:$B$95,0))) -> 45.28383097 | AW97: =INDEX(AW87:AW95,INDEX($A$87:$A$95,MATCH($L$97,$B$87:$B$95,0))) -> 45.28383097 | AX97: =INDEX(AX87:AX95,INDEX($A$87:$A$95,MATCH($L$97,$B$87:$B$95,0))) -> 45.28383097 | AY97: =INDEX(AY87:AY95,INDEX($A$87:$A$95,MATCH($L$97,$B$87:$B$95,0))) -> 45.28383097 | AZ97: =INDEX(AZ87:AZ95,INDEX($A$87:$A$95,MATCH($L$97,$B$87:$B$95,0))) -> 45.28383097 | BA97: =INDEX(BA87:BA95,INDEX($A$87:$A$95,MATCH($L$97,$B$87:$B$95,0))) -> 45.28383097 | BB97: =INDEX(BB87:BB95,INDEX($A$87:$A$95,MATCH($L$97,$B$87:$B$95,0))) -> 45.28383097 | BC97: =INDEX(BC87:BC95,INDEX($A$87:$A$95,MATCH($L$97,$B$87:$B$95,0))) -> 45.28383097 | BD97: =INDEX(BD87:BD95,INDEX($A$87:$A$95,MATCH($L$97,$B$87:$B$95,0))) -> 45.28383097 | BE97: =INDEX(BE87:BE95,INDEX($A$87:$A$95,MATCH($L$97,$B$87:$B$95,0))) -> 45.28383097 | BF97: =INDEX(BF87:BF95,INDEX($A$87:$A$95,MATCH($L$97,$B$87:$B$95,0))) -> 45.28383097 | BG97: =INDEX(BG87:BG95,INDEX($A$87:$A$95,MATCH($L$97,$B$87:$B$95,0))) -> 45.28383097 | BH97: =INDEX(BH87:BH95,INDEX($A$87:$A$95,MATCH($L$97,$B$87:$B$95,0))) -> 45.28383097 | BI97: =INDEX(BI87:BI95,INDEX($A$87:$A$95,MATCH($L$97,$B$87:$B$95,0))) -> 45.28383097 | BJ97: =INDEX(BJ87:BJ95,INDEX($A$87:$A$95,MATCH($L$97,$B$87:$B$95,0))) -> 45.28383097 | BK97: =INDEX(BK87:BK95,INDEX($A$87:$A$95,MATCH($L$97,$B$87:$B$95,0))) -> 45.28383097 | BL97: =INDEX(BL87:BL95,INDEX($A$87:$A$95,MATCH($L$97,$B$87:$B$95,0))) -> 45.28383097 | BM97: =INDEX(BM87:BM95,INDEX($A$87:$A$95,MATCH($L$97,$B$87:$B$95,0))) -> 45.28383097 | BN97: =INDEX(BN87:BN95,INDEX($A$87:$A$95,MATCH($L$97,$B$87:$B$95,0))) -> 45.28383097 | BO97: =INDEX(BO87:BO95,INDEX($A$87:$A$95,MATCH($L$97,$B$87:$B$95,0))) -> 0 | BP97: =INDEX(BP87:BP95,INDEX($A$87:$A$95,MATCH($L$97,$B$87:$B$95,0))) -> 0 | BQ97: =INDEX(BQ87:BQ95,INDEX($A$87:$A$95,MATCH($L$97,$B$87:$B$95,0))) -> 0 | BR97: =INDEX(BR87:BR95,INDEX($A$87:$A$95,MATCH($L$97,$B$87:$B$95,0))) -> 0 | BS97: =INDEX(BS87:BS95,INDEX($A$87:$A$95,MATCH($L$97,$B$87:$B$95,0))) -> 0 | BT97: =INDEX(BT87:BT95,INDEX($A$87:$A$95,MATCH($L$97,$B$87:$B$95,0))) -> 0 | BU97: =INDEX(BU87:BU95,INDEX($A$87:$A$95,MATCH($L$97,$B$87:$B$95,0))) -> 0 | BV97: =INDEX(BV87:BV95,INDEX($A$87:$A$95,MATCH($L$97,$B$87:$B$95,0))) -> 0 | BW97: =INDEX(BW87:BW95,INDEX($A$87:$A$95,MATCH($L$97,$B$87:$B$95,0))) -> 0 | BX97: =INDEX(BX87:BX95,INDEX($A$87:$A$95,MATCH($L$97,$B$87:$B$95,0))) -> 0 | BY97: =INDEX(BY87:BY95,INDEX($A$87:$A$95,MATCH($L$97,$B$87:$B$95,0))) -> 0 | BZ97: =INDEX(BZ87:BZ95,INDEX($A$87:$A$95,MATCH($L$97,$B$87:$B$95,0))) -> 0 | CA97: =INDEX(CA87:CA95,INDEX($A$87:$A$95,MATCH($L$97,$B$87:$B$95,0))) -> 0 | CB97: =INDEX(CB87:CB95,INDEX($A$87:$A$95,MATCH($L$97,$B$87:$B$95,0))) -> 0 | CC97: =INDEX(CC87:CC95,INDEX($A$87:$A$95,MATCH($L$97,$B$87:$B$95,0))) -> 0 | CD97: =INDEX(CD87:CD95,INDEX($A$87:$A$95,MATCH($L$97,$B$87:$B$95,0))) -> 0 | CE97: =INDEX(CE87:CE95,INDEX($A$87:$A$95,MATCH($L$97,$B$87:$B$95,0))) -> 0 | CF97: =INDEX(CF87:CF95,INDEX($A$87:$A$95,MATCH($L$97,$B$87:$B$95,0))) -> 0 | CG97: =INDEX(CG87:CG95,INDEX($A$87:$A$95,MATCH($L$97,$B$87:$B$95,0))) -> 0

Sheet InpTech
A9: Technical
A10: Seasonality
C12: Month | E12: Number | F12: Season | I12: Irradiation
C13: January | E13: 1 | F13: Winter | I13: 0.06024792888
C14: February | E14: 2 | F14: Summer | I14: 0.06782474283
C15: March | E15: 3 | F15: Summer | I15: 0.08447755187
C16: April | E16: 4 | F16: Summer | I16: 0.08677674754
C17: May | E17: 5 | F17: Summer | I17: 0.101059412
C18: June | E18: 6 | F18: Summer | I18: 0.1061463038
C19: July | E19: 7 | F19: Summer | I19: 0.1090267386
C20: August | E20: 8 | F20: Summer | I20: 0.09759175102
C21: September | E21: 9 | F21: Summer | I21: 0.09159953341
C22: October | E22: 10 | F22: Summer | I22: 0.07368364914
C23: November | E23: 11 | F23: Winter | I23: 0.06531830988
C24: December | E24: 12 | F24: Winter | I24: 0.05624733103
I25: =SUM(I13:I24) -> 1
A29: Generation
C31: PPA Tenor | E31: years | F31: =InpC!K40 -> 25
C32: Selected Generation | E32: switch | F32: P90
C34: Generation
C35: P90 | E35: MWh | F35: 911404
C36: P50 | E36: MWh | F36: 937682
C39: Year | D39: Degradation | E39: Power Unavailability | F39: =F32 -> P90 | H39: P50 | I39: P90
C41: # | D41: % | E41: % | F41: MWh | H41: MWh | I41: MWh
C42: 1 | D42: 0.0006666666667 | E42: 0.01 | F42: =IF($F$39=$H$39,H42,I42) -> 911404 | H42: =F36 -> 937682 | I42: =F35 -> 911404
C43: =IF(C42>0,IF(C42<$F$31,C42+1,0),0) -> 2 | D43: 0.003243071571 | E43: 0.01 | F43: 908448.2516 | H43: =H42*(1-$D43) -> 934641.0302 | I43: 908448.2516
C44: =IF(C43>0,IF(C43<$F$31,C43+1,0),0) -> 3 | D44: 0.002510518409 | E44: 0.01 | F44: 906167.5755 | H44: 932294.5967 | I44: 906167.5755
C45: 4 | D45: 0.0026 | E45: 0.01 | F45: 903811.5398 | H45: 929870.6307 | I45: 903811.5398
C46: 5 | D46: 0.0028 | E46: 0.01 | F46: 901280.8675 | H46: 927266.9929 | I46: 901280.8675
C47: 6 | D47: 0.0035 | E47: 0.005 | F47: 898126.3845 | H47: 924021.5585 | I47: 898126.3845
C48: 7 | D48: 0.0035 | E48: 0.005 | F48: 894982.9421 | H48: 920787.483 | I48: 894982.9421
C49: 8 | D49: 0.0035 | E49: 0.005 | F49: 891850.5019 | H49: 917564.7268 | I49: 891850.5019
C50: 9 | D50: 0.0035 | E50: 0.005 | F50: 888729.0251 | H50: 914353.2503 | I50: 888729.0251
C51: 10 | D51: 0.0035 | E51: 0.005 | F51: 885618.4735 | H51: 911153.0139 | I51: 885618.4735
C52: 11 | D52: 0.00375 | E52: 0.005 | F52: 882297.4042 | H52: 907736.1901 | I52: 882297.4042
C53: 12 | D53: 0.00375 | E53: 0.005 | F53: 878988.789 | H53: 904332.1794 | I53: 878988.789
C54: 13 | D54: 0.00375 | E54: 0.005 | F54: 875692.581 | H54: 900940.9337 | I54: 875692.581
C55: 14 | D55: 0.00375 | E55: 0.005 | F55: 872408.7338 | H55: 897562.4052 | I55: 872408.7338
C56: 15 | D56: 0.00375 | E56: 0.005 | F56: 869137.2011 | H56: 894196.5462 | I56: 869137.2011
C57: 16 | D57: 0.00375 | E57: 0.005 | F57: 865877.9366 | H57: 890843.3091 | I57: 865877.9366
C58: 17 | D58: 0.00375 | E58: 0.005 | F58: 862630.8943 | H58: 887502.6467 | I58: 862630.8943
C59: 18 | D59: 0.00375 | E59: 0.005 | F59: 859396.0285 | H59: =H58*(1-$D59) -> 884174.5118 | I59: 859396.0285
C60: 19 | D60: 0.00375 | E60: 0.005 | F60: 856173.2933 | H60: 880858.8574 | I60: 856173.2933
C61: 20 | D61: 0.00375 | E61: 0.005 | F61: 852962.6435 | H61: 877555.6367 | I61: 852962.6435
C62: 21 | D62: 0.00375 | E62: 0.005 | F62: 849764.0336 | H62: 874264.803 | I62: 849764.0336
C63: 22 | D63: 0.00375 | E63: 0.005 | F63: 846577.4185 | H63: 870986.31 | I63: 846577.4185
C64: 23 | D64: 0.00375 | E64: 0.005 | F64: 843402.7531 | H64: 867720.1114 | I64: 843402.7531
C65: 24 | D65: 0.00375 | E65: 0.005 | F65: 840239.9928 | H65: 864466.1609 | I65: 840239.9928
C66: 25 | D66: 0.00375 | E66: 0.005 | F66: 837089.0928 | H66: 861224.4128 | I66: 837089.0928
C67: =IF(C66>0,IF(C66<$F$31,C66+1,0),0) -> 0
C68: 0
C69: 0
C70: 0
C71: 0
C72: =IF(C71>0,IF(C71<$F$31,C71+1,0),0) -> 0
C73: 0
C74: 0
C75: 0
C76: 0
A78: Data
B80: Seasonality
B81: Winter
B82: Summer
A84: End Sheet

Sheet Sens (hidden)
F2: 1 | H2: 1 | I2: =H2+1 -> 2 | J2: 3 | K2: 4 | L2: 5 | M2: 6 | N2: 7 | O2: 8 | P2: 9 | Q2: 10 | R2: 11 | S2: 12 | T2: 13 | U2: 14 | V2: 15 | W2: 16 | X2: 17
F3: =INDEX(H3:X7,,F2) -> Base Case | H3: Base Case | I3: Price Down 5% | J3: Price Down 10% | K3: Price Down 20% | L3: Inflation Increase | M3: Construction Delay | N3: Royalty Up | O3: Tax Increase | P3: Maintenance Up | Q3: Combined Downside | R3: OPEX Up | S3: Price Up 10% | T3: Recovery Down | U3: CAPEX Overrun | V3: Spare | W3: Spare | X3: Spare
A9: Scenario Manager
B12: Gold Price | E12: % | F12: =INDEX(H12:X12,,$F$2) -> 0 | H12: 0 | I12: -0.05 | J12: -0.1 | K12: -0.2 | L12: 0 | M12: 0 | N12: 0 | O12: 0 | P12: 0 | Q12: -0.1 | R12: 0 | S12: 0 | T12: 0 | U12: 0 | V12: 0 | W12: 0 | X12: 0
B13: OPEX | E13: % | F13: 0 | H13: 0 | I13: 0 | J13: 0 | K13: 0 | L13: 0 | M13: 0 | N13: 0 | O13: 0 | P13: 0 | Q13: 0.1 | R13: 0 | S13: 0.1 | T13: 0 | U13: 0 | V13: 0 | W13: 0 | X13: 0
B14: CAPEX | E14: % | F14: 0 | H14: 0 | I14: 0 | J14: 0 | K14: 0 | L14: 0 | M14: 0 | N14: 0 | O14: 0 | P14: 0 | Q14: 0.1 | R14: 0 | S14: 0 | T14: 0 | U14: 0 | V14: 0 | W14: 0 | X14: 0
B15: Inflation | E15: % | F15: 0 | H15: 0 | I15: 0 | J15: 0 | K15: 0 | L15: 0.1 | M15: 0 | N15: 0 | O15: 0 | P15: 0 | Q15: 0.1 | R15: 0 | S15: 0 | T15: 0 | U15: 0 | V15: 0 | W15: 0 | X15: 0
B16: Construction Time | E16: months | F16: 0 | H16: 0 | I16: 0 | J16: 0 | K16: 0 | L16: 0 | M16: 5 | N16: 0 | O16: 0 | P16: 0 | Q16: 5 | R16: 0 | S16: 0 | T16: 0 | U16: 0 | V16: 0 | W16: 0 | X16: 0
B17: Tax Rate | E17: % | F17: 0 | H17: 0 | I17: 0 | J17: 0 | K17: 0 | L17: 0 | M17: 0 | N17: 0 | O17: 0.2 | P17: 0 | Q17: 0.1 | R17: 0 | S17: 0 | T17: 0 | U17: 0 | V17: 0 | W17: 0 | X17: 0
B18: Major Maintenance | E18: % | F18: 0 | H18: 0 | I18: 0 | J18: 0 | K18: 0 | L18: 0 | M18: 0 | N18: 0 | O18: 0 | P18: 0.2 | Q18: 0.1 | R18: 0 | S18: 0 | T18: 0 | U18: 0 | V18: 0 | W18: 0 | X18: 0
B19: Royalty Rate | E19: % | F19: 0 | H19: 0 | I19: 0 | J19: 0 | K19: 0 | L19: 0 | M19: 0 | N19: 0.2 | O19: 0 | P19: 0 | Q19: 0.1 | R19: 0 | S19: 0 | T19: 0 | U19: 0 | V19: 0 | W19: 0 | X19: 0
B20: [spare] | E20: % | F20: 0 | H20: 0 | I20: 0 | J20: 0 | K20: 0 | L20: 0 | M20: 0 | N20: 0 | O20: 0 | P20: 0 | Q20: 0 | R20: 0 | S20: 0 | T20: 0 | U20: 0 | V20: 0 | W20: 0 | X20: 0
B21: [spare] | E21: % | F21: 0 | H21: 0 | I21: 0 | J21: 0 | K21: 0 | L21: 0 | M21: 0 | N21: 0 | O21: 0 | P21: 0 | Q21: 0 | R21: 0 | S21: 0 | T21: 0 | U21: 0 | V21: 0 | W21: 0 | X21: 0
B22: [spare] | E22: % | F22: 0 | H22: 0 | I22: 0 | J22: 0 | K22: 0 | L22: 0 | M22: 0 | N22: 0 | O22: 0 | P22: 0 | Q22: 0 | R22: 0 | S22: 0 | T22: 0 | U22: 0 | V22: 0 | W22: 0 | X22: 0
B23: [spare] | E23: % | F23: 0 | H23: 0 | I23: 0 | J23: 0 | K23: 0 | L23: 0 | M23: 0 | N23: 0 | O23: 0 | P23: 0 | Q23: 0 | R23: 0 | S23: 0 | T23: 0 | U23: 0 | V23: 0 | W23: 0 | X23: 0
B24: [spare] | E24: % | F24: 0 | H24: 0 | I24: 0 | J24: 0 | K24: 0 | L24: 0 | M24: 0 | N24: 0 | O24: 0 | P24: 0 | Q24: 0 | R24: 0 | S24: 0 | T24: 0 | U24: 0 | V24: 0 | W24: 0 | X24: 0
B25: [spare] | E25: % | F25: 0 | H25: 0 | I25: 0 | J25: 0 | K25: 0 | L25: 0 | M25: 0 | N25: 0 | O25: 0 | P25: 0 | Q25: 0 | R25: 0 | S25: 0 | T25: 0 | U25: 0 | V25: 0 | W25: 0 | X25: 0
B26: [spare] | E26: % | F26: 0 | H26: 0 | I26: 0 | J26: 0 | K26: 0 | L26: 0 | M26: 0 | N26: 0 | O26: 0 | P26: 0 | Q26: 0 | R26: 0 | S26: 0 | T26: 0 | U26: 0 | V26: 0 | W26: 0 | X26: 0
B27: [spare] | E27: % | F27: 0 | H27: 0 | I27: 0 | J27: 0 | K27: 0 | L27: 0 | M27: 0 | N27: 0 | O27: 0 | P27: 0 | Q27: 0 | R27: 0 | S27: 0 | T27: 0 | U27: 0 | V27: 0 | W27: 0 | X27: 0
B28: [spare] | E28: % | F28: 0 | H28: 0 | I28: 0 | J28: 0 | K28: 0 | L28: 0 | M28: 0 | N28: 0 | O28: 0 | P28: 0 | Q28: 0 | R28: 0 | S28: 0 | T28: 0 | U28: 0 | V28: 0 | W28: 0 | X28: 0
B29: [spare] | E29: % | F29: 0 | H29: 0 | I29: 0 | J29: 0 | K29: 0 | L29: 0 | M29: 0 | N29: 0 | O29: 0 | P29: 0 | Q29: 0 | R29: 0 | S29: 0 | T29: 0 | U29: 0 | V29: 0 | W29: 0 | X29: 0
B30: [spare] | E30: % | F30: 0 | H30: 0 | I30: 0 | J30: 0 | K30: 0 | L30: 0 | M30: 0 | N30: 0 | O30: 0 | P30: 0 | Q30: 0 | R30: 0 | S30: 0 | T30: 0 | U30: 0 | V30: 0 | W30: 0 | X30: 0
B31: [spare] | E31: % | F31: 0 | H31: 0 | I31: 0 | J31: 0 | K31: 0 | L31: 0 | M31: 0 | N31: 0 | O31: 0 | P31: 0 | Q31: 0 | R31: 0 | S31: 0 | T31: 0 | U31: 0 | V31: 0 | W31: 0 | X31: 0
B32: [spare] | E32: % | F32: 0 | H32: 0 | I32: 0 | J32: 0 | K32: 0 | L32: 0 | M32: 0 | N32: 0 | O32: 0 | P32: 0 | Q32: 0 | R32: 0 | S32: 0 | T32: 0 | U32: 0 | V32: 0 | W32: 0 | X32: 0
A35: Results
B37: Scenarios | E37: # | F37: 14
B39: Checks
B40: Balance Sheet | F40: =BS!L52 -> TRUE
B41: Macro | F41: =Macro!#REF! -> 
H43: Project IRR | I43: Equity IRR | J43: Enterprise Value | K43: Equity Value | L43: COD Debt | M43: Avg DSCR | N43: Min DSCR | O43: Avg LLCR | P43: Min LLCR | Q43: Avg PLCR | R43: Min PLCR
H44: % | I44: % | J44: $m | K44: $m | L44: $m | M44: x | N44: x | O44: x | P44: x | Q44: x | R44: x
B45: ="Live Case: "&F3 -> Live Case: Base Case | H45: =#REF! ->  | I45: =#REF! ->  | J45: =#REF! ->  | K45: =#REF! ->  | L45: =DebtLive ->  | M45: =Ratio!I28 -> 1.747643606 | N45: =Ratio!J28 -> 1.747630682 | O45: =Ratio!I79 -> 1.89638287 | P45: =Ratio!J79 -> 1.767954028 | Q45: =Ratio!I113 -> 2.679431292 | R45: =Ratio!J113 -> 1.894979131
B46: Base Case | H46: 0.1939853132 | I46: 0.4477525413 | J46: 37.20142826 | K46: 47.73239372 | L46: 105.2837373 | M46: 2.554163735 | N46: 1.927894342 | O46: 4.640769047 | P46: 2.290147237 | Q46: 7.087233662 | R46: 2.617165856
B47: Price Down 5% | H47: 0.1850810826 | I47: 0.4196767032 | J47: 32.63947958 | K47: 43.81647058 | L47: 104.4318835 | M47: 2.098130696 | N47: 1.921187794 | O47: 3.364141242 | P47: 2.243583505 | Q47: 4.849059415 | R47: 2.590267061
B48: Price Down 10% | H48: 0.1763090551 | I48: 0.3920663416 | J48: 28.07753089 | K48: 39.90054744 | L48: 103.5800297 | M48: 1.999511536 | N48: 1.913779087 | O48: 2.811457227 | P48: 2.188253657 | Q48: 3.927877204 | R48: 2.557650724
B49: Price Down 20% | H49: 0.1591873586 | I49: 0.3396222413 | J49: 18.96177368 | K49: 32.18162544 | L49: 101.876322 | M49: 2.016523929 | N49: 1.896362795 | O49: 2.567152832 | P49: 2.053990146 | Q49: 3.870617162 | R49: 2.401085163
B50: Inflation Increase | H50: 0.1939853132 | I50: 0.4477525413 | J50: 37.20142826 | K50: 47.73239372 | L50: 105.2837373 | M50: 2.554163735 | N50: 1.927894342 | O50: 4.640769047 | P50: 2.290147237 | Q50: 7.087233662 | R50: 2.617165856
B51: Construction Delay | H51: 0.1768788636 | I51: 0.4318753064 | J51: 30.61225055 | K51: 43.14724462 | L51: 107.0191309 | M51: 2.14490892 | N51: 1.926446207 | O51: 3.797281551 | P51: 2.236598367 | Q51: 5.792415742 | R51: 2.576978707
B52: Royalty Up | H52: 0.1926199257 | I52: 0.4442493618 | J52: 36.36782487 | K52: 46.98424548 | L52: 105.2141934 | M52: 2.372454123 | N52: 1.92726951 | O52: 4.667547972 | P52: 2.286273814 | Q52: 7.137579267 | R52: 2.617125636
B53: Tax Increase | H53: 0.1855858386 | I53: 0.4293059886 | J53: 32.17695515 | K53: 43.97273693 | L53: 104.9068041 | M53: 2.092863998 | N53: 1.924806102 | O53: 3.326070623 | P53: 2.246523249 | Q53: 4.759594061 | R53: 2.578398547
B54: Maintenance Up | H54: 0.1942765892 | I54: 0.4435194194 | J54: 37.42688361 | K54: 46.84249735 | L54: 105.183279 | M54: 2.353629533 | N54: 1.927623912 | O54: 3.973455007 | P54: 2.284820197 | Q54: 5.877325741 | R54: 2.614816082
B55: Combined Downside | H55: 0.1293681681 | I55: 0.2362766922 | J55: 2.952257487 | K55: 17.74232257 | L55: 95.6939149 | M55: 2.004764439 | N55: 1.916060257 | O55: 2.986347641 | P55: 2.189710765 | Q55: 4.263118987 | R55: 2.534258254
B56: OPEX Up | H56: 0.1939853132 | I56: 0.4477525413 | J56: 37.20142826 | K56: 47.73239372 | L56: 105.2837373 | M56: 2.554163735 | N56: 1.927894342 | O56: 4.640769047 | P56: 2.290147237 | Q56: 7.087233662 | R56: 2.617165856
B57: Price Up 10% | H57: 0.1829206049 | I57: 0.41648224 | J57: 30.46027776 | K57: 41.33621038 | L57: 104.7367018 | M57: 2.033288719 | N57: 1.922585917 | O57: 3.016843797 | P57: 2.216894468 | Q57: 4.186279315 | R57: 2.53363009
B58: Recovery Down | H58: 0.1939853132 | I58: 0.4477525413 | J58: 37.20142826 | K58: 47.73239372 | L58: 105.2837373 | M58: 2.554163735 | N58: 1.927894342 | O58: 4.640769047 | P58: 2.290147237 | Q58: 7.087233662 | R58: 2.617165856
B59: CAPEX Overrun | H59: 0.1939853132 | I59: 0.4477525413 | J59: 37.20142826 | K59: 47.73239372 | L59: 105.2837373 | M59: 2.554163735 | N59: 1.927894342 | O59: 4.640769047 | P59: 2.290147237 | Q59: 7.087233662 | R59: 2.617165856
B60: Spare
B61: Spare
B62: Spare
A66: END SHEET

Sheet IS
P3: Period Start: | R3: =Time!R17 -> 2021-03-01 | S3: =Time!S17 -> 2021-04-01 | T3: =Time!T17 -> 2021-05-01 | U3: =Time!U17 -> 2021-06-01 | V3: =Time!V17 -> 2021-07-01 | W3: =Time!W17 -> 2021-08-01 | X3: =Time!X17 -> 2021-09-01 | Y3: =Time!Y17 -> 2021-10-01 | Z3: =Time!Z17 -> 2021-11-01 | AA3: =Time!AA17 -> 2021-12-01 | AB3: =Time!AB17 -> 2022-01-01 | AC3: =Time!AC17 -> 2022-02-01 | AD3: =Time!AD17 -> 2022-03-01 | AE3: =Time!AE17 -> 2022-04-01 | AF3: =Time!AF17 -> 2022-05-01 | AG3: =Time!AG17 -> 2022-06-01 | AH3: =Time!AH17 -> 2022-07-01 | AI3: =Time!AI17 -> 2022-08-01 | AJ3: =Time!AJ17 -> 2022-09-01 | AK3: =Time!AK17 -> 2022-10-01 | AL3: =Time!AL17 -> 2022-11-01 | AM3: =Time!AM17 -> 2022-12-01 | AN3: =Time!AN17 -> 2023-01-01 | AO3: =Time!AO17 -> 2023-07-01 | AP3: =Time!AP17 -> 2024-01-01 | AQ3: =Time!AQ17 -> 2024-07-01 | AR3: =Time!AR17 -> 2025-01-01 | AS3: =Time!AS17 -> 2025-07-01 | AT3: =Time!AT17 -> 2026-01-01 | AU3: =Time!AU17 -> 2026-07-01 | AV3: =Time!AV17 -> 2027-01-01 | AW3: =Time!AW17 -> 2027-07-01 | AX3: =Time!AX17 -> 2028-01-01 | AY3: =Time!AY17 -> 2028-07-01 | AZ3: =Time!AZ17 -> 2029-01-01 | BA3: =Time!BA17 -> 2029-07-01 | BB3: =Time!BB17 -> 2030-01-01 | BC3: =Time!BC17 -> 2030-07-01 | BD3: =Time!BD17 -> 2031-01-01 | BE3: =Time!BE17 -> 2031-07-01 | BF3: =Time!BF17 -> 2032-01-01 | BG3: =Time!BG17 -> 2032-07-01 | BH3: =Time!BH17 -> 2033-01-01 | BI3: =Time!BI17 -> 2033-07-01 | BJ3: =Time!BJ17 -> 2034-01-01 | BK3: =Time!BK17 -> 2034-07-01 | BL3: =Time!BL17 -> 2035-01-01 | BM3: =Time!BM17 -> 2035-07-01 | BN3: =Time!BN17 -> 2036-01-01 | BO3: =Time!BO17 -> 2036-07-01 | BP3: =Time!BP17 -> 2037-01-01 | BQ3: =Time!BQ17 -> 2037-07-01 | BR3: =Time!BR17 -> 2038-01-01 | BS3: =Time!BS17 -> 2038-07-01 | BT3: =Time!BT17 -> 2039-01-01 | BU3: =Time!BU17 -> 2039-07-01 | BV3: =Time!BV17 -> 2040-01-01 | BW3: =Time!BW17 -> 2040-07-01 | BX3: =Time!BX17 -> 2041-01-01 | BY3: =Time!BY17 -> 2041-07-01 | BZ3: =Time!BZ17 -> 2042-01-01 | CA3: =Time!CA17 -> 2042-07-01 | CB3: =Time!CB17 -> 2043-01-01 | CC3: =Time!CC17 -> 2043-07-01 | CD3: =Time!CD17 -> 2044-01-01 | CE3: =Time!CE17 -> 2044-07-01 | CF3: =Time!CF17 -> 2045-01-01 | CG3: =Time!CG17 -> 2045-07-01 | CH3: =Time!CH17 -> 2046-01-01 | CI3: =Time!CI17 -> 2046-07-01 | CJ3: =Time!CJ17 -> 2047-01-01 | CK3: =Time!CK17 -> 2047-07-01 | CL3: =Time!CL17 -> 2048-01-01 | CM3: =Time!CM17 -> 2048-07-01 | CN3: =Time!CN17 -> 2049-01-01 | CO3: =Time!CO17 -> 2049-07-01 | CP3: =Time!CP17 -> 2050-01-01 | CQ3: =Time!CQ17 -> 2050-07-01 | CR3: =Time!CR17 -> 2051-01-01 | CS3: =Time!CS17 -> 2051-07-01 | CT3: =Time!CT17 -> 2052-01-01 | CU3: =Time!CU17 -> 2052-07-01 | CV3: =Time!CV17 -> 2053-01-01 | CW3: =Time!CW17 -> 2053-07-01 | CX3: =Time!CX17 -> 2054-01-01 | CY3: =Time!CY17 -> 2054-07-01 | CZ3: =Time!CZ17 -> 2055-01-01 | DA3: =Time!DA17 -> 2055-07-01 | DB3: =Time!DB17 -> 2056-01-01 | DC3: =Time!DC17 -> 2056-07-01 | DD3: =Time!DD17 -> 2057-01-01 | DE3: =Time!DE17 -> 2057-07-01 | DF3: =Time!DF17 -> 2058-01-01 | DG3: =Time!DG17 -> 2058-07-01 | DH3: =Time!DH17 -> 2059-01-01 | DI3: =Time!DI17 -> 2059-07-01 | DJ3: =Time!DJ17 -> 2060-01-01 | DK3: =Time!DK17 -> 2060-07-01 | DL3: =Time!DL17 -> 2061-01-01 | DM3: =Time!DM17 -> 2061-07-01 | DN3: =Time!DN17 -> 2062-01-01 | DO3: =Time!DO17 -> 2062-07-01 | DP3: =Time!DP17 -> 2063-01-01 | DQ3: =Time!DQ17 -> 2063-07-01 | DR3: =Time!DR17 -> 2064-01-01 | DS3: =Time!DS17 -> 2064-07-01 | DT3: =Time!DT17 -> 2065-01-01 | DU3: =Time!DU17 -> 2065-07-01 | DV3: =Time!DV17 -> 2066-01-01 | DW3: =Time!DW17 -> 2066-07-01 | DX3: =Time!DX17 -> 2067-01-01 | DY3: =Time!DY17 -> 2067-07-01 | DZ3: =Time!DZ17 -> 2068-01-01 | EA3: =Time!EA17 -> 2068-07-01 | EB3: =Time!EB17 -> 2069-01-01 | EC3: =Time!EC17 -> 2069-07-01 | ED3: =Time!ED17 -> 2070-01-01 | EE3: =Time!EE17 -> 2070-07-01 | EF3: =Time!EF17 -> 2071-01-01 | EG3: =Time!EG17 -> 2071-07-01 | EH3: =Time!EH17 -> 2072-01-01 | EI3: =Time!EI17 -> 2072-07-01 | EJ3: =Time!EJ17 -> 2073-01-01 | EK3: =Time!EK17 -> 2073-07-01 | EL3: =Time!EL17 -> 2074-01-01 | EM3: =Time!EM17 -> 2074-07-01 | EN3: =Time!EN17 -> 2075-01-01 | EO3: =Time!EO17 -> 2075-07-01 | EP3: =Time!EP17 -> 2076-01-01 | EQ3: =Time!EQ17 -> 2076-07-01 | ER3: =Time!ER17 -> 2077-01-01 | ES3: =Time!ES17 -> 2077-07-01 | ET3: =Time!ET17 -> 2078-01-01 | EU3: =Time!EU17 -> 2078-07-01 | EV3: =Time!EV17 -> 2079-01-01 | EW3: =Time!EW17 -> 2079-07-01 | EX3: =Time!EX17 -> 2080-01-01 | EY3: =Time!EY17 -> 2080-07-01 | EZ3: =Time!EZ17 -> 2081-01-01 | FA3: =Time!FA17 -> 2081-07-01 | FB3: =Time!FB17 -> 2082-01-01 | FC3: =Time!FC17 -> 2082-07-01 | FD3: =Time!FD17 -> 2083-01-01 | FE3: =Time!FE17 -> 2083-07-01 | FF3: =Time!FF17 -> 2084-01-01 | FG3: =Time!FG17 -> 2084-07-01 | FH3: =Time!FH17 -> 2085-01-01 | FI3: =Time!FI17 -> 2085-07-01 | FJ3: =Time!FJ17 -> 2086-01-01 | FK3: =Time!FK17 -> 2086-07-01 | FL3: =Time!FL17 -> 2087-01-01 | FM3: =Time!FM17 -> 2087-07-01 | FN3: =Time!FN17 -> 2088-01-01 | FO3: =Time!FO17 -> 2088-07-01 | FP3: =Time!FP17 -> 2089-01-01 | FQ3: =Time!FQ17 -> 2089-07-01 | FR3: =Time!FR17 -> 2090-01-01 | FS3: =Time!FS17 -> 2090-07-01 | FT3: =Time!FT17 -> 2091-01-01 | FU3: =Time!FU17 -> 2091-07-01 | FV3: =Time!FV17 -> 2092-01-01 | FW3: =Time!FW17 -> 2092-07-01 | FX3: =Time!FX17 -> 2093-01-01 | FY3: =Time!FY17 -> 2093-07-01 | FZ3: =Time!FZ17 -> 2094-01-01 | GA3: =Time!GA17 -> 2094-07-01 | GB3: =Time!GB17 -> 2095-01-01 | GC3: =Time!GC17 -> 2095-07-01 | GD3: =Time!GD17 -> 2096-01-01 | GE3: =Time!GE17 -> 2096-07-01 | GF3: =Time!GF17 -> 2097-01-01 | GG3: =Time!GG17 -> 2097-07-01 | GH3: =Time!GH17 -> 2098-01-01 | GI3: =Time!GI17 -> 2098-07-01 | GJ3: =Time!GJ17 -> 2099-01-01 | GK3: =Time!GK17 -> 2099-07-01 | GL3: =Time!GL17 -> 2100-01-01 | GM3: =Time!GM17 -> 2100-07-01 | GN3: =Time!GN17 -> 2101-01-01 | GO3: =Time!GO17 -> 2101-07-01 | GP3: =Time!GP17 -> 2102-01-01 | GQ3: =Time!GQ17 -> 2102-07-01 | GR3: =Time!GR17 -> 2103-01-01 | GS3: =Time!GS17 -> 2103-07-01 | GT3: =Time!GT17 -> 2104-01-01 | GU3: =Time!GU17 -> 2104-07-01 | GV3: =Time!GV17 -> 2105-01-01 | GW3: =Time!GW17 -> 2105-07-01 | GX3: =Time!GX17 -> 2106-01-01 | GY3: =Time!GY17 -> 2106-07-01 | GZ3: =Time!GZ17 -> 2107-01-01 | HA3: =Time!HA17 -> 2107-07-01 | HB3: =Time!HB17 -> 2108-01-01 | HC3: =Time!HC17 -> 2108-07-01 | HD3: =Time!HD17 -> 2109-01-01 | HE3: =Time!HE17 -> 2109-07-01 | HF3: =Time!HF17 -> 2110-01-01 | HG3: =Time!HG17 -> 2110-07-01 | HH3: =Time!HH17 -> 2111-01-01 | HI3: =Time!HI17 -> 2111-07-01 | HJ3: =Time!HJ17 -> 2112-01-01 | HK3: =Time!HK17 -> 2112-07-01 | HL3: =Time!HL17 -> 2113-01-01 | HM3: =Time!HM17 -> 2113-07-01 | HN3: =Time!HN17 -> 2114-01-01 | HO3: =Time!HO17 -> 2114-07-01 | HP3: =Time!HP17 -> 2115-01-01 | HQ3: =Time!HQ17 -> 2115-07-01 | HR3: =Time!HR17 -> 2116-01-01 | HS3: =Time!HS17 -> 2116-07-01 | HT3: =Time!HT17 -> 2117-01-01 | HU3: =Time!HU17 -> 2117-07-01 | HV3: =Time!HV17 -> 2118-01-01 | HW3: =Time!HW17 -> 2118-07-01 | HX3: =Time!HX17 -> 2119-01-01 | HY3: =Time!HY17 -> 2119-07-01 | HZ3: =Time!HZ17 -> 2120-01-01 | IA3: =Time!IA17 -> 2120-07-01 | IB3: =Time!IB17 -> 2121-01-01 | IC3: =Time!IC17 -> 2121-07-01 | ID3: =Time!ID17 -> 2122-01-01 | IE3: =Time!IE17 -> 2122-07-01
P4: Period End: | R4: =Time!R18 -> 2021-03-31 | S4: =Time!S18 -> 2021-04-30 | T4: =Time!T18 -> 2021-05-31 | U4: =Time!U18 -> 2021-06-30 | V4: =Time!V18 -> 2021-07-31 | W4: =Time!W18 -> 2021-08-31 | X4: =Time!X18 -> 2021-09-30 | Y4: =Time!Y18 -> 2021-10-31 | Z4: =Time!Z18 -> 2021-11-30 | AA4: =Time!AA18 -> 2021-12-31 | AB4: =Time!AB18 -> 2022-01-31 | AC4: =Time!AC18 -> 2022-02-28 | AD4: =Time!AD18 -> 2022-03-31 | AE4: =Time!AE18 -> 2022-04-30 | AF4: =Time!AF18 -> 2022-05-31 | AG4: =Time!AG18 -> 2022-06-30 | AH4: =Time!AH18 -> 2022-07-31 | AI4: =Time!AI18 -> 2022-08-31 | AJ4: =Time!AJ18 -> 2022-09-30 | AK4: =Time!AK18 -> 2022-10-31 | AL4: =Time!AL18 -> 2022-11-30 | AM4: =Time!AM18 -> 2022-12-31 | AN4: =Time!AN18 -> 2023-06-30 | AO4: =Time!AO18 -> 2023-12-31 | AP4: =Time!AP18 -> 2024-06-30 | AQ4: =Time!AQ18 -> 2024-12-31 | AR4: =Time!AR18 -> 2025-06-30 | AS4: =Time!AS18 -> 2025-12-31 | AT4: =Time!AT18 -> 2026-06-30 | AU4: =Time!AU18 -> 2026-12-31 | AV4: =Time!AV18 -> 2027-06-30 | AW4: =Time!AW18 -> 2027-12-31 | AX4: =Time!AX18 -> 2028-06-30 | AY4: =Time!AY18 -> 2028-12-31 | AZ4: =Time!AZ18 -> 2029-06-30 | BA4: =Time!BA18 -> 2029-12-31 | BB4: =Time!BB18 -> 2030-06-30 | BC4: =Time!BC18 -> 2030-12-31 | BD4: =Time!BD18 -> 2031-06-30 | BE4: =Time!BE18 -> 2031-12-31 | BF4: =Time!BF18 -> 2032-06-30 | BG4: =Time!BG18 -> 2032-12-31 | BH4: =Time!BH18 -> 2033-06-30 | BI4: =Time!BI18 -> 2033-12-31 | BJ4: =Time!BJ18 -> 2034-06-30 | BK4: =Time!BK18 -> 2034-12-31 | BL4: =Time!BL18 -> 2035-06-30 | BM4: =Time!BM18 -> 2035-12-31 | BN4: =Time!BN18 -> 2036-06-30 | BO4: =Time!BO18 -> 2036-12-31 | BP4: =Time!BP18 -> 2037-06-30 | BQ4: =Time!BQ18 -> 2037-12-31 | BR4: =Time!BR18 -> 2038-06-30 | BS4: =Time!BS18 -> 2038-12-31 | BT4: =Time!BT18 -> 2039-06-30 | BU4: =Time!BU18 -> 2039-12-31 | BV4: =Time!BV18 -> 2040-06-30 | BW4: =Time!BW18 -> 2040-12-31 | BX4: =Time!BX18 -> 2041-06-30 | BY4: =Time!BY18 -> 2041-12-31 | BZ4: =Time!BZ18 -> 2042-06-30 | CA4: =Time!CA18 -> 2042-12-31 | CB4: =Time!CB18 -> 2043-06-30 | CC4: =Time!CC18 -> 2043-12-31 | CD4: =Time!CD18 -> 2044-06-30 | CE4: =Time!CE18 -> 2044-12-31 | CF4: =Time!CF18 -> 2045-06-30 | CG4: =Time!CG18 -> 2045-12-31 | CH4: =Time!CH18 -> 2046-06-30 | CI4: =Time!CI18 -> 2046-12-31 | CJ4: =Time!CJ18 -> 2047-06-30 | CK4: =Time!CK18 -> 2047-12-31 | CL4: =Time!CL18 -> 2048-06-30 | CM4: =Time!CM18 -> 2048-12-31 | CN4: =Time!CN18 -> 2049-06-30 | CO4: =Time!CO18 -> 2049-12-31 | CP4: =Time!CP18 -> 2050-06-30 | CQ4: =Time!CQ18 -> 2050-12-31 | CR4: =Time!CR18 -> 2051-06-30 | CS4: =Time!CS18 -> 2051-12-31 | CT4: =Time!CT18 -> 2052-06-30 | CU4: =Time!CU18 -> 2052-12-31 | CV4: =Time!CV18 -> 2053-06-30 | CW4: =Time!CW18 -> 2053-12-31 | CX4: =Time!CX18 -> 2054-06-30 | CY4: =Time!CY18 -> 2054-12-31 | CZ4: =Time!CZ18 -> 2055-06-30 | DA4: =Time!DA18 -> 2055-12-31 | DB4: =Time!DB18 -> 2056-06-30 | DC4: =Time!DC18 -> 2056-12-31 | DD4: =Time!DD18 -> 2057-06-30 | DE4: =Time!DE18 -> 2057-12-31 | DF4: =Time!DF18 -> 2058-06-30 | DG4: =Time!DG18 -> 2058-12-31 | DH4: =Time!DH18 -> 2059-06-30 | DI4: =Time!DI18 -> 2059-12-31 | DJ4: =Time!DJ18 -> 2060-06-30 | DK4: =Time!DK18 -> 2060-12-31 | DL4: =Time!DL18 -> 2061-06-30 | DM4: =Time!DM18 -> 2061-12-31 | DN4: =Time!DN18 -> 2062-06-30 | DO4: =Time!DO18 -> 2062-12-31 | DP4: =Time!DP18 -> 2063-06-30 | DQ4: =Time!DQ18 -> 2063-12-31 | DR4: =Time!DR18 -> 2064-06-30 | DS4: =Time!DS18 -> 2064-12-31 | DT4: =Time!DT18 -> 2065-06-30 | DU4: =Time!DU18 -> 2065-12-31 | DV4: =Time!DV18 -> 2066-06-30 | DW4: =Time!DW18 -> 2066-12-31 | DX4: =Time!DX18 -> 2067-06-30 | DY4: =Time!DY18 -> 2067-12-31 | DZ4: =Time!DZ18 -> 2068-06-30 | EA4: =Time!EA18 -> 2068-12-31 | EB4: =Time!EB18 -> 2069-06-30 | EC4: =Time!EC18 -> 2069-12-31 | ED4: =Time!ED18 -> 2070-06-30 | EE4: =Time!EE18 -> 2070-12-31 | EF4: =Time!EF18 -> 2071-06-30 | EG4: =Time!EG18 -> 2071-12-31 | EH4: =Time!EH18 -> 2072-06-30 | EI4: =Time!EI18 -> 2072-12-31 | EJ4: =Time!EJ18 -> 2073-06-30 | EK4: =Time!EK18 -> 2073-12-31 | EL4: =Time!EL18 -> 2074-06-30 | EM4: =Time!EM18 -> 2074-12-31 | EN4: =Time!EN18 -> 2075-06-30 | EO4: =Time!EO18 -> 2075-12-31 | EP4: =Time!EP18 -> 2076-06-30 | EQ4: =Time!EQ18 -> 2076-12-31 | ER4: =Time!ER18 -> 2077-06-30 | ES4: =Time!ES18 -> 2077-12-31 | ET4: =Time!ET18 -> 2078-06-30 | EU4: =Time!EU18 -> 2078-12-31 | EV4: =Time!EV18 -> 2079-06-30 | EW4: =Time!EW18 -> 2079-12-31 | EX4: =Time!EX18 -> 2080-06-30 | EY4: =Time!EY18 -> 2080-12-31 | EZ4: =Time!EZ18 -> 2081-06-30 | FA4: =Time!FA18 -> 2081-12-31 | FB4: =Time!FB18 -> 2082-06-30 | FC4: =Time!FC18 -> 2082-12-31 | FD4: =Time!FD18 -> 2083-06-30 | FE4: =Time!FE18 -> 2083-12-31 | FF4: =Time!FF18 -> 2084-06-30 | FG4: =Time!FG18 -> 2084-12-31 | FH4: =Time!FH18 -> 2085-06-30 | FI4: =Time!FI18 -> 2085-12-31 | FJ4: =Time!FJ18 -> 2086-06-30 | FK4: =Time!FK18 -> 2086-12-31 | FL4: =Time!FL18 -> 2087-06-30 | FM4: =Time!FM18 -> 2087-12-31 | FN4: =Time!FN18 -> 2088-06-30 | FO4: =Time!FO18 -> 2088-12-31 | FP4: =Time!FP18 -> 2089-06-30 | FQ4: =Time!FQ18 -> 2089-12-31 | FR4: =Time!FR18 -> 2090-06-30 | FS4: =Time!FS18 -> 2090-12-31 | FT4: =Time!FT18 -> 2091-06-30 | FU4: =Time!FU18 -> 2091-12-31 | FV4: =Time!FV18 -> 2092-06-30 | FW4: =Time!FW18 -> 2092-12-31 | FX4: =Time!FX18 -> 2093-06-30 | FY4: =Time!FY18 -> 2093-12-31 | FZ4: =Time!FZ18 -> 2094-06-30 | GA4: =Time!GA18 -> 2094-12-31 | GB4: =Time!GB18 -> 2095-06-30 | GC4: =Time!GC18 -> 2095-12-31 | GD4: =Time!GD18 -> 2096-06-30 | GE4: =Time!GE18 -> 2096-12-31 | GF4: =Time!GF18 -> 2097-06-30 | GG4: =Time!GG18 -> 2097-12-31 | GH4: =Time!GH18 -> 2098-06-30 | GI4: =Time!GI18 -> 2098-12-31 | GJ4: =Time!GJ18 -> 2099-06-30 | GK4: =Time!GK18 -> 2099-12-31 | GL4: =Time!GL18 -> 2100-06-30 | GM4: =Time!GM18 -> 2100-12-31 | GN4: =Time!GN18 -> 2101-06-30 | GO4: =Time!GO18 -> 2101-12-31 | GP4: =Time!GP18 -> 2102-06-30 | GQ4: =Time!GQ18 -> 2102-12-31 | GR4: =Time!GR18 -> 2103-06-30 | GS4: =Time!GS18 -> 2103-12-31 | GT4: =Time!GT18 -> 2104-06-30 | GU4: =Time!GU18 -> 2104-12-31 | GV4: =Time!GV18 -> 2105-06-30 | GW4: =Time!GW18 -> 2105-12-31 | GX4: =Time!GX18 -> 2106-06-30 | GY4: =Time!GY18 -> 2106-12-31 | GZ4: =Time!GZ18 -> 2107-06-30 | HA4: =Time!HA18 -> 2107-12-31 | HB4: =Time!HB18 -> 2108-06-30 | HC4: =Time!HC18 -> 2108-12-31 | HD4: =Time!HD18 -> 2109-06-30 | HE4: =Time!HE18 -> 2109-12-31 | HF4: =Time!HF18 -> 2110-06-30 | HG4: =Time!HG18 -> 2110-12-31 | HH4: =Time!HH18 -> 2111-06-30 | HI4: =Time!HI18 -> 2111-12-31 | HJ4: =Time!HJ18 -> 2112-06-30 | HK4: =Time!HK18 -> 2112-12-31 | HL4: =Time!HL18 -> 2113-06-30 | HM4: =Time!HM18 -> 2113-12-31 | HN4: =Time!HN18 -> 2114-06-30 | HO4: =Time!HO18 -> 2114-12-31 | HP4: =Time!HP18 -> 2115-06-30 | HQ4: =Time!HQ18 -> 2115-12-31 | HR4: =Time!HR18 -> 2116-06-30 | HS4: =Time!HS18 -> 2116-12-31 | HT4: =Time!HT18 -> 2117-06-30 | HU4: =Time!HU18 -> 2117-12-31 | HV4: =Time!HV18 -> 2118-06-30 | HW4: =Time!HW18 -> 2118-12-31 | HX4: =Time!HX18 -> 2119-06-30 | HY4: =Time!HY18 -> 2119-12-31 | HZ4: =Time!HZ18 -> 2120-06-30 | IA4: =Time!IA18 -> 2120-12-31 | IB4: =Time!IB18 -> 2121-06-30 | IC4: =Time!IC18 -> 2121-12-31 | ID4: =Time!ID18 -> 2122-06-30 | IE4: =Time!IE18 -> 2122-12-31
P5: Year: | R5: =Time!R19 -> 2021 | S5: =Time!S19 -> 2021 | T5: =Time!T19 -> 2021 | U5: =Time!U19 -> 2021 | V5: =Time!V19 -> 2021 | W5: =Time!W19 -> 2021 | X5: =Time!X19 -> 2021 | Y5: =Time!Y19 -> 2021 | Z5: =Time!Z19 -> 2021 | AA5: =Time!AA19 -> 2021 | AB5: =Time!AB19 -> 2022 | AC5: =Time!AC19 -> 2022 | AD5: =Time!AD19 -> 2022 | AE5: =Time!AE19 -> 2022 | AF5: =Time!AF19 -> 2022 | AG5: =Time!AG19 -> 2022 | AH5: =Time!AH19 -> 2022 | AI5: =Time!AI19 -> 2022 | AJ5: =Time!AJ19 -> 2022 | AK5: =Time!AK19 -> 2022 | AL5: =Time!AL19 -> 2022 | AM5: =Time!AM19 -> 2022 | AN5: =Time!AN19 -> 2023 | AO5: =Time!AO19 -> 2023 | AP5: =Time!AP19 -> 2024 | AQ5: =Time!AQ19 -> 2024 | AR5: =Time!AR19 -> 2025 | AS5: =Time!AS19 -> 2025 | AT5: =Time!AT19 -> 2026 | AU5: =Time!AU19 -> 2026 | AV5: =Time!AV19 -> 2027 | AW5: =Time!AW19 -> 2027 | AX5: =Time!AX19 -> 2028 | AY5: =Time!AY19 -> 2028 | AZ5: =Time!AZ19 -> 2029 | BA5: =Time!BA19 -> 2029 | BB5: =Time!BB19 -> 2030 | BC5: =Time!BC19 -> 2030 | BD5: =Time!BD19 -> 2031 | BE5: =Time!BE19 -> 2031 | BF5: =Time!BF19 -> 2032 | BG5: =Time!BG19 -> 2032 | BH5: =Time!BH19 -> 2033 | BI5: =Time!BI19 -> 2033 | BJ5: =Time!BJ19 -> 2034 | BK5: =Time!BK19 -> 2034 | BL5: =Time!BL19 -> 2035 | BM5: =Time!BM19 -> 2035 | BN5: =Time!BN19 -> 2036 | BO5: =Time!BO19 -> 2036 | BP5: =Time!BP19 -> 2037 | BQ5: =Time!BQ19 -> 2037 | BR5: =Time!BR19 -> 2038 | BS5: =Time!BS19 -> 2038 | BT5: =Time!BT19 -> 2039 | BU5: =Time!BU19 -> 2039 | BV5: =Time!BV19 -> 2040 | BW5: =Time!BW19 -> 2040 | BX5: =Time!BX19 -> 2041 | BY5: =Time!BY19 -> 2041 | BZ5: =Time!BZ19 -> 2042 | CA5: =Time!CA19 -> 2042 | CB5: =Time!CB19 -> 2043 | CC5: =Time!CC19 -> 2043 | CD5: =Time!CD19 -> 2044 | CE5: =Time!CE19 -> 2044 | CF5: =Time!CF19 -> 2045 | CG5: =Time!CG19 -> 2045 | CH5: =Time!CH19 -> 2046 | CI5: =Time!CI19 -> 2046 | CJ5: =Time!CJ19 -> 2047 | CK5: =Time!CK19 -> 2047 | CL5: =Time!CL19 -> 2048 | CM5: =Time!CM19 -> 2048 | CN5: =Time!CN19 -> 2049 | CO5: =Time!CO19 -> 2049 | CP5: =Time!CP19 -> 2050 | CQ5: =Time!CQ19 -> 2050 | CR5: =Time!CR19 -> 2051 | CS5: =Time!CS19 -> 2051 | CT5: =Time!CT19 -> 2052 | CU5: =Time!CU19 -> 2052 | CV5: =Time!CV19 -> 2053 | CW5: =Time!CW19 -> 2053 | CX5: =Time!CX19 -> 2054 | CY5: =Time!CY19 -> 2054 | CZ5: =Time!CZ19 -> 2055 | DA5: =Time!DA19 -> 2055 | DB5: =Time!DB19 -> 2056 | DC5: =Time!DC19 -> 2056 | DD5: =Time!DD19 -> 2057 | DE5: =Time!DE19 -> 2057 | DF5: =Time!DF19 -> 2058 | DG5: =Time!DG19 -> 2058 | DH5: =Time!DH19 -> 2059 | DI5: =Time!DI19 -> 2059 | DJ5: =Time!DJ19 -> 2060 | DK5: =Time!DK19 -> 2060 | DL5: =Time!DL19 -> 2061 | DM5: =Time!DM19 -> 2061 | DN5: =Time!DN19 -> 2062 | DO5: =Time!DO19 -> 2062 | DP5: =Time!DP19 -> 2063 | DQ5: =Time!DQ19 -> 2063 | DR5: =Time!DR19 -> 2064 | DS5: =Time!DS19 -> 2064 | DT5: =Time!DT19 -> 2065 | DU5: =Time!DU19 -> 2065 | DV5: =Time!DV19 -> 2066 | DW5: =Time!DW19 -> 2066 | DX5: =Time!DX19 -> 2067 | DY5: =Time!DY19 -> 2067 | DZ5: =Time!DZ19 -> 2068 | EA5: =Time!EA19 -> 2068 | EB5: =Time!EB19 -> 2069 | EC5: =Time!EC19 -> 2069 | ED5: =Time!ED19 -> 2070 | EE5: =Time!EE19 -> 2070 | EF5: =Time!EF19 -> 2071 | EG5: =Time!EG19 -> 2071 | EH5: =Time!EH19 -> 2072 | EI5: =Time!EI19 -> 2072 | EJ5: =Time!EJ19 -> 2073 | EK5: =Time!EK19 -> 2073 | EL5: =Time!EL19 -> 2074 | EM5: =Time!EM19 -> 2074 | EN5: =Time!EN19 -> 2075 | EO5: =Time!EO19 -> 2075 | EP5: =Time!EP19 -> 2076 | EQ5: =Time!EQ19 -> 2076 | ER5: =Time!ER19 -> 2077 | ES5: =Time!ES19 -> 2077 | ET5: =Time!ET19 -> 2078 | EU5: =Time!EU19 -> 2078 | EV5: =Time!EV19 -> 2079 | EW5: =Time!EW19 -> 2079 | EX5: =Time!EX19 -> 2080 | EY5: =Time!EY19 -> 2080 | EZ5: =Time!EZ19 -> 2081 | FA5: =Time!FA19 -> 2081 | FB5: =Time!FB19 -> 2082 | FC5: =Time!FC19 -> 2082 | FD5: =Time!FD19 -> 2083 | FE5: =Time!FE19 -> 2083 | FF5: =Time!FF19 -> 2084 | FG5: =Time!FG19 -> 2084 | FH5: =Time!FH19 -> 2085 | FI5: =Time!FI19 -> 2085 | FJ5: =Time!FJ19 -> 2086 | FK5: =Time!FK19 -> 2086 | FL5: =Time!FL19 -> 2087 | FM5: =Time!FM19 -> 2087 | FN5: =Time!FN19 -> 2088 | FO5: =Time!FO19 -> 2088 | FP5: =Time!FP19 -> 2089 | FQ5: =Time!FQ19 -> 2089 | FR5: =Time!FR19 -> 2090 | FS5: =Time!FS19 -> 2090 | FT5: =Time!FT19 -> 2091 | FU5: =Time!FU19 -> 2091 | FV5: =Time!FV19 -> 2092 | FW5: =Time!FW19 -> 2092 | FX5: =Time!FX19 -> 2093 | FY5: =Time!FY19 -> 2093 | FZ5: =Time!FZ19 -> 2094 | GA5: =Time!GA19 -> 2094 | GB5: =Time!GB19 -> 2095 | GC5: =Time!GC19 -> 2095 | GD5: =Time!GD19 -> 2096 | GE5: =Time!GE19 -> 2096 | GF5: =Time!GF19 -> 2097 | GG5: =Time!GG19 -> 2097 | GH5: =Time!GH19 -> 2098 | GI5: =Time!GI19 -> 2098 | GJ5: =Time!GJ19 -> 2099 | GK5: =Time!GK19 -> 2099 | GL5: =Time!GL19 -> 2100 | GM5: =Time!GM19 -> 2100 | GN5: =Time!GN19 -> 2101 | GO5: =Time!GO19 -> 2101 | GP5: =Time!GP19 -> 2102 | GQ5: =Time!GQ19 -> 2102 | GR5: =Time!GR19 -> 2103 | GS5: =Time!GS19 -> 2103 | GT5: =Time!GT19 -> 2104 | GU5: =Time!GU19 -> 2104 | GV5: =Time!GV19 -> 2105 | GW5: =Time!GW19 -> 2105 | GX5: =Time!GX19 -> 2106 | GY5: =Time!GY19 -> 2106 | GZ5: =Time!GZ19 -> 2107 | HA5: =Time!HA19 -> 2107 | HB5: =Time!HB19 -> 2108 | HC5: =Time!HC19 -> 2108 | HD5: =Time!HD19 -> 2109 | HE5: =Time!HE19 -> 2109 | HF5: =Time!HF19 -> 2110 | HG5: =Time!HG19 -> 2110 | HH5: =Time!HH19 -> 2111 | HI5: =Time!HI19 -> 2111 | HJ5: =Time!HJ19 -> 2112 | HK5: =Time!HK19 -> 2112 | HL5: =Time!HL19 -> 2113 | HM5: =Time!HM19 -> 2113 | HN5: =Time!HN19 -> 2114 | HO5: =Time!HO19 -> 2114 | HP5: =Time!HP19 -> 2115 | HQ5: =Time!HQ19 -> 2115 | HR5: =Time!HR19 -> 2116 | HS5: =Time!HS19 -> 2116 | HT5: =Time!HT19 -> 2117 | HU5: =Time!HU19 -> 2117 | HV5: =Time!HV19 -> 2118 | HW5: =Time!HW19 -> 2118 | HX5: =Time!HX19 -> 2119 | HY5: =Time!HY19 -> 2119 | HZ5: =Time!HZ19 -> 2120 | IA5: =Time!IA19 -> 2120 | IB5: =Time!IB19 -> 2121 | IC5: =Time!IC19 -> 2121 | ID5: =Time!ID19 -> 2122 | IE5: =Time!IE19 -> 2122
P6: Year #: | R6: =Time!R21 -> 1 | S6: =Time!S21 -> 1 | T6: =Time!T21 -> 1 | U6: =Time!U21 -> 1 | V6: =Time!V21 -> 1 | W6: =Time!W21 -> 1 | X6: =Time!X21 -> 1 | Y6: =Time!Y21 -> 1 | Z6: =Time!Z21 -> 1 | AA6: =Time!AA21 -> 1 | AB6: =Time!AB21 -> 2 | AC6: =Time!AC21 -> 2 | AD6: =Time!AD21 -> 2 | AE6: =Time!AE21 -> 2 | AF6: =Time!AF21 -> 2 | AG6: =Time!AG21 -> 2 | AH6: =Time!AH21 -> 2 | AI6: =Time!AI21 -> 2 | AJ6: =Time!AJ21 -> 2 | AK6: =Time!AK21 -> 2 | AL6: =Time!AL21 -> 2 | AM6: =Time!AM21 -> 2 | AN6: =Time!AN21 -> 3 | AO6: =Time!AO21 -> 3 | AP6: =Time!AP21 -> 4 | AQ6: =Time!AQ21 -> 4 | AR6: =Time!AR21 -> 5 | AS6: =Time!AS21 -> 5 | AT6: =Time!AT21 -> 6 | AU6: =Time!AU21 -> 6 | AV6: =Time!AV21 -> 7 | AW6: =Time!AW21 -> 7 | AX6: =Time!AX21 -> 8 | AY6: =Time!AY21 -> 8 | AZ6: =Time!AZ21 -> 9 | BA6: =Time!BA21 -> 9 | BB6: =Time!BB21 -> 10 | BC6: =Time!BC21 -> 10 | BD6: =Time!BD21 -> 11 | BE6: =Time!BE21 -> 11 | BF6: =Time!BF21 -> 12 | BG6: =Time!BG21 -> 12 | BH6: =Time!BH21 -> 13 | BI6: =Time!BI21 -> 13 | BJ6: =Time!BJ21 -> 14 | BK6: =Time!BK21 -> 14 | BL6: =Time!BL21 -> 15 | BM6: =Time!BM21 -> 15 | BN6: =Time!BN21 -> 16 | BO6: =Time!BO21 -> 16 | BP6: =Time!BP21 -> 17 | BQ6: =Time!BQ21 -> 17 | BR6: =Time!BR21 -> 18 | BS6: =Time!BS21 -> 18 | BT6: =Time!BT21 -> 19 | BU6: =Time!BU21 -> 19 | BV6: =Time!BV21 -> 20 | BW6: =Time!BW21 -> 20 | BX6: =Time!BX21 -> 21 | BY6: =Time!BY21 -> 21 | BZ6: =Time!BZ21 -> 22 | CA6: =Time!CA21 -> 22 | CB6: =Time!CB21 -> 23 | CC6: =Time!CC21 -> 23 | CD6: =Time!CD21 -> 24 | CE6: =Time!CE21 -> 24 | CF6: =Time!CF21 -> 25 | CG6: =Time!CG21 -> 25 | CH6: =Time!CH21 -> 26 | CI6: =Time!CI21 -> 26 | CJ6: =Time!CJ21 -> 27 | CK6: =Time!CK21 -> 27 | CL6: =Time!CL21 -> 28 | CM6: =Time!CM21 -> 28 | CN6: =Time!CN21 -> 29 | CO6: =Time!CO21 -> 29 | CP6: =Time!CP21 -> 30 | CQ6: =Time!CQ21 -> 30 | CR6: =Time!CR21 -> 31 | CS6: =Time!CS21 -> 31 | CT6: =Time!CT21 -> 32 | CU6: =Time!CU21 -> 32 | CV6: =Time!CV21 -> 33 | CW6: =Time!CW21 -> 33 | CX6: =Time!CX21 -> 34 | CY6: =Time!CY21 -> 34 | CZ6: =Time!CZ21 -> 35 | DA6: =Time!DA21 -> 35 | DB6: =Time!DB21 -> 36 | DC6: =Time!DC21 -> 36 | DD6: =Time!DD21 -> 37 | DE6: =Time!DE21 -> 37 | DF6: =Time!DF21 -> 38 | DG6: =Time!DG21 -> 38 | DH6: =Time!DH21 -> 39 | DI6: =Time!DI21 -> 39 | DJ6: =Time!DJ21 -> 40 | DK6: =Time!DK21 -> 40 | DL6: =Time!DL21 -> 41 | DM6: =Time!DM21 -> 41 | DN6: =Time!DN21 -> 42 | DO6: =Time!DO21 -> 42 | DP6: =Time!DP21 -> 43 | DQ6: =Time!DQ21 -> 43 | DR6: =Time!DR21 -> 44 | DS6: =Time!DS21 -> 44 | DT6: =Time!DT21 -> 45 | DU6: =Time!DU21 -> 45 | DV6: =Time!DV21 -> 46 | DW6: =Time!DW21 -> 46 | DX6: =Time!DX21 -> 47 | DY6: =Time!DY21 -> 47 | DZ6: =Time!DZ21 -> 48 | EA6: =Time!EA21 -> 48 | EB6: =Time!EB21 -> 49 | EC6: =Time!EC21 -> 49 | ED6: =Time!ED21 -> 50 | EE6: =Time!EE21 -> 50 | EF6: =Time!EF21 -> 51 | EG6: =Time!EG21 -> 51 | EH6: =Time!EH21 -> 52 | EI6: =Time!EI21 -> 52 | EJ6: =Time!EJ21 -> 53 | EK6: =Time!EK21 -> 53 | EL6: =Time!EL21 -> 54 | EM6: =Time!EM21 -> 54 | EN6: =Time!EN21 -> 55 | EO6: =Time!EO21 -> 55 | EP6: =Time!EP21 -> 56 | EQ6: =Time!EQ21 -> 56 | ER6: =Time!ER21 -> 57 | ES6: =Time!ES21 -> 57 | ET6: =Time!ET21 -> 58 | EU6: =Time!EU21 -> 58 | EV6: =Time!EV21 -> 59 | EW6: =Time!EW21 -> 59 | EX6: =Time!EX21 -> 60 | EY6: =Time!EY21 -> 60 | EZ6: =Time!EZ21 -> 61 | FA6: =Time!FA21 -> 61 | FB6: =Time!FB21 -> 62 | FC6: =Time!FC21 -> 62 | FD6: =Time!FD21 -> 63 | FE6: =Time!FE21 -> 63 | FF6: =Time!FF21 -> 64 | FG6: =Time!FG21 -> 64 | FH6: =Time!FH21 -> 65 | FI6: =Time!FI21 -> 65 | FJ6: =Time!FJ21 -> 66 | FK6: =Time!FK21 -> 66 | FL6: =Time!FL21 -> 67 | FM6: =Time!FM21 -> 67 | FN6: =Time!FN21 -> 68 | FO6: =Time!FO21 -> 68 | FP6: =Time!FP21 -> 69 | FQ6: =Time!FQ21 -> 69 | FR6: =Time!FR21 -> 70 | FS6: =Time!FS21 -> 70 | FT6: =Time!FT21 -> 71 | FU6: =Time!FU21 -> 71 | FV6: =Time!FV21 -> 72 | FW6: =Time!FW21 -> 72 | FX6: =Time!FX21 -> 73 | FY6: =Time!FY21 -> 73 | FZ6: =Time!FZ21 -> 74 | GA6: =Time!GA21 -> 74 | GB6: =Time!GB21 -> 75 | GC6: =Time!GC21 -> 75 | GD6: =Time!GD21 -> 76 | GE6: =Time!GE21 -> 76 | GF6: =Time!GF21 -> 77 | GG6: =Time!GG21 -> 77 | GH6: =Time!GH21 -> 78 | GI6: =Time!GI21 -> 78 | GJ6: =Time!GJ21 -> 79 | GK6: =Time!GK21 -> 79 | GL6: =Time!GL21 -> 80 | GM6: =Time!GM21 -> 80 | GN6: =Time!GN21 -> 81 | GO6: =Time!GO21 -> 81 | GP6: =Time!GP21 -> 82 | GQ6: =Time!GQ21 -> 82 | GR6: =Time!GR21 -> 83 | GS6: =Time!GS21 -> 83 | GT6: =Time!GT21 -> 84 | GU6: =Time!GU21 -> 84 | GV6: =Time!GV21 -> 85 | GW6: =Time!GW21 -> 85 | GX6: =Time!GX21 -> 86 | GY6: =Time!GY21 -> 86 | GZ6: =Time!GZ21 -> 87 | HA6: =Time!HA21 -> 87 | HB6: =Time!HB21 -> 88 | HC6: =Time!HC21 -> 88 | HD6: =Time!HD21 -> 89 | HE6: =Time!HE21 -> 89 | HF6: =Time!HF21 -> 90 | HG6: =Time!HG21 -> 90 | HH6: =Time!HH21 -> 91 | HI6: =Time!HI21 -> 91 | HJ6: =Time!HJ21 -> 92 | HK6: =Time!HK21 -> 92 | HL6: =Time!HL21 -> 93 | HM6: =Time!HM21 -> 93 | HN6: =Time!HN21 -> 94 | HO6: =Time!HO21 -> 94 | HP6: =Time!HP21 -> 95 | HQ6: =Time!HQ21 -> 95 | HR6: =Time!HR21 -> 96 | HS6: =Time!HS21 -> 96 | HT6: =Time!HT21 -> 97 | HU6: =Time!HU21 -> 97 | HV6: =Time!HV21 -> 98 | HW6: =Time!HW21 -> 98 | HX6: =Time!HX21 -> 99 | HY6: =Time!HY21 -> 99 | HZ6: =Time!HZ21 -> 100 | IA6: =Time!IA21 -> 100 | IB6: =Time!IB21 -> 101 | IC6: =Time!IC21 -> 101 | ID6: =Time!ID21 -> 102 | IE6: =Time!IE21 -> 102
P7: Phase: | R7: =Time!R26 -> Const | S7: =Time!S26 -> Const | T7: =Time!T26 -> Const | U7: =Time!U26 -> Const | V7: =Time!V26 -> Const | W7: =Time!W26 -> Const | X7: =Time!X26 -> Const | Y7: =Time!Y26 -> Const | Z7: =Time!Z26 -> Const | AA7: =Time!AA26 -> Const | AB7: =Time!AB26 -> Const | AC7: =Time!AC26 -> Const | AD7: =Time!AD26 -> Const | AE7: =Time!AE26 -> Const | AF7: =Time!AF26 -> Const | AG7: =Time!AG26 -> Const | AH7: =Time!AH26 -> Const | AI7: =Time!AI26 -> Const | AJ7: =Time!AJ26 -> Const | AK7: =Time!AK26 -> Const | AL7: =Time!AL26 -> Const | AM7: =Time!AM26 -> Const | AN7: =Time!AN26 -> Ops | AO7: =Time!AO26 -> Ops | AP7: =Time!AP26 -> Ops | AQ7: =Time!AQ26 -> Ops | AR7: =Time!AR26 -> Ops | AS7: =Time!AS26 -> Ops | AT7: =Time!AT26 -> Ops | AU7: =Time!AU26 -> Ops | AV7: =Time!AV26 -> Ops | AW7: =Time!AW26 -> Ops | AX7: =Time!AX26 -> Ops | AY7: =Time!AY26 -> Ops | AZ7: =Time!AZ26 -> Ops | BA7: =Time!BA26 -> Ops | BB7: =Time!BB26 -> Ops | BC7: =Time!BC26 -> Ops | BD7: =Time!BD26 -> Ops | BE7: =Time!BE26 -> Ops | BF7: =Time!BF26 -> Ops | BG7: =Time!BG26 -> Ops | BH7: =Time!BH26 -> Ops | BI7: =Time!BI26 -> Ops | BJ7: =Time!BJ26 -> Ops | BK7: =Time!BK26 -> Ops | BL7: =Time!BL26 -> Ops | BM7: =Time!BM26 -> Ops | BN7: =Time!BN26 -> Ops | BO7: =Time!BO26 -> Ops | BP7: =Time!BP26 -> Ops | BQ7: =Time!BQ26 -> Ops | BR7: =Time!BR26 -> Ops | BS7: =Time!BS26 -> Ops | BT7: =Time!BT26 -> Ops | BU7: =Time!BU26 -> Ops | BV7: =Time!BV26 -> Ops | BW7: =Time!BW26 -> Ops | BX7: =Time!BX26 -> Ops | BY7: =Time!BY26 -> Ops | BZ7: =Time!BZ26 -> Ops | CA7: =Time!CA26 -> Ops | CB7: =Time!CB26 -> Ops | CC7: =Time!CC26 -> Ops | CD7: =Time!CD26 -> Ops | CE7: =Time!CE26 -> Ops | CF7: =Time!CF26 -> Ops | CG7: =Time!CG26 -> Ops | CH7: =Time!CH26 -> Ops | CI7: =Time!CI26 -> Ops | CJ7: =Time!CJ26 -> Ops | CK7: =Time!CK26 -> Ops | CL7: =Time!CL26 ->  | CM7: =Time!CM26 ->  | CN7: =Time!CN26 ->  | CO7: =Time!CO26 ->  | CP7: =Time!CP26 ->  | CQ7: =Time!CQ26 ->  | CR7: =Time!CR26 ->  | CS7: =Time!CS26 ->  | CT7: =Time!CT26 ->  | CU7: =Time!CU26 ->  | CV7: =Time!CV26 ->  | CW7: =Time!CW26 ->  | CX7: =Time!CX26 ->  | CY7: =Time!CY26 ->  | CZ7: =Time!CZ26 ->  | DA7: =Time!DA26 ->  | DB7: =Time!DB26 ->  | DC7: =Time!DC26 ->  | DD7: =Time!DD26 ->  | DE7: =Time!DE26 ->  | DF7: =Time!DF26 ->  | DG7: =Time!DG26 ->  | DH7: =Time!DH26 ->  | DI7: =Time!DI26 ->  | DJ7: =Time!DJ26 ->  | DK7: =Time!DK26 ->  | DL7: =Time!DL26 ->  | DM7: =Time!DM26 ->  | DN7: =Time!DN26 ->  | DO7: =Time!DO26 ->  | DP7: =Time!DP26 ->  | DQ7: =Time!DQ26 ->  | DR7: =Time!DR26 ->  | DS7: =Time!DS26 ->  | DT7: =Time!DT26 ->  | DU7: =Time!DU26 ->  | DV7: =Time!DV26 ->  | DW7: =Time!DW26 ->  | DX7: =Time!DX26 ->  | DY7: =Time!DY26 ->  | DZ7: =Time!DZ26 ->  | EA7: =Time!EA26 ->  | EB7: =Time!EB26 ->  | EC7: =Time!EC26 ->  | ED7: =Time!ED26 ->  | EE7: =Time!EE26 ->  | EF7: =Time!EF26 ->  | EG7: =Time!EG26 ->  | EH7: =Time!EH26 ->  | EI7: =Time!EI26 ->  | EJ7: =Time!EJ26 ->  | EK7: =Time!EK26 ->  | EL7: =Time!EL26 ->  | EM7: =Time!EM26 ->  | EN7: =Time!EN26 ->  | EO7: =Time!EO26 ->  | EP7: =Time!EP26 ->  | EQ7: =Time!EQ26 ->  | ER7: =Time!ER26 ->  | ES7: =Time!ES26 ->  | ET7: =Time!ET26 ->  | EU7: =Time!EU26 ->  | EV7: =Time!EV26 ->  | EW7: =Time!EW26 ->  | EX7: =Time!EX26 ->  | EY7: =Time!EY26 ->  | EZ7: =Time!EZ26 ->  | FA7: =Time!FA26 ->  | FB7: =Time!FB26 ->  | FC7: =Time!FC26 ->  | FD7: =Time!FD26 ->  | FE7: =Time!FE26 ->  | FF7: =Time!FF26 ->  | FG7: =Time!FG26 ->  | FH7: =Time!FH26 ->  | FI7: =Time!FI26 ->  | FJ7: =Time!FJ26 ->  | FK7: =Time!FK26 ->  | FL7: =Time!FL26 ->  | FM7: =Time!FM26 ->  | FN7: =Time!FN26 ->  | FO7: =Time!FO26 ->  | FP7: =Time!FP26 ->  | FQ7: =Time!FQ26 ->  | FR7: =Time!FR26 ->  | FS7: =Time!FS26 ->  | FT7: =Time!FT26 ->  | FU7: =Time!FU26 ->  | FV7: =Time!FV26 ->  | FW7: =Time!FW26 ->  | FX7: =Time!FX26 ->  | FY7: =Time!FY26 ->  | FZ7: =Time!FZ26 ->  | GA7: =Time!GA26 ->  | GB7: =Time!GB26 ->  | GC7: =Time!GC26 ->  | GD7: =Time!GD26 ->  | GE7: =Time!GE26 ->  | GF7: =Time!GF26 ->  | GG7: =Time!GG26 ->  | GH7: =Time!GH26 ->  | GI7: =Time!GI26 ->  | GJ7: =Time!GJ26 ->  | GK7: =Time!GK26 ->  | GL7: =Time!GL26 ->  | GM7: =Time!GM26 ->  | GN7: =Time!GN26 ->  | GO7: =Time!GO26 ->  | GP7: =Time!GP26 ->  | GQ7: =Time!GQ26 ->  | GR7: =Time!GR26 ->  | GS7: =Time!GS26 ->  | GT7: =Time!GT26 ->  | GU7: =Time!GU26 ->  | GV7: =Time!GV26 ->  | GW7: =Time!GW26 ->  | GX7: =Time!GX26 ->  | GY7: =Time!GY26 ->  | GZ7: =Time!GZ26 ->  | HA7: =Time!HA26 ->  | HB7: =Time!HB26 ->  | HC7: =Time!HC26 ->  | HD7: =Time!HD26 ->  | HE7: =Time!HE26 ->  | HF7: =Time!HF26 ->  | HG7: =Time!HG26 ->  | HH7: =Time!HH26 ->  | HI7: =Time!HI26 ->  | HJ7: =Time!HJ26 ->  | HK7: =Time!HK26 ->  | HL7: =Time!HL26 ->  | HM7: =Time!HM26 ->  | HN7: =Time!HN26 ->  | HO7: =Time!HO26 ->  | HP7: =Time!HP26 ->  | HQ7: =Time!HQ26 ->  | HR7: =Time!HR26 ->  | HS7: =Time!HS26 ->  | HT7: =Time!HT26 ->  | HU7: =Time!HU26 ->  | HV7: =Time!HV26 ->  | HW7: =Time!HW26 ->  | HX7: =Time!HX26 ->  | HY7: =Time!HY26 ->  | HZ7: =Time!HZ26 ->  | IA7: =Time!IA26 ->  | IB7: =Time!IB26 ->  | IC7: =Time!IC26 ->  | ID7: =Time!ID26 ->  | IE7: =Time!IE26 -> 
B10: (+) | C10: Revenues | J10: $m | P10: =SUM(R10:DB10) -> 811.613373 | R10: =Ops!R64 -> 0 | S10: =Ops!S64 -> 0 | T10: =Ops!T64 -> 0 | U10: =Ops!U64 -> 0 | V10: =Ops!V64 -> 0 | W10: =Ops!W64 -> 0 | X10: =Ops!X64 -> 0 | Y10: =Ops!Y64 -> 0 | Z10: =Ops!Z64 -> 0 | AA10: =Ops!AA64 -> 0 | AB10: =Ops!AB64 -> 0 | AC10: =Ops!AC64 -> 0 | AD10: =Ops!AD64 -> 0 | AE10: =Ops!AE64 -> 0 | AF10: =Ops!AF64 -> 0 | AG10: =Ops!AG64 -> 0 | AH10: =Ops!AH64 -> 0 | AI10: =Ops!AI64 -> 0 | AJ10: =Ops!AJ64 -> 0 | AK10: =Ops!AK64 -> 0 | AL10: =Ops!AL64 -> 0 | AM10: =Ops!AM64 -> 0 | AN10: =Ops!AN64 -> 18.33314324 | AO10: =Ops!AO64 -> 17.46377621 | AP10: =Ops!AP64 -> 18.24913883 | AQ10: =Ops!AQ64 -> 17.30244458 | AR10: =Ops!AR64 -> 18.10449473 | AS10: =Ops!AS64 -> 17.19078105 | AT10: =Ops!AT64 -> 17.98391396 | AU10: =Ops!AU64 -> 17.07548556 | AV10: =Ops!AV64 -> 17.85591149 | AW10: =Ops!AW64 -> 16.94975594 | AX10: =Ops!AX64 -> 17.86648881 | AY10: =Ops!AY64 -> 16.93964106 | AZ10: =Ops!AZ64 -> 17.68949647 | BA10: =Ops!BA64 -> 16.77414949 | BB10: =Ops!BB64 -> 17.51589627 | BC10: =Ops!BC64 -> 16.61187193 | BD10: =Ops!BD64 -> 17.34565309 | BE10: =Ops!BE64 -> 16.45277549 | BF10: =Ops!BF64 -> 17.17873243 | BG10: =Ops!BG64 -> 16.29682786 | BH10: =Ops!BH64 -> 17.00729064 | BI10: =Ops!BI64 -> 16.12922608 | BJ10: =Ops!BJ64 -> 16.83157418 | BK10: =Ops!BK64 -> 15.96506034 | BL10: =Ops!BL64 -> 16.65944553 | BM10: =Ops!BM64 -> 15.80429115 | BN10: =Ops!BN64 -> 16.4908633 | BO10: =Ops!BO64 -> 15.64687973 | BP10: =Ops!BP64 -> 16.32578689 | BQ10: =Ops!BQ64 -> 15.49278805 | BR10: =Ops!BR64 -> 16.16417644 | BS10: =Ops!BS64 -> 15.34197879 | BT10: =Ops!BT64 -> 16.00599285 | BU10: =Ops!BU64 -> 15.19441531 | BV10: =Ops!BV64 -> 15.85119775 | BW10: =Ops!BW64 -> 15.05006172 | BX10: =Ops!BX64 -> 15.69975352 | BY10: =Ops!BY64 -> 14.90888278 | BZ10: =Ops!BZ64 -> 15.55162323 | CA10: =Ops!CA64 -> 14.77084395 | CB10: =Ops!CB64 -> 15.40677069 | CC10: =Ops!CC64 -> 14.63591136 | CD10: =Ops!CD64 -> 15.26516039 | CE10: =Ops!CE64 -> 14.5040518 | CF10: =Ops!CF64 -> 15.12675754 | CG10: =Ops!CG64 -> 14.37523272 | CH10: =Ops!CH64 -> 14.99152803 | CI10: =Ops!CI64 -> 14.24942224 | CJ10: =Ops!CJ64 -> 14.85943841 | CK10: =Ops!CK64 -> 14.12658909 | CL10: =Ops!CL64 -> 0 | CM10: =Ops!CM64 -> 0 | CN10: =Ops!CN64 -> 0 | CO10: =Ops!CO64 -> 0 | CP10: =Ops!CP64 -> 0 | CQ10: =Ops!CQ64 -> 0 | CR10: =Ops!CR64 -> 0 | CS10: =Ops!CS64 -> 0 | CT10: =Ops!CT64 -> 0 | CU10: =Ops!CU64 -> 0 | CV10: =Ops!CV64 -> 0 | CW10: =Ops!CW64 -> 0 | CX10: =Ops!CX64 -> 0 | CY10: =Ops!CY64 -> 0 | CZ10: =Ops!CZ64 -> 0 | DA10: =Ops!DA64 -> 0 | DB10: =Ops!DB64 -> 0 | DC10: =Ops!DC64 -> 0 | DD10: =Ops!DD64 -> 0 | DE10: =Ops!DE64 -> 0 | DF10: =Ops!DF64 -> 0 | DG10: =Ops!DG64 -> 0 | DH10: =Ops!DH64 -> 0 | DI10: =Ops!DI64 -> 0 | DJ10: =Ops!DJ64 -> 0 | DK10: =Ops!DK64 -> 0 | DL10: =Ops!DL64 -> 0 | DM10: =Ops!DM64 -> 0 | DN10: =Ops!DN64 -> 0 | DO10: =Ops!DO64 -> 0 | DP10: =Ops!DP64 -> 0 | DQ10: =Ops!DQ64 -> 0 | DR10: =Ops!DR64 -> 0 | DS10: =Ops!DS64 -> 0 | DT10: =Ops!DT64 -> 0 | DU10: =Ops!DU64 -> 0 | DV10: =Ops!DV64 -> 0 | DW10: =Ops!DW64 -> 0 | DX10: =Ops!DX64 -> 0 | DY10: =Ops!DY64 -> 0 | DZ10: =Ops!DZ64 -> 0 | EA10: =Ops!EA64 -> 0 | EB10: =Ops!EB64 -> 0 | EC10: =Ops!EC64 -> 0 | ED10: =Ops!ED64 -> 0 | EE10: =Ops!EE64 -> 0 | EF10: =Ops!EF64 -> 0 | EG10: =Ops!EG64 -> 0 | EH10: =Ops!EH64 -> 0 | EI10: =Ops!EI64 -> 0 | EJ10: =Ops!EJ64 -> 0 | EK10: =Ops!EK64 -> 0 | EL10: =Ops!EL64 -> 0 | EM10: =Ops!EM64 -> 0 | EN10: =Ops!EN64 -> 0 | EO10: =Ops!EO64 -> 0 | EP10: =Ops!EP64 -> 0 | EQ10: =Ops!EQ64 -> 0 | ER10: =Ops!ER64 -> 0 | ES10: =Ops!ES64 -> 0 | ET10: =Ops!ET64 -> 0 | EU10: =Ops!EU64 -> 0 | EV10: =Ops!EV64 -> 0 | EW10: =Ops!EW64 -> 0 | EX10: =Ops!EX64 -> 0 | EY10: =Ops!EY64 -> 0 | EZ10: =Ops!EZ64 -> 0 | FA10: =Ops!FA64 -> 0 | FB10: =Ops!FB64 -> 0 | FC10: =Ops!FC64 -> 0 | FD10: =Ops!FD64 -> 0 | FE10: =Ops!FE64 -> 0 | FF10: =Ops!FF64 -> 0 | FG10: =Ops!FG64 -> 0 | FH10: =Ops!FH64 -> 0 | FI10: =Ops!FI64 -> 0 | FJ10: =Ops!FJ64 -> 0 | FK10: =Ops!FK64 -> 0 | FL10: =Ops!FL64 -> 0 | FM10: =Ops!FM64 -> 0 | FN10: =Ops!FN64 -> 0 | FO10: =Ops!FO64 -> 0 | FP10: =Ops!FP64 -> 0 | FQ10: =Ops!FQ64 -> 0 | FR10: =Ops!FR64 -> 0 | FS10: =Ops!FS64 -> 0 | FT10: =Ops!FT64 -> 0 | FU10: =Ops!FU64 -> 0 | FV10: =Ops!FV64 -> 0 | FW10: =Ops!FW64 -> 0 | FX10: =Ops!FX64 -> 0 | FY10: =Ops!FY64 -> 0 | FZ10: =Ops!FZ64 -> 0 | GA10: =Ops!GA64 -> 0 | GB10: =Ops!GB64 -> 0 | GC10: =Ops!GC64 -> 0 | GD10: =Ops!GD64 -> 0 | GE10: =Ops!GE64 -> 0 | GF10: =Ops!GF64 -> 0 | GG10: =Ops!GG64 -> 0 | GH10: =Ops!GH64 -> 0 | GI10: =Ops!GI64 -> 0 | GJ10: =Ops!GJ64 -> 0 | GK10: =Ops!GK64 -> 0 | GL10: =Ops!GL64 -> 0 | GM10: =Ops!GM64 -> 0 | GN10: =Ops!GN64 -> 0 | GO10: =Ops!GO64 -> 0 | GP10: =Ops!GP64 -> 0 | GQ10: =Ops!GQ64 -> 0 | GR10: =Ops!GR64 -> 0 | GS10: =Ops!GS64 -> 0 | GT10: =Ops!GT64 -> 0 | GU10: =Ops!GU64 -> 0 | GV10: =Ops!GV64 -> 0 | GW10: =Ops!GW64 -> 0 | GX10: =Ops!GX64 -> 0 | GY10: =Ops!GY64 -> 0 | GZ10: =Ops!GZ64 -> 0 | HA10: =Ops!HA64 -> 0 | HB10: =Ops!HB64 -> 0 | HC10: =Ops!HC64 -> 0 | HD10: =Ops!HD64 -> 0 | HE10: =Ops!HE64 -> 0 | HF10: =Ops!HF64 -> 0 | HG10: =Ops!HG64 -> 0 | HH10: =Ops!HH64 -> 0 | HI10: =Ops!HI64 -> 0 | HJ10: =Ops!HJ64 -> 0 | HK10: =Ops!HK64 -> 0 | HL10: =Ops!HL64 -> 0 | HM10: =Ops!HM64 -> 0 | HN10: =Ops!HN64 -> 0 | HO10: =Ops!HO64 -> 0 | HP10: =Ops!HP64 -> 0 | HQ10: =Ops!HQ64 -> 0 | HR10: =Ops!HR64 -> 0 | HS10: =Ops!HS64 -> 0 | HT10: =Ops!HT64 -> 0 | HU10: =Ops!HU64 -> 0 | HV10: =Ops!HV64 -> 0 | HW10: =Ops!HW64 -> 0 | HX10: =Ops!HX64 -> 0 | HY10: =Ops!HY64 -> 0 | HZ10: =Ops!HZ64 -> 0 | IA10: =Ops!IA64 -> 0 | IB10: =Ops!IB64 -> 0 | IC10: =Ops!IC64 -> 0 | ID10: =Ops!ID64 -> 0 | IE10: =Ops!IE64 -> 0
B11: (+) | C11: Expenses | J11: $m | P11: =SUM(R11:DB11) -> 144.337472 | R11: =Ops!R93 -> 0 | S11: =Ops!S93 -> 0 | T11: =Ops!T93 -> 0 | U11: =Ops!U93 -> 0 | V11: =Ops!V93 -> 0 | W11: =Ops!W93 -> 0 | X11: =Ops!X93 -> 0 | Y11: =Ops!Y93 -> 0 | Z11: =Ops!Z93 -> 0 | AA11: =Ops!AA93 -> 0 | AB11: =Ops!AB93 -> 0 | AC11: =Ops!AC93 -> 0 | AD11: =Ops!AD93 -> 0 | AE11: =Ops!AE93 -> 0 | AF11: =Ops!AF93 -> 0 | AG11: =Ops!AG93 -> 0 | AH11: =Ops!AH93 -> 0 | AI11: =Ops!AI93 -> 0 | AJ11: =Ops!AJ93 -> 0 | AK11: =Ops!AK93 -> 0 | AL11: =Ops!AL93 -> 0 | AM11: =Ops!AM93 -> 0 | AN11: =Ops!AN93 -> 2.748494453 | AO11: =Ops!AO93 -> 2.711896797 | AP11: =Ops!AP93 -> 2.761528397 | AQ11: =Ops!AQ93 -> 2.720919276 | AR11: =Ops!AR93 -> 2.771772551 | AS11: =Ops!AS93 -> 2.732898617 | AT11: =Ops!AT93 -> 2.783597947 | AU11: =Ops!AU93 -> 2.745031088 | AV11: =Ops!AV93 -> 2.795385296 | AW11: =Ops!AW93 -> 2.756958846 | AX11: =Ops!AX93 -> 2.814752071 | AY11: =Ops!AY93 -> 2.775431507 | AZ11: =Ops!AZ93 -> 2.824718271 | BA11: =Ops!BA93 -> 2.785968407 | BB11: =Ops!BB93 -> 2.835210209 | BC11: =Ops!BC93 -> 2.797033014 | BD11: =Ops!BD93 -> 2.84623618 | BE11: =Ops!BE93 -> 2.808633729 | BF11: =Ops!BF93 -> 2.857804661 | BG11: =Ops!BG93 -> 2.820779136 | BH11: =Ops!BH93 -> 2.869508151 | BI11: =Ops!BI93 -> 2.832670083 | BJ11: =Ops!BJ93 -> 2.881364531 | BK11: =Ops!BK93 -> 2.845135145 | BL11: =Ops!BL93 -> 2.893801914 | BM11: =Ops!BM93 -> 2.858183354 | BN11: =Ops!BN93 -> 2.906829416 | BO11: =Ops!BO93 -> 2.871823945 | BP11: =Ops!BP93 -> 2.920456354 | BQ11: =Ops!BQ93 -> 2.886066356 | BR11: =Ops!BR93 -> 2.934692252 | BS11: =Ops!BS93 -> 2.900920232 | BT11: =Ops!BT93 -> 2.949546844 | BU11: =Ops!BU93 -> 2.916395433 | BV11: =Ops!BV93 -> 2.965030079 | BW11: =Ops!BW93 -> 2.932502032 | BX11: =Ops!BX93 -> 2.981152125 | BY11: =Ops!BY93 -> 2.949250326 | BZ11: =Ops!BZ93 -> 2.99792337 | CA11: =Ops!CA93 -> 2.966650833 | CB11: =Ops!CB93 -> 3.015354433 | CC11: =Ops!CC93 -> 2.984714305 | CD11: =Ops!CD93 -> 3.033456162 | CE11: =Ops!CE93 -> 3.003451723 | CF11: =Ops!CF93 -> 3.052239642 | CG11: =Ops!CG93 -> 3.022874309 | CH11: =Ops!CH93 -> 3.071716199 | CI11: =Ops!CI93 -> 3.042993527 | CJ11: =Ops!CJ93 -> 3.091897403 | CK11: =Ops!CK93 -> 3.06382109 | CL11: =Ops!CL93 -> 0 | CM11: =Ops!CM93 -> 0 | CN11: =Ops!CN93 -> 0 | CO11: =Ops!CO93 -> 0 | CP11: =Ops!CP93 -> 0 | CQ11: =Ops!CQ93 -> 0 | CR11: =Ops!CR93 -> 0 | CS11: =Ops!CS93 -> 0 | CT11: =Ops!CT93 -> 0 | CU11: =Ops!CU93 -> 0 | CV11: =Ops!CV93 -> 0 | CW11: =Ops!CW93 -> 0 | CX11: =Ops!CX93 -> 0 | CY11: =Ops!CY93 -> 0 | CZ11: =Ops!CZ93 -> 0 | DA11: =Ops!DA93 -> 0 | DB11: =Ops!DB93 -> 0 | DC11: =Ops!DC93 -> 0 | DD11: =Ops!DD93 -> 0 | DE11: =Ops!DE93 -> 0 | DF11: =Ops!DF93 -> 0 | DG11: =Ops!DG93 -> 0 | DH11: =Ops!DH93 -> 0 | DI11: =Ops!DI93 -> 0 | DJ11: =Ops!DJ93 -> 0 | DK11: =Ops!DK93 -> 0 | DL11: =Ops!DL93 -> 0 | DM11: =Ops!DM93 -> 0 | DN11: =Ops!DN93 -> 0 | DO11: =Ops!DO93 -> 0 | DP11: =Ops!DP93 -> 0 | DQ11: =Ops!DQ93 -> 0 | DR11: =Ops!DR93 -> 0 | DS11: =Ops!DS93 -> 0 | DT11: =Ops!DT93 -> 0 | DU11: =Ops!DU93 -> 0 | DV11: =Ops!DV93 -> 0 | DW11: =Ops!DW93 -> 0 | DX11: =Ops!DX93 -> 0 | DY11: =Ops!DY93 -> 0 | DZ11: =Ops!DZ93 -> 0 | EA11: =Ops!EA93 -> 0 | EB11: =Ops!EB93 -> 0 | EC11: =Ops!EC93 -> 0 | ED11: =Ops!ED93 -> 0 | EE11: =Ops!EE93 -> 0 | EF11: =Ops!EF93 -> 0 | EG11: =Ops!EG93 -> 0 | EH11: =Ops!EH93 -> 0 | EI11: =Ops!EI93 -> 0 | EJ11: =Ops!EJ93 -> 0 | EK11: =Ops!EK93 -> 0 | EL11: =Ops!EL93 -> 0 | EM11: =Ops!EM93 -> 0 | EN11: =Ops!EN93 -> 0 | EO11: =Ops!EO93 -> 0 | EP11: =Ops!EP93 -> 0 | EQ11: =Ops!EQ93 -> 0 | ER11: =Ops!ER93 -> 0 | ES11: =Ops!ES93 -> 0 | ET11: =Ops!ET93 -> 0 | EU11: =Ops!EU93 -> 0 | EV11: =Ops!EV93 -> 0 | EW11: =Ops!EW93 -> 0 | EX11: =Ops!EX93 -> 0 | EY11: =Ops!EY93 -> 0 | EZ11: =Ops!EZ93 -> 0 | FA11: =Ops!FA93 -> 0 | FB11: =Ops!FB93 -> 0 | FC11: =Ops!FC93 -> 0 | FD11: =Ops!FD93 -> 0 | FE11: =Ops!FE93 -> 0 | FF11: =Ops!FF93 -> 0 | FG11: =Ops!FG93 -> 0 | FH11: =Ops!FH93 -> 0 | FI11: =Ops!FI93 -> 0 | FJ11: =Ops!FJ93 -> 0 | FK11: =Ops!FK93 -> 0 | FL11: =Ops!FL93 -> 0 | FM11: =Ops!FM93 -> 0 | FN11: =Ops!FN93 -> 0 | FO11: =Ops!FO93 -> 0 | FP11: =Ops!FP93 -> 0 | FQ11: =Ops!FQ93 -> 0 | FR11: =Ops!FR93 -> 0 | FS11: =Ops!FS93 -> 0 | FT11: =Ops!FT93 -> 0 | FU11: =Ops!FU93 -> 0 | FV11: =Ops!FV93 -> 0 | FW11: =Ops!FW93 -> 0 | FX11: =Ops!FX93 -> 0 | FY11: =Ops!FY93 -> 0 | FZ11: =Ops!FZ93 -> 0 | GA11: =Ops!GA93 -> 0 | GB11: =Ops!GB93 -> 0 | GC11: =Ops!GC93 -> 0 | GD11: =Ops!GD93 -> 0 | GE11: =Ops!GE93 -> 0 | GF11: =Ops!GF93 -> 0 | GG11: =Ops!GG93 -> 0 | GH11: =Ops!GH93 -> 0 | GI11: =Ops!GI93 -> 0 | GJ11: =Ops!GJ93 -> 0 | GK11: =Ops!GK93 -> 0 | GL11: =Ops!GL93 -> 0 | GM11: =Ops!GM93 -> 0 | GN11: =Ops!GN93 -> 0 | GO11: =Ops!GO93 -> 0 | GP11: =Ops!GP93 -> 0 | GQ11: =Ops!GQ93 -> 0 | GR11: =Ops!GR93 -> 0 | GS11: =Ops!GS93 -> 0 | GT11: =Ops!GT93 -> 0 | GU11: =Ops!GU93 -> 0 | GV11: =Ops!GV93 -> 0 | GW11: =Ops!GW93 -> 0 | GX11: =Ops!GX93 -> 0 | GY11: =Ops!GY93 -> 0 | GZ11: =Ops!GZ93 -> 0 | HA11: =Ops!HA93 -> 0 | HB11: =Ops!HB93 -> 0 | HC11: =Ops!HC93 -> 0 | HD11: =Ops!HD93 -> 0 | HE11: =Ops!HE93 -> 0 | HF11: =Ops!HF93 -> 0 | HG11: =Ops!HG93 -> 0 | HH11: =Ops!HH93 -> 0 | HI11: =Ops!HI93 -> 0 | HJ11: =Ops!HJ93 -> 0 | HK11: =Ops!HK93 -> 0 | HL11: =Ops!HL93 -> 0 | HM11: =Ops!HM93 -> 0 | HN11: =Ops!HN93 -> 0 | HO11: =Ops!HO93 -> 0 | HP11: =Ops!HP93 -> 0 | HQ11: =Ops!HQ93 -> 0 | HR11: =Ops!HR93 -> 0 | HS11: =Ops!HS93 -> 0 | HT11: =Ops!HT93 -> 0 | HU11: =Ops!HU93 -> 0 | HV11: =Ops!HV93 -> 0 | HW11: =Ops!HW93 -> 0 | HX11: =Ops!HX93 -> 0 | HY11: =Ops!HY93 -> 0 | HZ11: =Ops!HZ93 -> 0 | IA11: =Ops!IA93 -> 0 | IB11: =Ops!IB93 -> 0 | IC11: =Ops!IC93 -> 0 | ID11: =Ops!ID93 -> 0 | IE11: =Ops!IE93 -> 0
B13: ="" ->  | C13: EBITDA | J13: $m | P13: =SUM(R13:DB13) -> 667.2759009 | R13: =R10-R11 -> 0 | S13: =S10-S11 -> 0 | T13: 0 | U13: 0 | V13: 0 | W13: 0 | X13: 0 | Y13: 0 | Z13: 0 | AA13: 0 | AB13: 0 | AC13: 0 | AD13: 0 | AE13: 0 | AF13: 0 | AG13: 0 | AH13: 0 | AI13: 0 | AJ13: 0 | AK13: 0 | AL13: 0 | AM13: 0 | AN13: 15.58464879 | AO13: 14.75187942 | AP13: 15.48761043 | AQ13: 14.5815253 | AR13: 15.33272217 | AS13: 14.45788243 | AT13: 15.20031601 | AU13: 14.33045447 | AV13: 15.06052619 | AW13: 14.1927971 | AX13: 15.05173673 | AY13: 14.16420955 | AZ13: 14.86477819 | BA13: 13.98818109 | BB13: 14.68068606 | BC13: 13.81483892 | BD13: 14.49941691 | BE13: 13.64414176 | BF13: 14.32092776 | BG13: 13.47604872 | BH13: 14.13778248 | BI13: 13.296556 | BJ13: 13.95020965 | BK13: 13.1199252 | BL13: 13.76564361 | BM13: 12.9461078 | BN13: 13.58403388 | BO13: 12.77505579 | BP13: 13.40533053 | BQ13: 12.6067217 | BR13: 13.22948419 | BS13: 12.44105855 | BT13: 13.056446 | BU13: 12.27801988 | BV13: 12.88616767 | BW13: 12.11755969 | BX13: 12.71860139 | BY13: 11.95963246 | BZ13: 12.55369986 | CA13: 11.80419312 | CB13: 12.39141625 | CC13: 11.65119706 | CD13: 12.23170423 | CE13: =CE10-CE11 -> 11.50060008 | CF13: 12.0745179 | CG13: 11.35235841 | CH13: 11.91981183 | CI13: 11.20642871 | CJ13: 11.767541 | CK13: 11.062768 | CL13: 0 | CM13: 0 | CN13: 0 | CO13: 0 | CP13: 0 | CQ13: 0 | CR13: 0 | CS13: 0 | CT13: 0 | CU13: 0 | CV13: 0 | CW13: 0 | CX13: 0 | CY13: 0 | CZ13: 0 | DA13: 0 | DB13: 0 | DC13: 0 | DD13: 0 | DE13: 0 | DF13: 0 | DG13: 0 | DH13: 0 | DI13: 0 | DJ13: 0 | DK13: 0 | DL13: 0 | DM13: 0 | DN13: 0 | DO13: 0 | DP13: 0 | DQ13: 0 | DR13: 0 | DS13: 0 | DT13: 0 | DU13: 0 | DV13: 0 | DW13: 0 | DX13: 0 | DY13: 0 | DZ13: 0 | EA13: 0 | EB13: 0 | EC13: 0 | ED13: 0 | EE13: 0 | EF13: 0 | EG13: 0 | EH13: 0 | EI13: 0 | EJ13: 0 | EK13: 0 | EL13: 0 | EM13: 0 | EN13: 0 | EO13: 0 | EP13: 0 | EQ13: =EQ10-EQ11 -> 0 | ER13: 0 | ES13: 0 | ET13: 0 | EU13: 0 | EV13: 0 | EW13: 0 | EX13: 0 | EY13: 0 | EZ13: 0 | FA13: 0 | FB13: 0 | FC13: 0 | FD13: 0 | FE13: 0 | FF13: 0 | FG13: 0 | FH13: 0 | FI13: 0 | FJ13: 0 | FK13: 0 | FL13: 0 | FM13: 0 | FN13: 0 | FO13: 0 | FP13: 0 | FQ13: 0 | FR13: 0 | FS13: 0 | FT13: 0 | FU13: 0 | FV13: 0 | FW13: 0 | FX13: 0 | FY13: 0 | FZ13: 0 | GA13: 0 | GB13: 0 | GC13: 0 | GD13: 0 | GE13: 0 | GF13: 0 | GG13: 0 | GH13: 0 | GI13: 0 | GJ13: 0 | GK13: 0 | GL13: 0 | GM13: 0 | GN13: 0 | GO13: 0 | GP13: 0 | GQ13: 0 | GR13: 0 | GS13: 0 | GT13: 0 | GU13: 0 | GV13: 0 | GW13: 0 | GX13: 0 | GY13: 0 | GZ13: 0 | HA13: 0 | HB13: 0 | HC13: =HC10-HC11 -> 0 | HD13: 0 | HE13: 0 | HF13: 0 | HG13: 0 | HH13: 0 | HI13: 0 | HJ13: 0 | HK13: 0 | HL13: 0 | HM13: 0 | HN13: 0 | HO13: 0 | HP13: 0 | HQ13: 0 | HR13: 0 | HS13: 0 | HT13: 0 | HU13: 0 | HV13: 0 | HW13: 0 | HX13: 0 | HY13: 0 | HZ13: 0 | IA13: 0 | IB13: 0 | IC13: 0 | ID13: 0 | IE13: 0
B15: (-) | C15: Less: Depreciation | J15: $m | P15: =SUM(R15:DB15) -> 336.8542437 | R15: ='T&D'!R54 -> 0 | S15: ='T&D'!S54 -> 0 | T15: ='T&D'!T54 -> 0 | U15: ='T&D'!U54 -> 0 | V15: ='T&D'!V54 -> 0 | W15: ='T&D'!W54 -> 0 | X15: ='T&D'!X54 -> 0 | Y15: ='T&D'!Y54 -> 0 | Z15: ='T&D'!Z54 -> 0 | AA15: ='T&D'!AA54 -> 0 | AB15: ='T&D'!AB54 -> 0 | AC15: ='T&D'!AC54 -> 0 | AD15: ='T&D'!AD54 -> 0 | AE15: ='T&D'!AE54 -> 0 | AF15: ='T&D'!AF54 -> 0 | AG15: ='T&D'!AG54 -> 0 | AH15: ='T&D'!AH54 -> 0 | AI15: ='T&D'!AI54 -> 0 | AJ15: ='T&D'!AJ54 -> 0 | AK15: ='T&D'!AK54 -> 0 | AL15: ='T&D'!AL54 -> 0 | AM15: ='T&D'!AM54 -> 0 | AN15: ='T&D'!AN54 -> 6.491620575 | AO15: ='T&D'!AO54 -> 6.491620575 | AP15: ='T&D'!AP54 -> 6.491620575 | AQ15: ='T&D'!AQ54 -> 6.491620575 | AR15: ='T&D'!AR54 -> 6.491620575 | AS15: ='T&D'!AS54 -> 6.491620575 | AT15: ='T&D'!AT54 -> 6.491620575 | AU15: ='T&D'!AU54 -> 6.491620575 | AV15: ='T&D'!AV54 -> 6.491620575 | AW15: ='T&D'!AW54 -> 6.491620575 | AX15: ='T&D'!AX54 -> 6.519117294 | AY15: ='T&D'!AY54 -> 6.547601076 | AZ15: ='T&D'!AZ54 -> 6.570912281 | BA15: ='T&D'!BA54 -> 6.59509293 | BB15: ='T&D'!BB54 -> 6.620681177 | BC15: ='T&D'!BC54 -> 6.647263709 | BD15: ='T&D'!BD54 -> 6.647263709 | BE15: ='T&D'!BE54 -> 6.647263709 | BF15: ='T&D'!BF54 -> 6.647263709 | BG15: ='T&D'!BG54 -> 6.647263709 | BH15: ='T&D'!BH54 -> 6.647263709 | BI15: ='T&D'!BI54 -> 6.647263709 | BJ15: ='T&D'!BJ54 -> 6.647263709 | BK15: ='T&D'!BK54 -> 6.647263709 | BL15: ='T&D'!BL54 -> 6.647263709 | BM15: ='T&D'!BM54 -> 6.647263709 | BN15: ='T&D'!BN54 -> 6.647263709 | BO15: ='T&D'!BO54 -> 6.647263709 | BP15: ='T&D'!BP54 -> 6.647263709 | BQ15: ='T&D'!BQ54 -> 6.647263709 | BR15: ='T&D'!BR54 -> 6.685809638 | BS15: ='T&D'!BS54 -> 6.726790047 | BT15: ='T&D'!BT54 -> 6.772326688 | BU15: ='T&D'!BU54 -> 6.821024107 | BV15: ='T&D'!BV54 -> 6.821024107 | BW15: ='T&D'!BW54 -> 6.821024107 | BX15: ='T&D'!BX54 -> 6.821024107 | BY15: ='T&D'!BY54 -> 6.821024107 | BZ15: ='T&D'!BZ54 -> 6.821024107 | CA15: ='T&D'!CA54 -> 6.821024107 | CB15: ='T&D'!CB54 -> 6.821024107 | CC15: ='T&D'!CC54 -> 6.821024107 | CD15: ='T&D'!CD54 -> 6.868812201 | CE15: ='T&D'!CE54 -> 6.923973315 | CF15: ='T&D'!CF54 -> 7.128360448 | CG15: ='T&D'!CG54 -> 7.376077654 | CH15: ='T&D'!CH54 -> 7.376077654 | CI15: ='T&D'!CI54 -> 7.376077654 | CJ15: ='T&D'!CJ54 -> 7.376077654 | CK15: ='T&D'!CK54 -> 7.376077654 | CL15: ='T&D'!CL54 -> 0 | CM15: ='T&D'!CM54 -> 0 | CN15: ='T&D'!CN54 -> 0 | CO15: ='T&D'!CO54 -> 0 | CP15: ='T&D'!CP54 -> 0 | CQ15: ='T&D'!CQ54 -> 0 | CR15: ='T&D'!CR54 -> 0 | CS15: ='T&D'!CS54 -> 0 | CT15: ='T&D'!CT54 -> 0 | CU15: ='T&D'!CU54 -> 0 | CV15: ='T&D'!CV54 -> 0 | CW15: ='T&D'!CW54 -> 0 | CX15: ='T&D'!CX54 -> 0 | CY15: ='T&D'!CY54 -> 0 | CZ15: ='T&D'!CZ54 -> 0 | DA15: ='T&D'!DA54 -> 0 | DB15: ='T&D'!DB54 -> 0 | DC15: ='T&D'!DC54 -> 0 | DD15: ='T&D'!DD54 -> 0 | DE15: ='T&D'!DE54 -> 0 | DF15: ='T&D'!DF54 -> 0 | DG15: ='T&D'!DG54 -> 0 | DH15: ='T&D'!DH54 -> 0 | DI15: ='T&D'!DI54 -> 0 | DJ15: ='T&D'!DJ54 -> 0 | DK15: ='T&D'!DK54 -> 0 | DL15: ='T&D'!DL54 -> 0 | DM15: ='T&D'!DM54 -> 0 | DN15: ='T&D'!DN54 -> 0 | DO15: ='T&D'!DO54 -> 0 | DP15: ='T&D'!DP54 -> 0 | DQ15: ='T&D'!DQ54 -> 0 | DR15: ='T&D'!DR54 -> 0 | DS15: ='T&D'!DS54 -> 0 | DT15: ='T&D'!DT54 -> 0 | DU15: ='T&D'!DU54 -> 0 | DV15: ='T&D'!DV54 -> 0 | DW15: ='T&D'!DW54 -> 0 | DX15: ='T&D'!DX54 -> 0 | DY15: ='T&D'!DY54 -> 0 | DZ15: ='T&D'!DZ54 -> 0 | EA15: ='T&D'!EA54 -> 0 | EB15: ='T&D'!EB54 -> 0 | EC15: ='T&D'!EC54 -> 0 | ED15: ='T&D'!ED54 -> 0 | EE15: ='T&D'!EE54 -> 0 | EF15: ='T&D'!EF54 -> 0 | EG15: ='T&D'!EG54 -> 0 | EH15: ='T&D'!EH54 -> 0 | EI15: ='T&D'!EI54 -> 0 | EJ15: ='T&D'!EJ54 -> 0 | EK15: ='T&D'!EK54 -> 0 | EL15: ='T&D'!EL54 -> 0 | EM15: ='T&D'!EM54 -> 0 | EN15: ='T&D'!EN54 -> 0 | EO15: ='T&D'!EO54 -> 0 | EP15: ='T&D'!EP54 -> 0 | EQ15: ='T&D'!EQ54 -> 0 | ER15: ='T&D'!ER54 -> 0 | ES15: ='T&D'!ES54 -> 0 | ET15: ='T&D'!ET54 -> 0 | EU15: ='T&D'!EU54 -> 0 | EV15: ='T&D'!EV54 -> 0 | EW15: ='T&D'!EW54 -> 0 | EX15: ='T&D'!EX54 -> 0 | EY15: ='T&D'!EY54 -> 0 | EZ15: ='T&D'!EZ54 -> 0 | FA15: ='T&D'!FA54 -> 0 | FB15: ='T&D'!FB54 -> 0 | FC15: ='T&D'!FC54 -> 0 | FD15: ='T&D'!FD54 -> 0 | FE15: ='T&D'!FE54 -> 0 | FF15: ='T&D'!FF54 -> 0 | FG15: ='T&D'!FG54 -> 0 | FH15: ='T&D'!FH54 -> 0 | FI15: ='T&D'!FI54 -> 0 | FJ15: ='T&D'!FJ54 -> 0 | FK15: ='T&D'!FK54 -> 0 | FL15: ='T&D'!FL54 -> 0 | FM15: ='T&D'!FM54 -> 0 | FN15: ='T&D'!FN54 -> 0 | FO15: ='T&D'!FO54 -> 0 | FP15: ='T&D'!FP54 -> 0 | FQ15: ='T&D'!FQ54 -> 0 | FR15: ='T&D'!FR54 -> 0 | FS15: ='T&D'!FS54 -> 0 | FT15: ='T&D'!FT54 -> 0 | FU15: ='T&D'!FU54 -> 0 | FV15: ='T&D'!FV54 -> 0 | FW15: ='T&D'!FW54 -> 0 | FX15: ='T&D'!FX54 -> 0 | FY15: ='T&D'!FY54 -> 0 | FZ15: ='T&D'!FZ54 -> 0 | GA15: ='T&D'!GA54 -> 0 | GB15: ='T&D'!GB54 -> 0 | GC15: ='T&D'!GC54 -> 0 | GD15: ='T&D'!GD54 -> 0 | GE15: ='T&D'!GE54 -> 0 | GF15: ='T&D'!GF54 -> 0 | GG15: ='T&D'!GG54 -> 0 | GH15: ='T&D'!GH54 -> 0 | GI15: ='T&D'!GI54 -> 0 | GJ15: ='T&D'!GJ54 -> 0 | GK15: ='T&D'!GK54 -> 0 | GL15: ='T&D'!GL54 -> 0 | GM15: ='T&D'!GM54 -> 0 | GN15: ='T&D'!GN54 -> 0 | GO15: ='T&D'!GO54 -> 0 | GP15: ='T&D'!GP54 -> 0 | GQ15: ='T&D'!GQ54 -> 0 | GR15: ='T&D'!GR54 -> 0 | GS15: ='T&D'!GS54 -> 0 | GT15: ='T&D'!GT54 -> 0 | GU15: ='T&D'!GU54 -> 0 | GV15: ='T&D'!GV54 -> 0 | GW15: ='T&D'!GW54 -> 0 | GX15: ='T&D'!GX54 -> 0 | GY15: ='T&D'!GY54 -> 0 | GZ15: ='T&D'!GZ54 -> 0 | HA15: ='T&D'!HA54 -> 0 | HB15: ='T&D'!HB54 -> 0 | HC15: ='T&D'!HC54 -> 0 | HD15: ='T&D'!HD54 -> 0 | HE15: ='T&D'!HE54 -> 0 | HF15: ='T&D'!HF54 -> 0 | HG15: ='T&D'!HG54 -> 0 | HH15: ='T&D'!HH54 -> 0 | HI15: ='T&D'!HI54 -> 0 | HJ15: ='T&D'!HJ54 -> 0 | HK15: ='T&D'!HK54 -> 0 | HL15: ='T&D'!HL54 -> 0 | HM15: ='T&D'!HM54 -> 0 | HN15: ='T&D'!HN54 -> 0 | HO15: ='T&D'!HO54 -> 0 | HP15: ='T&D'!HP54 -> 0 | HQ15: ='T&D'!HQ54 -> 0 | HR15: ='T&D'!HR54 -> 0 | HS15: ='T&D'!HS54 -> 0 | HT15: ='T&D'!HT54 -> 0 | HU15: ='T&D'!HU54 -> 0 | HV15: ='T&D'!HV54 -> 0 | HW15: ='T&D'!HW54 -> 0 | HX15: ='T&D'!HX54 -> 0 | HY15: ='T&D'!HY54 -> 0 | HZ15: ='T&D'!HZ54 -> 0 | IA15: ='T&D'!IA54 -> 0 | IB15: ='T&D'!IB54 -> 0 | IC15: ='T&D'!IC54 -> 0 | ID15: ='T&D'!ID54 -> 0 | IE15: ='T&D'!IE54 -> 0
B17: ="" ->  | C17: EBIT | J17: $m | P17: =SUM(R17:DB17) -> 330.4216572 | R17: =R13-R15 -> 0 | S17: =S13-S15 -> 0 | T17: 0 | U17: 0 | V17: 0 | W17: 0 | X17: 0 | Y17: 0 | Z17: 0 | AA17: 0 | AB17: 0 | AC17: 0 | AD17: 0 | AE17: 0 | AF17: 0 | AG17: 0 | AH17: 0 | AI17: 0 | AJ17: 0 | AK17: 0 | AL17: 0 | AM17: 0 | AN17: 9.093028215 | AO17: 8.26025884 | AP17: 8.995989855 | AQ17: 8.08990473 | AR17: 8.8411016 | AS17: 7.966261856 | AT17: 8.708695434 | AU17: 7.838833895 | AV17: 8.568905618 | AW17: 7.701176524 | AX17: 8.53261944 | AY17: 7.616608474 | AZ17: 8.293865913 | BA17: 7.393088156 | BB17: 8.060004888 | BC17: 7.167575211 | BD17: 7.852153202 | BE17: 6.996878047 | BF17: 7.673664055 | BG17: 6.828785015 | BH17: 7.490518775 | BI17: 6.649292288 | BJ17: 7.302945939 | BK17: 6.472661489 | BL17: 7.118379903 | BM17: 6.298844086 | BN17: 6.936770174 | BO17: 6.127792078 | BP17: 6.758066824 | BQ17: 5.959457988 | BR17: 6.543674549 | BS17: 5.714268506 | BT17: 6.284119317 | BU17: 5.456995775 | BV17: 6.065143567 | BW17: 5.296535584 | BX17: 5.897577286 | BY17: 5.138608352 | BZ17: 5.732675751 | CA17: 4.983169013 | CB17: 5.570392145 | CC17: 4.830172948 | CD17: 5.362892027 | CE17: =CE13-CE15 -> 4.576626761 | CF17: 4.946157452 | CG17: 3.976280761 | CH17: 4.543734173 | CI17: 3.830351056 | CJ17: 4.39146335 | CK17: 3.686690343 | CL17: 0 | CM17: 0 | CN17: 0 | CO17: 0 | CP17: 0 | CQ17: 0 | CR17: 0 | CS17: 0 | CT17: 0 | CU17: 0 | CV17: 0 | CW17: 0 | CX17: 0 | CY17: 0 | CZ17: 0 | DA17: 0 | DB17: 0 | DC17: 0 | DD17: 0 | DE17: 0 | DF17: 0 | DG17: 0 | DH17: 0 | DI17: 0 | DJ17: 0 | DK17: 0 | DL17: 0 | DM17: 0 | DN17: 0 | DO17: 0 | DP17: 0 | DQ17: 0 | DR17: 0 | DS17: 0 | DT17: 0 | DU17: 0 | DV17: 0 | DW17: 0 | DX17: 0 | DY17: 0 | DZ17: 0 | EA17: 0 | EB17: 0 | EC17: 0 | ED17: 0 | EE17: 0 | EF17: 0 | EG17: 0 | EH17: 0 | EI17: 0 | EJ17: 0 | EK17: 0 | EL17: 0 | EM17: 0 | EN17: 0 | EO17: 0 | EP17: 0 | EQ17: =EQ13-EQ15 -> 0 | ER17: 0 | ES17: 0 | ET17: 0 | EU17: 0 | EV17: 0 | EW17: 0 | EX17: 0 | EY17: 0 | EZ17: 0 | FA17: 0 | FB17: 0 | FC17: 0 | FD17: 0 | FE17: 0 | FF17: 0 | FG17: 0 | FH17: 0 | FI17: 0 | FJ17: 0 | FK17: 0 | FL17: 0 | FM17: 0 | FN17: 0 | FO17: 0 | FP17: 0 | FQ17: 0 | FR17: 0 | FS17: 0 | FT17: 0 | FU17: 0 | FV17: 0 | FW17: 0 | FX17: 0 | FY17: 0 | FZ17: 0 | GA17: 0 | GB17: 0 | GC17: 0 | GD17: 0 | GE17: 0 | GF17: 0 | GG17: 0 | GH17: 0 | GI17: 0 | GJ17: 0 | GK17: 0 | GL17: 0 | GM17: 0 | GN17: 0 | GO17: 0 | GP17: 0 | GQ17: 0 | GR17: 0 | GS17: 0 | GT17: 0 | GU17: 0 | GV17: 0 | GW17: 0 | GX17: 0 | GY17: 0 | GZ17: 0 | HA17: 0 | HB17: 0 | HC17: =HC13-HC15 -> 0 | HD17: 0 | HE17: 0 | HF17: 0 | HG17: 0 | HH17: 0 | HI17: 0 | HJ17: 0 | HK17: 0 | HL17: 0 | HM17: 0 | HN17: 0 | HO17: 0 | HP17: 0 | HQ17: 0 | HR17: 0 | HS17: 0 | HT17: 0 | HU17: 0 | HV17: 0 | HW17: 0 | HX17: 0 | HY17: 0 | HZ17: 0 | IA17: 0 | IB17: 0 | IC17: 0 | ID17: 0 | IE17: 0
B19: (+) | C19: Interest Income | J19: $m | P19: =SUM(R19:DB19) -> 0.1840982248 | R19: =Accounts!R58 -> 0 | S19: =Accounts!S58 -> 0 | T19: =Accounts!T58 -> 0 | U19: =Accounts!U58 -> 0 | V19: =Accounts!V58 -> 0 | W19: =Accounts!W58 -> 0 | X19: =Accounts!X58 -> 0 | Y19: =Accounts!Y58 -> 0 | Z19: =Accounts!Z58 -> 0 | AA19: =Accounts!AA58 -> 0 | AB19: =Accounts!AB58 -> 0 | AC19: =Accounts!AC58 -> 0 | AD19: =Accounts!AD58 -> 0 | AE19: =Accounts!AE58 -> 0 | AF19: =Accounts!AF58 -> 0 | AG19: =Accounts!AG58 -> 0 | AH19: =Accounts!AH58 -> 0 | AI19: =Accounts!AI58 -> 0 | AJ19: =Accounts!AJ58 -> 0 | AK19: =Accounts!AK58 -> 0 | AL19: =Accounts!AL58 -> 0 | AM19: =Accounts!AM58 -> 0 | AN19: =Accounts!AN58 -> 0 | AO19: =Accounts!AO58 -> 0 | AP19: =Accounts!AP58 -> 0 | AQ19: =Accounts!AQ58 -> 0 | AR19: =Accounts!AR58 -> 0 | AS19: =Accounts!AS58 -> 0 | AT19: =Accounts!AT58 -> 0 | AU19: =Accounts!AU58 -> 0 | AV19: =Accounts!AV58 -> 0 | AW19: =Accounts!AW58 -> 0 | AX19: =Accounts!AX58 -> 0.01649803192 | AY19: =Accounts!AY58 -> 0.01666301224 | AZ19: =Accounts!AZ58 -> 0.01328738668 | BA19: =Accounts!BA58 -> 0.01342026055 | BB19: =Accounts!BB58 -> 0.01381765301 | BC19: =Accounts!BC58 -> 0.01395582954 | BD19: =Accounts!BD58 -> 0 | BE19: =Accounts!BE58 -> 0 | BF19: =Accounts!BF58 -> 0 | BG19: =Accounts!BG58 -> 0 | BH19: =Accounts!BH58 -> 0 | BI19: =Accounts!BI58 -> 0 | BJ19: =Accounts!BJ58 -> 0 | BK19: =Accounts!BK58 -> 0 | BL19: =Accounts!BL58 -> 0 | BM19: =Accounts!BM58 -> 0 | BN19: =Accounts!BN58 -> 0 | BO19: =Accounts!BO58 -> 0 | BP19: =Accounts!BP58 -> 0 | BQ19: =Accounts!BQ58 -> 0 | BR19: =Accounts!BR58 -> 0.01156377869 | BS19: =Accounts!BS58 -> 0.01167941648 | BT19: =Accounts!BT58 -> 0.01229489305 | BU19: =Accounts!BU58 -> 0.01241784198 | BV19: =Accounts!BV58 -> 0 | BW19: =Accounts!BW58 -> 0 | BX19: =Accounts!BX58 -> 0 | BY19: =Accounts!BY58 -> 0 | BZ19: =Accounts!BZ58 -> 0 | CA19: =Accounts!CA58 -> 0 | CB19: =Accounts!CB58 -> 0 | CC19: =Accounts!CC58 -> 0 | CD19: =Accounts!CD58 -> 0.005734571245 | CE19: =Accounts!CE58 -> 0.005791916957 | CF19: =Accounts!CF58 -> 0.01839484202 | CG19: =Accounts!CG58 -> 0.01857879044 | CH19: =Accounts!CH58 -> 0 | CI19: =Accounts!CI58 -> 0 | CJ19: =Accounts!CJ58 -> 0 | CK19: =Accounts!CK58 -> 0 | CL19: =Accounts!CL58 -> 0 | CM19: =Accounts!CM58 -> 0 | CN19: =Accounts!CN58 -> 0 | CO19: =Accounts!CO58 -> 0 | CP19: =Accounts!CP58 -> 0 | CQ19: =Accounts!CQ58 -> 0 | CR19: =Accounts!CR58 -> 0 | CS19: =Accounts!CS58 -> 0 | CT19: =Accounts!CT58 -> 0 | CU19: =Accounts!CU58 -> 0 | CV19: =Accounts!CV58 -> 0 | CW19: =Accounts!CW58 -> 0 | CX19: =Accounts!CX58 -> 0 | CY19: =Accounts!CY58 -> 0 | CZ19: =Accounts!CZ58 -> 0 | DA19: =Accounts!DA58 -> 0 | DB19: =Accounts!DB58 -> 0 | DC19: =Accounts!DC58 -> 0 | DD19: =Accounts!DD58 -> 0 | DE19: =Accounts!DE58 -> 0 | DF19: =Accounts!DF58 -> 0 | DG19: =Accounts!DG58 -> 0 | DH19: =Accounts!DH58 -> 0 | DI19: =Accounts!DI58 -> 0 | DJ19: =Accounts!DJ58 -> 0 | DK19: =Accounts!DK58 -> 0 | DL19: =Accounts!DL58 -> 0 | DM19: =Accounts!DM58 -> 0 | DN19: =Accounts!DN58 -> 0 | DO19: =Accounts!DO58 -> 0 | DP19: =Accounts!DP58 -> 0 | DQ19: =Accounts!DQ58 -> 0 | DR19: =Accounts!DR58 -> 0 | DS19: =Accounts!DS58 -> 0 | DT19: =Accounts!DT58 -> 0 | DU19: =Accounts!DU58 -> 0 | DV19: =Accounts!DV58 -> 0 | DW19: =Accounts!DW58 -> 0 | DX19: =Accounts!DX58 -> 0 | DY19: =Accounts!DY58 -> 0 | DZ19: =Accounts!DZ58 -> 0 | EA19: =Accounts!EA58 -> 0 | EB19: =Accounts!EB58 -> 0 | EC19: =Accounts!EC58 -> 0 | ED19: =Accounts!ED58 -> 0 | EE19: =Accounts!EE58 -> 0 | EF19: =Accounts!EF58 -> 0 | EG19: =Accounts!EG58 -> 0 | EH19: =Accounts!EH58 -> 0 | EI19: =Accounts!EI58 -> 0 | EJ19: =Accounts!EJ58 -> 0 | EK19: =Accounts!EK58 -> 0 | EL19: =Accounts!EL58 -> 0 | EM19: =Accounts!EM58 -> 0 | EN19: =Accounts!EN58 -> 0 | EO19: =Accounts!EO58 -> 0 | EP19: =Accounts!EP58 -> 0 | EQ19: =Accounts!EQ58 -> 0 | ER19: =Accounts!ER58 -> 0 | ES19: =Accounts!ES58 -> 0 | ET19: =Accounts!ET58 -> 0 | EU19: =Accounts!EU58 -> 0 | EV19: =Accounts!EV58 -> 0 | EW19: =Accounts!EW58 -> 0 | EX19: =Accounts!EX58 -> 0 | EY19: =Accounts!EY58 -> 0 | EZ19: =Accounts!EZ58 -> 0 | FA19: =Accounts!FA58 -> 0 | FB19: =Accounts!FB58 -> 0 | FC19: =Accounts!FC58 -> 0 | FD19: =Accounts!FD58 -> 0 | FE19: =Accounts!FE58 -> 0 | FF19: =Accounts!FF58 -> 0 | FG19: =Accounts!FG58 -> 0 | FH19: =Accounts!FH58 -> 0 | FI19: =Accounts!FI58 -> 0 | FJ19: =Accounts!FJ58 -> 0 | FK19: =Accounts!FK58 -> 0 | FL19: =Accounts!FL58 -> 0 | FM19: =Accounts!FM58 -> 0 | FN19: =Accounts!FN58 -> 0 | FO19: =Accounts!FO58 -> 0 | FP19: =Accounts!FP58 -> 0 | FQ19: =Accounts!FQ58 -> 0 | FR19: =Accounts!FR58 -> 0 | FS19: =Accounts!FS58 -> 0 | FT19: =Accounts!FT58 -> 0 | FU19: =Accounts!FU58 -> 0 | FV19: =Accounts!FV58 -> 0 | FW19: =Accounts!FW58 -> 0 | FX19: =Accounts!FX58 -> 0 | FY19: =Accounts!FY58 -> 0 | FZ19: =Accounts!FZ58 -> 0 | GA19: =Accounts!GA58 -> 0 | GB19: =Accounts!GB58 -> 0 | GC19: =Accounts!GC58 -> 0 | GD19: =Accounts!GD58 -> 0 | GE19: =Accounts!GE58 -> 0 | GF19: =Accounts!GF58 -> 0 | GG19: =Accounts!GG58 -> 0 | GH19: =Accounts!GH58 -> 0 | GI19: =Accounts!GI58 -> 0 | GJ19: =Accounts!GJ58 -> 0 | GK19: =Accounts!GK58 -> 0 | GL19: =Accounts!GL58 -> 0 | GM19: =Accounts!GM58 -> 0 | GN19: =Accounts!GN58 -> 0 | GO19: =Accounts!GO58 -> 0 | GP19: =Accounts!GP58 -> 0 | GQ19: =Accounts!GQ58 -> 0 | GR19: =Accounts!GR58 -> 0 | GS19: =Accounts!GS58 -> 0 | GT19: =Accounts!GT58 -> 0 | GU19: =Accounts!GU58 -> 0 | GV19: =Accounts!GV58 -> 0 | GW19: =Accounts!GW58 -> 0 | GX19: =Accounts!GX58 -> 0 | GY19: =Accounts!GY58 -> 0 | GZ19: =Accounts!GZ58 -> 0 | HA19: =Accounts!HA58 -> 0 | HB19: =Accounts!HB58 -> 0 | HC19: =Accounts!HC58 -> 0 | HD19: =Accounts!HD58 -> 0 | HE19: =Accounts!HE58 -> 0 | HF19: =Accounts!HF58 -> 0 | HG19: =Accounts!HG58 -> 0 | HH19: =Accounts!HH58 -> 0 | HI19: =Accounts!HI58 -> 0 | HJ19: =Accounts!HJ58 -> 0 | HK19: =Accounts!HK58 -> 0 | HL19: =Accounts!HL58 -> 0 | HM19: =Accounts!HM58 -> 0 | HN19: =Accounts!HN58 -> 0 | HO19: =Accounts!HO58 -> 0 | HP19: =Accounts!HP58 -> 0 | HQ19: =Accounts!HQ58 -> 0 | HR19: =Accounts!HR58 -> 0 | HS19: =Accounts!HS58 -> 0 | HT19: =Accounts!HT58 -> 0 | HU19: =Accounts!HU58 -> 0 | HV19: =Accounts!HV58 -> 0 | HW19: =Accounts!HW58 -> 0 | HX19: =Accounts!HX58 -> 0 | HY19: =Accounts!HY58 -> 0 | HZ19: =Accounts!HZ58 -> 0 | IA19: =Accounts!IA58 -> 0 | IB19: =Accounts!IB58 -> 0 | IC19: =Accounts!IC58 -> 0 | ID19: =Accounts!ID58 -> 0 | IE19: =Accounts!IE58 -> 0
B20: (-) | C20: Shareholder Loan Interest | P20: =SUM(R20:DB20) -> 5.31682524 | R20: =Equity!R55 -> 0 | S20: =Equity!S55 -> 0 | T20: =Equity!T55 -> 0 | U20: =Equity!U55 -> 0 | V20: =Equity!V55 -> 0 | W20: =Equity!W55 -> 0 | X20: =Equity!X55 -> 0 | Y20: =Equity!Y55 -> 0 | Z20: =Equity!Z55 -> 0 | AA20: =Equity!AA55 -> 0 | AB20: =Equity!AB55 -> 0 | AC20: =Equity!AC55 -> 0 | AD20: =Equity!AD55 -> 0 | AE20: =Equity!AE55 -> 0 | AF20: =Equity!AF55 -> 0 | AG20: =Equity!AG55 -> 0 | AH20: =Equity!AH55 -> 0 | AI20: =Equity!AI55 -> 0 | AJ20: =Equity!AJ55 -> 0 | AK20: =Equity!AK55 -> 0 | AL20: =Equity!AL55 -> 0 | AM20: =Equity!AM55 -> 0 | AN20: =Equity!AN55 -> 1.187178858 | AO20: =Equity!AO55 -> 1.035887454 | AP20: =Equity!AP55 -> 0.8958556951 | AQ20: =Equity!AQ55 -> 0.7445502862 | AR20: =Equity!AR55 -> 0.5989013821 | AS20: =Equity!AS55 -> 0.4412820518 | AT20: =Equity!AT55 -> 0.2888357265 | AU20: =Equity!AU55 -> 0.1243337869 | AV20: =Equity!AV55 -> 0 | AW20: =Equity!AW55 -> 0 | AX20: =Equity!AX55 -> 0 | AY20: =Equity!AY55 -> 0 | AZ20: =Equity!AZ55 -> 0 | BA20: =Equity!BA55 -> 0 | BB20: =Equity!BB55 -> 0 | BC20: =Equity!BC55 -> 0 | BD20: =Equity!BD55 -> 0 | BE20: =Equity!BE55 -> 0 | BF20: =Equity!BF55 -> 0 | BG20: =Equity!BG55 -> 0 | BH20: =Equity!BH55 -> 0 | BI20: =Equity!BI55 -> 0 | BJ20: =Equity!BJ55 -> 0 | BK20: =Equity!BK55 -> 0 | BL20: =Equity!BL55 -> 0 | BM20: =Equity!BM55 -> 0 | BN20: =Equity!BN55 -> 0 | BO20: =Equity!BO55 -> 0 | BP20: =Equity!BP55 -> 0 | BQ20: =Equity!BQ55 -> 0 | BR20: =Equity!BR55 -> 0 | BS20: =Equity!BS55 -> 0 | BT20: =Equity!BT55 -> 0 | BU20: =Equity!BU55 -> 0 | BV20: =Equity!BV55 -> 0 | BW20: =Equity!BW55 -> 0 | BX20: =Equity!BX55 -> 0 | BY20: =Equity!BY55 -> 0 | BZ20: =Equity!BZ55 -> 0 | CA20: =Equity!CA55 -> 0 | CB20: =Equity!CB55 -> 0 | CC20: =Equity!CC55 -> 0 | CD20: =Equity!CD55 -> 0 | CE20: =Equity!CE55 -> 0 | CF20: =Equity!CF55 -> 0 | CG20: =Equity!CG55 -> 0 | CH20: =Equity!CH55 -> 0 | CI20: =Equity!CI55 -> 0 | CJ20: =Equity!CJ55 -> 0 | CK20: =Equity!CK55 -> 0 | CL20: =Equity!CL55 -> 0 | CM20: =Equity!CM55 -> 0 | CN20: =Equity!CN55 -> 0 | CO20: =Equity!CO55 -> 0 | CP20: =Equity!CP55 -> 0 | CQ20: =Equity!CQ55 -> 0 | CR20: =Equity!CR55 -> 0 | CS20: =Equity!CS55 -> 0 | CT20: =Equity!CT55 -> 0 | CU20: =Equity!CU55 -> 0 | CV20: =Equity!CV55 -> 0 | CW20: =Equity!CW55 -> 0 | CX20: =Equity!CX55 -> 0 | CY20: =Equity!CY55 -> 0 | CZ20: =Equity!CZ55 -> 0 | DA20: =Equity!DA55 -> 0 | DB20: =Equity!DB55 -> 0 | DC20: =Equity!DC55 -> 0 | DD20: =Equity!DD55 -> 0 | DE20: =Equity!DE55 -> 0 | DF20: =Equity!DF55 -> 0 | DG20: =Equity!DG55 -> 0 | DH20: =Equity!DH55 -> 0 | DI20: =Equity!DI55 -> 0 | DJ20: =Equity!DJ55 -> 0 | DK20: =Equity!DK55 -> 0 | DL20: =Equity!DL55 -> 0 | DM20: =Equity!DM55 -> 0 | DN20: =Equity!DN55 -> 0 | DO20: =Equity!DO55 -> 0 | DP20: =Equity!DP55 -> 0 | DQ20: =Equity!DQ55 -> 0 | DR20: =Equity!DR55 -> 0 | DS20: =Equity!DS55 -> 0 | DT20: =Equity!DT55 -> 0 | DU20: =Equity!DU55 -> 0 | DV20: =Equity!DV55 -> 0 | DW20: =Equity!DW55 -> 0 | DX20: =Equity!DX55 -> 0 | DY20: =Equity!DY55 -> 0 | DZ20: =Equity!DZ55 -> 0 | EA20: =Equity!EA55 -> 0 | EB20: =Equity!EB55 -> 0 | EC20: =Equity!EC55 -> 0 | ED20: =Equity!ED55 -> 0 | EE20: =Equity!EE55 -> 0 | EF20: =Equity!EF55 -> 0 | EG20: =Equity!EG55 -> 0 | EH20: =Equity!EH55 -> 0 | EI20: =Equity!EI55 -> 0 | EJ20: =Equity!EJ55 -> 0 | EK20: =Equity!EK55 -> 0 | EL20: =Equity!EL55 -> 0 | EM20: =Equity!EM55 -> 0 | EN20: =Equity!EN55 -> 0 | EO20: =Equity!EO55 -> 0 | EP20: =Equity!EP55 -> 0 | EQ20: =Equity!EQ55 -> 0 | ER20: =Equity!ER55 -> 0 | ES20: =Equity!ES55 -> 0 | ET20: =Equity!ET55 -> 0 | EU20: =Equity!EU55 -> 0 | EV20: =Equity!EV55 -> 0 | EW20: =Equity!EW55 -> 0 | EX20: =Equity!EX55 -> 0 | EY20: =Equity!EY55 -> 0 | EZ20: =Equity!EZ55 -> 0 | FA20: =Equity!FA55 -> 0 | FB20: =Equity!FB55 -> 0 | FC20: =Equity!FC55 -> 0 | FD20: =Equity!FD55 -> 0 | FE20: =Equity!FE55 -> 0 | FF20: =Equity!FF55 -> 0 | FG20: =Equity!FG55 -> 0 | FH20: =Equity!FH55 -> 0 | FI20: =Equity!FI55 -> 0 | FJ20: =Equity!FJ55 -> 0 | FK20: =Equity!FK55 -> 0 | FL20: =Equity!FL55 -> 0 | FM20: =Equity!FM55 -> 0 | FN20: =Equity!FN55 -> 0 | FO20: =Equity!FO55 -> 0 | FP20: =Equity!FP55 -> 0 | FQ20: =Equity!FQ55 -> 0 | FR20: =Equity!FR55 -> 0 | FS20: =Equity!FS55 -> 0 | FT20: =Equity!FT55 -> 0 | FU20: =Equity!FU55 -> 0 | FV20: =Equity!FV55 -> 0 | FW20: =Equity!FW55 -> 0 | FX20: =Equity!FX55 -> 0 | FY20: =Equity!FY55 -> 0 | FZ20: =Equity!FZ55 -> 0 | GA20: =Equity!GA55 -> 0 | GB20: =Equity!GB55 -> 0 | GC20: =Equity!GC55 -> 0 | GD20: =Equity!GD55 -> 0 | GE20: =Equity!GE55 -> 0 | GF20: =Equity!GF55 -> 0 | GG20: =Equity!GG55 -> 0 | GH20: =Equity!GH55 -> 0 | GI20: =Equity!GI55 -> 0 | GJ20: =Equity!GJ55 -> 0 | GK20: =Equity!GK55 -> 0 | GL20: =Equity!GL55 -> 0 | GM20: =Equity!GM55 -> 0 | GN20: =Equity!GN55 -> 0 | GO20: =Equity!GO55 -> 0 | GP20: =Equity!GP55 -> 0 | GQ20: =Equity!GQ55 -> 0 | GR20: =Equity!GR55 -> 0 | GS20: =Equity!GS55 -> 0 | GT20: =Equity!GT55 -> 0 | GU20: =Equity!GU55 -> 0 | GV20: =Equity!GV55 -> 0 | GW20: =Equity!GW55 -> 0 | GX20: =Equity!GX55 -> 0 | GY20: =Equity!GY55 -> 0 | GZ20: =Equity!GZ55 -> 0 | HA20: =Equity!HA55 -> 0 | HB20: =Equity!HB55 -> 0 | HC20: =Equity!HC55 -> 0 | HD20: =Equity!HD55 -> 0 | HE20: =Equity!HE55 -> 0 | HF20: =Equity!HF55 -> 0 | HG20: =Equity!HG55 -> 0 | HH20: =Equity!HH55 -> 0 | HI20: =Equity!HI55 -> 0 | HJ20: =Equity!HJ55 -> 0 | HK20: =Equity!HK55 -> 0 | HL20: =Equity!HL55 -> 0 | HM20: =Equity!HM55 -> 0 | HN20: =Equity!HN55 -> 0 | HO20: =Equity!HO55 -> 0 | HP20: =Equity!HP55 -> 0 | HQ20: =Equity!HQ55 -> 0 | HR20: =Equity!HR55 -> 0 | HS20: =Equity!HS55 -> 0 | HT20: =Equity!HT55 -> 0 | HU20: =Equity!HU55 -> 0 | HV20: =Equity!HV55 -> 0 | HW20: =Equity!HW55 -> 0 | HX20: =Equity!HX55 -> 0 | HY20: =Equity!HY55 -> 0 | HZ20: =Equity!HZ55 -> 0 | IA20: =Equity!IA55 -> 0 | IB20: =Equity!IB55 -> 0 | IC20: =Equity!IC55 -> 0 | ID20: =Equity!ID55 -> 0 | IE20: =Equity!IE55 -> 0
B21: (-) | C21: Term Loan Interest Expense | J21: $m | P21: =SUM(R21:DB21) -> 74.06772075 | R21: =Debt!R88 -> 0 | S21: =Debt!S88 -> 0 | T21: =Debt!T88 -> 0 | U21: =Debt!U88 -> 0 | V21: =Debt!V88 -> 0 | W21: =Debt!W88 -> 0 | X21: =Debt!X88 -> 0 | Y21: =Debt!Y88 -> 0 | Z21: =Debt!Z88 -> 0 | AA21: =Debt!AA88 -> 0 | AB21: =Debt!AB88 -> 0 | AC21: =Debt!AC88 -> 0 | AD21: =Debt!AD88 -> 0 | AE21: =Debt!AE88 -> 0 | AF21: =Debt!AF88 -> 0 | AG21: =Debt!AG88 -> 0 | AH21: =Debt!AH88 -> 0 | AI21: =Debt!AI88 -> 0 | AJ21: =Debt!AJ88 -> 0 | AK21: =Debt!AK88 -> 0 | AL21: =Debt!AL88 -> 0 | AM21: =Debt!AM88 -> 0 | AN21: =Debt!AN88 -> 2.7995117 | AO21: =Debt!AO88 -> 2.73587415 | AP21: =Debt!AP88 -> 2.67585105 | AQ21: =Debt!AQ88 -> 2.61152925 | AR21: =Debt!AR88 -> 2.551505 | AS21: =Debt!AS88 -> 2.48712685 | AT21: =Debt!AT88 -> 2.42688985 | AU21: =Debt!AU88 -> 2.4650604 | AV21: =Debt!AV88 -> 2.603367 | AW21: =Debt!AW88 -> 2.5336818 | AX21: =Debt!AX88 -> 2.4683386 | AY21: =Debt!AY88 -> 2.4053211 | AZ21: =Debt!AZ88 -> 2.3468757 | BA21: =Debt!BA88 -> 2.2818978 | BB21: =Debt!BB88 -> 2.221401 | BC21: =Debt!BC88 -> 2.1562684 | BD21: =Debt!BD88 -> 2.0955506 | BE21: =Debt!BE88 -> 2.1009537 | BF21: =Debt!BF88 -> 2.03108985 | BG21: =Debt!BG88 -> 1.956231 | BH21: =Debt!BH88 -> 1.88568135 | BI21: =Debt!BI88 -> 1.81022175 | BJ21: =Debt!BJ88 -> 1.73903895 | BK21: =Debt!BK88 -> 1.66299075 | BL21: =Debt!BL88 -> 1.6500764 | BM21: =Debt!BM88 -> 1.5712844 | BN21: =Debt!BN88 -> 1.496747 | BO21: =Debt!BO88 -> 1.4678379 | BP21: =Debt!BP88 -> 1.39045285 | BQ21: =Debt!BQ88 -> 1.3079145 | BR21: =Debt!BR88 -> 1.22959855 | BS21: =Debt!BS88 -> 1.152518 | BT21: =Debt!BT88 -> 1.0796584 | BU21: =Debt!BU88 -> 1.0020689 | BV21: =Debt!BV88 -> 0.9286177 | BW21: =Debt!BW88 -> 0.8433229 | BX21: =Debt!BX88 -> 0.76201415 | BY21: =Debt!BY88 -> 0.698997 | BZ21: =Debt!BZ88 -> 0.6140565 | CA21: =Debt!CA88 -> 0.523935 | CB21: =Debt!CB88 -> 0.437742 | CC21: =Debt!CC88 -> 0.3463965 | CD21: =Debt!CD88 -> 0.2589015 | CE21: =Debt!CE88 -> 0.169491 | CF21: =Debt!CF88 -> 0.083832 | CG21: =Debt!CG88 -> 0 | CH21: =Debt!CH88 -> 0 | CI21: =Debt!CI88 -> 0 | CJ21: =Debt!CJ88 -> 0 | CK21: =Debt!CK88 -> 0 | CL21: =Debt!CL88 -> 0 | CM21: =Debt!CM88 -> 0 | CN21: =Debt!CN88 -> 0 | CO21: =Debt!CO88 -> 0 | CP21: =Debt!CP88 -> 0 | CQ21: =Debt!CQ88 -> 0 | CR21: =Debt!CR88 -> 0 | CS21: =Debt!CS88 -> 0 | CT21: =Debt!CT88 -> 0 | CU21: =Debt!CU88 -> 0 | CV21: =Debt!CV88 -> 0 | CW21: =Debt!CW88 -> 0 | CX21: =Debt!CX88 -> 0 | CY21: =Debt!CY88 -> 0 | CZ21: =Debt!CZ88 -> 0 | DA21: =Debt!DA88 -> 0 | DB21: =Debt!DB88 -> 0 | DC21: =Debt!DC88 -> 0 | DD21: =Debt!DD88 -> 0 | DE21: =Debt!DE88 -> 0 | DF21: =Debt!DF88 -> 0 | DG21: =Debt!DG88 -> 0 | DH21: =Debt!DH88 -> 0 | DI21: =Debt!DI88 -> 0 | DJ21: =Debt!DJ88 -> 0 | DK21: =Debt!DK88 -> 0 | DL21: =Debt!DL88 -> 0 | DM21: =Debt!DM88 -> 0 | DN21: =Debt!DN88 -> 0 | DO21: =Debt!DO88 -> 0 | DP21: =Debt!DP88 -> 0 | DQ21: =Debt!DQ88 -> 0 | DR21: =Debt!DR88 -> 0 | DS21: =Debt!DS88 -> 0 | DT21: =Debt!DT88 -> 0 | DU21: =Debt!DU88 -> 0 | DV21: =Debt!DV88 -> 0 | DW21: =Debt!DW88 -> 0 | DX21: =Debt!DX88 -> 0 | DY21: =Debt!DY88 -> 0 | DZ21: =Debt!DZ88 -> 0 | EA21: =Debt!EA88 -> 0 | EB21: =Debt!EB88 -> 0 | EC21: =Debt!EC88 -> 0 | ED21: =Debt!ED88 -> 0 | EE21: =Debt!EE88 -> 0 | EF21: =Debt!EF88 -> 0 | EG21: =Debt!EG88 -> 0 | EH21: =Debt!EH88 -> 0 | EI21: =Debt!EI88 -> 0 | EJ21: =Debt!EJ88 -> 0 | EK21: =Debt!EK88 -> 0 | EL21: =Debt!EL88 -> 0 | EM21: =Debt!EM88 -> 0 | EN21: =Debt!EN88 -> 0 | EO21: =Debt!EO88 -> 0 | EP21: =Debt!EP88 -> 0 | EQ21: =Debt!EQ88 -> 0 | ER21: =Debt!ER88 -> 0 | ES21: =Debt!ES88 -> 0 | ET21: =Debt!ET88 -> 0 | EU21: =Debt!EU88 -> 0 | EV21: =Debt!EV88 -> 0 | EW21: =Debt!EW88 -> 0 | EX21: =Debt!EX88 -> 0 | EY21: =Debt!EY88 -> 0 | EZ21: =Debt!EZ88 -> 0 | FA21: =Debt!FA88 -> 0 | FB21: =Debt!FB88 -> 0 | FC21: =Debt!FC88 -> 0 | FD21: =Debt!FD88 -> 0 | FE21: =Debt!FE88 -> 0 | FF21: =Debt!FF88 -> 0 | FG21: =Debt!FG88 -> 0 | FH21: =Debt!FH88 -> 0 | FI21: =Debt!FI88 -> 0 | FJ21: =Debt!FJ88 -> 0 | FK21: =Debt!FK88 -> 0 | FL21: =Debt!FL88 -> 0 | FM21: =Debt!FM88 -> 0 | FN21: =Debt!FN88 -> 0 | FO21: =Debt!FO88 -> 0 | FP21: =Debt!FP88 -> 0 | FQ21: =Debt!FQ88 -> 0 | FR21: =Debt!FR88 -> 0 | FS21: =Debt!FS88 -> 0 | FT21: =Debt!FT88 -> 0 | FU21: =Debt!FU88 -> 0 | FV21: =Debt!FV88 -> 0 | FW21: =Debt!FW88 -> 0 | FX21: =Debt!FX88 -> 0 | FY21: =Debt!FY88 -> 0 | FZ21: =Debt!FZ88 -> 0 | GA21: =Debt!GA88 -> 0 | GB21: =Debt!GB88 -> 0 | GC21: =Debt!GC88 -> 0 | GD21: =Debt!GD88 -> 0 | GE21: =Debt!GE88 -> 0 | GF21: =Debt!GF88 -> 0 | GG21: =Debt!GG88 -> 0 | GH21: =Debt!GH88 -> 0 | GI21: =Debt!GI88 -> 0 | GJ21: =Debt!GJ88 -> 0 | GK21: =Debt!GK88 -> 0 | GL21: =Debt!GL88 -> 0 | GM21: =Debt!GM88 -> 0 | GN21: =Debt!GN88 -> 0 | GO21: =Debt!GO88 -> 0 | GP21: =Debt!GP88 -> 0 | GQ21: =Debt!GQ88 -> 0 | GR21: =Debt!GR88 -> 0 | GS21: =Debt!GS88 -> 0 | GT21: =Debt!GT88 -> 0 | GU21: =Debt!GU88 -> 0 | GV21: =Debt!GV88 -> 0 | GW21: =Debt!GW88 -> 0 | GX21: =Debt!GX88 -> 0 | GY21: =Debt!GY88 -> 0 | GZ21: =Debt!GZ88 -> 0 | HA21: =Debt!HA88 -> 0 | HB21: =Debt!HB88 -> 0 | HC21: =Debt!HC88 -> 0 | HD21: =Debt!HD88 -> 0 | HE21: =Debt!HE88 -> 0 | HF21: =Debt!HF88 -> 0 | HG21: =Debt!HG88 -> 0 | HH21: =Debt!HH88 -> 0 | HI21: =Debt!HI88 -> 0 | HJ21: =Debt!HJ88 -> 0 | HK21: =Debt!HK88 -> 0 | HL21: =Debt!HL88 -> 0 | HM21: =Debt!HM88 -> 0 | HN21: =Debt!HN88 -> 0 | HO21: =Debt!HO88 -> 0 | HP21: =Debt!HP88 -> 0 | HQ21: =Debt!HQ88 -> 0 | HR21: =Debt!HR88 -> 0 | HS21: =Debt!HS88 -> 0 | HT21: =Debt!HT88 -> 0 | HU21: =Debt!HU88 -> 0 | HV21: =Debt!HV88 -> 0 | HW21: =Debt!HW88 -> 0 | HX21: =Debt!HX88 -> 0 | HY21: =Debt!HY88 -> 0 | HZ21: =Debt!HZ88 -> 0 | IA21: =Debt!IA88 -> 0 | IB21: =Debt!IB88 -> 0 | IC21: =Debt!IC88 -> 0 | ID21: =Debt!ID88 -> 0 | IE21: =Debt!IE88 -> 0
B22: (-) | C22: DSRF Interest Expense | P22: =SUM(R22:DB22) -> 0 | R22: =Debt!R137 -> 0 | S22: =Debt!S137 -> 0 | T22: =Debt!T137 -> 0 | U22: =Debt!U137 -> 0 | V22: =Debt!V137 -> 0 | W22: =Debt!W137 -> 0 | X22: =Debt!X137 -> 0 | Y22: =Debt!Y137 -> 0 | Z22: =Debt!Z137 -> 0 | AA22: =Debt!AA137 -> 0 | AB22: =Debt!AB137 -> 0 | AC22: =Debt!AC137 -> 0 | AD22: =Debt!AD137 -> 0 | AE22: =Debt!AE137 -> 0 | AF22: =Debt!AF137 -> 0 | AG22: =Debt!AG137 -> 0 | AH22: =Debt!AH137 -> 0 | AI22: =Debt!AI137 -> 0 | AJ22: =Debt!AJ137 -> 0 | AK22: =Debt!AK137 -> 0 | AL22: =Debt!AL137 -> 0 | AM22: =Debt!AM137 -> 0 | AN22: =Debt!AN137 -> 0 | AO22: =Debt!AO137 -> 0 | AP22: =Debt!AP137 -> 0 | AQ22: =Debt!AQ137 -> 0 | AR22: =Debt!AR137 -> 0 | AS22: =Debt!AS137 -> 0 | AT22: =Debt!AT137 -> 0 | AU22: =Debt!AU137 -> 0 | AV22: =Debt!AV137 -> 0 | AW22: =Debt!AW137 -> 0 | AX22: =Debt!AX137 -> 0 | AY22: =Debt!AY137 -> 0 | AZ22: =Debt!AZ137 -> 0 | BA22: =Debt!BA137 -> 0 | BB22: =Debt!BB137 -> 0 | BC22: =Debt!BC137 -> 0 | BD22: =Debt!BD137 -> 0 | BE22: =Debt!BE137 -> 0 | BF22: =Debt!BF137 -> 0 | BG22: =Debt!BG137 -> 0 | BH22: =Debt!BH137 -> 0 | BI22: =Debt!BI137 -> 0 | BJ22: =Debt!BJ137 -> 0 | BK22: =Debt!BK137 -> 0 | BL22: =Debt!BL137 -> 0 | BM22: =Debt!BM137 -> 0 | BN22: =Debt!BN137 -> 0 | BO22: =Debt!BO137 -> 0 | BP22: =Debt!BP137 -> 0 | BQ22: =Debt!BQ137 -> 0 | BR22: =Debt!BR137 -> 0 | BS22: =Debt!BS137 -> 0 | BT22: =Debt!BT137 -> 0 | BU22: =Debt!BU137 -> 0 | BV22: =Debt!BV137 -> 0 | BW22: =Debt!BW137 -> 0 | BX22: =Debt!BX137 -> 0 | BY22: =Debt!BY137 -> 0 | BZ22: =Debt!BZ137 -> 0 | CA22: =Debt!CA137 -> 0 | CB22: =Debt!CB137 -> 0 | CC22: =Debt!CC137 -> 0 | CD22: =Debt!CD137 -> 0 | CE22: =Debt!CE137 -> 0 | CF22: =Debt!CF137 -> 0 | CG22: =Debt!CG137 -> 0 | CH22: =Debt!CH137 -> 0 | CI22: =Debt!CI137 -> 0 | CJ22: =Debt!CJ137 -> 0 | CK22: =Debt!CK137 -> 0 | CL22: =Debt!CL137 -> 0 | CM22: =Debt!CM137 -> 0 | CN22: =Debt!CN137 -> 0 | CO22: =Debt!CO137 -> 0 | CP22: =Debt!CP137 -> 0 | CQ22: =Debt!CQ137 -> 0 | CR22: =Debt!CR137 -> 0 | CS22: =Debt!CS137 -> 0 | CT22: =Debt!CT137 -> 0 | CU22: =Debt!CU137 -> 0 | CV22: =Debt!CV137 -> 0 | CW22: =Debt!CW137 -> 0 | CX22: =Debt!CX137 -> 0 | CY22: =Debt!CY137 -> 0 | CZ22: =Debt!CZ137 -> 0 | DA22: =Debt!DA137 -> 0 | DB22: =Debt!DB137 -> 0 | DC22: =Debt!DC137 -> 0 | DD22: =Debt!DD137 -> 0 | DE22: =Debt!DE137 -> 0 | DF22: =Debt!DF137 -> 0 | DG22: =Debt!DG137 -> 0 | DH22: =Debt!DH137 -> 0 | DI22: =Debt!DI137 -> 0 | DJ22: =Debt!DJ137 -> 0 | DK22: =Debt!DK137 -> 0 | DL22: =Debt!DL137 -> 0 | DM22: =Debt!DM137 -> 0 | DN22: =Debt!DN137 -> 0 | DO22: =Debt!DO137 -> 0 | DP22: =Debt!DP137 -> 0 | DQ22: =Debt!DQ137 -> 0 | DR22: =Debt!DR137 -> 0 | DS22: =Debt!DS137 -> 0 | DT22: =Debt!DT137 -> 0 | DU22: =Debt!DU137 -> 0 | DV22: =Debt!DV137 -> 0 | DW22: =Debt!DW137 -> 0 | DX22: =Debt!DX137 -> 0 | DY22: =Debt!DY137 -> 0 | DZ22: =Debt!DZ137 -> 0 | EA22: =Debt!EA137 -> 0 | EB22: =Debt!EB137 -> 0 | EC22: =Debt!EC137 -> 0 | ED22: =Debt!ED137 -> 0 | EE22: =Debt!EE137 -> 0 | EF22: =Debt!EF137 -> 0 | EG22: =Debt!EG137 -> 0 | EH22: =Debt!EH137 -> 0 | EI22: =Debt!EI137 -> 0 | EJ22: =Debt!EJ137 -> 0 | EK22: =Debt!EK137 -> 0 | EL22: =Debt!EL137 -> 0 | EM22: =Debt!EM137 -> 0 | EN22: =Debt!EN137 -> 0 | EO22: =Debt!EO137 -> 0 | EP22: =Debt!EP137 -> 0 | EQ22: =Debt!EQ137 -> 0 | ER22: =Debt!ER137 -> 0 | ES22: =Debt!ES137 -> 0 | ET22: =Debt!ET137 -> 0 | EU22: =Debt!EU137 -> 0 | EV22: =Debt!EV137 -> 0 | EW22: =Debt!EW137 -> 0 | EX22: =Debt!EX137 -> 0 | EY22: =Debt!EY137 -> 0 | EZ22: =Debt!EZ137 -> 0 | FA22: =Debt!FA137 -> 0 | FB22: =Debt!FB137 -> 0 | FC22: =Debt!FC137 -> 0 | FD22: =Debt!FD137 -> 0 | FE22: =Debt!FE137 -> 0 | FF22: =Debt!FF137 -> 0 | FG22: =Debt!FG137 -> 0 | FH22: =Debt!FH137 -> 0 | FI22: =Debt!FI137 -> 0 | FJ22: =Debt!FJ137 -> 0 | FK22: =Debt!FK137 -> 0 | FL22: =Debt!FL137 -> 0 | FM22: =Debt!FM137 -> 0 | FN22: =Debt!FN137 -> 0 | FO22: =Debt!FO137 -> 0 | FP22: =Debt!FP137 -> 0 | FQ22: =Debt!FQ137 -> 0 | FR22: =Debt!FR137 -> 0 | FS22: =Debt!FS137 -> 0 | FT22: =Debt!FT137 -> 0 | FU22: =Debt!FU137 -> 0 | FV22: =Debt!FV137 -> 0 | FW22: =Debt!FW137 -> 0 | FX22: =Debt!FX137 -> 0 | FY22: =Debt!FY137 -> 0 | FZ22: =Debt!FZ137 -> 0 | GA22: =Debt!GA137 -> 0 | GB22: =Debt!GB137 -> 0 | GC22: =Debt!GC137 -> 0 | GD22: =Debt!GD137 -> 0 | GE22: =Debt!GE137 -> 0 | GF22: =Debt!GF137 -> 0 | GG22: =Debt!GG137 -> 0 | GH22: =Debt!GH137 -> 0 | GI22: =Debt!GI137 -> 0 | GJ22: =Debt!GJ137 -> 0 | GK22: =Debt!GK137 -> 0 | GL22: =Debt!GL137 -> 0 | GM22: =Debt!GM137 -> 0 | GN22: =Debt!GN137 -> 0 | GO22: =Debt!GO137 -> 0 | GP22: =Debt!GP137 -> 0 | GQ22: =Debt!GQ137 -> 0 | GR22: =Debt!GR137 -> 0 | GS22: =Debt!GS137 -> 0 | GT22: =Debt!GT137 -> 0 | GU22: =Debt!GU137 -> 0 | GV22: =Debt!GV137 -> 0 | GW22: =Debt!GW137 -> 0 | GX22: =Debt!GX137 -> 0 | GY22: =Debt!GY137 -> 0 | GZ22: =Debt!GZ137 -> 0 | HA22: =Debt!HA137 -> 0 | HB22: =Debt!HB137 -> 0 | HC22: =Debt!HC137 -> 0 | HD22: =Debt!HD137 -> 0 | HE22: =Debt!HE137 -> 0 | HF22: =Debt!HF137 -> 0 | HG22: =Debt!HG137 -> 0 | HH22: =Debt!HH137 -> 0 | HI22: =Debt!HI137 -> 0 | HJ22: =Debt!HJ137 -> 0 | HK22: =Debt!HK137 -> 0 | HL22: =Debt!HL137 -> 0 | HM22: =Debt!HM137 -> 0 | HN22: =Debt!HN137 -> 0 | HO22: =Debt!HO137 -> 0 | HP22: =Debt!HP137 -> 0 | HQ22: =Debt!HQ137 -> 0 | HR22: =Debt!HR137 -> 0 | HS22: =Debt!HS137 -> 0 | HT22: =Debt!HT137 -> 0 | HU22: =Debt!HU137 -> 0 | HV22: =Debt!HV137 -> 0 | HW22: =Debt!HW137 -> 0 | HX22: =Debt!HX137 -> 0 | HY22: =Debt!HY137 -> 0 | HZ22: =Debt!HZ137 -> 0 | IA22: =Debt!IA137 -> 0 | IB22: =Debt!IB137 -> 0 | IC22: =Debt!IC137 -> 0 | ID22: =Debt!ID137 -> 0 | IE22: =Debt!IE137 -> 0
B23: (-) | C23: WC Facility Interest Expense | P23: =SUM(R23:DB23) -> 11.16706527 | R23: =Debt!R165 -> 0 | S23: =Debt!S165 -> 0 | T23: =Debt!T165 -> 0 | U23: =Debt!U165 -> 0 | V23: =Debt!V165 -> 0 | W23: =Debt!W165 -> 0 | X23: =Debt!X165 -> 0 | Y23: =Debt!Y165 -> 0 | Z23: =Debt!Z165 -> 0 | AA23: =Debt!AA165 -> 0 | AB23: =Debt!AB165 -> 0 | AC23: =Debt!AC165 -> 0 | AD23: =Debt!AD165 -> 0 | AE23: =Debt!AE165 -> 0 | AF23: =Debt!AF165 -> 0 | AG23: =Debt!AG165 -> 0 | AH23: =Debt!AH165 -> 0 | AI23: =Debt!AI165 -> 0 | AJ23: =Debt!AJ165 -> 0 | AK23: =Debt!AK165 -> 0 | AL23: =Debt!AL165 -> 0 | AM23: =Debt!AM165 -> 0 | AN23: =Debt!AN165 -> 0 | AO23: =Debt!AO165 -> 0.2441020957 | AP23: =Debt!AP165 -> 0.2429249708 | AQ23: =Debt!AQ165 -> 0.2552902818 | AR23: =Debt!AR165 -> 0.240119683 | AS23: =Debt!AS165 -> 0.2528628491 | AT23: =Debt!AT165 -> 0.2380836074 | AU23: =Debt!AU165 -> 0.2506792447 | AV23: =Debt!AV165 -> 0.2517175481 | AW23: =Debt!AW165 -> 0.2649321293 | AX23: =Debt!AX165 -> 0.2492995664 | AY23: =Debt!AY165 -> 0.2646459206 | AZ23: =Debt!AZ165 -> 0.2487974199 | BA23: =Debt!BA165 -> 0.2614886949 | BB23: =Debt!BB165 -> 0.2457054417 | BC23: =Debt!BC165 -> 0.2582503007 | BD23: =Debt!BD165 -> 0.2426606489 | BE23: =Debt!BE165 -> 0.255061566 | BF23: =Debt!BF165 -> 0.2396623161 | BG23: =Debt!BG165 -> 0.2517965321 | BH23: =Debt!BH165 -> 0.2367097254 | BI23: =Debt!BI165 -> 0.2486999968 | BJ23: =Debt!BJ165 -> 0.2335568966 | BK23: =Debt!BK165 -> 0.245400373 | BL23: =Debt!BL165 -> 0.2376560363 | BM23: =Debt!BM165 -> 0.2497209437 | BN23: =Debt!BN165 -> 0.2345074852 | BO23: =Debt!BO165 -> 0.2463039111 | BP23: =Debt!BP165 -> 0.2314090268 | BQ23: =Debt!BQ165 -> 0.2431845459 | BR23: =Debt!BR165 -> 0.2283598012 | BS23: =Debt!BS165 -> 0.2399945377 | BT23: =Debt!BT165 -> 0.2253589574 | BU23: =Debt!BU165 -> 0.2368554721 | BV23: =Debt!BV165 -> 0.2224056536 | BW23: =Debt!BW165 -> 0.233650293 | BX23: =Debt!BX165 -> 0.2194990568 | BY23: =Debt!BY165 -> 0.2307266722 | BZ23: =Debt!BZ165 -> 0.2166383423 | CA23: =Debt!CA165 -> 0.2277352126 | CB23: =Debt!CB165 -> 0.2138226939 | CC23: =Debt!CC165 -> 0.2247912446 | CD23: =Debt!CD165 -> 0.2110513032 | CE23: =Debt!CE165 -> 0.2217836481 | CF23: =Debt!CF165 -> 0.2083233699 | CG23: =Debt!CG165 -> 0.1327529869 | CH23: =Debt!CH165 -> 0.1246291522 | CI23: =Debt!CI165 -> 0.1310520748 | CJ23: =Debt!CJ165 -> 0.1230270978 | CK23: =Debt!CK165 -> 0.129377937 | CL23: =Debt!CL165 -> 0 | CM23: =Debt!CM165 -> 0 | CN23: =Debt!CN165 -> 0 | CO23: =Debt!CO165 -> 0 | CP23: =Debt!CP165 -> 0 | CQ23: =Debt!CQ165 -> 0 | CR23: =Debt!CR165 -> 0 | CS23: =Debt!CS165 -> 0 | CT23: =Debt!CT165 -> 0 | CU23: =Debt!CU165 -> 0 | CV23: =Debt!CV165 -> 0 | CW23: =Debt!CW165 -> 0 | CX23: =Debt!CX165 -> 0 | CY23: =Debt!CY165 -> 0 | CZ23: =Debt!CZ165 -> 0 | DA23: =Debt!DA165 -> 0 | DB23: =Debt!DB165 -> 0 | DC23: =Debt!DC165 -> 0 | DD23: =Debt!DD165 -> 0 | DE23: =Debt!DE165 -> 0 | DF23: =Debt!DF165 -> 0 | DG23: =Debt!DG165 -> 0 | DH23: =Debt!DH165 -> 0 | DI23: =Debt!DI165 -> 0 | DJ23: =Debt!DJ165 -> 0 | DK23: =Debt!DK165 -> 0 | DL23: =Debt!DL165 -> 0 | DM23: =Debt!DM165 -> 0 | DN23: =Debt!DN165 -> 0 | DO23: =Debt!DO165 -> 0 | DP23: =Debt!DP165 -> 0 | DQ23: =Debt!DQ165 -> 0 | DR23: =Debt!DR165 -> 0 | DS23: =Debt!DS165 -> 0 | DT23: =Debt!DT165 -> 0 | DU23: =Debt!DU165 -> 0 | DV23: =Debt!DV165 -> 0 | DW23: =Debt!DW165 -> 0 | DX23: =Debt!DX165 -> 0 | DY23: =Debt!DY165 -> 0 | DZ23: =Debt!DZ165 -> 0 | EA23: =Debt!EA165 -> 0 | EB23: =Debt!EB165 -> 0 | EC23: =Debt!EC165 -> 0 | ED23: =Debt!ED165 -> 0 | EE23: =Debt!EE165 -> 0 | EF23: =Debt!EF165 -> 0 | EG23: =Debt!EG165 -> 0 | EH23: =Debt!EH165 -> 0 | EI23: =Debt!EI165 -> 0 | EJ23: =Debt!EJ165 -> 0 | EK23: =Debt!EK165 -> 0 | EL23: =Debt!EL165 -> 0 | EM23: =Debt!EM165 -> 0 | EN23: =Debt!EN165 -> 0 | EO23: =Debt!EO165 -> 0 | EP23: =Debt!EP165 -> 0 | EQ23: =Debt!EQ165 -> 0 | ER23: =Debt!ER165 -> 0 | ES23: =Debt!ES165 -> 0 | ET23: =Debt!ET165 -> 0 | EU23: =Debt!EU165 -> 0 | EV23: =Debt!EV165 -> 0 | EW23: =Debt!EW165 -> 0 | EX23: =Debt!EX165 -> 0 | EY23: =Debt!EY165 -> 0 | EZ23: =Debt!EZ165 -> 0 | FA23: =Debt!FA165 -> 0 | FB23: =Debt!FB165 -> 0 | FC23: =Debt!FC165 -> 0 | FD23: =Debt!FD165 -> 0 | FE23: =Debt!FE165 -> 0 | FF23: =Debt!FF165 -> 0 | FG23: =Debt!FG165 -> 0 | FH23: =Debt!FH165 -> 0 | FI23: =Debt!FI165 -> 0 | FJ23: =Debt!FJ165 -> 0 | FK23: =Debt!FK165 -> 0 | FL23: =Debt!FL165 -> 0 | FM23: =Debt!FM165 -> 0 | FN23: =Debt!FN165 -> 0 | FO23: =Debt!FO165 -> 0 | FP23: =Debt!FP165 -> 0 | FQ23: =Debt!FQ165 -> 0 | FR23: =Debt!FR165 -> 0 | FS23: =Debt!FS165 -> 0 | FT23: =Debt!FT165 -> 0 | FU23: =Debt!FU165 -> 0 | FV23: =Debt!FV165 -> 0 | FW23: =Debt!FW165 -> 0 | FX23: =Debt!FX165 -> 0 | FY23: =Debt!FY165 -> 0 | FZ23: =Debt!FZ165 -> 0 | GA23: =Debt!GA165 -> 0 | GB23: =Debt!GB165 -> 0 | GC23: =Debt!GC165 -> 0 | GD23: =Debt!GD165 -> 0 | GE23: =Debt!GE165 -> 0 | GF23: =Debt!GF165 -> 0 | GG23: =Debt!GG165 -> 0 | GH23: =Debt!GH165 -> 0 | GI23: =Debt!GI165 -> 0 | GJ23: =Debt!GJ165 -> 0 | GK23: =Debt!GK165 -> 0 | GL23: =Debt!GL165 -> 0 | GM23: =Debt!GM165 -> 0 | GN23: =Debt!GN165 -> 0 | GO23: =Debt!GO165 -> 0 | GP23: =Debt!GP165 -> 0 | GQ23: =Debt!GQ165 -> 0 | GR23: =Debt!GR165 -> 0 | GS23: =Debt!GS165 -> 0 | GT23: =Debt!GT165 -> 0 | GU23: =Debt!GU165 -> 0 | GV23: =Debt!GV165 -> 0 | GW23: =Debt!GW165 -> 0 | GX23: =Debt!GX165 -> 0 | GY23: =Debt!GY165 -> 0 | GZ23: =Debt!GZ165 -> 0 | HA23: =Debt!HA165 -> 0 | HB23: =Debt!HB165 -> 0 | HC23: =Debt!HC165 -> 0 | HD23: =Debt!HD165 -> 0 | HE23: =Debt!HE165 -> 0 | HF23: =Debt!HF165 -> 0 | HG23: =Debt!HG165 -> 0 | HH23: =Debt!HH165 -> 0 | HI23: =Debt!HI165 -> 0 | HJ23: =Debt!HJ165 -> 0 | HK23: =Debt!HK165 -> 0 | HL23: =Debt!HL165 -> 0 | HM23: =Debt!HM165 -> 0 | HN23: =Debt!HN165 -> 0 | HO23: =Debt!HO165 -> 0 | HP23: =Debt!HP165 -> 0 | HQ23: =Debt!HQ165 -> 0 | HR23: =Debt!HR165 -> 0 | HS23: =Debt!HS165 -> 0 | HT23: =Debt!HT165 -> 0 | HU23: =Debt!HU165 -> 0 | HV23: =Debt!HV165 -> 0 | HW23: =Debt!HW165 -> 0 | HX23: =Debt!HX165 -> 0 | HY23: =Debt!HY165 -> 0 | HZ23: =Debt!HZ165 -> 0 | IA23: =Debt!IA165 -> 0 | IB23: =Debt!IB165 -> 0 | IC23: =Debt!IC165 -> 0 | ID23: =Debt!ID165 -> 0 | IE23: =Debt!IE165 -> 0
B25: ="" ->  | C25: EBT | J25: $m | P25: =SUM(R25:DB25) -> 240.0541442 | R25: =R17+R19-SUM(R20:R23) -> 0 | S25: =S17+S19-SUM(S20:S23) -> 0 | T25: 0 | U25: 0 | V25: 0 | W25: 0 | X25: 0 | Y25: 0 | Z25: 0 | AA25: 0 | AB25: 0 | AC25: 0 | AD25: 0 | AE25: 0 | AF25: 0 | AG25: 0 | AH25: 0 | AI25: 0 | AJ25: 0 | AK25: 0 | AL25: 0 | AM25: 0 | AN25: 5.106337658 | AO25: 4.244395141 | AP25: 5.181358139 | AQ25: 4.478534912 | AR25: 5.450575535 | AS25: 4.784990105 | AT25: 5.75488625 | AU25: 4.998760463 | AV25: 5.71382107 | AW25: 4.902562595 | AX25: 5.831479305 | AY25: 4.963304466 | AZ25: 5.71148018 | BA25: 4.863121922 | BB25: 5.606716099 | BC25: 4.76701234 | BD25: 5.513941953 | BE25: 4.640862781 | BF25: 5.402911889 | BG25: 4.620757483 | BH25: 5.368127699 | BI25: 4.590370541 | BJ25: 5.330350093 | BK25: 4.564270366 | BL25: 5.230647467 | BM25: 4.477838742 | BN25: 5.205515689 | BO25: 4.413650267 | BP25: 5.136204948 | BQ25: 4.408358942 | BR25: 5.097279976 | BS25: 4.333435385 | BT25: 4.991396853 | BU25: 4.230489245 | BV25: 4.914120213 | BW25: 4.219562391 | BX25: 4.916064079 | BY25: 4.208884679 | BZ25: 4.901980909 | CA25: 4.2314988 | CB25: 4.918827451 | CC25: 4.258985203 | CD25: 4.898673795 | CE25: =CE17+CE19-SUM(CE20:CE23) -> 4.19114403 | CF25: 4.672396924 | CG25: 3.862106564 | CH25: 4.419105021 | CI25: 3.699298982 | CJ25: 4.268436252 | CK25: 3.557312406 | CL25: 0 | CM25: 0 | CN25: 0 | CO25: 0 | CP25: 0 | CQ25: 0 | CR25: 0 | CS25: 0 | CT25: 0 | CU25: 0 | CV25: 0 | CW25: 0 | CX25: 0 | CY25: 0 | CZ25: 0 | DA25: 0 | DB25: 0 | DC25: 0 | DD25: 0 | DE25: 0 | DF25: 0 | DG25: 0 | DH25: 0 | DI25: 0 | DJ25: 0 | DK25: 0 | DL25: 0 | DM25: 0 | DN25: 0 | DO25: 0 | DP25: 0 | DQ25: 0 | DR25: 0 | DS25: 0 | DT25: 0 | DU25: 0 | DV25: 0 | DW25: 0 | DX25: 0 | DY25: 0 | DZ25: 0 | EA25: 0 | EB25: 0 | EC25: 0 | ED25: 0 | EE25: 0 | EF25: 0 | EG25: 0 | EH25: 0 | EI25: 0 | EJ25: 0 | EK25: 0 | EL25: 0 | EM25: 0 | EN25: 0 | EO25: 0 | EP25: 0 | EQ25: =EQ17+EQ19-SUM(EQ20:EQ23) -> 0 | ER25: 0 | ES25: 0 | ET25: 0 | EU25: 0 | EV25: 0 | EW25: 0 | EX25: 0 | EY25: 0 | EZ25: 0 | FA25: 0 | FB25: 0 | FC25: 0 | FD25: 0 | FE25: 0 | FF25: 0 | FG25: 0 | FH25: 0 | FI25: 0 | FJ25: 0 | FK25: 0 | FL25: 0 | FM25: 0 | FN25: 0 | FO25: 0 | FP25: 0 | FQ25: 0 | FR25: 0 | FS25: 0 | FT25: 0 | FU25: 0 | FV25: 0 | FW25: 0 | FX25: 0 | FY25: 0 | FZ25: 0 | GA25: 0 | GB25: 0 | GC25: 0 | GD25: 0 | GE25: 0 | GF25: 0 | GG25: 0 | GH25: 0 | GI25: 0 | GJ25: 0 | GK25: 0 | GL25: 0 | GM25: 0 | GN25: 0 | GO25: 0 | GP25: 0 | GQ25: 0 | GR25: 0 | GS25: 0 | GT25: 0 | GU25: 0 | GV25: 0 | GW25: 0 | GX25: 0 | GY25: 0 | GZ25: 0 | HA25: 0 | HB25: 0 | HC25: =HC17+HC19-SUM(HC20:HC23) -> 0 | HD25: 0 | HE25: 0 | HF25: 0 | HG25: 0 | HH25: 0 | HI25: 0 | HJ25: 0 | HK25: 0 | HL25: 0 | HM25: 0 | HN25: 0 | HO25: 0 | HP25: 0 | HQ25: 0 | HR25: 0 | HS25: 0 | HT25: 0 | HU25: 0 | HV25: 0 | HW25: 0 | HX25: 0 | HY25: 0 | HZ25: 0 | IA25: 0 | IB25: 0 | IC25: 0 | ID25: 0 | IE25: 0
B27: (-) | C27: Tax Paid | J27: $m | P27: =SUM(R27:DB27) -> 48.01082884 | R27: ='T&D'!R27 -> 0 | S27: ='T&D'!S27 -> 0 | T27: ='T&D'!T27 -> 0 | U27: ='T&D'!U27 -> 0 | V27: ='T&D'!V27 -> 0 | W27: ='T&D'!W27 -> 0 | X27: ='T&D'!X27 -> 0 | Y27: ='T&D'!Y27 -> 0 | Z27: ='T&D'!Z27 -> 0 | AA27: ='T&D'!AA27 -> 0 | AB27: ='T&D'!AB27 -> 0 | AC27: ='T&D'!AC27 -> 0 | AD27: ='T&D'!AD27 -> 0 | AE27: ='T&D'!AE27 -> 0 | AF27: ='T&D'!AF27 -> 0 | AG27: ='T&D'!AG27 -> 0 | AH27: ='T&D'!AH27 -> 0 | AI27: ='T&D'!AI27 -> 0 | AJ27: ='T&D'!AJ27 -> 0 | AK27: ='T&D'!AK27 -> 0 | AL27: ='T&D'!AL27 -> 0 | AM27: ='T&D'!AM27 -> 0 | AN27: ='T&D'!AN27 -> 1.021267532 | AO27: ='T&D'!AO27 -> 0.8488790282 | AP27: ='T&D'!AP27 -> 1.036271628 | AQ27: ='T&D'!AQ27 -> 0.8957069824 | AR27: ='T&D'!AR27 -> 1.090115107 | AS27: ='T&D'!AS27 -> 0.956998021 | AT27: ='T&D'!AT27 -> 1.15097725 | AU27: ='T&D'!AU27 -> 0.9997520926 | AV27: ='T&D'!AV27 -> 1.142764214 | AW27: ='T&D'!AW27 -> 0.9805125189 | AX27: ='T&D'!AX27 -> 1.166295861 | AY27: ='T&D'!AY27 -> 0.9926608932 | AZ27: ='T&D'!AZ27 -> 1.142296036 | BA27: ='T&D'!BA27 -> 0.9726243843 | BB27: ='T&D'!BB27 -> 1.12134322 | BC27: ='T&D'!BC27 -> 0.953402468 | BD27: ='T&D'!BD27 -> 1.102788391 | BE27: ='T&D'!BE27 -> 0.9281725562 | BF27: ='T&D'!BF27 -> 1.080582378 | BG27: ='T&D'!BG27 -> 0.9241514966 | BH27: ='T&D'!BH27 -> 1.07362554 | BI27: ='T&D'!BI27 -> 0.9180741082 | BJ27: ='T&D'!BJ27 -> 1.066070019 | BK27: ='T&D'!BK27 -> 0.9128540732 | BL27: ='T&D'!BL27 -> 1.046129493 | BM27: ='T&D'!BM27 -> 0.8955677485 | BN27: ='T&D'!BN27 -> 1.041103138 | BO27: ='T&D'!BO27 -> 0.8827300534 | BP27: ='T&D'!BP27 -> 1.02724099 | BQ27: ='T&D'!BQ27 -> 0.8816717884 | BR27: ='T&D'!BR27 -> 1.019455995 | BS27: ='T&D'!BS27 -> 0.866687077 | BT27: ='T&D'!BT27 -> 0.9982793705 | BU27: ='T&D'!BU27 -> 0.8460978489 | BV27: ='T&D'!BV27 -> 0.9828240426 | BW27: ='T&D'!BW27 -> 0.8439124782 | BX27: ='T&D'!BX27 -> 0.9832128158 | BY27: ='T&D'!BY27 -> 0.8417769359 | BZ27: ='T&D'!BZ27 -> 0.9803961818 | CA27: ='T&D'!CA27 -> 0.84629976 | CB27: ='T&D'!CB27 -> 0.9837654902 | CC27: ='T&D'!CC27 -> 0.8517970407 | CD27: ='T&D'!CD27 -> 0.9797347591 | CE27: ='T&D'!CE27 -> 0.838228806 | CF27: ='T&D'!CF27 -> 0.9344793848 | CG27: ='T&D'!CG27 -> 0.7724213128 | CH27: ='T&D'!CH27 -> 0.8838210042 | CI27: ='T&D'!CI27 -> 0.7398597963 | CJ27: ='T&D'!CJ27 -> 0.8536872504 | CK27: ='T&D'!CK27 -> 0.7114624813 | CL27: ='T&D'!CL27 -> 0 | CM27: ='T&D'!CM27 -> 0 | CN27: ='T&D'!CN27 -> 0 | CO27: ='T&D'!CO27 -> 0 | CP27: ='T&D'!CP27 -> 0 | CQ27: ='T&D'!CQ27 -> 0 | CR27: ='T&D'!CR27 -> 0 | CS27: ='T&D'!CS27 -> 0 | CT27: ='T&D'!CT27 -> 0 | CU27: ='T&D'!CU27 -> 0 | CV27: ='T&D'!CV27 -> 0 | CW27: ='T&D'!CW27 -> 0 | CX27: ='T&D'!CX27 -> 0 | CY27: ='T&D'!CY27 -> 0 | CZ27: ='T&D'!CZ27 -> 0 | DA27: ='T&D'!DA27 -> 0 | DB27: ='T&D'!DB27 -> 0 | DC27: ='T&D'!DC27 -> 0 | DD27: ='T&D'!DD27 -> 0 | DE27: ='T&D'!DE27 -> 0 | DF27: ='T&D'!DF27 -> 0 | DG27: ='T&D'!DG27 -> 0 | DH27: ='T&D'!DH27 -> 0 | DI27: ='T&D'!DI27 -> 0 | DJ27: ='T&D'!DJ27 -> 0 | DK27: ='T&D'!DK27 -> 0 | DL27: ='T&D'!DL27 -> 0 | DM27: ='T&D'!DM27 -> 0 | DN27: ='T&D'!DN27 -> 0 | DO27: ='T&D'!DO27 -> 0 | DP27: ='T&D'!DP27 -> 0 | DQ27: ='T&D'!DQ27 -> 0 | DR27: ='T&D'!DR27 -> 0 | DS27: ='T&D'!DS27 -> 0 | DT27: ='T&D'!DT27 -> 0 | DU27: ='T&D'!DU27 -> 0 | DV27: ='T&D'!DV27 -> 0 | DW27: ='T&D'!DW27 -> 0 | DX27: ='T&D'!DX27 -> 0 | DY27: ='T&D'!DY27 -> 0 | DZ27: ='T&D'!DZ27 -> 0 | EA27: ='T&D'!EA27 -> 0 | EB27: ='T&D'!EB27 -> 0 | EC27: ='T&D'!EC27 -> 0 | ED27: ='T&D'!ED27 -> 0 | EE27: ='T&D'!EE27 -> 0 | EF27: ='T&D'!EF27 -> 0 | EG27: ='T&D'!EG27 -> 0 | EH27: ='T&D'!EH27 -> 0 | EI27: ='T&D'!EI27 -> 0 | EJ27: ='T&D'!EJ27 -> 0 | EK27: ='T&D'!EK27 -> 0 | EL27: ='T&D'!EL27 -> 0 | EM27: ='T&D'!EM27 -> 0 | EN27: ='T&D'!EN27 -> 0 | EO27: ='T&D'!EO27 -> 0 | EP27: ='T&D'!EP27 -> 0 | EQ27: ='T&D'!EQ27 -> 0 | ER27: ='T&D'!ER27 -> 0 | ES27: ='T&D'!ES27 -> 0 | ET27: ='T&D'!ET27 -> 0 | EU27: ='T&D'!EU27 -> 0 | EV27: ='T&D'!EV27 -> 0 | EW27: ='T&D'!EW27 -> 0 | EX27: ='T&D'!EX27 -> 0 | EY27: ='T&D'!EY27 -> 0 | EZ27: ='T&D'!EZ27 -> 0 | FA27: ='T&D'!FA27 -> 0 | FB27: ='T&D'!FB27 -> 0 | FC27: ='T&D'!FC27 -> 0 | FD27: ='T&D'!FD27 -> 0 | FE27: ='T&D'!FE27 -> 0 | FF27: ='T&D'!FF27 -> 0 | FG27: ='T&D'!FG27 -> 0 | FH27: ='T&D'!FH27 -> 0 | FI27: ='T&D'!FI27 -> 0 | FJ27: ='T&D'!FJ27 -> 0 | FK27: ='T&D'!FK27 -> 0 | FL27: ='T&D'!FL27 -> 0 | FM27: ='T&D'!FM27 -> 0 | FN27: ='T&D'!FN27 -> 0 | FO27: ='T&D'!FO27 -> 0 | FP27: ='T&D'!FP27 -> 0 | FQ27: ='T&D'!FQ27 -> 0 | FR27: ='T&D'!FR27 -> 0 | FS27: ='T&D'!FS27 -> 0 | FT27: ='T&D'!FT27 -> 0 | FU27: ='T&D'!FU27 -> 0 | FV27: ='T&D'!FV27 -> 0 | FW27: ='T&D'!FW27 -> 0 | FX27: ='T&D'!FX27 -> 0 | FY27: ='T&D'!FY27 -> 0 | FZ27: ='T&D'!FZ27 -> 0 | GA27: ='T&D'!GA27 -> 0 | GB27: ='T&D'!GB27 -> 0 | GC27: ='T&D'!GC27 -> 0 | GD27: ='T&D'!GD27 -> 0 | GE27: ='T&D'!GE27 -> 0 | GF27: ='T&D'!GF27 -> 0 | GG27: ='T&D'!GG27 -> 0 | GH27: ='T&D'!GH27 -> 0 | GI27: ='T&D'!GI27 -> 0 | GJ27: ='T&D'!GJ27 -> 0 | GK27: ='T&D'!GK27 -> 0 | GL27: ='T&D'!GL27 -> 0 | GM27: ='T&D'!GM27 -> 0 | GN27: ='T&D'!GN27 -> 0 | GO27: ='T&D'!GO27 -> 0 | GP27: ='T&D'!GP27 -> 0 | GQ27: ='T&D'!GQ27 -> 0 | GR27: ='T&D'!GR27 -> 0 | GS27: ='T&D'!GS27 -> 0 | GT27: ='T&D'!GT27 -> 0 | GU27: ='T&D'!GU27 -> 0 | GV27: ='T&D'!GV27 -> 0 | GW27: ='T&D'!GW27 -> 0 | GX27: ='T&D'!GX27 -> 0 | GY27: ='T&D'!GY27 -> 0 | GZ27: ='T&D'!GZ27 -> 0 | HA27: ='T&D'!HA27 -> 0 | HB27: ='T&D'!HB27 -> 0 | HC27: ='T&D'!HC27 -> 0 | HD27: ='T&D'!HD27 -> 0 | HE27: ='T&D'!HE27 -> 0 | HF27: ='T&D'!HF27 -> 0 | HG27: ='T&D'!HG27 -> 0 | HH27: ='T&D'!HH27 -> 0 | HI27: ='T&D'!HI27 -> 0 | HJ27: ='T&D'!HJ27 -> 0 | HK27: ='T&D'!HK27 -> 0 | HL27: ='T&D'!HL27 -> 0 | HM27: ='T&D'!HM27 -> 0 | HN27: ='T&D'!HN27 -> 0 | HO27: ='T&D'!HO27 -> 0 | HP27: ='T&D'!HP27 -> 0 | HQ27: ='T&D'!HQ27 -> 0 | HR27: ='T&D'!HR27 -> 0 | HS27: ='T&D'!HS27 -> 0 | HT27: ='T&D'!HT27 -> 0 | HU27: ='T&D'!HU27 -> 0 | HV27: ='T&D'!HV27 -> 0 | HW27: ='T&D'!HW27 -> 0 | HX27: ='T&D'!HX27 -> 0 | HY27: ='T&D'!HY27 -> 0 | HZ27: ='T&D'!HZ27 -> 0 | IA27: ='T&D'!IA27 -> 0 | IB27: ='T&D'!IB27 -> 0 | IC27: ='T&D'!IC27 -> 0 | ID27: ='T&D'!ID27 -> 0 | IE27: ='T&D'!IE27 -> 0
B29: ="" ->  | C29: Net Income | J29: $m | P29: =SUM(R29:DB29) -> 192.0433154 | R29: =R25-R27 -> 0 | S29: =S25-S27 -> 0 | T29: 0 | U29: 0 | V29: 0 | W29: 0 | X29: 0 | Y29: 0 | Z29: 0 | AA29: 0 | AB29: 0 | AC29: 0 | AD29: 0 | AE29: 0 | AF29: 0 | AG29: 0 | AH29: 0 | AI29: 0 | AJ29: 0 | AK29: 0 | AL29: 0 | AM29: 0 | AN29: 4.085070126 | AO29: 3.395516113 | AP29: 4.145086511 | AQ29: 3.58282793 | AR29: 4.360460428 | AS29: 3.827992084 | AT29: 4.603909 | AU29: 3.99900837 | AV29: 4.571056856 | AW29: 3.922050076 | AX29: 4.665183444 | AY29: 3.970643573 | AZ29: 4.569184144 | BA29: 3.890497537 | BB29: 4.485372879 | BC29: 3.813609872 | BD29: 4.411153563 | BE29: 3.712690225 | BF29: 4.322329511 | BG29: 3.696605986 | BH29: 4.294502159 | BI29: 3.672296433 | BJ29: 4.264280074 | BK29: 3.651416293 | BL29: 4.184517974 | BM29: 3.582270994 | BN29: 4.164412551 | BO29: 3.530920214 | BP29: 4.108963958 | BQ29: 3.526687153 | BR29: 4.077823981 | BS29: 3.466748308 | BT29: 3.993117482 | BU29: 3.384391396 | BV29: 3.931296171 | BW29: 3.375649913 | BX29: 3.932851263 | BY29: 3.367107743 | BZ29: 3.921584727 | CA29: 3.38519904 | CB29: 3.935061961 | CC29: 3.407188163 | CD29: 3.918939036 | CE29: =CE25-CE27 -> 3.352915224 | CF29: 3.737917539 | CG29: 3.089685251 | CH29: 3.535284017 | CI29: 2.959439185 | CJ29: 3.414749002 | CK29: 2.845849925 | CL29: 0 | CM29: 0 | CN29: 0 | CO29: 0 | CP29: 0 | CQ29: 0 | CR29: 0 | CS29: 0 | CT29: 0 | CU29: 0 | CV29: 0 | CW29: 0 | CX29: 0 | CY29: 0 | CZ29: 0 | DA29: 0 | DB29: 0 | DC29: 0 | DD29: 0 | DE29: 0 | DF29: 0 | DG29: 0 | DH29: 0 | DI29: 0 | DJ29: 0 | DK29: 0 | DL29: 0 | DM29: 0 | DN29: 0 | DO29: 0 | DP29: 0 | DQ29: 0 | DR29: 0 | DS29: 0 | DT29: 0 | DU29: 0 | DV29: 0 | DW29: 0 | DX29: 0 | DY29: 0 | DZ29: 0 | EA29: 0 | EB29: 0 | EC29: 0 | ED29: 0 | EE29: 0 | EF29: 0 | EG29: 0 | EH29: 0 | EI29: 0 | EJ29: 0 | EK29: 0 | EL29: 0 | EM29: 0 | EN29: 0 | EO29: 0 | EP29: 0 | EQ29: =EQ25-EQ27 -> 0 | ER29: 0 | ES29: 0 | ET29: 0 | EU29: 0 | EV29: 0 | EW29: 0 | EX29: 0 | EY29: 0 | EZ29: 0 | FA29: 0 | FB29: 0 | FC29: 0 | FD29: 0 | FE29: 0 | FF29: 0 | FG29: 0 | FH29: 0 | FI29: 0 | FJ29: 0 | FK29: 0 | FL29: 0 | FM29: 0 | FN29: 0 | FO29: 0 | FP29: 0 | FQ29: 0 | FR29: 0 | FS29: 0 | FT29: 0 | FU29: 0 | FV29: 0 | FW29: 0 | FX29: 0 | FY29: 0 | FZ29: 0 | GA29: 0 | GB29: 0 | GC29: 0 | GD29: 0 | GE29: 0 | GF29: 0 | GG29: 0 | GH29: 0 | GI29: 0 | GJ29: 0 | GK29: 0 | GL29: 0 | GM29: 0 | GN29: 0 | GO29: 0 | GP29: 0 | GQ29: 0 | GR29: 0 | GS29: 0 | GT29: 0 | GU29: 0 | GV29: 0 | GW29: 0 | GX29: 0 | GY29: 0 | GZ29: 0 | HA29: 0 | HB29: 0 | HC29: =HC25-HC27 -> 0 | HD29: 0 | HE29: 0 | HF29: 0 | HG29: 0 | HH29: 0 | HI29: 0 | HJ29: 0 | HK29: 0 | HL29: 0 | HM29: 0 | HN29: 0 | HO29: 0 | HP29: 0 | HQ29: 0 | HR29: 0 | HS29: 0 | HT29: 0 | HU29: 0 | HV29: 0 | HW29: 0 | HX29: 0 | HY29: 0 | HZ29: 0 | IA29: 0 | IB29: 0 | IC29: 0 | ID29: 0 | IE29: 0
B31: (-) | C31: Dividend Distributed | J31: $m | P31: =SUM(R31:DB31) -> 192.0433154 | R31: =Equity!R88 -> 0 | S31: =Equity!S88 -> 0 | T31: =Equity!T88 -> 0 | U31: =Equity!U88 -> 0 | V31: =Equity!V88 -> 0 | W31: =Equity!W88 -> 0 | X31: =Equity!X88 -> 0 | Y31: =Equity!Y88 -> 0 | Z31: =Equity!Z88 -> 0 | AA31: =Equity!AA88 -> 0 | AB31: =Equity!AB88 -> 0 | AC31: =Equity!AC88 -> 0 | AD31: =Equity!AD88 -> 0 | AE31: =Equity!AE88 -> 0 | AF31: =Equity!AF88 -> 0 | AG31: =Equity!AG88 -> 0 | AH31: =Equity!AH88 -> 0 | AI31: =Equity!AI88 -> 0 | AJ31: =Equity!AJ88 -> 0 | AK31: =Equity!AK88 -> 0 | AL31: =Equity!AL88 -> 0 | AM31: =Equity!AM88 -> 9.947598301e-14 | AN31: =Equity!AN88 -> 0 | AO31: =Equity!AO88 -> 0 | AP31: =Equity!AP88 -> 0 | AQ31: =Equity!AQ88 -> 0 | AR31: =Equity!AR88 -> 0 | AS31: =Equity!AS88 -> 0 | AT31: =Equity!AT88 -> 0 | AU31: =Equity!AU88 -> 1.183412038 | AV31: =Equity!AV88 -> 5.702312437 | AW31: =Equity!AW88 -> 4.287425432 | AX31: =Equity!AX88 -> 5.225878347 | AY31: =Equity!AY88 -> 5.136627603 | AZ31: =Equity!AZ88 -> 5.247163136 | BA31: =Equity!BA88 -> 4.910757836 | BB31: =Equity!BB88 -> 5.165517305 | BC31: =Equity!BC88 -> 5.790205847 | BD31: =Equity!BD88 -> 5.488426881 | BE31: =Equity!BE88 -> 5.184839628 | BF31: =Equity!BF88 -> 5.42456723 | BG31: =Equity!BG88 -> 5.117915349 | BH31: =Equity!BH88 -> 5.352146686 | BI31: =Equity!BI88 -> 5.046823981 | BJ31: =Equity!BJ88 -> 5.278288569 | BK31: =Equity!BK88 -> 4.976794062 | BL31: =Equity!BL88 -> 5.203762104 | BM31: =Equity!BM88 -> 4.905509448 | BN31: =Equity!BN88 -> 5.131368921 | BO31: =Equity!BO88 -> 4.841243079 | BP31: =Equity!BP88 -> 5.063947512 | BQ31: =Equity!BQ88 -> 4.001882831 | BR31: =Equity!BR88 -> 4.669154547 | BS31: =Equity!BS88 -> 4.349080963 | BT31: =Equity!BT88 -> 4.586581753 | BU31: =Equity!BU88 -> 5.139846379 | BV31: =Equity!BV88 -> 4.869854708 | BW31: =Equity!BW88 -> 4.58922466 | BX31: =Equity!BX88 -> 4.80090995 | BY31: =Equity!BY88 -> 3.868033065 | BZ31: =Equity!BZ88 -> 3.921584727 | CA31: =Equity!CA88 -> 3.38519904 | CB31: =Equity!CB88 -> 3.935061961 | CC31: =Equity!CC88 -> 3.407188163 | CD31: =Equity!CD88 -> 3.918939036 | CE31: =Equity!CE88 -> 3.352915224 | CF31: =Equity!CF88 -> 3.737917539 | CG31: =Equity!CG88 -> 3.089685251 | CH31: =Equity!CH88 -> 3.535284017 | CI31: =Equity!CI88 -> 2.959439185 | CJ31: =Equity!CJ88 -> 3.414749002 | CK31: =Equity!CK88 -> 2.845849925 | CL31: =Equity!CL88 -> 0 | CM31: =Equity!CM88 -> 0 | CN31: =Equity!CN88 -> 0 | CO31: =Equity!CO88 -> 0 | CP31: =Equity!CP88 -> 0 | CQ31: =Equity!CQ88 -> 0 | CR31: =Equity!CR88 -> 0 | CS31: =Equity!CS88 -> 0 | CT31: =Equity!CT88 -> 0 | CU31: =Equity!CU88 -> 0 | CV31: =Equity!CV88 -> 0 | CW31: =Equity!CW88 -> 0 | CX31: =Equity!CX88 -> 0 | CY31: =Equity!CY88 -> 0 | CZ31: =Equity!CZ88 -> 0 | DA31: =Equity!DA88 -> 0 | DB31: =Equity!DB88 -> 0 | DC31: =Equity!DC88 -> 0 | DD31: =Equity!DD88 -> 0 | DE31: =Equity!DE88 -> 0 | DF31: =Equity!DF88 -> 0 | DG31: =Equity!DG88 -> 0 | DH31: =Equity!DH88 -> 0 | DI31: =Equity!DI88 -> 0 | DJ31: =Equity!DJ88 -> 0 | DK31: =Equity!DK88 -> 0 | DL31: =Equity!DL88 -> 0 | DM31: =Equity!DM88 -> 0 | DN31: =Equity!DN88 -> 0 | DO31: =Equity!DO88 -> 0 | DP31: =Equity!DP88 -> 0 | DQ31: =Equity!DQ88 -> 0 | DR31: =Equity!DR88 -> 0 | DS31: =Equity!DS88 -> 0 | DT31: =Equity!DT88 -> 0 | DU31: =Equity!DU88 -> 0 | DV31: =Equity!DV88 -> 0 | DW31: =Equity!DW88 -> 0 | DX31: =Equity!DX88 -> 0 | DY31: =Equity!DY88 -> 0 | DZ31: =Equity!DZ88 -> 0 | EA31: =Equity!EA88 -> 0 | EB31: =Equity!EB88 -> 0 | EC31: =Equity!EC88 -> 0 | ED31: =Equity!ED88 -> 0 | EE31: =Equity!EE88 -> 0 | EF31: =Equity!EF88 -> 0 | EG31: =Equity!EG88 -> 0 | EH31: =Equity!EH88 -> 0 | EI31: =Equity!EI88 -> 0 | EJ31: =Equity!EJ88 -> 0 | EK31: =Equity!EK88 -> 0 | EL31: =Equity!EL88 -> 0 | EM31: =Equity!EM88 -> 0 | EN31: =Equity!EN88 -> 0 | EO31: =Equity!EO88 -> 0 | EP31: =Equity!EP88 -> 0 | EQ31: =Equity!EQ88 -> 0 | ER31: =Equity!ER88 -> 0 | ES31: =Equity!ES88 -> 0 | ET31: =Equity!ET88 -> 0 | EU31: =Equity!EU88 -> 0 | EV31: =Equity!EV88 -> 0 | EW31: =Equity!EW88 -> 0 | EX31: =Equity!EX88 -> 0 | EY31: =Equity!EY88 -> 0 | EZ31: =Equity!EZ88 -> 0 | FA31: =Equity!FA88 -> 0 | FB31: =Equity!FB88 -> 0 | FC31: =Equity!FC88 -> 0 | FD31: =Equity!FD88 -> 0 | FE31: =Equity!FE88 -> 0 | FF31: =Equity!FF88 -> 0 | FG31: =Equity!FG88 -> 0 | FH31: =Equity!FH88 -> 0 | FI31: =Equity!FI88 -> 0 | FJ31: =Equity!FJ88 -> 0 | FK31: =Equity!FK88 -> 0 | FL31: =Equity!FL88 -> 0 | FM31: =Equity!FM88 -> 0 | FN31: =Equity!FN88 -> 0 | FO31: =Equity!FO88 -> 0 | FP31: =Equity!FP88 -> 0 | FQ31: =Equity!FQ88 -> 0 | FR31: =Equity!FR88 -> 0 | FS31: =Equity!FS88 -> 0 | FT31: =Equity!FT88 -> 0 | FU31: =Equity!FU88 -> 0 | FV31: =Equity!FV88 -> 0 | FW31: =Equity!FW88 -> 0 | FX31: =Equity!FX88 -> 0 | FY31: =Equity!FY88 -> 0 | FZ31: =Equity!FZ88 -> 0 | GA31: =Equity!GA88 -> 0 | GB31: =Equity!GB88 -> 0 | GC31: =Equity!GC88 -> 0 | GD31: =Equity!GD88 -> 0 | GE31: =Equity!GE88 -> 0 | GF31: =Equity!GF88 -> 0 | GG31: =Equity!GG88 -> 0 | GH31: =Equity!GH88 -> 0 | GI31: =Equity!GI88 -> 0 | GJ31: =Equity!GJ88 -> 0 | GK31: =Equity!GK88 -> 0 | GL31: =Equity!GL88 -> 0 | GM31: =Equity!GM88 -> 0 | GN31: =Equity!GN88 -> 0 | GO31: =Equity!GO88 -> 0 | GP31: =Equity!GP88 -> 0 | GQ31: =Equity!GQ88 -> 0 | GR31: =Equity!GR88 -> 0 | GS31: =Equity!GS88 -> 0 | GT31: =Equity!GT88 -> 0 | GU31: =Equity!GU88 -> 0 | GV31: =Equity!GV88 -> 0 | GW31: =Equity!GW88 -> 0 | GX31: =Equity!GX88 -> 0 | GY31: =Equity!GY88 -> 0 | GZ31: =Equity!GZ88 -> 0 | HA31: =Equity!HA88 -> 0 | HB31: =Equity!HB88 -> 0 | HC31: =Equity!HC88 -> 0 | HD31: =Equity!HD88 -> 0 | HE31: =Equity!HE88 -> 0 | HF31: =Equity!HF88 -> 0 | HG31: =Equity!HG88 -> 0 | HH31: =Equity!HH88 -> 0 | HI31: =Equity!HI88 -> 0 | HJ31: =Equity!HJ88 -> 0 | HK31: =Equity!HK88 -> 0 | HL31: =Equity!HL88 -> 0 | HM31: =Equity!HM88 -> 0 | HN31: =Equity!HN88 -> 0 | HO31: =Equity!HO88 -> 0 | HP31: =Equity!HP88 -> 0 | HQ31: =Equity!HQ88 -> 0 | HR31: =Equity!HR88 -> 0 | HS31: =Equity!HS88 -> 0 | HT31: =Equity!HT88 -> 0 | HU31: =Equity!HU88 -> 0 | HV31: =Equity!HV88 -> 0 | HW31: =Equity!HW88 -> 0 | HX31: =Equity!HX88 -> 0 | HY31: =Equity!HY88 -> 0 | HZ31: =Equity!HZ88 -> 0 | IA31: =Equity!IA88 -> 0 | IB31: =Equity!IB88 -> 0 | IC31: =Equity!IC88 -> 0 | ID31: =Equity!ID88 -> 0 | IE31: =Equity!IE88 -> 0
